Workbook

Sheet Notes
A1: CreatingATradingStrategy.xlsm, Traders Tip published in the October 2014 issue
A2: Coded beginning 2014-Aug-07 by Ronald McAllister (rpmac_xltt@sprynet.com)
B3: For publication with the October 2014 issue
A5: This Workbook demonstrates an EXCEL version of the ideas presented
A6: by Sylvain Vervoort in an article titled "Exploring Charting Techniques: Creating A Trading Strategy" (Part 3 of the series)
A7: which appeared in the September 2014 issue of
A8: "Technical Analysis of Stocks and Commodities" magazine.
A10: Change Log:
A11: 2014-08-07 R McAllister
B12: This workbook is a modification of the SVEModifiedRenkoBars.xlsm traders tip spreadsheet which was published in the July 2014 issue of the magazine
C13: to accompany the first article of this series.
A15: 2014 Aug 08 - Ron McAllister Found a problem:
B16: While preparing to use the 2014 July Renko Bars spread sheet as the basis for the October 2014
B17: traders tip, I realized that my renko brick charts did not always look like Mr. Vervoort's examples.
B18: This was particularly noticeable at reversal points. I had some larger bricks, some smaller bricks, and
B19: frequently I had bricks that opened somewhere in the middle of a brick range instead of the start of a brick range!
B20: A search of the web regarding the undocumented (at least outside of Ninja land) NinjaTrader bar manipulation functions produced a number of
B21: commentaries which suggest that the NinjaTrader version of the UpdateBar function has a bug which prevents it from updating the target bar Open value.
B22: Commenters from the Ninja support team indicate no intention of altering the behavior of the update bar function. Nor were they encouraging about the imminent release of any doc for these functions.
B23: The suggested work around is to delete the current bar and add it back with values set as you would like them.
B24: In Mr. Vervoort's original code, we see this delete / replace scenario used for input ticks that drive up-trend continuations and down-trend continuations.
B25: However, we still see UpdateBar used to deal with input ticks that are part of a sideways movement.
B26: So I decided to see what would happen if I reproduced this "logic error" in my version of the UpdateBar function.
B27: In the UpdateBar code, simply commenting out the line that would have altered the .barOpen value did the trick.
B28: Voila! My bricks now look like those in the example charts, particularly at reversal points.
A30: CalculationsAndCharts construction Notes:
B32: In the time frame available to me to develop the July 2014 Traders Tip spread sheet, I was not able to devise a way to accomplish building Mr. Vervoort's bars using
C33: purely cell based formulas. I won't say it cannot be done. And if someone comes up with an appropriate set of cell formulas, I would love to see the spreadsheet.
B35: Instead of a many columns of cell formulas solution I have taken an approach that uses a single custom built VBA array function.
C36: The VBA code and supporting structures are a bit more complex than I have used in previous Traders Tips but they get the job done rather quickly.
B38: This approach involves a couple of custom built VBA classes to store and deliver a stack of Renko bars as they are built and eventually reported out.
C39: To drive that process we have a user defined VBA function I named SVERenkoBars, which contains the logic to turn tick entries into renko bar bars which are passed to the class routines for safe storage.
C40: The class methods create and manipulate a forward and back linked list which I treat as a push stack to contain the renko bars as they are built. For ease of readability during the translation from Mr. Vervoort's
C41: Ninja code to VBA code, this class uses routines similar in name and hopefully similar in function to the NinjaTrader routines used in Mr. Vervoort's Sidebar code. I say similar in function
C42: because these routines are not documented in anything that I could find to be freely available to the general NinjaTrader User. My small understanding as to
C43: their function (what they actually do) has been cribbed and intuited from a myriad of Google hits that provide hints about them or provide examples of use with out any detailed explanation.
B45: My original class design used a push down stack. Through painful example, I found that my single direction stack would allow the bar creation process to
C46: overwhelm the available EXCEL memory when the Renko Bar control interval was set small enough on an instrument with a wide range of values.
C47: Under these conditions, the gap fill logic simply generates too many bars.
B48: I say painful as the only way out of the EXCEL error message and retry loop was to use the task manager to kill the EXCEL process. No save possibility.
C49: Thankfully, past instances of runaway code such as this are why I do frequent saves. So not very much in the way of code had to be reconstructed when this happened.
B51: To avoid this memory overload problem entirely, I have modified the class logic to support a double link list. The logic now keeps a pointer to the last (oldest) bar on the list so that it can
C52: prune away this last (oldest) bar each time a new bar pushes the stack over the maximum bar limit. As a matter of expediency, the maximum bar limit is automatically set to
C53: the number of calling area rows. This is the area selected by the user when the SVERenkoBars function is Array Entered. My thinking is that there is no need to keep
C54: more bars than the calling area has rows to accept. And, I would rather see the most current bars if I must choose between old and new. So old bar pruning was the logical choice.
B56: The SVERenkoBars function is an EXCEL Array Function. For those not familiar with EXCEL array functions and formulas, you have some Google time and some EXCEL help reading ahead of you.
C57: Suffice it to say that an array function allows one to send a large amount of data to a single call of a function and have the results of that single call returned to a large "array" of adjacent cells.
C58: As used here, SVERenkobars output area occupies 2800 rows in a range of cells bounded by J33:Q2832. Surely more bars than you will want to see scrunched together on a chart.
B60: Properly setting up an array formula on the worksheet involves a couple of steps:
C61: First, select the entire area of cells intended to contain the results of the function call,
C62: Second, enter the Function formula with all of its parameter specifications in the top left cell of the area,
C63: Third, do not press ENTER to complete the formula. Instead, with the entire output area selected, and still in edit mode on the formula in the top left cell of the output area,
C64: hold down CNTRL and SHIFT while you press ENTER. Apologies to MAC users; the steps are the same, but I know that the keys are named differently.
C65: If you got it right, all cells in your output area will now show output values from the function.
C66: For the curious: If you randomly select individual cells in the output area, the formula bar will show that they contain a copy of the formula you array entered at the top left, now enclosed in curly {} braces.
C68: In the event that you wish make changes to the size, location, or formatting of an array formula output area, you will need to first need to get the ALL of output area cells out of array formula mode at the same time.
C69: Select the entire array formula output cell area. Use F2 to enter edit mode. Then Hold down the CNTRL key and press ENTER. Again, MAC users, the actions are the same but the key names are different.
C70: For this exercise, taking these cells out of array formula mode will result in all of the cells in the array output area showing error messages. You can ignore these while you make your changes.
C71: To clear the underbrush so to speak, I typically Clear Contents for all of the output area cells except the top left cell. This improves the look of things while you make your adjustments and
C72: preserves one copy of the formula for potential alteration and subsequent use to re-establish the functionality.
B74: See commentary and VBA code in the SVERenkoBarclass module to see how the Bar class object is defined. Take a look at the SVERenkoBarsList class module to see the
C75: VBA code and commentary for BarList object methods and functions that are used to create and manipulate Bar class objects when building the bar list object.
B77: See the SVERenkoDriver module for commentary and VBA mainline code of the SVERenkoBars Function which uses these classes to create our Renko Bars.
B79: Last Note: The SVERenkoBars Chart tab displays a fixed number of bars on the chart. No button nor VBA code has been set up to dynamically to change the number of bars for you.
C80: However, if you are comfortable with it, you may use the chart Select Data dialog to alter the number of bars for each data series.
C81: The SVERenkoBars chart will automatically adjust Vertical axis specifications to accommodate the vertical range of renko bars as you change the
C82: user controls on the Calculations and charts page.
A84: Data for this EXCEL example:
B86: Using daily data in this example.
A88: Development Notes:
A89: 1 | C89: This workbook contains and uses VBA macros.
A90: 2 | C90: Input Data
C91: The data in this workbook is sorted date descending (most recent date at the top). All formulas and
C92: VBA routines are built accordingly.
A94: Calculation and Chart Worksheet Usage Comments:
A95: 1 | C95: In General, Items in Bolded BLUE are items you may freely change to play what-if games.
C96: Be sure to have a backup copy of the spreadsheet before you alter anything else.
A97: 2 | C97: Several of the column formulas begin with "IF" logic that determines when there is sufficient data
C98: available for the subsequent calculations to be relevant. The cell will calculate to blank or the
C99: result of the calculation.
C100: In a couple of cases, this "IF" logic also sets starter values for subsequent smoothing calculations.
A101: 3 | C101: Data windowing can be performed by changing cell A11. Positive values logically "Pan" the
C102: data window represented by the Calculation sheet down the input sheet and back in time.
C103: This can have two side effects: First, data may fall outside of the fixed Y-axis scales and be clipped
C104: or fall well inside the Y-axis scales wasting a lot of chart vertical space. Second, you may move far
C105: enough back that you do not have sufficient data points to fill the left of the chart.
A106: 4 | C106: The VBA macros behind the SetChart button address these Data Windowing problems and also
C107: resizes and vertically aligns all charts on the work sheet to match the Price chart and then
C108: horizontally adjusts the X-axis positions of all charts on the work sheet so that the corresponding
C109: data points align vertically.
C110: The macros behind the SetChart button are sensitive to the user control values in cells A11 and
C111: A12, and also uses the computed values in cells A8, F11, and F12

Sheet InputPriceData
A1: S&P 500 (^GSPC) -SNP (Daily)
A2: Last Trade: | B2: 2014-08-08 | C2: 1910.35 | D2: 1932.38 | E2: 1909.01 | F2: 1931.59 | G2: 456088512 | H2: 4:31pm | L2: Notes: | M2: Online Yahoo Finance Query Interfaces used in the VBA code to obtain this data:
A3: Request Online Yahoo History for: | M3: A.) Price History Only: "http://ichart.finance.yahoo.com/table.csv"
A4: Symbol | B4: ^GSPC | D4: Valid | M4: B.) Price History w/ imbedded divs n splits: "http://ichart.finance.yahoo.com/x"
A5: From | B5: 1977-01-07 | D5: Data
A6: To | B6: =TODAY() -> 2014-08-10 | D6: Types | E6: =VLOOKUP(B7,D7:E10,2,FALSE) -> d | M6: C.) Fundamentals (in this case name and exchange):
A7: Data Type | B7: Daily | D7: Daily | E7: d | M7: "http://download.finance.yahoo.com/d/quotes.csv?"
D8: Weekly | E8: w | M8: For some how-to doc regarding this particular interface, including a list of the
A9: Available Data | D9: Monthly | E9: m | M9: specific fields you can include in a request to this interface see:
A10: Bar Count: | B10: =COUNTA(B15:B53523)-1 -> 9482 | M10: http://www.gummy-stuff.org/Yahoo-data.htm
A11: From: | B11: =IF(B10<=0,"",OFFSET(B15,B10,IF(HistReqDataType="v",1,0),1,1)) -> 1977-01-07 | M11: This web site includes a downloadable working EXCEL/VBA example | W11: Trailing 12 Month Dividend Returns
A12: To: | B12: =IF(B10<=0,"",IF(HistReqDataType="v",OFFSET(B15,2,1,1,1),OFFSET(B15,1,0,1,1))) -> 2014-08-08 | M12: of the capabilities of this interface. | W12: Raw Close price on Dividend date | X12: Looking for year ago Div date | Y12: Year ago Div Date we found | Z12: row offset to year ago div Date | AA12: Same month flag | AB12: Trailing 12 Div Total | AC12: Trailing 12 Div return
Q13: Split History | S13: =COUNT(Q16:Q10996) -> 0 | T13: Running | U13: Dividend History
B14: Raw Data Values | H14: Adjusted | I14: Price Adjust | J14: Vol Adjust | K14: Adjusted Values | P14: Last | Q14: Effective | R14: Shares | T14: Vol Adjust | V14: =COUNT(U16:U10996) -> 0
A15: RelRow | B15: Date | C15: Open | D15: High | E15: Low | F15: Close | G15: Volume | H15: Close | I15: Factor | J15: Factor | K15: Open | L15: High | M15: Low | N15: Close | O15: Volume | P15: Trade | Q15: 41860 | R15: New | S15: Old | T15: 1 | U15: Date | V15: $ / Share
A16: 1 | B16: 2014-08-08 | C16: 1910.35 | D16: 1932.38 | E16: 1909.01 | F16: 1931.59 | G16: 456088512 | H16: 1931.59 | I16: =H16/F16 -> 1 | J16: =INDEX(OFFSET($T$15,0,0,$S$13+1,1),MATCH(B16,OFFSET($Q$15,0,0,$S$13+1,1),-1)) -> 1 | K16: =ROUND($I16*C16,2) -> 1910.35 | L16: =ROUND($I16*D16,2) -> 1932.38 | M16: =ROUND($I16*E16,2) -> 1909.01 | N16: =ROUND($I16*F16,2) -> 1931.59 | O16: =G16*J16 -> 456088512 | P16: 4:31pm
A17: 2 | B17: 2014-08-07 | C17: 1923.03 | D17: 1928.89 | E17: 1904.78 | F17: 1909.57 | G17: 3230520000 | H17: 1909.57 | I17: =H17/F17 -> 1 | J17: =INDEX(OFFSET($T$15,0,0,$S$13+1,1),MATCH(B17,OFFSET($Q$15,0,0,$S$13+1,1),-1)) -> 1 | K17: 1923.03 | L17: 1928.89 | M17: 1904.78 | N17: 1909.57 | O17: =G17*J17 -> 3230520000
A18: 3 | B18: 2014-08-06 | C18: 1917.29 | D18: 1927.91 | E18: 1911.45 | F18: 1920.24 | G18: 3539150000 | H18: 1920.24 | I18: =H18/F18 -> 1 | J18: =INDEX(OFFSET($T$15,0,0,$S$13+1,1),MATCH(B18,OFFSET($Q$15,0,0,$S$13+1,1),-1)) -> 1 | K18: 1917.29 | L18: 1927.91 | M18: 1911.45 | N18: 1920.24 | O18: =G18*J18 -> 3539150000
A19: 4 | B19: 2014-08-05 | C19: 1936.34 | D19: 1936.34 | E19: 1913.77 | F19: 1920.21 | G19: 3462520000 | H19: 1920.21 | I19: 1 | J19: 1 | K19: 1936.34 | L19: 1936.34 | M19: 1913.77 | N19: 1920.21 | O19: 3462520000
A20: 5 | B20: 2014-08-04 | C20: 1926.62 | D20: 1942.92 | E20: 1921.2 | F20: 1938.99 | G20: 3072920000 | H20: 1938.99 | I20: 1 | J20: 1 | K20: 1926.62 | L20: 1942.92 | M20: 1921.2 | N20: 1938.99 | O20: 3072920000
A21: 6 | B21: 2014-08-01 | C21: 1929.8 | D21: 1937.35 | E21: 1916.37 | F21: 1925.15 | G21: 3789660000 | H21: 1925.15 | I21: 1 | J21: 1 | K21: 1929.8 | L21: 1937.35 | M21: 1916.37 | N21: 1925.15 | O21: 3789660000
A22: 7 | B22: 2014-07-31 | C22: 1965.14 | D22: 1965.14 | E22: 1930.67 | F22: 1930.67 | G22: 4193000000 | H22: 1930.67 | I22: 1 | J22: 1 | K22: 1965.14 | L22: 1965.14 | M22: 1930.67 | N22: 1930.67 | O22: 4193000000
A23: 8 | B23: 2014-07-30 | C23: 1973.21 | D23: 1978.9 | E23: 1962.42 | F23: 1970.07 | G23: 3448250000 | H23: 1970.07 | I23: 1 | J23: 1 | K23: 1973.21 | L23: 1978.9 | M23: 1962.42 | N23: 1970.07 | O23: 3448250000
A24: 9 | B24: 2014-07-29 | C24: 1980.03 | D24: 1984.85 | E24: 1969.95 | F24: 1969.95 | G24: 3183300000 | H24: 1969.95 | I24: 1 | J24: 1 | K24: 1980.03 | L24: 1984.85 | M24: 1969.95 | N24: 1969.95 | O24: 3183300000
A25: 10 | B25: 2014-07-28 | C25: 1978.25 | D25: 1981.52 | E25: 1967.31 | F25: 1978.91 | G25: 2803320000 | H25: 1978.91 | I25: 1 | J25: 1 | K25: 1978.25 | L25: 1981.52 | M25: 1967.31 | N25: 1978.91 | O25: 2803320000
A26: 11 | B26: 2014-07-25 | C26: 1984.6 | D26: 1984.6 | E26: 1974.37 | F26: 1978.34 | G26: 2638960000 | H26: 1978.34 | I26: 1 | J26: 1 | K26: 1984.6 | L26: 1984.6 | M26: 1974.37 | N26: 1978.34 | O26: 2638960000
A27: 12 | B27: 2014-07-24 | C27: 1988.07 | D27: 1991.39 | E27: 1985.79 | F27: 1987.98 | G27: 3203530000 | H27: 1987.98 | I27: 1 | J27: 1 | K27: 1988.07 | L27: 1991.39 | M27: 1985.79 | N27: 1987.98 | O27: 3203530000
A28: 13 | B28: 2014-07-23 | C28: 1985.32 | D28: 1989.23 | E28: 1982.44 | F28: 1987.01 | G28: 2869720000 | H28: 1987.01 | I28: 1 | J28: 1 | K28: 1985.32 | L28: 1989.23 | M28: 1982.44 | N28: 1987.01 | O28: 2869720000
A29: 14 | B29: 2014-07-22 | C29: 1975.65 | D29: 1986.24 | E29: 1975.65 | F29: 1983.53 | G29: 2890480000 | H29: 1983.53 | I29: 1 | J29: 1 | K29: 1975.65 | L29: 1986.24 | M29: 1975.65 | N29: 1983.53 | O29: 2890480000
A30: 15 | B30: 2014-07-21 | C30: 1976.93 | D30: 1976.93 | E30: 1965.77 | F30: 1973.63 | G30: 2611160000 | H30: 1973.63 | I30: 1 | J30: 1 | K30: 1976.93 | L30: 1976.93 | M30: 1965.77 | N30: 1973.63 | O30: 2611160000
A31: 16 | B31: 2014-07-18 | C31: 1961.54 | D31: 1979.91 | E31: 1960.82 | F31: 1978.22 | G31: 3106060000 | H31: 1978.22 | I31: 1 | J31: 1 | K31: 1961.54 | L31: 1979.91 | M31: 1960.82 | N31: 1978.22 | O31: 3106060000
A32: 17 | B32: 2014-07-17 | C32: 1979.75 | D32: 1981.8 | E32: 1955.59 | F32: 1958.12 | G32: 3381680000 | H32: 1958.12 | I32: 1 | J32: 1 | K32: 1979.75 | L32: 1981.8 | M32: 1955.59 | N32: 1958.12 | O32: 3381680000
A33: 18 | B33: 2014-07-16 | C33: 1976.35 | D33: 1983.94 | E33: 1975.67 | F33: 1981.57 | G33: 3390950000 | H33: 1981.57 | I33: 1 | J33: 1 | K33: 1976.35 | L33: 1983.94 | M33: 1975.67 | N33: 1981.57 | O33: 3390950000
A34: 19 | B34: 2014-07-15 | C34: 1977.36 | D34: 1982.52 | E34: 1965.34 | F34: 1973.28 | G34: 3328740000 | H34: 1973.28 | I34: 1 | J34: 1 | K34: 1977.36 | L34: 1982.52 | M34: 1965.34 | N34: 1973.28 | O34: 3328740000
A35: 20 | B35: 2014-07-14 | C35: 1969.86 | D35: 1979.85 | E35: 1969.86 | F35: 1977.1 | G35: 2744920000 | H35: 1977.1 | I35: 1 | J35: 1 | K35: 1969.86 | L35: 1979.85 | M35: 1969.86 | N35: 1977.1 | O35: 2744920000
A36: 21 | B36: 2014-07-11 | C36: 1965.76 | D36: 1968.67 | E36: 1959.63 | F36: 1967.57 | G36: 2684630000 | H36: 1967.57 | I36: 1 | J36: 1 | K36: 1965.76 | L36: 1968.67 | M36: 1959.63 | N36: 1967.57 | O36: 2684630000
A37: 22 | B37: 2014-07-10 | C37: 1966.67 | D37: 1969.84 | E37: 1952.86 | F37: 1964.68 | G37: 3165690000 | H37: 1964.68 | I37: 1 | J37: 1 | K37: 1966.67 | L37: 1969.84 | M37: 1952.86 | N37: 1964.68 | O37: 3165690000
A38: 23 | B38: 2014-07-09 | C38: 1965.1 | D38: 1974.15 | E38: 1965.1 | F38: 1972.83 | G38: 2858800000 | H38: 1972.83 | I38: 1 | J38: 1 | K38: 1965.1 | L38: 1974.15 | M38: 1965.1 | N38: 1972.83 | O38: 2858800000
A39: 24 | B39: 2014-07-08 | C39: 1976.39 | D39: 1976.39 | E39: 1959.46 | F39: 1963.71 | G39: 3302430000 | H39: 1963.71 | I39: 1 | J39: 1 | K39: 1976.39 | L39: 1976.39 | M39: 1959.46 | N39: 1963.71 | O39: 3302430000
A40: 25 | B40: 2014-07-07 | C40: 1984.22 | D40: 1984.22 | E40: 1974.88 | F40: 1977.65 | G40: 2681260000 | H40: 1977.65 | I40: 1 | J40: 1 | K40: 1984.22 | L40: 1984.22 | M40: 1974.88 | N40: 1977.65 | O40: 2681260000
A41: 26 | B41: 2014-07-03 | C41: 1975.88 | D41: 1985.59 | E41: 1975.88 | F41: 1985.44 | G41: 1998090000 | H41: 1985.44 | I41: 1 | J41: 1 | K41: 1975.88 | L41: 1985.59 | M41: 1975.88 | N41: 1985.44 | O41: 1998090000
A42: 27 | B42: 2014-07-02 | C42: 1973.06 | D42: 1976.67 | E42: 1972.58 | F42: 1974.62 | G42: 2851480000 | H42: 1974.62 | I42: 1 | J42: 1 | K42: 1973.06 | L42: 1976.67 | M42: 1972.58 | N42: 1974.62 | O42: 2851480000
A43: 28 | B43: 2014-07-01 | C43: 1962.29 | D43: 1978.58 | E43: 1962.29 | F43: 1973.32 | G43: 3188240000 | H43: 1973.32 | I43: 1 | J43: 1 | K43: 1962.29 | L43: 1978.58 | M43: 1962.29 | N43: 1973.32 | O43: 3188240000
A44: 29 | B44: 2014-06-30 | C44: 1960.79 | D44: 1964.24 | E44: 1958.22 | F44: 1960.23 | G44: 3037350000 | H44: 1960.23 | I44: 1 | J44: 1 | K44: 1960.79 | L44: 1964.24 | M44: 1958.22 | N44: 1960.23 | O44: 3037350000
A45: 30 | B45: 2014-06-27 | C45: 1956.56 | D45: 1961.47 | E45: 1952.18 | F45: 1960.96 | G45: 4290590000 | H45: 1960.96 | I45: 1 | J45: 1 | K45: 1956.56 | L45: 1961.47 | M45: 1952.18 | N45: 1960.96 | O45: 4290590000
A46: 31 | B46: 2014-06-26 | C46: 1959.89 | D46: 1959.89 | E46: 1944.69 | F46: 1957.22 | G46: 2778840000 | H46: 1957.22 | I46: 1 | J46: 1 | K46: 1959.89 | L46: 1959.89 | M46: 1944.69 | N46: 1957.22 | O46: 2778840000
A47: 32 | B47: 2014-06-25 | C47: 1949.27 | D47: 1960.83 | E47: 1947.49 | F47: 1959.53 | G47: 3106710000 | H47: 1959.53 | I47: 1 | J47: 1 | K47: 1949.27 | L47: 1960.83 | M47: 1947.49 | N47: 1959.53 | O47: 3106710000
A48: 33 | B48: 2014-06-24 | C48: 1961.97 | D48: 1968.17 | E48: 1948.34 | F48: 1949.98 | G48: 3089700000 | H48: 1949.98 | I48: 1 | J48: 1 | K48: 1961.97 | L48: 1968.17 | M48: 1948.34 | N48: 1949.98 | O48: 3089700000
A49: 34 | B49: 2014-06-23 | C49: 1962.92 | D49: 1963.74 | E49: 1958.89 | F49: 1962.61 | G49: 2717630000 | H49: 1962.61 | I49: 1 | J49: 1 | K49: 1962.92 | L49: 1963.74 | M49: 1958.89 | N49: 1962.61 | O49: 2717630000
A50: 35 | B50: 2014-06-20 | C50: 1960.45 | D50: 1963.91 | E50: 1959.17 | F50: 1962.87 | G50: 4336240000 | H50: 1962.87 | I50: 1 | J50: 1 | K50: 1960.45 | L50: 1963.91 | M50: 1959.17 | N50: 1962.87 | O50: 4336240000
A51: 36 | B51: 2014-06-19 | C51: 1957.5 | D51: 1959.87 | E51: 1952.26 | F51: 1959.48 | G51: 2952150000 | H51: 1959.48 | I51: 1 | J51: 1 | K51: 1957.5 | L51: 1959.87 | M51: 1952.26 | N51: 1959.48 | O51: 2952150000
A52: 37 | B52: 2014-06-18 | C52: 1942.73 | D52: 1957.74 | E52: 1939.29 | F52: 1956.98 | G52: 3065220000 | H52: 1956.98 | I52: 1 | J52: 1 | K52: 1942.73 | L52: 1957.74 | M52: 1939.29 | N52: 1956.98 | O52: 3065220000
A53: 38 | B53: 2014-06-17 | C53: 1937.15 | D53: 1943.69 | E53: 1933.55 | F53: 1941.99 | G53: 2971260000 | H53: 1941.99 | I53: 1 | J53: 1 | K53: 1937.15 | L53: 1943.69 | M53: 1933.55 | N53: 1941.99 | O53: 2971260000
A54: 39 | B54: 2014-06-16 | C54: 1934.84 | D54: 1941.15 | E54: 1930.91 | F54: 1937.78 | G54: 2926130000 | H54: 1937.78 | I54: 1 | J54: 1 | K54: 1934.84 | L54: 1941.15 | M54: 1930.91 | N54: 1937.78 | O54: 2926130000
A55: 40 | B55: 2014-06-13 | C55: 1930.8 | D55: 1937.3 | E55: 1927.69 | F55: 1936.16 | G55: 2598230000 | H55: 1936.16 | I55: 1 | J55: 1 | K55: 1930.8 | L55: 1937.3 | M55: 1927.69 | N55: 1936.16 | O55: 2598230000
A56: 41 | B56: 2014-06-12 | C56: 1943.35 | D56: 1943.35 | E56: 1925.78 | F56: 1930.11 | G56: 3040480000 | H56: 1930.11 | I56: 1 | J56: 1 | K56: 1943.35 | L56: 1943.35 | M56: 1925.78 | N56: 1930.11 | O56: 3040480000
A57: 42 | B57: 2014-06-11 | C57: 1949.37 | D57: 1949.37 | E57: 1940.08 | F57: 1943.89 | G57: 2710620000 | H57: 1943.89 | I57: 1 | J57: 1 | K57: 1949.37 | L57: 1949.37 | M57: 1940.08 | N57: 1943.89 | O57: 2710620000
A58: 43 | B58: 2014-06-10 | C58: 1950.34 | D58: 1950.86 | E58: 1944.64 | F58: 1950.79 | G58: 2702360000 | H58: 1950.79 | I58: 1 | J58: 1 | K58: 1950.34 | L58: 1950.86 | M58: 1944.64 | N58: 1950.79 | O58: 2702360000
A59: 44 | B59: 2014-06-09 | C59: 1948.97 | D59: 1955.55 | E59: 1947.16 | F59: 1951.27 | G59: 2812180000 | H59: 1951.27 | I59: 1 | J59: 1 | K59: 1948.97 | L59: 1955.55 | M59: 1947.16 | N59: 1951.27 | O59: 2812180000
A60: 45 | B60: 2014-06-06 | C60: 1942.41 | D60: 1949.44 | E60: 1942.41 | F60: 1949.44 | G60: 2864300000 | H60: 1949.44 | I60: 1 | J60: 1 | K60: 1942.41 | L60: 1949.44 | M60: 1942.41 | N60: 1949.44 | O60: 2864300000
A61: 46 | B61: 2014-06-05 | C61: 1928.52 | D61: 1941.74 | E61: 1922.93 | F61: 1940.46 | G61: 3113270000 | H61: 1940.46 | I61: 1 | J61: 1 | K61: 1928.52 | L61: 1941.74 | M61: 1922.93 | N61: 1940.46 | O61: 3113270000
A62: 47 | B62: 2014-06-04 | C62: 1923.06 | D62: 1928.63 | E62: 1918.6 | F62: 1927.88 | G62: 2793920000 | H62: 1927.88 | I62: 1 | J62: 1 | K62: 1923.06 | L62: 1928.63 | M62: 1918.6 | N62: 1927.88 | O62: 2793920000
A63: 48 | B63: 2014-06-03 | C63: 1923.07 | D63: 1925.07 | E63: 1918.79 | F63: 1924.24 | G63: 2867180000 | H63: 1924.24 | I63: 1 | J63: 1 | K63: 1923.07 | L63: 1925.07 | M63: 1918.79 | N63: 1924.24 | O63: 2867180000
A64: 49 | B64: 2014-06-02 | C64: 1923.87 | D64: 1925.88 | E64: 1915.98 | F64: 1924.97 | G64: 2509020000 | H64: 1924.97 | I64: 1 | J64: 1 | K64: 1923.87 | L64: 1925.88 | M64: 1915.98 | N64: 1924.97 | O64: 2509020000
A65: 50 | B65: 2014-05-30 | C65: 1920.33 | D65: 1924.03 | E65: 1916.64 | F65: 1923.57 | G65: 3263490000 | H65: 1923.57 | I65: 1 | J65: 1 | K65: 1920.33 | L65: 1924.03 | M65: 1916.64 | N65: 1923.57 | O65: 3263490000
A66: 51 | B66: 2014-05-29 | C66: 1910.6 | D66: 1920.03 | E66: 1909.82 | F66: 1920.03 | G66: 2709050000 | H66: 1920.03 | I66: 1 | J66: 1 | K66: 1910.6 | L66: 1920.03 | M66: 1909.82 | N66: 1920.03 | O66: 2709050000
A67: 52 | B67: 2014-05-28 | C67: 1911.77 | D67: 1914.46 | E67: 1907.3 | F67: 1909.78 | G67: 2976450000 | H67: 1909.78 | I67: 1 | J67: 1 | K67: 1911.77 | L67: 1914.46 | M67: 1907.3 | N67: 1909.78 | O67: 2976450000
A68: 53 | B68: 2014-05-27 | C68: 1902.01 | D68: 1912.28 | E68: 1902.01 | F68: 1911.91 | G68: 2911020000 | H68: 1911.91 | I68: 1 | J68: 1 | K68: 1902.01 | L68: 1912.28 | M68: 1902.01 | N68: 1911.91 | O68: 2911020000
A69: 54 | B69: 2014-05-23 | C69: 1893.32 | D69: 1901.26 | E69: 1893.32 | F69: 1900.53 | G69: 2396280000 | H69: 1900.53 | I69: 1 | J69: 1 | K69: 1893.32 | L69: 1901.26 | M69: 1893.32 | N69: 1900.53 | O69: 2396280000
A70: 55 | B70: 2014-05-22 | C70: 1888.19 | D70: 1896.33 | E70: 1885.39 | F70: 1892.49 | G70: 2759800000 | H70: 1892.49 | I70: 1 | J70: 1 | K70: 1888.19 | L70: 1896.33 | M70: 1885.39 | N70: 1892.49 | O70: 2759800000
A71: 56 | B71: 2014-05-21 | C71: 1873.34 | D71: 1888.8 | E71: 1873.34 | F71: 1888.03 | G71: 2777140000 | H71: 1888.03 | I71: 1 | J71: 1 | K71: 1873.34 | L71: 1888.8 | M71: 1873.34 | N71: 1888.03 | O71: 2777140000
A72: 57 | B72: 2014-05-20 | C72: 1884.88 | D72: 1884.88 | E72: 1868.14 | F72: 1872.83 | G72: 3007700000 | H72: 1872.83 | I72: 1 | J72: 1 | K72: 1884.88 | L72: 1884.88 | M72: 1868.14 | N72: 1872.83 | O72: 3007700000
A73: 58 | B73: 2014-05-19 | C73: 1876.66 | D73: 1886 | E73: 1872.42 | F73: 1885.08 | G73: 2664250000 | H73: 1885.08 | I73: 1 | J73: 1 | K73: 1876.66 | L73: 1886 | M73: 1872.42 | N73: 1885.08 | O73: 2664250000
A74: 59 | B74: 2014-05-16 | C74: 1871.19 | D74: 1878.28 | E74: 1864.82 | F74: 1877.86 | G74: 3173650000 | H74: 1877.86 | I74: 1 | J74: 1 | K74: 1871.19 | L74: 1878.28 | M74: 1864.82 | N74: 1877.86 | O74: 3173650000
A75: 60 | B75: 2014-05-15 | C75: 1888.16 | D75: 1888.16 | E75: 1862.36 | F75: 1870.85 | G75: 3552640000 | H75: 1870.85 | I75: 1 | J75: 1 | K75: 1888.16 | L75: 1888.16 | M75: 1862.36 | N75: 1870.85 | O75: 3552640000
A76: 61 | B76: 2014-05-14 | C76: 1897.13 | D76: 1897.13 | E76: 1885.77 | F76: 1888.53 | G76: 2822060000 | H76: 1888.53 | I76: 1 | J76: 1 | K76: 1897.13 | L76: 1897.13 | M76: 1885.77 | N76: 1888.53 | O76: 2822060000
A77: 62 | B77: 2014-05-13 | C77: 1896.75 | D77: 1902.17 | E77: 1896.06 | F77: 1897.45 | G77: 2915680000 | H77: 1897.45 | I77: 1 | J77: 1 | K77: 1896.75 | L77: 1902.17 | M77: 1896.06 | N77: 1897.45 | O77: 2915680000
A78: 63 | B78: 2014-05-12 | C78: 1880.03 | D78: 1897.13 | E78: 1880.03 | F78: 1896.65 | G78: 3005740000 | H78: 1896.65 | I78: 1 | J78: 1 | K78: 1880.03 | L78: 1897.13 | M78: 1880.03 | N78: 1896.65 | O78: 3005740000
A79: 64 | B79: 2014-05-09 | C79: 1875.27 | D79: 1878.57 | E79: 1867.02 | F79: 1878.48 | G79: 3025020000 | H79: 1878.48 | I79: 1 | J79: 1 | K79: 1875.27 | L79: 1878.57 | M79: 1867.02 | N79: 1878.48 | O79: 3025020000
A80: 65 | B80: 2014-05-08 | C80: 1877.39 | D80: 1889.07 | E80: 1870.05 | F80: 1875.63 | G80: 3393420000 | H80: 1875.63 | I80: 1 | J80: 1 | K80: =ROUND($I80*C80,2) -> 1877.39 | L80: =ROUND($I80*D80,2) -> 1889.07 | M80: =ROUND($I80*E80,2) -> 1870.05 | N80: =ROUND($I80*F80,2) -> 1875.63 | O80: 3393420000
A81: 66 | B81: 2014-05-07 | C81: 1868.53 | D81: 1878.83 | E81: 1859.79 | F81: 1878.21 | G81: 3632950000 | H81: 1878.21 | I81: 1 | J81: 1 | K81: 1868.53 | L81: 1878.83 | M81: 1859.79 | N81: 1878.21 | O81: 3632950000
A82: 67 | B82: 2014-05-06 | C82: 1883.69 | D82: 1883.69 | E82: 1867.72 | F82: 1867.72 | G82: 3327260000 | H82: 1867.72 | I82: =H82/F82 -> 1 | J82: =INDEX(OFFSET($T$15,0,0,$S$13+1,1),MATCH(B82,OFFSET($Q$15,0,0,$S$13+1,1),-1)) -> 1 | K82: 1883.69 | L82: 1883.69 | M82: 1867.72 | N82: 1867.72 | O82: =G82*J82 -> 3327260000
A83: 68 | B83: 2014-05-05 | C83: 1879.45 | D83: 1885.51 | E83: 1866.77 | F83: 1884.66 | G83: 2733730000 | H83: 1884.66 | I83: 1 | J83: 1 | K83: 1879.45 | L83: 1885.51 | M83: 1866.77 | N83: 1884.66 | O83: 2733730000
A84: 69 | B84: 2014-05-02 | C84: 1885.3 | D84: 1891.33 | E84: 1878.5 | F84: 1881.14 | G84: 3159560000 | H84: 1881.14 | I84: 1 | J84: 1 | K84: 1885.3 | L84: 1891.33 | M84: 1878.5 | N84: 1881.14 | O84: 3159560000
A85: 70 | B85: 2014-05-01 | C85: 1884.39 | D85: 1888.59 | E85: 1878.04 | F85: 1883.68 | G85: 3416740000 | H85: 1883.68 | I85: 1 | J85: 1 | K85: 1884.39 | L85: 1888.59 | M85: 1878.04 | N85: 1883.68 | O85: 3416740000
A86: 71 | B86: 2014-04-30 | C86: 1877.1 | D86: 1885.2 | E86: 1872.69 | F86: 1883.95 | G86: 3779230000 | H86: 1883.95 | I86: 1 | J86: 1 | K86: 1877.1 | L86: 1885.2 | M86: 1872.69 | N86: 1883.95 | O86: 3779230000
A87: 72 | B87: 2014-04-29 | C87: 1870.78 | D87: 1880.6 | E87: 1870.78 | F87: 1878.33 | G87: 3647820000 | H87: 1878.33 | I87: 1 | J87: 1 | K87: 1870.78 | L87: 1880.6 | M87: 1870.78 | N87: 1878.33 | O87: 3647820000
A88: 73 | B88: 2014-04-28 | C88: 1865 | D88: 1877.01 | E88: 1850.61 | F88: 1869.43 | G88: 4034680000 | H88: 1869.43 | I88: 1 | J88: 1 | K88: 1865 | L88: 1877.01 | M88: 1850.61 | N88: 1869.43 | O88: 4034680000
A89: 74 | B89: 2014-04-25 | C89: 1877.72 | D89: 1877.72 | E89: 1859.7 | F89: 1863.4 | G89: 3213020000 | H89: 1863.4 | I89: 1 | J89: 1 | K89: 1877.72 | L89: 1877.72 | M89: 1859.7 | N89: 1863.4 | O89: 3213020000
A90: 75 | B90: 2014-04-24 | C90: 1881.97 | D90: 1884.06 | E90: 1870.24 | F90: 1878.61 | G90: 3191830000 | H90: 1878.61 | I90: 1 | J90: 1 | K90: 1881.97 | L90: 1884.06 | M90: 1870.24 | N90: 1878.61 | O90: 3191830000
A91: 76 | B91: 2014-04-23 | C91: 1879.32 | D91: 1879.75 | E91: 1873.91 | F91: 1875.39 | G91: 3085720000 | H91: 1875.39 | I91: 1 | J91: 1 | K91: 1879.32 | L91: 1879.75 | M91: 1873.91 | N91: 1875.39 | O91: 3085720000
A92: 77 | B92: 2014-04-22 | C92: 1872.57 | D92: 1884.89 | E92: 1872.57 | F92: 1879.55 | G92: 3215440000 | H92: 1879.55 | I92: 1 | J92: 1 | K92: 1872.57 | L92: 1884.89 | M92: 1872.57 | N92: 1879.55 | O92: 3215440000
A93: 78 | B93: 2014-04-21 | C93: 1865.79 | D93: 1871.89 | E93: 1863.18 | F93: 1871.89 | G93: 2642500000 | H93: 1871.89 | I93: 1 | J93: 1 | K93: 1865.79 | L93: 1871.89 | M93: 1863.18 | N93: 1871.89 | O93: 2642500000
A94: 79 | B94: 2014-04-17 | C94: 1861.73 | D94: 1869.63 | E94: 1856.72 | F94: 1864.85 | G94: 3341430000 | H94: 1864.85 | I94: 1 | J94: 1 | K94: 1861.73 | L94: 1869.63 | M94: 1856.72 | N94: 1864.85 | O94: 3341430000
A95: 80 | B95: 2014-04-16 | C95: 1846.01 | D95: 1862.31 | E95: 1846.01 | F95: 1862.31 | G95: 3155080000 | H95: 1862.31 | I95: 1 | J95: 1 | K95: 1846.01 | L95: 1862.31 | M95: 1846.01 | N95: 1862.31 | O95: 3155080000
A96: 81 | B96: 2014-04-15 | C96: 1831.45 | D96: 1844.02 | E96: 1816.29 | F96: 1842.98 | G96: 3736440000 | H96: 1842.98 | I96: 1 | J96: 1 | K96: 1831.45 | L96: 1844.02 | M96: 1816.29 | N96: 1842.98 | O96: 3736440000
A97: 82 | B97: 2014-04-14 | C97: 1818.18 | D97: 1834.19 | E97: 1815.8 | F97: 1830.61 | G97: 3111540000 | H97: 1830.61 | I97: 1 | J97: 1 | K97: 1818.18 | L97: 1834.19 | M97: 1815.8 | N97: 1830.61 | O97: 3111540000
A98: 83 | B98: 2014-04-11 | C98: 1830.65 | D98: 1835.07 | E98: 1814.36 | F98: 1815.69 | G98: 3743460000 | H98: 1815.69 | I98: 1 | J98: 1 | K98: 1830.65 | L98: 1835.07 | M98: 1814.36 | N98: 1815.69 | O98: 3743460000
A99: 84 | B99: 2014-04-10 | C99: 1872.28 | D99: 1872.53 | E99: 1830.87 | F99: 1833.08 | G99: 3758780000 | H99: 1833.08 | I99: 1 | J99: 1 | K99: 1872.28 | L99: 1872.53 | M99: 1830.87 | N99: 1833.08 | O99: 3758780000
A100: 85 | B100: 2014-04-09 | C100: 1852.64 | D100: 1872.43 | E100: 1852.38 | F100: 1872.18 | G100: 3308650000 | H100: 1872.18 | I100: 1 | J100: 1 | K100: 1852.64 | L100: 1872.43 | M100: 1852.38 | N100: 1872.18 | O100: 3308650000
A101: 86 | B101: 2014-04-08 | C101: 1845.48 | D101: 1854.95 | E101: 1837.49 | F101: 1851.96 | G101: 3721450000 | H101: 1851.96 | I101: 1 | J101: 1 | K101: 1845.48 | L101: 1854.95 | M101: 1837.49 | N101: 1851.96 | O101: 3721450000
A102: 87 | B102: 2014-04-07 | C102: 1863.92 | D102: 1864.04 | E102: 1841.48 | F102: 1845.04 | G102: 3801540000 | H102: 1845.04 | I102: 1 | J102: 1 | K102: 1863.92 | L102: 1864.04 | M102: 1841.48 | N102: 1845.04 | O102: 3801540000
A103: 88 | B103: 2014-04-04 | C103: 1890.25 | D103: 1897.28 | E103: 1863.26 | F103: 1865.09 | G103: 3583750000 | H103: 1865.09 | I103: 1 | J103: 1 | K103: 1890.25 | L103: 1897.28 | M103: 1863.26 | N103: 1865.09 | O103: 3583750000
A104: 89 | B104: 2014-04-03 | C104: 1891.43 | D104: 1893.8 | E104: 1882.65 | F104: 1888.77 | G104: 3055600000 | H104: 1888.77 | I104: 1 | J104: 1 | K104: 1891.43 | L104: 1893.8 | M104: 1882.65 | N104: 1888.77 | O104: 3055600000
A105: 90 | B105: 2014-04-02 | C105: 1886.61 | D105: 1893.17 | E105: 1883.79 | F105: 1890.9 | G105: 3131660000 | H105: 1890.9 | I105: 1 | J105: 1 | K105: 1886.61 | L105: 1893.17 | M105: 1883.79 | N105: 1890.9 | O105: 3131660000
A106: 91 | B106: 2014-04-01 | C106: 1873.96 | D106: 1885.84 | E106: 1873.96 | F106: 1885.52 | G106: 3336190000 | H106: 1885.52 | I106: 1 | J106: 1 | K106: 1873.96 | L106: 1885.84 | M106: 1873.96 | N106: 1885.52 | O106: 3336190000
A107: 92 | B107: 2014-03-31 | C107: 1859.16 | D107: 1875.18 | E107: 1859.16 | F107: 1872.34 | G107: 3274300000 | H107: 1872.34 | I107: 1 | J107: 1 | K107: 1859.16 | L107: 1875.18 | M107: 1859.16 | N107: 1872.34 | O107: 3274300000
A108: 93 | B108: 2014-03-28 | C108: 1850.07 | D108: 1866.63 | E108: 1850.07 | F108: 1857.62 | G108: 2955520000 | H108: 1857.62 | I108: 1 | J108: 1 | K108: 1850.07 | L108: 1866.63 | M108: 1850.07 | N108: 1857.62 | O108: 2955520000
A109: 94 | B109: 2014-03-27 | C109: 1852.11 | D109: 1855.55 | E109: 1842.11 | F109: 1849.04 | G109: 3733430000 | H109: 1849.04 | I109: 1 | J109: 1 | K109: 1852.11 | L109: 1855.55 | M109: 1842.11 | N109: 1849.04 | O109: 3733430000
A110: 95 | B110: 2014-03-26 | C110: 1867.09 | D110: 1875.92 | E110: 1852.56 | F110: 1852.56 | G110: 3480850000 | H110: 1852.56 | I110: 1 | J110: 1 | K110: 1867.09 | L110: 1875.92 | M110: 1852.56 | N110: 1852.56 | O110: 3480850000
A111: 96 | B111: 2014-03-25 | C111: 1859.48 | D111: 1871.87 | E111: 1855.96 | F111: 1865.62 | G111: 3200560000 | H111: 1865.62 | I111: 1 | J111: 1 | K111: 1859.48 | L111: 1871.87 | M111: 1855.96 | N111: 1865.62 | O111: 3200560000
A112: 97 | B112: 2014-03-24 | C112: 1867.67 | D112: 1873.34 | E112: 1849.69 | F112: 1857.44 | G112: 3409000000 | H112: 1857.44 | I112: 1 | J112: 1 | K112: 1867.67 | L112: 1873.34 | M112: 1849.69 | N112: 1857.44 | O112: 3409000000
A113: 98 | B113: 2014-03-21 | C113: 1874.53 | D113: 1883.97 | E113: 1863.46 | F113: 1866.52 | G113: 5270710000 | H113: 1866.52 | I113: 1 | J113: 1 | K113: 1874.53 | L113: 1883.97 | M113: 1863.46 | N113: 1866.52 | O113: 5270710000
A114: 99 | B114: 2014-03-20 | C114: 1860.09 | D114: 1873.49 | E114: 1854.63 | F114: 1872.01 | G114: 3327540000 | H114: 1872.01 | I114: 1 | J114: 1 | K114: 1860.09 | L114: 1873.49 | M114: 1854.63 | N114: 1872.01 | O114: 3327540000
A115: 100 | B115: 2014-03-19 | C115: 1872.25 | D115: 1874.14 | E115: 1850.35 | F115: 1860.77 | G115: 3289210000 | H115: 1860.77 | I115: 1 | J115: 1 | K115: 1872.25 | L115: 1874.14 | M115: 1850.35 | N115: 1860.77 | O115: 3289210000
A116: 101 | B116: 2014-03-18 | C116: 1858.92 | D116: 1873.76 | E116: 1858.92 | F116: 1872.25 | G116: 2930190000 | H116: 1872.25 | I116: 1 | J116: 1 | K116: 1858.92 | L116: 1873.76 | M116: 1858.92 | N116: 1872.25 | O116: 2930190000
A117: 102 | B117: 2014-03-17 | C117: 1842.81 | D117: 1862.3 | E117: 1842.81 | F117: 1858.83 | G117: 2860490000 | H117: 1858.83 | I117: 1 | J117: 1 | K117: 1842.81 | L117: 1862.3 | M117: 1842.81 | N117: 1858.83 | O117: 2860490000
A118: 103 | B118: 2014-03-14 | C118: 1845.07 | D118: 1852.44 | E118: 1839.57 | F118: 1841.13 | G118: 3285460000 | H118: 1841.13 | I118: 1 | J118: 1 | K118: 1845.07 | L118: 1852.44 | M118: 1839.57 | N118: 1841.13 | O118: 3285460000
A119: 104 | B119: 2014-03-13 | C119: 1869.06 | D119: 1874.4 | E119: 1841.86 | F119: 1846.34 | G119: 3670990000 | H119: 1846.34 | I119: 1 | J119: 1 | K119: 1869.06 | L119: 1874.4 | M119: 1841.86 | N119: 1846.34 | O119: 3670990000
A120: 105 | B120: 2014-03-12 | C120: 1866.15 | D120: 1868.38 | E120: 1854.38 | F120: 1868.2 | G120: 3270860000 | H120: 1868.2 | I120: 1 | J120: 1 | K120: 1866.15 | L120: 1868.38 | M120: 1854.38 | N120: 1868.2 | O120: 3270860000
A121: 106 | B121: 2014-03-11 | C121: 1878.26 | D121: 1882.35 | E121: 1863.88 | F121: 1867.63 | G121: 3392400000 | H121: 1867.63 | I121: 1 | J121: 1 | K121: 1878.26 | L121: 1882.35 | M121: 1863.88 | N121: 1867.63 | O121: 3392400000
A122: 107 | B122: 2014-03-10 | C122: 1877.86 | D122: 1877.87 | E122: 1867.04 | F122: 1877.17 | G122: 3021350000 | H122: 1877.17 | I122: 1 | J122: 1 | K122: 1877.86 | L122: 1877.87 | M122: 1867.04 | N122: 1877.17 | O122: 3021350000
A123: 108 | B123: 2014-03-07 | C123: 1878.52 | D123: 1883.57 | E123: 1870.56 | F123: 1878.04 | G123: 3564740000 | H123: 1878.04 | I123: 1 | J123: 1 | K123: 1878.52 | L123: 1883.57 | M123: 1870.56 | N123: 1878.04 | O123: 3564740000
A124: 109 | B124: 2014-03-06 | C124: 1874.18 | D124: 1881.94 | E124: 1874.18 | F124: 1877.03 | G124: 3360450000 | H124: 1877.03 | I124: 1 | J124: 1 | K124: 1874.18 | L124: 1881.94 | M124: 1874.18 | N124: 1877.03 | O124: 3360450000
A125: 110 | B125: 2014-03-05 | C125: 1874.05 | D125: 1876.53 | E125: 1871.11 | F125: 1873.81 | G125: 3392990000 | H125: 1873.81 | I125: 1 | J125: 1 | K125: 1874.05 | L125: 1876.53 | M125: 1871.11 | N125: 1873.81 | O125: 3392990000
A126: 111 | B126: 2014-03-04 | C126: 1849.23 | D126: 1876.23 | E126: 1849.23 | F126: 1873.91 | G126: 3765770000 | H126: 1873.91 | I126: 1 | J126: 1 | K126: 1849.23 | L126: 1876.23 | M126: 1849.23 | N126: 1873.91 | O126: 3765770000
A127: 112 | B127: 2014-03-03 | C127: 1857.68 | D127: 1857.68 | E127: 1834.44 | F127: 1845.73 | G127: 3428220000 | H127: 1845.73 | I127: 1 | J127: 1 | K127: 1857.68 | L127: 1857.68 | M127: 1834.44 | N127: 1845.73 | O127: 3428220000
A128: 113 | B128: 2014-02-28 | C128: 1855.12 | D128: 1867.92 | E128: 1847.67 | F128: 1859.45 | G128: 3917450000 | H128: 1859.45 | I128: 1 | J128: 1 | K128: 1855.12 | L128: 1867.92 | M128: 1847.67 | N128: 1859.45 | O128: 3917450000
A129: 114 | B129: 2014-02-27 | C129: 1844.9 | D129: 1854.53 | E129: 1841.13 | F129: 1854.29 | G129: 3547460000 | H129: 1854.29 | I129: 1 | J129: 1 | K129: 1844.9 | L129: 1854.53 | M129: 1841.13 | N129: 1854.29 | O129: 3547460000
A130: 115 | B130: 2014-02-26 | C130: 1845.79 | D130: 1852.65 | E130: 1840.66 | F130: 1845.16 | G130: 3716730000 | H130: 1845.16 | I130: 1 | J130: 1 | K130: 1845.79 | L130: 1852.65 | M130: 1840.66 | N130: 1845.16 | O130: 3716730000
A131: 116 | B131: 2014-02-25 | C131: 1847.66 | D131: 1852.91 | E131: 1840.19 | F131: 1845.12 | G131: 3515560000 | H131: 1845.12 | I131: 1 | J131: 1 | K131: 1847.66 | L131: 1852.91 | M131: 1840.19 | N131: 1845.12 | O131: 3515560000
A132: 117 | B132: 2014-02-24 | C132: 1836.78 | D132: 1858.71 | E132: 1836.78 | F132: 1847.61 | G132: 4014530000 | H132: 1847.61 | I132: 1 | J132: 1 | K132: 1836.78 | L132: 1858.71 | M132: 1836.78 | N132: 1847.61 | O132: 4014530000
A133: 118 | B133: 2014-02-21 | C133: 1841.07 | D133: 1846.13 | E133: 1835.6 | F133: 1836.25 | G133: 3403880000 | H133: 1836.25 | I133: 1 | J133: 1 | K133: 1841.07 | L133: 1846.13 | M133: 1835.6 | N133: 1836.25 | O133: 3403880000
A134: 119 | B134: 2014-02-20 | C134: 1829.24 | D134: 1842.79 | E134: 1824.58 | F134: 1839.78 | G134: 3404980000 | H134: 1839.78 | I134: 1 | J134: 1 | K134: 1829.24 | L134: 1842.79 | M134: 1824.58 | N134: 1839.78 | O134: 3404980000
A135: 120 | B135: 2014-02-19 | C135: 1838.9 | D135: 1847.5 | E135: 1826.99 | F135: 1828.75 | G135: 3661570000 | H135: 1828.75 | I135: 1 | J135: 1 | K135: 1838.9 | L135: 1847.5 | M135: 1826.99 | N135: 1828.75 | O135: 3661570000
A136: 121 | B136: 2014-02-18 | C136: 1839.03 | D136: 1842.87 | E136: 1835.01 | F136: 1840.76 | G136: 3421110000 | H136: 1840.76 | I136: 1 | J136: 1 | K136: 1839.03 | L136: 1842.87 | M136: 1835.01 | N136: 1840.76 | O136: 3421110000
A137: 122 | B137: 2014-02-14 | C137: 1828.46 | D137: 1841.65 | E137: 1825.59 | F137: 1838.63 | G137: 3114750000 | H137: 1838.63 | I137: 1 | J137: 1 | K137: 1828.46 | L137: 1841.65 | M137: 1825.59 | N137: 1838.63 | O137: 3114750000
A138: 123 | B138: 2014-02-13 | C138: 1814.82 | D138: 1830.25 | E138: 1809.22 | F138: 1829.83 | G138: 3289510000 | H138: 1829.83 | I138: 1 | J138: 1 | K138: 1814.82 | L138: 1830.25 | M138: 1809.22 | N138: 1829.83 | O138: 3289510000
A139: 124 | B139: 2014-02-12 | C139: 1820.12 | D139: 1826.55 | E139: 1815.97 | F139: 1819.26 | G139: 3326380000 | H139: 1819.26 | I139: 1 | J139: 1 | K139: 1820.12 | L139: 1826.55 | M139: 1815.97 | N139: 1819.26 | O139: 3326380000
A140: 125 | B140: 2014-02-11 | C140: 1800.45 | D140: 1823.54 | E140: 1800.41 | F140: 1819.75 | G140: 3699380000 | H140: 1819.75 | I140: 1 | J140: 1 | K140: 1800.45 | L140: 1823.54 | M140: 1800.41 | N140: 1819.75 | O140: 3699380000
A141: 126 | B141: 2014-02-10 | C141: 1796.2 | D141: 1799.94 | E141: 1791.83 | F141: 1799.84 | G141: 3312160000 | H141: 1799.84 | I141: 1 | J141: 1 | K141: 1796.2 | L141: 1799.94 | M141: 1791.83 | N141: 1799.84 | O141: 3312160000
A142: 127 | B142: 2014-02-07 | C142: 1776.01 | D142: 1798.03 | E142: 1776.01 | F142: 1797.02 | G142: 3775990000 | H142: 1797.02 | I142: 1 | J142: 1 | K142: 1776.01 | L142: 1798.03 | M142: 1776.01 | N142: 1797.02 | O142: 3775990000
A143: 128 | B143: 2014-02-06 | C143: 1752.99 | D143: 1774.06 | E143: 1752.99 | F143: 1773.43 | G143: 3825410000 | H143: 1773.43 | I143: 1 | J143: 1 | K143: 1752.99 | L143: 1774.06 | M143: 1752.99 | N143: 1773.43 | O143: 3825410000
A144: 129 | B144: 2014-02-05 | C144: 1753.38 | D144: 1755.79 | E144: 1737.92 | F144: 1751.64 | G144: 3984290000 | H144: 1751.64 | I144: 1 | J144: 1 | K144: =ROUND($I144*C144,2) -> 1753.38 | L144: =ROUND($I144*D144,2) -> 1755.79 | M144: =ROUND($I144*E144,2) -> 1737.92 | N144: =ROUND($I144*F144,2) -> 1751.64 | O144: 3984290000
A145: 130 | B145: 2014-02-04 | C145: 1743.82 | D145: 1758.73 | E145: 1743.82 | F145: 1755.2 | G145: 4068410000 | H145: 1755.2 | I145: 1 | J145: 1 | K145: 1743.82 | L145: 1758.73 | M145: 1743.82 | N145: 1755.2 | O145: 4068410000
A146: 131 | B146: 2014-02-03 | C146: 1782.68 | D146: 1784.83 | E146: 1739.66 | F146: 1741.89 | G146: 4726040000 | H146: 1741.89 | I146: =H146/F146 -> 1 | J146: =INDEX(OFFSET($T$15,0,0,$S$13+1,1),MATCH(B146,OFFSET($Q$15,0,0,$S$13+1,1),-1)) -> 1 | K146: 1782.68 | L146: 1784.83 | M146: 1739.66 | N146: 1741.89 | O146: =G146*J146 -> 4726040000
A147: 132 | B147: 2014-01-31 | C147: 1790.88 | D147: 1793.88 | E147: 1772.26 | F147: 1782.59 | G147: 4059690000 | H147: 1782.59 | I147: 1 | J147: 1 | K147: 1790.88 | L147: 1793.88 | M147: 1772.26 | N147: 1782.59 | O147: 4059690000
A148: 133 | B148: 2014-01-30 | C148: 1777.17 | D148: 1798.77 | E148: 1777.17 | F148: 1794.19 | G148: 3547510000 | H148: 1794.19 | I148: 1 | J148: 1 | K148: 1777.17 | L148: 1798.77 | M148: 1777.17 | N148: 1794.19 | O148: 3547510000
A149: 134 | B149: 2014-01-29 | C149: 1790.15 | D149: 1790.15 | E149: 1770.45 | F149: 1774.2 | G149: 3964020000 | H149: 1774.2 | I149: 1 | J149: 1 | K149: 1790.15 | L149: 1790.15 | M149: 1770.45 | N149: 1774.2 | O149: 3964020000
A150: 135 | B150: 2014-01-28 | C150: 1783 | D150: 1793.87 | E150: 1779.49 | F150: 1792.5 | G150: 3437830000 | H150: 1792.5 | I150: 1 | J150: 1 | K150: 1783 | L150: 1793.87 | M150: 1779.49 | N150: 1792.5 | O150: 3437830000
A151: 136 | B151: 2014-01-27 | C151: 1791.03 | D151: 1795.98 | E151: 1772.88 | F151: 1781.56 | G151: 4045200000 | H151: 1781.56 | I151: 1 | J151: 1 | K151: 1791.03 | L151: 1795.98 | M151: 1772.88 | N151: 1781.56 | O151: 4045200000
A152: 137 | B152: 2014-01-24 | C152: 1826.96 | D152: 1826.96 | E152: 1790.29 | F152: 1790.29 | G152: 4618450000 | H152: 1790.29 | I152: 1 | J152: 1 | K152: 1826.96 | L152: 1826.96 | M152: 1790.29 | N152: 1790.29 | O152: 4618450000
A153: 138 | B153: 2014-01-23 | C153: 1842.29 | D153: 1842.29 | E153: 1820.06 | F153: 1828.46 | G153: 3972250000 | H153: 1828.46 | I153: 1 | J153: 1 | K153: 1842.29 | L153: 1842.29 | M153: 1820.06 | N153: 1828.46 | O153: 3972250000
A154: 139 | B154: 2014-01-22 | C154: 1844.71 | D154: 1846.87 | E154: 1840.88 | F154: 1844.86 | G154: 3374170000 | H154: 1844.86 | I154: 1 | J154: 1 | K154: 1844.71 | L154: 1846.87 | M154: 1840.88 | N154: 1844.86 | O154: 3374170000
A155: 140 | B155: 2014-01-21 | C155: 1841.05 | D155: 1849.31 | E155: 1832.38 | F155: 1843.8 | G155: 3782470000 | H155: 1843.8 | I155: 1 | J155: 1 | K155: 1841.05 | L155: 1849.31 | M155: 1832.38 | N155: 1843.8 | O155: 3782470000
A156: 141 | B156: 2014-01-17 | C156: 1844.23 | D156: 1846.04 | E156: 1835.23 | F156: 1838.7 | G156: 3626120000 | H156: 1838.7 | I156: 1 | J156: 1 | K156: 1844.23 | L156: 1846.04 | M156: 1835.23 | N156: 1838.7 | O156: 3626120000
A157: 142 | B157: 2014-01-16 | C157: 1847.99 | D157: 1847.99 | E157: 1840.3 | F157: 1845.89 | G157: 3491310000 | H157: 1845.89 | I157: 1 | J157: 1 | K157: 1847.99 | L157: 1847.99 | M157: 1840.3 | N157: 1845.89 | O157: 3491310000
A158: 143 | B158: 2014-01-15 | C158: 1840.52 | D158: 1850.84 | E158: 1840.52 | F158: 1848.38 | G158: 3777800000 | H158: 1848.38 | I158: 1 | J158: 1 | K158: 1840.52 | L158: 1850.84 | M158: 1840.52 | N158: 1848.38 | O158: 3777800000
A159: 144 | B159: 2014-01-14 | C159: 1821.36 | D159: 1839.26 | E159: 1821.36 | F159: 1838.88 | G159: 3353270000 | H159: 1838.88 | I159: 1 | J159: 1 | K159: 1821.36 | L159: 1839.26 | M159: 1821.36 | N159: 1838.88 | O159: 3353270000
A160: 145 | B160: 2014-01-13 | C160: 1841.26 | D160: 1843.45 | E160: 1815.52 | F160: 1819.2 | G160: 3591350000 | H160: 1819.2 | I160: 1 | J160: 1 | K160: 1841.26 | L160: 1843.45 | M160: 1815.52 | N160: 1819.2 | O160: 3591350000
A161: 146 | B161: 2014-01-10 | C161: 1840.06 | D161: 1843.15 | E161: 1832.43 | F161: 1842.37 | G161: 3335710000 | H161: 1842.37 | I161: 1 | J161: 1 | K161: 1840.06 | L161: 1843.15 | M161: 1832.43 | N161: 1842.37 | O161: 3335710000
A162: 147 | B162: 2014-01-09 | C162: 1839 | D162: 1843.23 | E162: 1830.38 | F162: 1838.13 | G162: 3581150000 | H162: 1838.13 | I162: 1 | J162: 1 | K162: 1839 | L162: 1843.23 | M162: 1830.38 | N162: 1838.13 | O162: 3581150000
A163: 148 | B163: 2014-01-08 | C163: 1837.9 | D163: 1840.02 | E163: 1831.4 | F163: 1837.49 | G163: 3652140000 | H163: 1837.49 | I163: 1 | J163: 1 | K163: 1837.9 | L163: 1840.02 | M163: 1831.4 | N163: 1837.49 | O163: 3652140000
A164: 149 | B164: 2014-01-07 | C164: 1828.71 | D164: 1840.1 | E164: 1828.71 | F164: 1837.88 | G164: 3511750000 | H164: 1837.88 | I164: 1 | J164: 1 | K164: 1828.71 | L164: 1840.1 | M164: 1828.71 | N164: 1837.88 | O164: 3511750000
A165: 150 | B165: 2014-01-06 | C165: 1832.31 | D165: 1837.16 | E165: 1823.73 | F165: 1826.77 | G165: 3294850000 | H165: 1826.77 | I165: 1 | J165: 1 | K165: 1832.31 | L165: 1837.16 | M165: 1823.73 | N165: 1826.77 | O165: 3294850000
A166: 151 | B166: 2014-01-03 | C166: 1833.21 | D166: 1838.24 | E166: 1829.13 | F166: 1831.37 | G166: 2774270000 | H166: 1831.37 | I166: 1 | J166: 1 | K166: 1833.21 | L166: 1838.24 | M166: 1829.13 | N166: 1831.37 | O166: 2774270000
A167: 152 | B167: 2014-01-02 | C167: 1845.86 | D167: 1845.86 | E167: 1827.74 | F167: 1831.98 | G167: 3080600000 | H167: 1831.98 | I167: 1 | J167: 1 | K167: 1845.86 | L167: 1845.86 | M167: 1827.74 | N167: 1831.98 | O167: 3080600000
A168: 153 | B168: 2013-12-31 | C168: 1842.61 | D168: 1849.44 | E168: 1842.41 | F168: 1848.36 | G168: 2312840000 | H168: 1848.36 | I168: 1 | J168: 1 | K168: 1842.61 | L168: 1849.44 | M168: 1842.41 | N168: 1848.36 | O168: 2312840000
A169: 154 | B169: 2013-12-30 | C169: 1841.47 | D169: 1842.47 | E169: 1838.77 | F169: 1841.07 | G169: 2293860000 | H169: 1841.07 | I169: 1 | J169: 1 | K169: 1841.47 | L169: 1842.47 | M169: 1838.77 | N169: 1841.07 | O169: 2293860000
A170: 155 | B170: 2013-12-27 | C170: 1842.97 | D170: 1844.89 | E170: 1839.81 | F170: 1841.4 | G170: 2052920000 | H170: 1841.4 | I170: 1 | J170: 1 | K170: 1842.97 | L170: 1844.89 | M170: 1839.81 | N170: 1841.4 | O170: 2052920000
A171: 156 | B171: 2013-12-26 | C171: 1834.96 | D171: 1842.84 | E171: 1834.96 | F171: 1842.02 | G171: 1982270000 | H171: 1842.02 | I171: 1 | J171: 1 | K171: 1834.96 | L171: 1842.84 | M171: 1834.96 | N171: 1842.02 | O171: 1982270000
A172: 157 | B172: 2013-12-24 | C172: 1828.02 | D172: 1833.32 | E172: 1828.02 | F172: 1833.32 | G172: 1307630000 | H172: 1833.32 | I172: 1 | J172: 1 | K172: 1828.02 | L172: 1833.32 | M172: 1828.02 | N172: 1833.32 | O172: 1307630000
A173: 158 | B173: 2013-12-23 | C173: 1822.92 | D173: 1829.75 | E173: 1822.92 | F173: 1827.99 | G173: 2851540000 | H173: 1827.99 | I173: 1 | J173: 1 | K173: 1822.92 | L173: 1829.75 | M173: 1822.92 | N173: 1827.99 | O173: 2851540000
A174: 159 | B174: 2013-12-20 | C174: 1810.39 | D174: 1823.75 | E174: 1810.25 | F174: 1818.32 | G174: 5097700000 | H174: 1818.32 | I174: 1 | J174: 1 | K174: 1810.39 | L174: 1823.75 | M174: 1810.25 | N174: 1818.32 | O174: 5097700000
A175: 160 | B175: 2013-12-19 | C175: 1809 | D175: 1810.88 | E175: 1801.35 | F175: 1809.6 | G175: 3497210000 | H175: 1809.6 | I175: 1 | J175: 1 | K175: 1809 | L175: 1810.88 | M175: 1801.35 | N175: 1809.6 | O175: 3497210000
A176: 161 | B176: 2013-12-18 | C176: 1781.46 | D176: 1811.08 | E176: 1767.99 | F176: 1810.65 | G176: 4327770000 | H176: 1810.65 | I176: 1 | J176: 1 | K176: 1781.46 | L176: 1811.08 | M176: 1767.99 | N176: 1810.65 | O176: 4327770000
A177: 162 | B177: 2013-12-17 | C177: 1786.47 | D177: 1786.77 | E177: 1777.05 | F177: 1781 | G177: 3270030000 | H177: 1781 | I177: 1 | J177: 1 | K177: 1786.47 | L177: 1786.77 | M177: 1777.05 | N177: 1781 | O177: 3270030000
A178: 163 | B178: 2013-12-16 | C178: 1777.48 | D178: 1792.22 | E178: 1777.48 | F178: 1786.54 | G178: 3209890000 | H178: 1786.54 | I178: 1 | J178: 1 | K178: 1777.48 | L178: 1792.22 | M178: 1777.48 | N178: 1786.54 | O178: 3209890000
A179: 164 | B179: 2013-12-13 | C179: 1777.98 | D179: 1780.92 | E179: 1772.45 | F179: 1775.32 | G179: 3061070000 | H179: 1775.32 | I179: 1 | J179: 1 | K179: 1777.98 | L179: 1780.92 | M179: 1772.45 | N179: 1775.32 | O179: 3061070000
A180: 165 | B180: 2013-12-12 | C180: 1781.71 | D180: 1782.99 | E180: 1772.28 | F180: 1775.5 | G180: 3306640000 | H180: 1775.5 | I180: 1 | J180: 1 | K180: 1781.71 | L180: 1782.99 | M180: 1772.28 | N180: 1775.5 | O180: 3306640000
A181: 166 | B181: 2013-12-11 | C181: 1802.76 | D181: 1802.97 | E181: 1780.09 | F181: 1782.22 | G181: 3472240000 | H181: 1782.22 | I181: 1 | J181: 1 | K181: 1802.76 | L181: 1802.97 | M181: 1780.09 | N181: 1782.22 | O181: 3472240000
A182: 167 | B182: 2013-12-10 | C182: 1807.6 | D182: 1808.52 | E182: 1801.75 | F182: 1802.62 | G182: 3117150000 | H182: 1802.62 | I182: 1 | J182: 1 | K182: 1807.6 | L182: 1808.52 | M182: 1801.75 | N182: 1802.62 | O182: 3117150000
A183: 168 | B183: 2013-12-09 | C183: 1806.21 | D183: 1811.52 | E183: 1806.21 | F183: 1808.37 | G183: 3129500000 | H183: 1808.37 | I183: 1 | J183: 1 | K183: 1806.21 | L183: 1811.52 | M183: 1806.21 | N183: 1808.37 | O183: 3129500000
A184: 169 | B184: 2013-12-06 | C184: 1788.36 | D184: 1806.04 | E184: 1788.36 | F184: 1805.09 | G184: 3150030000 | H184: 1805.09 | I184: 1 | J184: 1 | K184: 1788.36 | L184: 1806.04 | M184: 1788.36 | N184: 1805.09 | O184: 3150030000
A185: 170 | B185: 2013-12-05 | C185: 1792.82 | D185: 1792.82 | E185: 1783.38 | F185: 1785.03 | G185: 3336880000 | H185: 1785.03 | I185: 1 | J185: 1 | K185: 1792.82 | L185: 1792.82 | M185: 1783.38 | N185: 1785.03 | O185: 3336880000
A186: 171 | B186: 2013-12-04 | C186: 1793.15 | D186: 1799.8 | E186: 1779.09 | F186: 1792.81 | G186: 3610540000 | H186: 1792.81 | I186: 1 | J186: 1 | K186: 1793.15 | L186: 1799.8 | M186: 1779.09 | N186: 1792.81 | O186: 3610540000
A187: 172 | B187: 2013-12-03 | C187: 1800.1 | D187: 1800.1 | E187: 1787.85 | F187: 1795.15 | G187: 3475680000 | H187: 1795.15 | I187: 1 | J187: 1 | K187: 1800.1 | L187: 1800.1 | M187: 1787.85 | N187: 1795.15 | O187: 3475680000
A188: 173 | B188: 2013-12-02 | C188: 1806.55 | D188: 1810.02 | E188: 1798.6 | F188: 1800.9 | G188: 3095430000 | H188: 1800.9 | I188: 1 | J188: 1 | K188: 1806.55 | L188: 1810.02 | M188: 1798.6 | N188: 1800.9 | O188: 3095430000
A189: 174 | B189: 2013-11-29 | C189: 1808.69 | D189: 1813.55 | E189: 1803.98 | F189: 1805.81 | G189: 1598300000 | H189: 1805.81 | I189: 1 | J189: 1 | K189: 1808.69 | L189: 1813.55 | M189: 1803.98 | N189: 1805.81 | O189: 1598300000
A190: 175 | B190: 2013-11-27 | C190: 1803.48 | D190: 1808.27 | E190: 1802.77 | F190: 1807.23 | G190: 2613590000 | H190: 1807.23 | I190: 1 | J190: 1 | K190: 1803.48 | L190: 1808.27 | M190: 1802.77 | N190: 1807.23 | O190: 2613590000
A191: 176 | B191: 2013-11-26 | C191: 1802.87 | D191: 1808.42 | E191: 1800.77 | F191: 1802.75 | G191: 3427120000 | H191: 1802.75 | I191: 1 | J191: 1 | K191: 1802.87 | L191: 1808.42 | M191: 1800.77 | N191: 1802.75 | O191: 3427120000
A192: 177 | B192: 2013-11-25 | C192: 1806.33 | D192: 1808.1 | E192: 1800.58 | F192: 1802.48 | G192: 2998540000 | H192: 1802.48 | I192: 1 | J192: 1 | K192: 1806.33 | L192: 1808.1 | M192: 1800.58 | N192: 1802.48 | O192: 2998540000
A193: 178 | B193: 2013-11-22 | C193: 1797.21 | D193: 1804.84 | E193: 1794.7 | F193: 1804.76 | G193: 3055140000 | H193: 1804.76 | I193: 1 | J193: 1 | K193: 1797.21 | L193: 1804.84 | M193: 1794.7 | N193: 1804.76 | O193: 3055140000
A194: 179 | B194: 2013-11-21 | C194: 1783.52 | D194: 1797.16 | E194: 1783.52 | F194: 1795.85 | G194: 3256630000 | H194: 1795.85 | I194: 1 | J194: 1 | K194: 1783.52 | L194: 1797.16 | M194: 1783.52 | N194: 1795.85 | O194: 3256630000
A195: 180 | B195: 2013-11-20 | C195: 1789.59 | D195: 1795.73 | E195: 1777.23 | F195: 1781.37 | G195: 3109140000 | H195: 1781.37 | I195: 1 | J195: 1 | K195: 1789.59 | L195: 1795.73 | M195: 1777.23 | N195: 1781.37 | O195: 3109140000
A196: 181 | B196: 2013-11-19 | C196: 1790.79 | D196: 1795.51 | E196: 1784.72 | F196: 1787.87 | G196: 3224450000 | H196: 1787.87 | I196: 1 | J196: 1 | K196: 1790.79 | L196: 1795.51 | M196: 1784.72 | N196: 1787.87 | O196: 3224450000
A197: 182 | B197: 2013-11-18 | C197: 1798.82 | D197: 1802.33 | E197: 1788 | F197: 1791.53 | G197: 3168520000 | H197: 1791.53 | I197: 1 | J197: 1 | K197: 1798.82 | L197: 1802.33 | M197: 1788 | N197: 1791.53 | O197: 3168520000
A198: 183 | B198: 2013-11-15 | C198: 1790.66 | D198: 1798.22 | E198: 1790.66 | F198: 1798.18 | G198: 3254820000 | H198: 1798.18 | I198: 1 | J198: 1 | K198: 1790.66 | L198: 1798.22 | M198: 1790.66 | N198: 1798.18 | O198: 3254820000
A199: 184 | B199: 2013-11-14 | C199: 1782.75 | D199: 1791.53 | E199: 1780.22 | F199: 1790.62 | G199: 3139060000 | H199: 1790.62 | I199: 1 | J199: 1 | K199: 1782.75 | L199: 1791.53 | M199: 1780.22 | N199: 1790.62 | O199: 3139060000
A200: 185 | B200: 2013-11-13 | C200: 1764.37 | D200: 1782 | E200: 1760.64 | F200: 1782 | G200: 3327480000 | H200: 1782 | I200: 1 | J200: 1 | K200: 1764.37 | L200: 1782 | M200: 1760.64 | N200: 1782 | O200: 3327480000
... 4300 more rows

Sheet Follow
A1: Stocks and Indexes I wish to follow
A3: To ease following a stock, enter a Yahoo Finance acceptable symbol in column "A" anywhere below cell "A9".
A4: Thereafter you may doubleclick the cell containing a symbol of interest to initiate data retrieval and charting for that symbol.
A7: Symbol
A8: To | B8: Description | C8: Last Trade as of most recent check
A9: Follow | C9: Date | D9: Time | E9: Open | F9: High | G9: Low | H9: Close | I9: Volume
A10: F | B10: Ford Motor Compan (F) -NYSE (Daily) | C10: 2014-05-09 | D10: 16:00:00 | E10: 15.73 | F10: 15.9 | G10: 15.73 | H10: 15.77 | I10: 25172568
A11: MCD | B11: McDonald's Corpor (MCD) -NYSE (Daily) | C11: 2014-08-07 | D11: 11:39:00 | E11: 93.83 | F11: 94 | G11: 93.47 | H11: 93.54 | I11: 1106835
A12: JNJ | B12: Johnson & Johnson (JNJ) -NYSE | C12: 2014-02-03 | D12: 16:01:00 | E12: 88.75 | F12: 88.78 | G12: 86.61 | H12: 86.78 | I12: 13953268
A13: AAL | B13: American Airlines (AAL) -NasdaqNM | C13: 2014-02-03 | D13: 16:00:00 | E13: 34.04 | F13: 34.48 | G13: 33.05 | H13: 33.96 | I13: 21748284
A14: CIEN | B14: Ciena Corporation (CIEN) -NYSE | C14: 2014-02-03 | D14: 16:02:00 | E14: 23.31 | F14: 23.38 | G14: 21.9 | H14: 22.09 | I14: 4433923
A15: SONC | B15: Sonic Corp. (SONC) -NasdaqNM | C15: 2014-02-03 | D15: 16:00:00 | E15: 17.7 | F15: 18 | G15: 16.92 | H15: 17.28 | I15: 918579
A16: HTLD | B16: Heartland Express (HTLD) -NasdaqNM | C16: 2014-02-03 | D16: 16:00:00 | E16: 21.05 | F16: 21.23 | G16: 20.17 | H16: 20.21 | I16: 589750
A17: ADM | B17: Archer-Daniels-Mi (ADM) -NYSE (Daily) | C17: 2014-04-04 | D17: 16:01:00 | E17: 43.59 | F17: 43.66 | G17: 43.03 | H17: 43.05 | I17: 4416020
A18: A | B18: Agilent Technolog (A) -NYSE | C18: 2014-02-03 | D18: 16:02:00 | E18: 58.15 | F18: 58.48 | G18: 56.075 | H18: 56.15 | I18: 2929252
A19: PSEC | B19: Prospect Capital (PSEC) -NasdaqNM (Daily) | C19: 2014-08-07 | D19: 12:33:00 | E19: 10.65 | F19: 10.69 | G19: 10.63 | H19: 10.63 | I19: 1114177
A22: SPY | B22: SPDR S&P 500 (SPY) -PCX (Daily) | C22: 2014-08-08 | D22: 16:00:00 | E22: 191.46 | F22: 193.37 | G22: 190.95 | H22: 193.24 | I22: 116996440
A23: ^GSPC | B23: S&P 500 (^GSPC) -SNP (Daily) | C23: 2014-08-08 | D23: 16:31:00 | E23: 1910.35 | F23: 1932.38 | G23: 1909.01 | H23: 1931.59 | I23: 456088512
A24: QQQ | B24: PowerShares QQQ T (QQQ) -NGM (Daily) | C24: 2014-04-07 | D24: 11:33:00 | E24: 85.83 | F24: 86.63 | G24: 85.55 | H24: 86.07 | I24: 40146792

Sheet CalculationsAndCharts
A1: Creating A Trading Strategy
B2: =InputPriceData!A1 -> S&P 500 (^GSPC) -SNP (Daily)
A4: User Charting Controls
A5: Data Control
A6: =InputPriceData!$B$10 -> 9482 | B6: Available Input Data Rows | E6: Earliest: | F6: =OFFSET(InputPriceData!B15,CalculationsAndCharts!A6,0,1,1) -> 1977-01-07
B7: Use Close Adjusted: | C7: FALSE | E7: Latest: | F7: =OFFSET(InputPriceData!B15,1,0,1,1) -> 2014-08-08
A8: =MIN(A6-A11,COUNTA(B33:B9983)) -> 2800 | B8: Logically Available for Calc / Plot
A10: Price Chart Windowing Controls | F10: Y-axis Range
A11: 0 | B11: Input Data Offset (Pan) | E11: Max High+ | F11: =CEILING(MAX(OFFSET($E$33,0,0,$A$12,1))+2*F14,0.1) -> 2016.9
A12: 178 | B12: Data Points to Plot (Zoom) | E12: Min Low- | F12: =FLOOR(MIN(OFFSET($F$33,0,0,$A$12,1))-2*F14,0.1) -> 1712.4
B13: First: | C13: =OFFSET(B32,A12,0,1,1) -> 2013-11-22 | E13: White space %: | F13: 0.05
B14: ="Last: "&OFFSET(InputPriceData!P15,1+A11,0,1,1) -> Last: 4:31pm | C14: =B33 -> 2014-08-08 | E14: Allowance: | F14: =FLOOR((CEILING(MAX(OFFSET($E$33,0,0,$A$12,1)),1)-FLOOR(MIN(OFFSET($F$33,0,0,$A$12,1)),1))*$F$13,0.01) -> 12.75
A15: Help! I would like to plot data
A16: From | B16: 2013-11-22 | C16: =OFFSET(InputPriceData!$A$15,MATCH(B16,OFFSET(InputPriceData!B15,1,0,InputPriceData!$B$10,1),0),0,1,1)-C17 -> 178 | E16: 51 | W16: Threshold Calculations
A17: To | B17: 2014-08-08 | C17: =OFFSET(InputPriceData!$A$15,MATCH(B17,OFFSET(InputPriceData!$B$15,1,0,InputPriceData!$B$10,1),0),0,1,1)-1 -> 0 | E17: =$A$12-$E$16+1 -> 128 | W17: User Specified % of spread:
Y18: =A25 -> 0.08
A19: User Controls for: Modified Renko Bars | X19: Delta | Y19: % of
A20: 700 | B20: RenkoTickSize | C20: rangeValue: | D20: =A20*A22 -> 7 | W20: max | X20: =MAX(OFFSET(X28,1,0,J31-MAX(A24,D24),1)) -> 5.191536458 | Y20: =X20*$Y$18 -> 0.4153229167
A21: Ninja Trader Builtin Value of Interest | W21: min | X21: =MIN(OFFSET(X28,1,0,J31-MAX(A24,D24),1)) -> -5.397057292 | Y21: =X21*$Y$18 -> -0.4317645833
A22: 0.01 | B22: Instrument Ticksize | W22: max spread | X22: =MAX(X20,ABS(X21)) -> 5.397057292 | Y22: =X22*$Y$18 -> 0.4317645833 | AH22: Max renko bar high on chart rounded up
A23: Trading Strategy Controls: Results on Renko Bars Chart tab
A24: 8 | B24: Brick Typical $ SMA | C24: HaC SMA Bricks | D24: 8
A25: 0.08 | B25: of Signal Spread used as Signal Threshold: | D25: =Y22 -> 0.4317645833
B26: Renko HA Crossover System:
B27: For Details: See Transaction Summary tab
B28: ='Transaction Summary'!B5 & " Long Trades:" -> 94 Long Trades: | C28: ='Transaction Summary'!I8 -> 1442 | H28: @ Cursor => | I28: =OFFSET(A32,$E$17,0,1,1)&"(RR)" -> 128(RR) | J28: =OFFSET($B$32,E17,0,1,1) -> 2014-02-06 | K28: =TEXT(OFFSET(D32,$E$17,0,1,1),"#,##0.00")&"(o)" -> 1,752.99(o) | L28: =TEXT(OFFSET(E32,$E$17,0,1,1),"#,##0.00")&"(h)" -> 1,774.06(h) | M28: =TEXT(OFFSET(F32,$E$17,0,1,1),"#,##0.00")&"(l)" -> 1,752.99(l) | N28: =TEXT(OFFSET(G32,$E$17,0,1,1),"#,##0.00")&"(c)" -> 1,773.43(c) | X28: ="Delta: " & T31 & " - " &W31 -> Delta: SMA(8) of Typical - SMA(8) of HA Close | AH28: =CEILING(MAX(OFFSET(N32,1,0,130,1)),10) -> 2000
B29: ='Transaction Summary'!K5 & " Short Trades:" -> 78 Short Trades: | C29: ='Transaction Summary'!R8 -> 818.47 | AH29: Active Backgrounds for SVERenko Chart
B30: Net profitability: | C30: =C28+C29 -> 2260.47 | U30: Heiken-Ashe | Y30: ="Long Signals (>"&TEXT(Y22,"#,##0.00"&")") -> Long Signals (>0.43) | Z30: ="Short Signals (< -"&TEXT(Y22,"#,##0.00"&")") -> Short Signals (< -0.43) | AA30: ="White Flag Bar"&CHAR(10)& "(no signals)" -> White Flag Bar (no signals) | AB30: Entries and Exits on the bar AFTER a Signal
A31: Rel Row | B31: Stock Prices | H31: P Cursor | I31: P Cursor Min | J31: =MAX(OFFSET($J$32,1,0,2800,1)) -> 2189 | K31: ="Modified Renko Bars (" & A20 & ", " & A22 & ")" -> Modified Renko Bars (700, 0.01) | N31: =MAX(OFFSET(N32,1,0,$J$31,1)) -> 1991.39 | O31: =MIN(OFFSET(O32,1,0,$J$31,1)) -> 676.53 | Q31: Ticks in bar | R31: Total Ticks | S31: ="Typical Renko" -> Typical Renko | T31: ="SMA("&A24&") of Typical" -> SMA(8) of Typical | U31: HA Open | V31: HA Close | W31: ="SMA("&$D$24&") of HA Close" -> SMA(8) of HA Close | AB31: Long | AE31: Short | AH31: Long Position | AI31: Short Position
B32: Date | C32: Volume | D32: Open | E32: High | F32: Low | G32: Close | H32: =$F$11 -> 2016.9 | I32: =F12 -> 1712.4 | J32: Row | K32: Date/time | L32: Volume | M32: R Open | N32: R High | O32: R Low | P32: R Close | R32: =SUM(Q33:Q2832) -> 2800 | AB32: Enter | AC32: Active | AD32: Exit | AE32: Enter | AF32: Active | AG32: Exit
A33: 1 | B33: =OFFSET(InputPriceData!$B$15,CalculationsAndCharts!$A33+$A$11,0,1,1) -> 2014-08-08 | C33: =OFFSET(InputPriceData!G$15,CalculationsAndCharts!$A33+$A$11,IF($C$7,8,0),1,1) -> 456088512 | D33: =OFFSET(InputPriceData!$C$15,CalculationsAndCharts!$A33+$A$11,IF($C$7,8,0),1,1) -> 1910.35 | E33: =OFFSET(InputPriceData!$D$15,CalculationsAndCharts!$A33+$A$11,IF($C$7,8,0),1,1) -> 1932.38 | F33: =OFFSET(InputPriceData!$E$15,CalculationsAndCharts!$A33+$A$11,IF($C$7,8,0),1,1) -> 1909.01 | G33: =OFFSET(InputPriceData!$F$15,CalculationsAndCharts!$A33+$A$11,IF($C$7,8,0),1,1) -> 1931.59 | H33: =$E$17 -> 128 | I33: =H32 -> 2016.9 | J33: =SVERenkoBars(OFFSET($B$32,1,0,$A$8,1),OFFSET($C$32,1,0,$A$8,1),OFFSET($D$32,1,0,$A$8,1),OFFSET($E$32,1,0,$A$8,1),OFFSET($F$32,1,0,$A$8,1),OFFSET($G$32,1,0,$A$8,1), $D$20) -> 1 | K33: 2014-08-08 | L33: 0 | M33: 1923.82 | N33: 1930.82 | O33: 1923.82 | P33: 1930.82 | Q33: 0 | S33: =SUM(N33:P33)/3 -> 1928.486667 | T33: =AVERAGE(OFFSET(S33,0,0,$A$24,1)) -> 1928.68875 | U33: =(((M34+N34+O34+P34)/4)+M34)/2 -> 1913.28875 | V33: =(((M33+N33+O33+P33)/4)+U33+MAX(N33,U33)+MIN(O33,U33))/4 -> 1921.179375 | W33: =AVERAGE(OFFSET(V33,0,0,$D$24,1)) -> 1930.828594 | X33: =T33-W33 -> -2.13984375 | Y33: =X33>$Y$22 -> FALSE | Z33: =X33<-$Y$22 -> TRUE | AA33: =NOT(OR(Y33,Z33)) -> FALSE | AB33: =AND(Y34<>Y35,Y34,NOT(AC34)) -> FALSE | AC33: =IF(AC34,IF(AD33,FALSE,AC34),IF(AB33,TRUE,AC34)) -> FALSE | AD33: =AND(AC34,OR(AND(Z34<>Z35,Z34),AA34)) -> FALSE | AE33: =AND(Z34<>Z35,Z34,NOT(AF34)) -> FALSE | AF33: =IF(AF34,IF(AG33,FALSE,AF34),IF(AE33,TRUE,AF34)) -> TRUE | AG33: =AND(AF34,OR(AND(Y34<>Y35,Y34),AA34)) -> FALSE | AH33: =IF(AC33,$AH$28,NA()) ->  | AI33: =IF(AF33,$AH$28,NA()) -> 2000
A34: 2 | B34: =OFFSET(InputPriceData!B$15,CalculationsAndCharts!$A34+$A$11,0,1,1) -> 2014-08-07 | C34: =OFFSET(InputPriceData!G$15,CalculationsAndCharts!$A34+$A$11,IF($C$7,8,0),1,1) -> 3230520000 | D34: =OFFSET(InputPriceData!C$15,CalculationsAndCharts!$A34+$A$11,IF($C$7,8,0),1,1) -> 1923.03 | E34: =OFFSET(InputPriceData!D$15,CalculationsAndCharts!$A34+$A$11,IF($C$7,8,0),1,1) -> 1928.89 | F34: =OFFSET(InputPriceData!E$15,CalculationsAndCharts!$A34+$A$11,IF($C$7,8,0),1,1) -> 1904.78 | G34: =OFFSET(InputPriceData!F$15,CalculationsAndCharts!$A34+$A$11,IF($C$7,8,0),1,1) -> 1909.57 | H34: =$E$17 -> 128 | I34: =I32 -> 1712.4 | J34: 2 | K34: 2014-08-08 | L34: 3230520000 | M34: 1909.82 | N34: 1923.82 | O34: 1909.57 | P34: 1923.82 | Q34: 1 | S34: =SUM(N34:P34)/3 -> 1919.07 | T34: 1931.897083 | U34: =(((M35+N35+O35+P35)/4)+M35)/2 -> 1915.07 | V34: =(((M34+N34+O34+P34)/4)+U34+MAX(N34,U34)+MIN(O34,U34))/4 -> 1916.304375 | W34: 1935.635859 | X34: =T34-W34 -> -3.738776042 | Y34: =X34>$Y$22 -> FALSE | Z34: =X34<-$Y$22 -> TRUE | AA34: FALSE | AB34: FALSE | AC34: FALSE | AD34: FALSE | AE34: FALSE | AF34: TRUE | AG34: =AND(AF35,OR(AND(Y35<>Y36,Y35),AA35)) -> FALSE | AI34: 2000
A35: 3 | B35: =OFFSET(InputPriceData!B$15,CalculationsAndCharts!$A35+$A$11,0,1,1) -> 2014-08-06 | C35: =OFFSET(InputPriceData!G$15,CalculationsAndCharts!$A35+$A$11,IF($C$7,8,0),1,1) -> 3539150000 | D35: =OFFSET(InputPriceData!C$15,CalculationsAndCharts!$A35+$A$11,IF($C$7,8,0),1,1) -> 1917.29 | E35: =OFFSET(InputPriceData!D$15,CalculationsAndCharts!$A35+$A$11,IF($C$7,8,0),1,1) -> 1927.91 | F35: =OFFSET(InputPriceData!E$15,CalculationsAndCharts!$A35+$A$11,IF($C$7,8,0),1,1) -> 1911.45 | G35: =OFFSET(InputPriceData!F$15,CalculationsAndCharts!$A35+$A$11,IF($C$7,8,0),1,1) -> 1920.24 | J35: 3 | K35: 2014-08-07 | L35: 3539150000 | M35: 1916.82 | N35: 1916.82 | O35: 1909.82 | P35: 1909.82 | Q35: 1 | S35: 1912.153333 | T35: 1937.7025 | U35: 1922.07 | V35: 1916.82 | W35: 1942.206172 | X35: -4.503671875 | Y35: FALSE | Z35: TRUE | AA35: FALSE | AB35: FALSE | AC35: FALSE | AD35: FALSE | AE35: FALSE | AF35: TRUE | AG35: FALSE | AI35: 2000
A36: 4 | B36: =OFFSET(InputPriceData!B$15,CalculationsAndCharts!$A36+$A$11,0,1,1) -> 2014-08-05 | C36: =OFFSET(InputPriceData!G$15,CalculationsAndCharts!$A36+$A$11,IF($C$7,8,0),1,1) -> 3462520000 | D36: =OFFSET(InputPriceData!C$15,CalculationsAndCharts!$A36+$A$11,IF($C$7,8,0),1,1) -> 1936.34 | E36: =OFFSET(InputPriceData!D$15,CalculationsAndCharts!$A36+$A$11,IF($C$7,8,0),1,1) -> 1936.34 | F36: =OFFSET(InputPriceData!E$15,CalculationsAndCharts!$A36+$A$11,IF($C$7,8,0),1,1) -> 1913.77 | G36: =OFFSET(InputPriceData!F$15,CalculationsAndCharts!$A36+$A$11,IF($C$7,8,0),1,1) -> 1920.21 | J36: 4 | K36: 2014-08-06 | L36: 3462520000 | M36: 1923.82 | N36: 1923.82 | O36: 1916.82 | P36: 1916.82 | Q36: 1 | S36: 1919.153333 | T36: 1945.065 | U36: 1930.5825 | V36: 1924.57625 | W36: 1949.637969 | X36: -4.57296875 | Y36: FALSE | Z36: TRUE | AA36: FALSE | AB36: FALSE | AC36: FALSE | AD36: FALSE | AE36: FALSE | AF36: TRUE | AG36: FALSE | AI36: 2000
A37: 5 | B37: =OFFSET(InputPriceData!B$15,CalculationsAndCharts!$A37+$A$11,0,1,1) -> 2014-08-04 | C37: =OFFSET(InputPriceData!G$15,CalculationsAndCharts!$A37+$A$11,IF($C$7,8,0),1,1) -> 3072920000 | D37: =OFFSET(InputPriceData!C$15,CalculationsAndCharts!$A37+$A$11,IF($C$7,8,0),1,1) -> 1926.62 | E37: =OFFSET(InputPriceData!D$15,CalculationsAndCharts!$A37+$A$11,IF($C$7,8,0),1,1) -> 1942.92 | F37: =OFFSET(InputPriceData!E$15,CalculationsAndCharts!$A37+$A$11,IF($C$7,8,0),1,1) -> 1921.2 | G37: =OFFSET(InputPriceData!F$15,CalculationsAndCharts!$A37+$A$11,IF($C$7,8,0),1,1) -> 1938.99 | J37: 5 | K37: 2014-08-05 | L37: 6862580000 | M37: 1930.82 | N37: 1942.92 | O37: 1923.82 | P37: 1923.82 | Q37: 2 | S37: 1930.186667 | T37: 1952.547083 | U37: 1936.07 | V37: 1933.28875 | W37: 1956.776641 | X37: -4.229557292 | Y37: FALSE | Z37: TRUE | AA37: FALSE | AB37: FALSE | AC37: FALSE | AD37: FALSE | AE37: FALSE | AF37: TRUE | AG37: FALSE | AI37: 2000
A38: 6 | B38: =OFFSET(InputPriceData!B$15,CalculationsAndCharts!$A38+$A$11,0,1,1) -> 2014-08-01 | C38: =OFFSET(InputPriceData!G$15,CalculationsAndCharts!$A38+$A$11,IF($C$7,8,0),1,1) -> 3789660000 | D38: =OFFSET(InputPriceData!C$15,CalculationsAndCharts!$A38+$A$11,IF($C$7,8,0),1,1) -> 1929.8 | E38: =OFFSET(InputPriceData!D$15,CalculationsAndCharts!$A38+$A$11,IF($C$7,8,0),1,1) -> 1937.35 | F38: =OFFSET(InputPriceData!E$15,CalculationsAndCharts!$A38+$A$11,IF($C$7,8,0),1,1) -> 1916.37 | G38: =OFFSET(InputPriceData!F$15,CalculationsAndCharts!$A38+$A$11,IF($C$7,8,0),1,1) -> 1925.15 | J38: 6 | K38: 2014-08-01 | L38: 0 | M38: 1937.82 | N38: 1937.82 | O38: 1930.82 | P38: 1930.82 | Q38: 1 | S38: 1933.153333 | T38: 1959.334583 | U38: 1943.07 | V38: 1937.82 | W38: 1962.264531 | X38: -2.929947917 | Y38: FALSE | Z38: TRUE | AA38: FALSE | AB38: FALSE | AC38: FALSE | AD38: FALSE | AE38: FALSE | AF38: TRUE | AG38: FALSE | AI38: 2000
A39: 7 | B39: =OFFSET(InputPriceData!B$15,CalculationsAndCharts!$A39+$A$11,0,1,1) -> 2014-07-31 | C39: =OFFSET(InputPriceData!G$15,CalculationsAndCharts!$A39+$A$11,IF($C$7,8,0),1,1) -> 4193000000 | D39: =OFFSET(InputPriceData!C$15,CalculationsAndCharts!$A39+$A$11,IF($C$7,8,0),1,1) -> 1965.14 | E39: =OFFSET(InputPriceData!D$15,CalculationsAndCharts!$A39+$A$11,IF($C$7,8,0),1,1) -> 1965.14 | F39: =OFFSET(InputPriceData!E$15,CalculationsAndCharts!$A39+$A$11,IF($C$7,8,0),1,1) -> 1930.67 | G39: =OFFSET(InputPriceData!F$15,CalculationsAndCharts!$A39+$A$11,IF($C$7,8,0),1,1) -> 1930.67 | J39: 7 | K39: 2014-07-31 | L39: 0 | M39: 1944.82 | N39: 1944.82 | O39: 1937.82 | P39: 1937.82 | Q39: 0 | S39: 1940.153333 | T39: 1964.5825 | U39: 1950.07 | V39: 1944.82 | W39: 1966.753789 | X39: -2.171289062 | Y39: FALSE | Z39: TRUE | AA39: FALSE | AB39: FALSE | AC39: =IF(AC40,IF(AD39,FALSE,AC40),IF(AB39,TRUE,AC40)) -> FALSE | AD39: FALSE | AE39: FALSE | AF39: TRUE | AG39: FALSE | AI39: 2000
A40: 8 | B40: =OFFSET(InputPriceData!B$15,CalculationsAndCharts!$A40+$A$11,0,1,1) -> 2014-07-30 | C40: =OFFSET(InputPriceData!G$15,CalculationsAndCharts!$A40+$A$11,IF($C$7,8,0),1,1) -> 3448250000 | D40: =OFFSET(InputPriceData!C$15,CalculationsAndCharts!$A40+$A$11,IF($C$7,8,0),1,1) -> 1973.21 | E40: =OFFSET(InputPriceData!D$15,CalculationsAndCharts!$A40+$A$11,IF($C$7,8,0),1,1) -> 1978.9 | F40: =OFFSET(InputPriceData!E$15,CalculationsAndCharts!$A40+$A$11,IF($C$7,8,0),1,1) -> 1962.42 | G40: =OFFSET(InputPriceData!F$15,CalculationsAndCharts!$A40+$A$11,IF($C$7,8,0),1,1) -> 1970.07 | J40: 8 | K40: 2014-07-31 | L40: 0 | M40: 1951.82 | N40: 1951.82 | O40: 1944.82 | P40: 1944.82 | Q40: 0 | S40: 1947.153333 | T40: 1968.447083 | U40: 1957.07 | V40: 1951.82 | W40: 1970.347617 | X40: -1.900533854 | Y40: FALSE | Z40: TRUE | AA40: FALSE | AB40: FALSE | AC40: =IF(AC41,IF(AD40,FALSE,AC41),IF(AB40,TRUE,AC41)) -> FALSE | AD40: FALSE | AE40: TRUE | AF40: TRUE | AG40: FALSE | AI40: 2000
A41: 9 | B41: =OFFSET(InputPriceData!B$15,CalculationsAndCharts!$A41+$A$11,0,1,1) -> 2014-07-29 | C41: =OFFSET(InputPriceData!G$15,CalculationsAndCharts!$A41+$A$11,IF($C$7,8,0),1,1) -> 3183300000 | D41: =OFFSET(InputPriceData!C$15,CalculationsAndCharts!$A41+$A$11,IF($C$7,8,0),1,1) -> 1980.03 | E41: =OFFSET(InputPriceData!D$15,CalculationsAndCharts!$A41+$A$11,IF($C$7,8,0),1,1) -> 1984.85 | F41: =OFFSET(InputPriceData!E$15,CalculationsAndCharts!$A41+$A$11,IF($C$7,8,0),1,1) -> 1969.95 | G41: =OFFSET(InputPriceData!F$15,CalculationsAndCharts!$A41+$A$11,IF($C$7,8,0),1,1) -> 1969.95 | J41: 9 | K41: 2014-07-31 | L41: 0 | M41: 1958.82 | N41: 1958.82 | O41: 1951.82 | P41: 1951.82 | Q41: 0 | S41: 1954.153333 | T41: 1971.927083 | U41: 1965.705 | V41: 1959.6375 | W41: 1972.592383 | X41: -0.6652994792 | Y41: FALSE | Z41: TRUE | AA41: FALSE | AB41: FALSE | AC41: FALSE | AD41: FALSE | AE41: FALSE | AF41: FALSE | AG41: FALSE
A42: 10 | B42: =OFFSET(InputPriceData!B$15,CalculationsAndCharts!$A42+$A$11,0,1,1) -> 2014-07-28 | C42: =OFFSET(InputPriceData!G$15,CalculationsAndCharts!$A42+$A$11,IF($C$7,8,0),1,1) -> 2803320000 | D42: =OFFSET(InputPriceData!C$15,CalculationsAndCharts!$A42+$A$11,IF($C$7,8,0),1,1) -> 1978.25 | E42: =OFFSET(InputPriceData!D$15,CalculationsAndCharts!$A42+$A$11,IF($C$7,8,0),1,1) -> 1981.52 | F42: =OFFSET(InputPriceData!E$15,CalculationsAndCharts!$A42+$A$11,IF($C$7,8,0),1,1) -> 1967.31 | G42: =OFFSET(InputPriceData!F$15,CalculationsAndCharts!$A42+$A$11,IF($C$7,8,0),1,1) -> 1978.91 | J42: 10 | K42: 2014-07-31 | L42: 6631550000 | M42: 1965.82 | N42: 1978.9 | O42: 1958.82 | P42: 1958.82 | Q42: 2 | S42: 1965.513333 | T42: 1973.710833 | U42: 1972.1575 | V42: 1968.866875 | W42: 1973.374688 | X42: 0.3361458333 | Y42: FALSE | Z42: FALSE | AA42: TRUE | AB42: FALSE | AC42: FALSE | AD42: FALSE | AE42: FALSE | AF42: FALSE | AG42: FALSE
A43: 11 | B43: =OFFSET(InputPriceData!B$15,CalculationsAndCharts!$A43+$A$11,0,1,1) -> 2014-07-25 | C43: =OFFSET(InputPriceData!G$15,CalculationsAndCharts!$A43+$A$11,IF($C$7,8,0),1,1) -> 2638960000 | D43: =OFFSET(InputPriceData!C$15,CalculationsAndCharts!$A43+$A$11,IF($C$7,8,0),1,1) -> 1984.6 | E43: =OFFSET(InputPriceData!D$15,CalculationsAndCharts!$A43+$A$11,IF($C$7,8,0),1,1) -> 1984.6 | F43: =OFFSET(InputPriceData!E$15,CalculationsAndCharts!$A43+$A$11,IF($C$7,8,0),1,1) -> 1974.37 | G43: =OFFSET(InputPriceData!F$15,CalculationsAndCharts!$A43+$A$11,IF($C$7,8,0),1,1) -> 1978.34 | J43: 11 | K43: 2014-07-29 | L43: 5442280000 | M43: 1972.82 | N43: 1981.52 | O43: 1965.82 | P43: 1965.82 | Q43: 2 | S43: 1971.053333 | T43: 1973.512917 | U43: 1983.89125 | V43: 1976.274375 | W43: 1973.421406 | X43: 0.09151041667 | Y43: FALSE | Z43: FALSE | AA43: =NOT(OR(Y43,Z43)) -> TRUE | AB43: =AND(Y44<>Y45,Y44,NOT(AC44)) -> FALSE | AC43: FALSE | AD43: =AND(AC44,OR(AND(Z44<>Z45,Z44),AA44)) -> TRUE | AE43: =AND(Z44<>Z45,Z44,NOT(AF44)) -> FALSE | AF43: FALSE | AG43: FALSE
A44: 12 | B44: =OFFSET(InputPriceData!B$15,CalculationsAndCharts!$A44+$A$11,0,1,1) -> 2014-07-24 | C44: =OFFSET(InputPriceData!G$15,CalculationsAndCharts!$A44+$A$11,IF($C$7,8,0),1,1) -> 3203530000 | D44: =OFFSET(InputPriceData!C$15,CalculationsAndCharts!$A44+$A$11,IF($C$7,8,0),1,1) -> 1988.07 | E44: =OFFSET(InputPriceData!D$15,CalculationsAndCharts!$A44+$A$11,IF($C$7,8,0),1,1) -> 1991.39 | F44: =OFFSET(InputPriceData!E$15,CalculationsAndCharts!$A44+$A$11,IF($C$7,8,0),1,1) -> 1985.79 | G44: =OFFSET(InputPriceData!F$15,CalculationsAndCharts!$A44+$A$11,IF($C$7,8,0),1,1) -> 1987.98 | J44: 12 | K44: 2014-07-25 | L44: 6073250000 | M44: 1986.82 | N44: 1991.39 | O44: 1972.82 | P44: 1972.82 | Q44: 2 | S44: 1979.01 | T44: 1973.625417 | U44: 1981.57 | V44: 1981.685625 | W44: 1973.216172 | X44: 0.4092447917 | Y44: FALSE | Z44: FALSE | AA44: =NOT(OR(Y44,Z44)) -> TRUE | AB44: FALSE | AC44: TRUE | AD44: FALSE | AE44: =AND(Z45<>Z46,Z45,NOT(AF45)) -> FALSE | AF44: FALSE | AG44: FALSE | AH44: 2000
A45: 13 | B45: =OFFSET(InputPriceData!B$15,CalculationsAndCharts!$A45+$A$11,0,1,1) -> 2014-07-23 | C45: =OFFSET(InputPriceData!G$15,CalculationsAndCharts!$A45+$A$11,IF($C$7,8,0),1,1) -> 2869720000 | D45: =OFFSET(InputPriceData!C$15,CalculationsAndCharts!$A45+$A$11,IF($C$7,8,0),1,1) -> 1985.32 | E45: =OFFSET(InputPriceData!D$15,CalculationsAndCharts!$A45+$A$11,IF($C$7,8,0),1,1) -> 1989.23 | F45: =OFFSET(InputPriceData!E$15,CalculationsAndCharts!$A45+$A$11,IF($C$7,8,0),1,1) -> 1982.44 | G45: =OFFSET(InputPriceData!F$15,CalculationsAndCharts!$A45+$A$11,IF($C$7,8,0),1,1) -> 1987.01 | J45: 13 | K45: 2014-07-23 | L45: 2890480000 | M45: 1979.82 | N45: 1986.82 | O45: 1979.82 | P45: 1986.82 | Q45: 1 | S45: 1984.486667 | T45: 1973.435 | U45: 1969.31375 | V45: 1977.191875 | W45: 1972.107969 | X45: 1.32703125 | Y45: TRUE | Z45: FALSE | AA45: FALSE | AB45: FALSE | AC45: TRUE | AD45: FALSE | AE45: FALSE | AF45: FALSE | AG45: FALSE | AH45: 2000
A46: 14 | B46: =OFFSET(InputPriceData!B$15,CalculationsAndCharts!$A46+$A$11,0,1,1) -> 2014-07-22 | C46: =OFFSET(InputPriceData!G$15,CalculationsAndCharts!$A46+$A$11,IF($C$7,8,0),1,1) -> 2890480000 | D46: =OFFSET(InputPriceData!C$15,CalculationsAndCharts!$A46+$A$11,IF($C$7,8,0),1,1) -> 1975.65 | E46: =OFFSET(InputPriceData!D$15,CalculationsAndCharts!$A46+$A$11,IF($C$7,8,0),1,1) -> 1986.24 | F46: =OFFSET(InputPriceData!E$15,CalculationsAndCharts!$A46+$A$11,IF($C$7,8,0),1,1) -> 1975.65 | G46: =OFFSET(InputPriceData!F$15,CalculationsAndCharts!$A46+$A$11,IF($C$7,8,0),1,1) -> 1983.53 | J46: 14 | K46: 2014-07-22 | L46: 5717220000 | M46: 1965.82 | N46: 1979.82 | O46: 1965.77 | P46: 1979.82 | Q46: 3 | S46: 1975.136667 | T46: 1971.685 | U46: 1976.53875 | V46: 1973.734063 | W46: 1970.681797 | X46: 1.003203125 | Y46: TRUE | Z46: FALSE | AA46: FALSE | AB46: FALSE | AC46: TRUE | AD46: FALSE | AE46: FALSE | AF46: FALSE | AG46: FALSE | AH46: 2000
A47: 15 | B47: =OFFSET(InputPriceData!B$15,CalculationsAndCharts!$A47+$A$11,0,1,1) -> 2014-07-21 | C47: =OFFSET(InputPriceData!G$15,CalculationsAndCharts!$A47+$A$11,IF($C$7,8,0),1,1) -> 2611160000 | D47: =OFFSET(InputPriceData!C$15,CalculationsAndCharts!$A47+$A$11,IF($C$7,8,0),1,1) -> 1976.93 | E47: =OFFSET(InputPriceData!D$15,CalculationsAndCharts!$A47+$A$11,IF($C$7,8,0),1,1) -> 1976.93 | F47: =OFFSET(InputPriceData!E$15,CalculationsAndCharts!$A47+$A$11,IF($C$7,8,0),1,1) -> 1965.77 | G47: =OFFSET(InputPriceData!F$15,CalculationsAndCharts!$A47+$A$11,IF($C$7,8,0),1,1) -> 1973.63 | J47: 15 | K47: 2014-07-17 | L47: 3390950000 | M47: 1979.82 | N47: 1981.57 | O47: 1965.82 | P47: 1965.82 | Q47: 1 | S47: 1971.07 | T47: 1970.20375 | U47: 1973.635 | V47: 1973.570625 | W47: 1968.525039 | X47: 1.678710938 | Y47: TRUE | Z47: FALSE | AA47: FALSE | AB47: FALSE | AC47: TRUE | AD47: FALSE | AE47: FALSE | AF47: FALSE | AG47: FALSE | AH47: 2000
A48: 16 | B48: =OFFSET(InputPriceData!B$15,CalculationsAndCharts!$A48+$A$11,0,1,1) -> 2014-07-18 | C48: =OFFSET(InputPriceData!G$15,CalculationsAndCharts!$A48+$A$11,IF($C$7,8,0),1,1) -> 3106060000 | D48: =OFFSET(InputPriceData!C$15,CalculationsAndCharts!$A48+$A$11,IF($C$7,8,0),1,1) -> 1961.54 | E48: =OFFSET(InputPriceData!D$15,CalculationsAndCharts!$A48+$A$11,IF($C$7,8,0),1,1) -> 1979.91 | F48: =OFFSET(InputPriceData!E$15,CalculationsAndCharts!$A48+$A$11,IF($C$7,8,0),1,1) -> 1960.82 | G48: =OFFSET(InputPriceData!F$15,CalculationsAndCharts!$A48+$A$11,IF($C$7,8,0),1,1) -> 1978.22 | J48: 16 | K48: 2014-07-16 | L48: 6073660000 | M48: 1972.82 | N48: 1979.82 | O48: 1965.34 | P48: 1979.82 | Q48: 2 | S48: 1974.993333 | T48: 1968.304167 | U48: 1962.42125 | V48: 1969.778125 | W48: 1966.136367 | X48: 2.167799479 | Y48: TRUE | Z48: FALSE | AA48: FALSE | AB48: FALSE | AC48: TRUE | AD48: FALSE | AE48: FALSE | AF48: FALSE | AG48: FALSE | AH48: 2000
A49: 17 | B49: =OFFSET(InputPriceData!B$15,CalculationsAndCharts!$A49+$A$11,0,1,1) -> 2014-07-17 | C49: =OFFSET(InputPriceData!G$15,CalculationsAndCharts!$A49+$A$11,IF($C$7,8,0),1,1) -> 3381680000 | D49: =OFFSET(InputPriceData!C$15,CalculationsAndCharts!$A49+$A$11,IF($C$7,8,0),1,1) -> 1979.75 | E49: =OFFSET(InputPriceData!D$15,CalculationsAndCharts!$A49+$A$11,IF($C$7,8,0),1,1) -> 1981.8 | F49: =OFFSET(InputPriceData!E$15,CalculationsAndCharts!$A49+$A$11,IF($C$7,8,0),1,1) -> 1955.59 | G49: =OFFSET(InputPriceData!F$15,CalculationsAndCharts!$A49+$A$11,IF($C$7,8,0),1,1) -> 1958.12 | J49: 17 | K49: 2014-07-14 | L49: 5850320000 | M49: 1958.82 | N49: 1972.82 | O49: 1959.63 | P49: 1972.82 | Q49: 2 | S49: 1968.423333 | T49: 1965.320833 | U49: 1965.11125 | V49: 1965.895938 | W49: 1964.138477 | X49: 1.182356771 | Y49: TRUE | Z49: FALSE | AA49: FALSE | AB49: FALSE | AC49: TRUE | AD49: FALSE | AE49: FALSE | AF49: FALSE | AG49: FALSE | AH49: 2000
A50: 18 | B50: =OFFSET(InputPriceData!B$15,CalculationsAndCharts!$A50+$A$11,0,1,1) -> 2014-07-16 | C50: =OFFSET(InputPriceData!G$15,CalculationsAndCharts!$A50+$A$11,IF($C$7,8,0),1,1) -> 3390950000 | D50: =OFFSET(InputPriceData!C$15,CalculationsAndCharts!$A50+$A$11,IF($C$7,8,0),1,1) -> 1976.35 | E50: =OFFSET(InputPriceData!D$15,CalculationsAndCharts!$A50+$A$11,IF($C$7,8,0),1,1) -> 1983.94 | F50: =OFFSET(InputPriceData!E$15,CalculationsAndCharts!$A50+$A$11,IF($C$7,8,0),1,1) -> 1975.67 | G50: =OFFSET(InputPriceData!F$15,CalculationsAndCharts!$A50+$A$11,IF($C$7,8,0),1,1) -> 1981.57 | J50: 18 | K50: 2014-07-10 | L50: 6161230000 | M50: 1965.82 | N50: 1974.15 | O50: 1958.82 | P50: 1958.82 | Q50: 2 | S50: 1963.93 | T50: 1963.82875 | U50: 1976.87 | V50: 1969.240625 | W50: 1962.378984 | X50: 1.449765625 | Y50: TRUE | Z50: FALSE | AA50: FALSE | AB50: FALSE | AC50: TRUE | AD50: FALSE | AE50: FALSE | AF50: FALSE | AG50: FALSE | AH50: 2000
A51: 19 | B51: =OFFSET(InputPriceData!B$15,CalculationsAndCharts!$A51+$A$11,0,1,1) -> 2014-07-15 | C51: =OFFSET(InputPriceData!G$15,CalculationsAndCharts!$A51+$A$11,IF($C$7,8,0),1,1) -> 3328740000 | D51: =OFFSET(InputPriceData!C$15,CalculationsAndCharts!$A51+$A$11,IF($C$7,8,0),1,1) -> 1977.36 | E51: =OFFSET(InputPriceData!D$15,CalculationsAndCharts!$A51+$A$11,IF($C$7,8,0),1,1) -> 1982.52 | F51: =OFFSET(InputPriceData!E$15,CalculationsAndCharts!$A51+$A$11,IF($C$7,8,0),1,1) -> 1965.34 | G51: =OFFSET(InputPriceData!F$15,CalculationsAndCharts!$A51+$A$11,IF($C$7,8,0),1,1) -> 1973.28 | J51: 19 | K51: 2014-07-08 | L51: 4679350000 | M51: 1979.82 | N51: 1984.22 | O51: 1965.82 | P51: 1965.82 | Q51: 2 | S51: 1971.953333 | T51: 1962.023333 | U51: 1974.57 | V51: 1974.6325 | W51: 1959.019609 | X51: 3.003723958 | Y51: TRUE | Z51: FALSE | AA51: FALSE | AB51: FALSE | AC51: TRUE | AD51: FALSE | AE51: FALSE | AF51: FALSE | AG51: FALSE | AH51: 2000
A52: 20 | B52: =OFFSET(InputPriceData!B$15,CalculationsAndCharts!$A52+$A$11,0,1,1) -> 2014-07-14 | C52: =OFFSET(InputPriceData!G$15,CalculationsAndCharts!$A52+$A$11,IF($C$7,8,0),1,1) -> 2744920000 | D52: =OFFSET(InputPriceData!C$15,CalculationsAndCharts!$A52+$A$11,IF($C$7,8,0),1,1) -> 1969.86 | E52: =OFFSET(InputPriceData!D$15,CalculationsAndCharts!$A52+$A$11,IF($C$7,8,0),1,1) -> 1979.85 | F52: =OFFSET(InputPriceData!E$15,CalculationsAndCharts!$A52+$A$11,IF($C$7,8,0),1,1) -> 1969.86 | G52: =OFFSET(InputPriceData!F$15,CalculationsAndCharts!$A52+$A$11,IF($C$7,8,0),1,1) -> 1977.1 | J52: 20 | K52: 2014-07-03 | L52: 2851480000 | M52: 1972.82 | N52: 1979.82 | O52: 1972.82 | P52: 1979.82 | Q52: 1 | S52: 1977.486667 | T52: 1958.162083 | U52: 1967.57 | V52: 1972.82 | W52: 1954.651836 | X52: 3.510247396 | Y52: TRUE | Z52: FALSE | AA52: FALSE | AB52: FALSE | AC52: TRUE | AD52: FALSE | AE52: FALSE | AF52: FALSE | AG52: FALSE | AH52: 2000
A53: 21 | B53: =OFFSET(InputPriceData!B$15,CalculationsAndCharts!$A53+$A$11,0,1,1) -> 2014-07-11 | C53: =OFFSET(InputPriceData!G$15,CalculationsAndCharts!$A53+$A$11,IF($C$7,8,0),1,1) -> 2684630000 | D53: =OFFSET(InputPriceData!C$15,CalculationsAndCharts!$A53+$A$11,IF($C$7,8,0),1,1) -> 1965.76 | E53: =OFFSET(InputPriceData!D$15,CalculationsAndCharts!$A53+$A$11,IF($C$7,8,0),1,1) -> 1968.67 | F53: =OFFSET(InputPriceData!E$15,CalculationsAndCharts!$A53+$A$11,IF($C$7,8,0),1,1) -> 1959.63 | G53: =OFFSET(InputPriceData!F$15,CalculationsAndCharts!$A53+$A$11,IF($C$7,8,0),1,1) -> 1967.57 | J53: 21 | K53: 2014-07-02 | L53: 0 | M53: 1965.82 | N53: 1972.82 | O53: 1965.82 | P53: 1972.82 | Q53: 1 | S53: 1970.486667 | T53: 1953.101667 | U53: 1960.495 | V53: 1965.7825 | W53: 1950.509258 | X53: 2.592408854 | Y53: TRUE | Z53: FALSE | AA53: FALSE | AB53: FALSE | AC53: TRUE | AD53: FALSE | AE53: FALSE | AF53: FALSE | AG53: FALSE | AH53: 2000
A54: 22 | B54: =OFFSET(InputPriceData!B$15,CalculationsAndCharts!$A54+$A$11,0,1,1) -> 2014-07-10 | C54: =OFFSET(InputPriceData!G$15,CalculationsAndCharts!$A54+$A$11,IF($C$7,8,0),1,1) -> 3165690000 | D54: =OFFSET(InputPriceData!C$15,CalculationsAndCharts!$A54+$A$11,IF($C$7,8,0),1,1) -> 1966.67 | E54: =OFFSET(InputPriceData!D$15,CalculationsAndCharts!$A54+$A$11,IF($C$7,8,0),1,1) -> 1969.84 | F54: =OFFSET(InputPriceData!E$15,CalculationsAndCharts!$A54+$A$11,IF($C$7,8,0),1,1) -> 1952.86 | G54: =OFFSET(InputPriceData!F$15,CalculationsAndCharts!$A54+$A$11,IF($C$7,8,0),1,1) -> 1964.68 | J54: 22 | K54: 2014-07-01 | L54: 13213490000 | M54: 1958.82 | N54: 1965.82 | O54: 1958.22 | P54: 1965.82 | Q54: 4 | S54: 1963.286667 | T54: 1949.601667 | U54: 1948.965 | V54: 1956.48 | W54: 1947.013945 | X54: 2.587721354 | Y54: TRUE | Z54: FALSE | AA54: FALSE | AB54: FALSE | AC54: TRUE | AD54: FALSE | AE54: FALSE | AF54: FALSE | AG54: FALSE | AH54: 2000
A55: 23 | B55: =OFFSET(InputPriceData!B$15,CalculationsAndCharts!$A55+$A$11,0,1,1) -> 2014-07-09 | C55: =OFFSET(InputPriceData!G$15,CalculationsAndCharts!$A55+$A$11,IF($C$7,8,0),1,1) -> 2858800000 | D55: =OFFSET(InputPriceData!C$15,CalculationsAndCharts!$A55+$A$11,IF($C$7,8,0),1,1) -> 1965.1 | E55: =OFFSET(InputPriceData!D$15,CalculationsAndCharts!$A55+$A$11,IF($C$7,8,0),1,1) -> 1974.15 | F55: =OFFSET(InputPriceData!E$15,CalculationsAndCharts!$A55+$A$11,IF($C$7,8,0),1,1) -> 1965.1 | G55: =OFFSET(InputPriceData!F$15,CalculationsAndCharts!$A55+$A$11,IF($C$7,8,0),1,1) -> 1972.83 | J55: 23 | K55: 2014-06-25 | L55: 3089700000 | M55: 1944.82 | N55: 1958.82 | O55: 1949.98 | P55: 1958.82 | Q55: 1 | S55: 1955.873333 | T55: 1946.126667 | U55: 1955.935 | V55: 1954.46125 | W55: 1943.765664 | X55: 2.361002604 | Y55: TRUE | Z55: FALSE | AA55: FALSE | AB55: FALSE | AC55: TRUE | AD55: FALSE | AE55: FALSE | AF55: FALSE | AG55: FALSE | AH55: 2000
A56: 24 | B56: =OFFSET(InputPriceData!B$15,CalculationsAndCharts!$A56+$A$11,0,1,1) -> 2014-07-08 | C56: =OFFSET(InputPriceData!G$15,CalculationsAndCharts!$A56+$A$11,IF($C$7,8,0),1,1) -> 3302430000 | D56: =OFFSET(InputPriceData!C$15,CalculationsAndCharts!$A56+$A$11,IF($C$7,8,0),1,1) -> 1976.39 | E56: =OFFSET(InputPriceData!D$15,CalculationsAndCharts!$A56+$A$11,IF($C$7,8,0),1,1) -> 1976.39 | F56: =OFFSET(InputPriceData!E$15,CalculationsAndCharts!$A56+$A$11,IF($C$7,8,0),1,1) -> 1959.46 | G56: =OFFSET(InputPriceData!F$15,CalculationsAndCharts!$A56+$A$11,IF($C$7,8,0),1,1) -> 1963.71 | J56: 24 | K56: 2014-06-24 | L56: 7053870000 | M56: 1958.82 | N56: 1963.74 | O56: 1944.82 | P56: 1944.82 | Q56: 2 | S56: 1951.126667 | T56: 1942.485833 | U56: 1953.57 | V56: 1953.795 | W56: 1939.894727 | X56: 2.591106771 | Y56: TRUE | Z56: FALSE | AA56: FALSE | AB56: FALSE | AC56: TRUE | AD56: FALSE | AE56: FALSE | AF56: FALSE | AG56: FALSE | AH56: 2000
A57: 25 | B57: =OFFSET(InputPriceData!B$15,CalculationsAndCharts!$A57+$A$11,0,1,1) -> 2014-07-07 | C57: =OFFSET(InputPriceData!G$15,CalculationsAndCharts!$A57+$A$11,IF($C$7,8,0),1,1) -> 2681260000 | D57: =OFFSET(InputPriceData!C$15,CalculationsAndCharts!$A57+$A$11,IF($C$7,8,0),1,1) -> 1984.22 | E57: =OFFSET(InputPriceData!D$15,CalculationsAndCharts!$A57+$A$11,IF($C$7,8,0),1,1) -> 1984.22 | F57: =OFFSET(InputPriceData!E$15,CalculationsAndCharts!$A57+$A$11,IF($C$7,8,0),1,1) -> 1974.88 | G57: =OFFSET(InputPriceData!F$15,CalculationsAndCharts!$A57+$A$11,IF($C$7,8,0),1,1) -> 1977.65 | J57: 25 | K57: 2014-06-20 | L57: 0 | M57: 1951.82 | N57: 1958.82 | O57: 1951.82 | P57: 1958.82 | Q57: 1 | S57: 1956.486667 | T57: 1938.780833 | U57: 1946.57 | V57: 1951.82 | W57: 1935.272852 | X57: 3.507981771 | Y57: TRUE | Z57: FALSE | AA57: FALSE | AB57: FALSE | AC57: TRUE | AD57: FALSE | AE57: FALSE | AF57: FALSE | AG57: FALSE | AH57: 2000
A58: 26 | B58: =OFFSET(InputPriceData!B$15,CalculationsAndCharts!$A58+$A$11,0,1,1) -> 2014-07-03 | C58: =OFFSET(InputPriceData!G$15,CalculationsAndCharts!$A58+$A$11,IF($C$7,8,0),1,1) -> 1998090000 | D58: =OFFSET(InputPriceData!C$15,CalculationsAndCharts!$A58+$A$11,IF($C$7,8,0),1,1) -> 1975.88 | E58: =OFFSET(InputPriceData!D$15,CalculationsAndCharts!$A58+$A$11,IF($C$7,8,0),1,1) -> 1985.59 | F58: =OFFSET(InputPriceData!E$15,CalculationsAndCharts!$A58+$A$11,IF($C$7,8,0),1,1) -> 1975.88 | G58: =OFFSET(InputPriceData!F$15,CalculationsAndCharts!$A58+$A$11,IF($C$7,8,0),1,1) -> 1985.44 | J58: 26 | K58: 2014-06-19 | L58: 0 | M58: 1944.82 | N58: 1951.82 | O58: 1944.82 | P58: 1951.82 | Q58: 1 | S58: 1949.486667 | T58: 1933.530833 | U58: 1934.66125 | V58: 1942.365625 | W58: 1930.057852 | X58: 3.472981771 | Y58: TRUE | Z58: FALSE | AA58: FALSE | AB58: FALSE | AC58: TRUE | AD58: FALSE | AE58: FALSE | AF58: FALSE | AG58: FALSE | AH58: 2000
A59: 27 | B59: =OFFSET(InputPriceData!B$15,CalculationsAndCharts!$A59+$A$11,0,1,1) -> 2014-07-02 | C59: =OFFSET(InputPriceData!G$15,CalculationsAndCharts!$A59+$A$11,IF($C$7,8,0),1,1) -> 2851480000 | D59: =OFFSET(InputPriceData!C$15,CalculationsAndCharts!$A59+$A$11,IF($C$7,8,0),1,1) -> 1973.06 | E59: =OFFSET(InputPriceData!D$15,CalculationsAndCharts!$A59+$A$11,IF($C$7,8,0),1,1) -> 1976.67 | F59: =OFFSET(InputPriceData!E$15,CalculationsAndCharts!$A59+$A$11,IF($C$7,8,0),1,1) -> 1972.58 | G59: =OFFSET(InputPriceData!F$15,CalculationsAndCharts!$A59+$A$11,IF($C$7,8,0),1,1) -> 1974.62 | J59: 27 | K59: 2014-06-18 | L59: 11536100000 | M59: 1930.82 | N59: 1944.82 | O59: 1933.55 | P59: 1944.82 | Q59: 4 | S59: 1941.063333 | T59: 1928.4675 | U59: 1941.88875 | V59: 1939.690313 | W59: 1925.149648 | X59: 3.317851563 | Y59: TRUE | Z59: FALSE | AA59: FALSE | AB59: FALSE | AC59: TRUE | AD59: FALSE | AE59: FALSE | AF59: FALSE | AG59: FALSE | AH59: 2000
A60: 28 | B60: =OFFSET(InputPriceData!B$15,CalculationsAndCharts!$A60+$A$11,0,1,1) -> 2014-07-01 | C60: =OFFSET(InputPriceData!G$15,CalculationsAndCharts!$A60+$A$11,IF($C$7,8,0),1,1) -> 3188240000 | D60: =OFFSET(InputPriceData!C$15,CalculationsAndCharts!$A60+$A$11,IF($C$7,8,0),1,1) -> 1962.29 | E60: =OFFSET(InputPriceData!D$15,CalculationsAndCharts!$A60+$A$11,IF($C$7,8,0),1,1) -> 1978.58 | F60: =OFFSET(InputPriceData!E$15,CalculationsAndCharts!$A60+$A$11,IF($C$7,8,0),1,1) -> 1962.29 | G60: =OFFSET(InputPriceData!F$15,CalculationsAndCharts!$A60+$A$11,IF($C$7,8,0),1,1) -> 1973.32 | J60: 28 | K60: 2014-06-12 | L60: 8225160000 | M60: 1944.82 | N60: 1949.37 | O60: 1930.82 | P60: 1930.82 | Q60: 3 | S60: 1937.003333 | T60: 1923.395417 | U60: 1939.57 | V60: 1939.679375 | W60: 1919.665859 | X60: 3.729557292 | Y60: TRUE | Z60: FALSE | AA60: FALSE | AB60: FALSE | AC60: TRUE | AD60: FALSE | AE60: FALSE | AF60: FALSE | AG60: FALSE | AH60: 2000
A61: 29 | B61: =OFFSET(InputPriceData!B$15,CalculationsAndCharts!$A61+$A$11,0,1,1) -> 2014-06-30 | C61: =OFFSET(InputPriceData!G$15,CalculationsAndCharts!$A61+$A$11,IF($C$7,8,0),1,1) -> 3037350000 | D61: =OFFSET(InputPriceData!C$15,CalculationsAndCharts!$A61+$A$11,IF($C$7,8,0),1,1) -> 1960.79 | E61: =OFFSET(InputPriceData!D$15,CalculationsAndCharts!$A61+$A$11,IF($C$7,8,0),1,1) -> 1964.24 | F61: =OFFSET(InputPriceData!E$15,CalculationsAndCharts!$A61+$A$11,IF($C$7,8,0),1,1) -> 1958.22 | G61: =OFFSET(InputPriceData!F$15,CalculationsAndCharts!$A61+$A$11,IF($C$7,8,0),1,1) -> 1960.23 | J61: 29 | K61: 2014-06-09 | L61: 0 | M61: 1937.82 | N61: 1944.82 | O61: 1937.82 | P61: 1944.82 | Q61: 1 | S61: 1942.486667 | T61: 1917.955833 | U61: 1932.57 | V61: 1937.82 | W61: 1913.308438 | X61: 4.647395833 | Y61: TRUE | Z61: FALSE | AA61: FALSE | AB61: FALSE | AC61: TRUE | AD61: FALSE | AE61: FALSE | AF61: FALSE | AG61: FALSE | AH61: 2000
A62: 30 | B62: =OFFSET(InputPriceData!B$15,CalculationsAndCharts!$A62+$A$11,0,1,1) -> 2014-06-27 | C62: =OFFSET(InputPriceData!G$15,CalculationsAndCharts!$A62+$A$11,IF($C$7,8,0),1,1) -> 4290590000 | D62: =OFFSET(InputPriceData!C$15,CalculationsAndCharts!$A62+$A$11,IF($C$7,8,0),1,1) -> 1956.56 | E62: =OFFSET(InputPriceData!D$15,CalculationsAndCharts!$A62+$A$11,IF($C$7,8,0),1,1) -> 1961.47 | F62: =OFFSET(InputPriceData!E$15,CalculationsAndCharts!$A62+$A$11,IF($C$7,8,0),1,1) -> 1952.18 | G62: =OFFSET(InputPriceData!F$15,CalculationsAndCharts!$A62+$A$11,IF($C$7,8,0),1,1) -> 1960.96 | J62: 30 | K62: 2014-06-06 | L62: 0 | M62: 1930.82 | N62: 1937.82 | O62: 1930.82 | P62: 1937.82 | Q62: 1 | S62: 1935.486667 | T62: 1910.955833 | U62: 1924.9175 | V62: 1930.49375 | W62: 1906.019453 | X62: 4.936380208 | Y62: TRUE | Z62: FALSE | AA62: FALSE | AB62: FALSE | AC62: TRUE | AD62: FALSE | AE62: FALSE | AF62: FALSE | AG62: FALSE | AH62: 2000
A63: 31 | B63: =OFFSET(InputPriceData!B$15,CalculationsAndCharts!$A63+$A$11,0,1,1) -> 2014-06-26 | C63: =OFFSET(InputPriceData!G$15,CalculationsAndCharts!$A63+$A$11,IF($C$7,8,0),1,1) -> 2778840000 | D63: =OFFSET(InputPriceData!C$15,CalculationsAndCharts!$A63+$A$11,IF($C$7,8,0),1,1) -> 1959.89 | E63: =OFFSET(InputPriceData!D$15,CalculationsAndCharts!$A63+$A$11,IF($C$7,8,0),1,1) -> 1959.89 | F63: =OFFSET(InputPriceData!E$15,CalculationsAndCharts!$A63+$A$11,IF($C$7,8,0),1,1) -> 1944.69 | G63: =OFFSET(InputPriceData!F$15,CalculationsAndCharts!$A63+$A$11,IF($C$7,8,0),1,1) -> 1957.22 | J63: 31 | K63: 2014-06-05 | L63: 8170120000 | M63: 1923.82 | N63: 1930.82 | O63: 1918.6 | P63: 1930.82 | Q63: 3 | S63: 1926.746667 | T63: 1903.872917 | U63: 1918.57 | V63: 1923.49375 | W63: 1899.244922 | X63: 4.627994792 | Y63: TRUE | Z63: FALSE | AA63: FALSE | AB63: FALSE | AC63: TRUE | AD63: FALSE | AE63: FALSE | AF63: FALSE | AG63: FALSE | AH63: 2000
A64: 32 | B64: =OFFSET(InputPriceData!B$15,CalculationsAndCharts!$A64+$A$11,0,1,1) -> 2014-06-25 | C64: =OFFSET(InputPriceData!G$15,CalculationsAndCharts!$A64+$A$11,IF($C$7,8,0),1,1) -> 3106710000 | D64: =OFFSET(InputPriceData!C$15,CalculationsAndCharts!$A64+$A$11,IF($C$7,8,0),1,1) -> 1949.27 | E64: =OFFSET(InputPriceData!D$15,CalculationsAndCharts!$A64+$A$11,IF($C$7,8,0),1,1) -> 1960.83 | F64: =OFFSET(InputPriceData!E$15,CalculationsAndCharts!$A64+$A$11,IF($C$7,8,0),1,1) -> 1947.49 | G64: =OFFSET(InputPriceData!F$15,CalculationsAndCharts!$A64+$A$11,IF($C$7,8,0),1,1) -> 1959.53 | J64: 32 | K64: 2014-06-02 | L64: 3263490000 | M64: 1916.82 | N64: 1923.82 | O64: 1916.82 | P64: 1923.82 | Q64: 1 | S64: 1921.486667 | T64: 1897.264583 | U64: 1911.57 | V64: 1916.82 | W64: 1893.433359 | X64: 3.831223958 | Y64: TRUE | Z64: FALSE | AA64: FALSE | AB64: FALSE | AC64: TRUE | AD64: FALSE | AE64: FALSE | AF64: FALSE | AG64: FALSE | AH64: 2000
A65: 33 | B65: =OFFSET(InputPriceData!B$15,CalculationsAndCharts!$A65+$A$11,0,1,1) -> 2014-06-24 | C65: =OFFSET(InputPriceData!G$15,CalculationsAndCharts!$A65+$A$11,IF($C$7,8,0),1,1) -> 3089700000 | D65: =OFFSET(InputPriceData!C$15,CalculationsAndCharts!$A65+$A$11,IF($C$7,8,0),1,1) -> 1961.97 | E65: =OFFSET(InputPriceData!D$15,CalculationsAndCharts!$A65+$A$11,IF($C$7,8,0),1,1) -> 1968.17 | F65: =OFFSET(InputPriceData!E$15,CalculationsAndCharts!$A65+$A$11,IF($C$7,8,0),1,1) -> 1948.34 | G65: =OFFSET(InputPriceData!F$15,CalculationsAndCharts!$A65+$A$11,IF($C$7,8,0),1,1) -> 1949.98 | J65: 33 | K65: 2014-05-30 | L65: 0 | M65: 1909.82 | N65: 1916.82 | O65: 1909.82 | P65: 1916.82 | Q65: 1 | S65: 1914.486667 | T65: 1891.722917 | U65: 1905.13 | V65: 1910.1 | W65: 1889.399219 | X65: 2.323697917 | Y65: TRUE | Z65: FALSE | AA65: FALSE | AB65: FALSE | AC65: TRUE | AD65: FALSE | AE65: FALSE | AF65: FALSE | AG65: FALSE | AH65: 2000
A66: 34 | B66: =OFFSET(InputPriceData!B$15,CalculationsAndCharts!$A66+$A$11,0,1,1) -> 2014-06-23 | C66: =OFFSET(InputPriceData!G$15,CalculationsAndCharts!$A66+$A$11,IF($C$7,8,0),1,1) -> 2717630000 | D66: =OFFSET(InputPriceData!C$15,CalculationsAndCharts!$A66+$A$11,IF($C$7,8,0),1,1) -> 1962.92 | E66: =OFFSET(InputPriceData!D$15,CalculationsAndCharts!$A66+$A$11,IF($C$7,8,0),1,1) -> 1963.74 | F66: =OFFSET(InputPriceData!E$15,CalculationsAndCharts!$A66+$A$11,IF($C$7,8,0),1,1) -> 1958.89 | G66: =OFFSET(InputPriceData!F$15,CalculationsAndCharts!$A66+$A$11,IF($C$7,8,0),1,1) -> 1962.61 | J66: 34 | K66: 2014-05-29 | L66: 2976450000 | M66: 1902.82 | N66: 1909.82 | O66: 1907.3 | P66: 1909.82 | Q66: 2 | S66: 1908.98 | T66: 1888.290833 | U66: 1897.57 | V66: 1903.1 | W66: 1886.857578 | X66: 1.433255208 | Y66: TRUE | Z66: FALSE | AA66: FALSE | AB66: FALSE | AC66: TRUE | AD66: FALSE | AE66: FALSE | AF66: FALSE | AG66: FALSE | AH66: 2000
A67: 35 | B67: =OFFSET(InputPriceData!B$15,CalculationsAndCharts!$A67+$A$11,0,1,1) -> 2014-06-20 | C67: =OFFSET(InputPriceData!G$15,CalculationsAndCharts!$A67+$A$11,IF($C$7,8,0),1,1) -> 4336240000 | D67: =OFFSET(InputPriceData!C$15,CalculationsAndCharts!$A67+$A$11,IF($C$7,8,0),1,1) -> 1960.45 | E67: =OFFSET(InputPriceData!D$15,CalculationsAndCharts!$A67+$A$11,IF($C$7,8,0),1,1) -> 1963.91 | F67: =OFFSET(InputPriceData!E$15,CalculationsAndCharts!$A67+$A$11,IF($C$7,8,0),1,1) -> 1959.17 | G67: =OFFSET(InputPriceData!F$15,CalculationsAndCharts!$A67+$A$11,IF($C$7,8,0),1,1) -> 1962.87 | J67: 35 | K67: 2014-05-27 | L67: 2396280000 | M67: 1895.82 | N67: 1902.82 | O67: 1895.82 | P67: 1902.82 | Q67: 1 | S67: 1900.486667 | T67: 1886.354167 | U67: 1890.57 | V67: 1895.82 | W67: 1885.072578 | X67: 1.281588542 | Y67: TRUE | Z67: FALSE | AA67: FALSE | AB67: FALSE | AC67: TRUE | AD67: FALSE | AE67: FALSE | AF67: FALSE | AG67: FALSE | AH67: 2000
A68: 36 | B68: =OFFSET(InputPriceData!B$15,CalculationsAndCharts!$A68+$A$11,0,1,1) -> 2014-06-19 | C68: =OFFSET(InputPriceData!G$15,CalculationsAndCharts!$A68+$A$11,IF($C$7,8,0),1,1) -> 2952150000 | D68: =OFFSET(InputPriceData!C$15,CalculationsAndCharts!$A68+$A$11,IF($C$7,8,0),1,1) -> 1957.5 | E68: =OFFSET(InputPriceData!D$15,CalculationsAndCharts!$A68+$A$11,IF($C$7,8,0),1,1) -> 1959.87 | F68: =OFFSET(InputPriceData!E$15,CalculationsAndCharts!$A68+$A$11,IF($C$7,8,0),1,1) -> 1952.26 | G68: =OFFSET(InputPriceData!F$15,CalculationsAndCharts!$A68+$A$11,IF($C$7,8,0),1,1) -> 1959.48 | J68: 36 | K68: 2014-05-23 | L68: 2759800000 | M68: 1888.82 | N68: 1895.82 | O68: 1888.82 | P68: 1895.82 | Q68: 1 | S68: 1893.486667 | T68: 1884.604167 | U68: 1883.57 | V68: 1888.82 | W68: 1882.988203 | X68: 1.615963542 | Y68: TRUE | Z68: FALSE | AA68: FALSE | AB68: TRUE | AC68: TRUE | AD68: FALSE | AE68: FALSE | AF68: FALSE | AG68: FALSE | AH68: 2000
A69: 37 | B69: =OFFSET(InputPriceData!B$15,CalculationsAndCharts!$A69+$A$11,0,1,1) -> 2014-06-18 | C69: =OFFSET(InputPriceData!G$15,CalculationsAndCharts!$A69+$A$11,IF($C$7,8,0),1,1) -> 3065220000 | D69: =OFFSET(InputPriceData!C$15,CalculationsAndCharts!$A69+$A$11,IF($C$7,8,0),1,1) -> 1942.73 | E69: =OFFSET(InputPriceData!D$15,CalculationsAndCharts!$A69+$A$11,IF($C$7,8,0),1,1) -> 1957.74 | F69: =OFFSET(InputPriceData!E$15,CalculationsAndCharts!$A69+$A$11,IF($C$7,8,0),1,1) -> 1939.29 | G69: =OFFSET(InputPriceData!F$15,CalculationsAndCharts!$A69+$A$11,IF($C$7,8,0),1,1) -> 1956.98 | J69: 37 | K69: 2014-05-22 | L69: 2777140000 | M69: 1881.82 | N69: 1888.82 | O69: 1881.82 | P69: 1888.82 | Q69: 1 | S69: 1886.486667 | T69: 1882.529167 | U69: 1871.94625 | V69: 1879.508125 | W69: 1881.330742 | X69: 1.198424479 | Y69: TRUE | Z69: FALSE | AA69: FALSE | AB69: FALSE | AC69: FALSE | AD69: TRUE | AE69: FALSE | AF69: FALSE | AG69: FALSE
A70: 38 | B70: =OFFSET(InputPriceData!B$15,CalculationsAndCharts!$A70+$A$11,0,1,1) -> 2014-06-17 | C70: =OFFSET(InputPriceData!G$15,CalculationsAndCharts!$A70+$A$11,IF($C$7,8,0),1,1) -> 2971260000 | D70: =OFFSET(InputPriceData!C$15,CalculationsAndCharts!$A70+$A$11,IF($C$7,8,0),1,1) -> 1937.15 | E70: =OFFSET(InputPriceData!D$15,CalculationsAndCharts!$A70+$A$11,IF($C$7,8,0),1,1) -> 1943.69 | F70: =OFFSET(InputPriceData!E$15,CalculationsAndCharts!$A70+$A$11,IF($C$7,8,0),1,1) -> 1933.55 | G70: =OFFSET(InputPriceData!F$15,CalculationsAndCharts!$A70+$A$11,IF($C$7,8,0),1,1) -> 1941.99 | J70: 38 | K70: 2014-05-21 | L70: 3007700000 | M70: 1867.82 | N70: 1881.82 | O70: 1872.83 | P70: 1881.82 | Q70: 1 | S70: 1878.823333 | T70: 1880.932917 | U70: 1874.4675 | V70: 1876.2975 | W70: 1880.943555 | X70: -0.01063802083 | Y70: FALSE | Z70: FALSE | AA70: TRUE | AB70: FALSE | AC70: TRUE | AD70: FALSE | AE70: FALSE | AF70: FALSE | AG70: FALSE | AH70: 2000
A71: 39 | B71: =OFFSET(InputPriceData!B$15,CalculationsAndCharts!$A71+$A$11,0,1,1) -> 2014-06-16 | C71: =OFFSET(InputPriceData!G$15,CalculationsAndCharts!$A71+$A$11,IF($C$7,8,0),1,1) -> 2926130000 | D71: =OFFSET(InputPriceData!C$15,CalculationsAndCharts!$A71+$A$11,IF($C$7,8,0),1,1) -> 1934.84 | E71: =OFFSET(InputPriceData!D$15,CalculationsAndCharts!$A71+$A$11,IF($C$7,8,0),1,1) -> 1941.15 | F71: =OFFSET(InputPriceData!E$15,CalculationsAndCharts!$A71+$A$11,IF($C$7,8,0),1,1) -> 1930.91 | G71: =OFFSET(InputPriceData!F$15,CalculationsAndCharts!$A71+$A$11,IF($C$7,8,0),1,1) -> 1937.78 | J71: 39 | K71: 2014-05-20 | L71: 9390540000 | M71: 1874.82 | N71: 1886 | O71: 1867.82 | P71: 1867.82 | Q71: 3 | S71: 1873.88 | T71: 1881.015833 | U71: 1880.07 | V71: 1877.00125 | W71: 1880.350977 | X71: 0.6648567708 | Y71: TRUE | Z71: FALSE | AA71: FALSE | AB71: FALSE | AC71: TRUE | AD71: FALSE | AE71: FALSE | AF71: FALSE | AG71: FALSE | AH71: 2000
A72: 40 | B72: =OFFSET(InputPriceData!B$15,CalculationsAndCharts!$A72+$A$11,0,1,1) -> 2014-06-13 | C72: =OFFSET(InputPriceData!G$15,CalculationsAndCharts!$A72+$A$11,IF($C$7,8,0),1,1) -> 2598230000 | D72: =OFFSET(InputPriceData!C$15,CalculationsAndCharts!$A72+$A$11,IF($C$7,8,0),1,1) -> 1930.8 | E72: =OFFSET(InputPriceData!D$15,CalculationsAndCharts!$A72+$A$11,IF($C$7,8,0),1,1) -> 1937.3 | F72: =OFFSET(InputPriceData!E$15,CalculationsAndCharts!$A72+$A$11,IF($C$7,8,0),1,1) -> 1927.69 | G72: =OFFSET(InputPriceData!F$15,CalculationsAndCharts!$A72+$A$11,IF($C$7,8,0),1,1) -> 1936.16 | J72: 40 | K72: 2014-05-15 | L72: 2822060000 | M72: 1881.82 | N72: 1881.82 | O72: 1874.82 | P72: 1874.82 | Q72: 1 | S72: 1877.153333 | T72: 1880.124583 | U72: 1892.52375 | V72: 1884.546875 | W72: 1878.949961 | X72: 1.174622396 | Y72: TRUE | Z72: FALSE | AA72: FALSE | AB72: FALSE | AC72: TRUE | AD72: FALSE | AE72: FALSE | AF72: FALSE | AG72: FALSE | AH72: 2000
A73: 41 | B73: =OFFSET(InputPriceData!B$15,CalculationsAndCharts!$A73+$A$11,0,1,1) -> 2014-06-12 | C73: =OFFSET(InputPriceData!G$15,CalculationsAndCharts!$A73+$A$11,IF($C$7,8,0),1,1) -> 3040480000 | D73: =OFFSET(InputPriceData!C$15,CalculationsAndCharts!$A73+$A$11,IF($C$7,8,0),1,1) -> 1943.35 | E73: =OFFSET(InputPriceData!D$15,CalculationsAndCharts!$A73+$A$11,IF($C$7,8,0),1,1) -> 1943.35 | F73: =OFFSET(InputPriceData!E$15,CalculationsAndCharts!$A73+$A$11,IF($C$7,8,0),1,1) -> 1925.78 | G73: =OFFSET(InputPriceData!F$15,CalculationsAndCharts!$A73+$A$11,IF($C$7,8,0),1,1) -> 1930.11 | J73: 41 | K73: 2014-05-14 | L73: 2915680000 | M73: 1895.82 | N73: 1897.45 | O73: 1881.82 | P73: 1881.82 | Q73: 1 | S73: 1887.03 | T73: 1879.05125 | U73: 1890.57 | V73: 1889.766875 | W73: 1877.274727 | X73: 1.776523437 | Y73: TRUE | Z73: FALSE | AA73: FALSE | AB73: FALSE | AC73: TRUE | AD73: FALSE | AE73: FALSE | AF73: FALSE | AG73: FALSE | AH73: 2000
A74: 42 | B74: =OFFSET(InputPriceData!B$15,CalculationsAndCharts!$A74+$A$11,0,1,1) -> 2014-06-11 | C74: =OFFSET(InputPriceData!G$15,CalculationsAndCharts!$A74+$A$11,IF($C$7,8,0),1,1) -> 2710620000 | D74: =OFFSET(InputPriceData!C$15,CalculationsAndCharts!$A74+$A$11,IF($C$7,8,0),1,1) -> 1949.37 | E74: =OFFSET(InputPriceData!D$15,CalculationsAndCharts!$A74+$A$11,IF($C$7,8,0),1,1) -> 1949.37 | F74: =OFFSET(InputPriceData!E$15,CalculationsAndCharts!$A74+$A$11,IF($C$7,8,0),1,1) -> 1940.08 | G74: =OFFSET(InputPriceData!F$15,CalculationsAndCharts!$A74+$A$11,IF($C$7,8,0),1,1) -> 1943.89 | J74: 42 | K74: 2014-05-13 | L74: 0 | M74: 1888.82 | N74: 1895.82 | O74: 1888.82 | P74: 1895.82 | Q74: 1 | S74: 1893.486667 | T74: 1877.233333 | U74: 1883.57 | V74: 1888.82 | W74: 1874.531367 | X74: 2.701966146 | Y74: TRUE | Z74: FALSE | AA74: FALSE | AB74: FALSE | AC74: TRUE | AD74: FALSE | AE74: FALSE | AF74: FALSE | AG74: FALSE | AH74: 2000
A75: 43 | B75: =OFFSET(InputPriceData!B$15,CalculationsAndCharts!$A75+$A$11,0,1,1) -> 2014-06-10 | C75: =OFFSET(InputPriceData!G$15,CalculationsAndCharts!$A75+$A$11,IF($C$7,8,0),1,1) -> 2702360000 | D75: =OFFSET(InputPriceData!C$15,CalculationsAndCharts!$A75+$A$11,IF($C$7,8,0),1,1) -> 1950.34 | E75: =OFFSET(InputPriceData!D$15,CalculationsAndCharts!$A75+$A$11,IF($C$7,8,0),1,1) -> 1950.86 | F75: =OFFSET(InputPriceData!E$15,CalculationsAndCharts!$A75+$A$11,IF($C$7,8,0),1,1) -> 1944.64 | G75: =OFFSET(InputPriceData!F$15,CalculationsAndCharts!$A75+$A$11,IF($C$7,8,0),1,1) -> 1950.79 | J75: 43 | K75: 2014-05-12 | L75: 0 | M75: 1881.82 | N75: 1888.82 | O75: 1881.82 | P75: 1888.82 | Q75: 0 | S75: 1886.486667 | T75: 1873.733333 | U75: 1871.22 | V75: 1879.145 | W75: 1871.031367 | X75: 2.701966146 | Y75: TRUE | Z75: FALSE | AA75: FALSE | AB75: FALSE | AC75: TRUE | AD75: FALSE | AE75: FALSE | AF75: FALSE | AG75: FALSE | AH75: 2000
A76: 44 | B76: =OFFSET(InputPriceData!B$15,CalculationsAndCharts!$A76+$A$11,0,1,1) -> 2014-06-09 | C76: =OFFSET(InputPriceData!G$15,CalculationsAndCharts!$A76+$A$11,IF($C$7,8,0),1,1) -> 2812180000 | D76: =OFFSET(InputPriceData!C$15,CalculationsAndCharts!$A76+$A$11,IF($C$7,8,0),1,1) -> 1948.97 | E76: =OFFSET(InputPriceData!D$15,CalculationsAndCharts!$A76+$A$11,IF($C$7,8,0),1,1) -> 1955.55 | F76: =OFFSET(InputPriceData!E$15,CalculationsAndCharts!$A76+$A$11,IF($C$7,8,0),1,1) -> 1947.16 | G76: =OFFSET(InputPriceData!F$15,CalculationsAndCharts!$A76+$A$11,IF($C$7,8,0),1,1) -> 1951.27 | J76: 44 | K76: 2014-05-12 | L76: 13378650000 | M76: 1867.82 | N76: 1881.82 | O76: 1867.02 | P76: 1881.82 | Q76: 4 | S76: 1876.886667 | T76: 1870.233333 | U76: 1878.78125 | V76: 1875.560313 | W76: 1867.865742 | X76: 2.367591146 | Y76: TRUE | Z76: FALSE | AA76: FALSE | AB76: FALSE | AC76: TRUE | AD76: FALSE | AE76: FALSE | AF76: FALSE | AG76: FALSE | AH76: 2000
A77: 45 | B77: =OFFSET(InputPriceData!B$15,CalculationsAndCharts!$A77+$A$11,0,1,1) -> 2014-06-06 | C77: =OFFSET(InputPriceData!G$15,CalculationsAndCharts!$A77+$A$11,IF($C$7,8,0),1,1) -> 2864300000 | D77: =OFFSET(InputPriceData!C$15,CalculationsAndCharts!$A77+$A$11,IF($C$7,8,0),1,1) -> 1942.41 | E77: =OFFSET(InputPriceData!D$15,CalculationsAndCharts!$A77+$A$11,IF($C$7,8,0),1,1) -> 1949.44 | F77: =OFFSET(InputPriceData!E$15,CalculationsAndCharts!$A77+$A$11,IF($C$7,8,0),1,1) -> 1942.41 | G77: =OFFSET(InputPriceData!F$15,CalculationsAndCharts!$A77+$A$11,IF($C$7,8,0),1,1) -> 1949.44 | J77: 45 | K77: 2014-05-06 | L77: 13089260000 | M77: 1881.82 | N77: 1885.51 | O77: 1867.82 | P77: 1867.82 | Q77: 4 | S77: 1873.716667 | T77: 1867.058333 | U77: 1876.57 | V77: 1876.410625 | W77: 1864.273203 | X77: 2.785130208 | Y77: TRUE | Z77: FALSE | AA77: FALSE | AB77: FALSE | AC77: TRUE | AD77: FALSE | AE77: FALSE | AF77: FALSE | AG77: FALSE | AH77: 2000
A78: 46 | B78: =OFFSET(InputPriceData!B$15,CalculationsAndCharts!$A78+$A$11,0,1,1) -> 2014-06-05 | C78: =OFFSET(InputPriceData!G$15,CalculationsAndCharts!$A78+$A$11,IF($C$7,8,0),1,1) -> 3113270000 | D78: =OFFSET(InputPriceData!C$15,CalculationsAndCharts!$A78+$A$11,IF($C$7,8,0),1,1) -> 1928.52 | E78: =OFFSET(InputPriceData!D$15,CalculationsAndCharts!$A78+$A$11,IF($C$7,8,0),1,1) -> 1941.74 | F78: =OFFSET(InputPriceData!E$15,CalculationsAndCharts!$A78+$A$11,IF($C$7,8,0),1,1) -> 1922.93 | G78: =OFFSET(InputPriceData!F$15,CalculationsAndCharts!$A78+$A$11,IF($C$7,8,0),1,1) -> 1940.46 | J78: 46 | K78: 2014-04-30 | L78: 3647820000 | M78: 1874.82 | N78: 1881.82 | O78: 1874.82 | P78: 1881.82 | Q78: 1 | S78: 1879.486667 | T78: 1863.404583 | U78: 1863.04375 | V78: 1871.556875 | W78: 1859.292969 | X78: 4.111614583 | Y78: TRUE | Z78: FALSE | AA78: FALSE | AB78: FALSE | AC78: TRUE | AD78: FALSE | AE78: FALSE | AF78: FALSE | AG78: FALSE | AH78: 2000
A79: 47 | B79: =OFFSET(InputPriceData!B$15,CalculationsAndCharts!$A79+$A$11,0,1,1) -> 2014-06-04 | C79: =OFFSET(InputPriceData!G$15,CalculationsAndCharts!$A79+$A$11,IF($C$7,8,0),1,1) -> 2793920000 | D79: =OFFSET(InputPriceData!C$15,CalculationsAndCharts!$A79+$A$11,IF($C$7,8,0),1,1) -> 1923.06 | E79: =OFFSET(InputPriceData!D$15,CalculationsAndCharts!$A79+$A$11,IF($C$7,8,0),1,1) -> 1928.63 | F79: =OFFSET(InputPriceData!E$15,CalculationsAndCharts!$A79+$A$11,IF($C$7,8,0),1,1) -> 1918.6 | G79: =OFFSET(InputPriceData!F$15,CalculationsAndCharts!$A79+$A$11,IF($C$7,8,0),1,1) -> 1927.88 | J79: 47 | K79: 2014-04-29 | L79: 7247700000 | M79: 1860.82 | N79: 1874.82 | O79: 1850.61 | P79: 1874.82 | Q79: 2 | S79: 1866.75 | T79: 1857.445417 | U79: 1872.475 | V79: 1865.793125 | W79: 1854.004766 | X79: 3.440651042 | Y79: TRUE | Z79: FALSE | AA79: FALSE | AB79: FALSE | AC79: TRUE | AD79: FALSE | AE79: FALSE | AF79: FALSE | AG79: FALSE | AH79: 2000
A80: 48 | B80: =OFFSET(InputPriceData!B$15,CalculationsAndCharts!$A80+$A$11,0,1,1) -> 2014-06-03 | C80: =OFFSET(InputPriceData!G$15,CalculationsAndCharts!$A80+$A$11,IF($C$7,8,0),1,1) -> 2867180000 | D80: =OFFSET(InputPriceData!C$15,CalculationsAndCharts!$A80+$A$11,IF($C$7,8,0),1,1) -> 1923.07 | E80: =OFFSET(InputPriceData!D$15,CalculationsAndCharts!$A80+$A$11,IF($C$7,8,0),1,1) -> 1925.07 | F80: =OFFSET(InputPriceData!E$15,CalculationsAndCharts!$A80+$A$11,IF($C$7,8,0),1,1) -> 1918.79 | G80: =OFFSET(InputPriceData!F$15,CalculationsAndCharts!$A80+$A$11,IF($C$7,8,0),1,1) -> 1924.24 | J80: 48 | K80: 2014-04-25 | L80: 9492990000 | M80: 1874.82 | N80: 1884.06 | O80: 1860.82 | P80: 1860.82 | Q80: 3 | S80: 1868.566667 | T80: 1852.620833 | U80: 1869.57 | V80: 1871.145 | W80: 1849.883125 | X80: 2.737708333 | Y80: TRUE | Z80: FALSE | AA80: FALSE | AB80: FALSE | AC80: TRUE | AD80: FALSE | AE80: FALSE | AF80: FALSE | AG80: FALSE | AH80: 2000
A81: 49 | B81: =OFFSET(InputPriceData!B$15,CalculationsAndCharts!$A81+$A$11,0,1,1) -> 2014-06-02 | C81: =OFFSET(InputPriceData!G$15,CalculationsAndCharts!$A81+$A$11,IF($C$7,8,0),1,1) -> 2509020000 | D81: =OFFSET(InputPriceData!C$15,CalculationsAndCharts!$A81+$A$11,IF($C$7,8,0),1,1) -> 1923.87 | E81: =OFFSET(InputPriceData!D$15,CalculationsAndCharts!$A81+$A$11,IF($C$7,8,0),1,1) -> 1925.88 | F81: =OFFSET(InputPriceData!E$15,CalculationsAndCharts!$A81+$A$11,IF($C$7,8,0),1,1) -> 1915.98 | G81: =OFFSET(InputPriceData!F$15,CalculationsAndCharts!$A81+$A$11,IF($C$7,8,0),1,1) -> 1924.97 | J81: 49 | K81: 2014-04-22 | L81: 2642500000 | M81: 1867.82 | N81: 1874.82 | O81: 1867.82 | P81: 1874.82 | Q81: 1 | S81: 1872.486667 | T81: 1848.444167 | U81: 1862.57 | V81: 1867.82 | W81: 1845.9675 | X81: 2.476666667 | Y81: TRUE | Z81: FALSE | AA81: FALSE | AB81: TRUE | AC81: TRUE | AD81: FALSE | AE81: FALSE | AF81: FALSE | AG81: FALSE | AH81: 2000
A82: 50 | B82: =OFFSET(InputPriceData!B$15,CalculationsAndCharts!$A82+$A$11,0,1,1) -> 2014-05-30 | C82: =OFFSET(InputPriceData!G$15,CalculationsAndCharts!$A82+$A$11,IF($C$7,8,0),1,1) -> 3263490000 | D82: =OFFSET(InputPriceData!C$15,CalculationsAndCharts!$A82+$A$11,IF($C$7,8,0),1,1) -> 1920.33 | E82: =OFFSET(InputPriceData!D$15,CalculationsAndCharts!$A82+$A$11,IF($C$7,8,0),1,1) -> 1924.03 | F82: =OFFSET(InputPriceData!E$15,CalculationsAndCharts!$A82+$A$11,IF($C$7,8,0),1,1) -> 1916.64 | G82: =OFFSET(InputPriceData!F$15,CalculationsAndCharts!$A82+$A$11,IF($C$7,8,0),1,1) -> 1923.57 | J82: 50 | K82: 2014-04-21 | L82: 3341430000 | M82: 1860.82 | N82: 1867.82 | O82: 1860.82 | P82: 1867.82 | Q82: 1 | S82: 1865.486667 | T82: 1844.6525 | U82: 1855.57 | V82: 1860.82 | W82: 1843.725312 | X82: 0.9271875 | Y82: TRUE | Z82: FALSE | AA82: FALSE | AB82: FALSE | AC82: FALSE | AD82: FALSE | AE82: FALSE | AF82: FALSE | AG82: FALSE
A83: 51 | B83: =OFFSET(InputPriceData!B$15,CalculationsAndCharts!$A83+$A$11,0,1,1) -> 2014-05-29 | C83: =OFFSET(InputPriceData!G$15,CalculationsAndCharts!$A83+$A$11,IF($C$7,8,0),1,1) -> 2709050000 | D83: =OFFSET(InputPriceData!C$15,CalculationsAndCharts!$A83+$A$11,IF($C$7,8,0),1,1) -> 1910.6 | E83: =OFFSET(InputPriceData!D$15,CalculationsAndCharts!$A83+$A$11,IF($C$7,8,0),1,1) -> 1920.03 | F83: =OFFSET(InputPriceData!E$15,CalculationsAndCharts!$A83+$A$11,IF($C$7,8,0),1,1) -> 1909.82 | G83: =OFFSET(InputPriceData!F$15,CalculationsAndCharts!$A83+$A$11,IF($C$7,8,0),1,1) -> 1920.03 | J83: 51 | K83: 2014-04-17 | L83: 0 | M83: 1853.82 | N83: 1860.82 | O83: 1853.82 | P83: 1860.82 | Q83: 1 | S83: 1858.486667 | T83: 1843.194167 | U83: 1848.57 | V83: 1853.82 | W83: 1843.034453 | X83: 0.1597135417 | Y83: FALSE | Z83: FALSE | AA83: TRUE | AB83: FALSE | AC83: FALSE | AD83: FALSE | AE83: FALSE | AF83: FALSE | AG83: TRUE
A84: 52 | B84: =OFFSET(InputPriceData!B$15,CalculationsAndCharts!$A84+$A$11,0,1,1) -> 2014-05-28 | C84: =OFFSET(InputPriceData!G$15,CalculationsAndCharts!$A84+$A$11,IF($C$7,8,0),1,1) -> 2976450000 | D84: =OFFSET(InputPriceData!C$15,CalculationsAndCharts!$A84+$A$11,IF($C$7,8,0),1,1) -> 1911.77 | E84: =OFFSET(InputPriceData!D$15,CalculationsAndCharts!$A84+$A$11,IF($C$7,8,0),1,1) -> 1914.46 | F84: =OFFSET(InputPriceData!E$15,CalculationsAndCharts!$A84+$A$11,IF($C$7,8,0),1,1) -> 1907.3 | G84: =OFFSET(InputPriceData!F$15,CalculationsAndCharts!$A84+$A$11,IF($C$7,8,0),1,1) -> 1909.78 | J84: 52 | K84: 2014-04-16 | L84: 0 | M84: 1846.82 | N84: 1853.82 | O84: 1846.82 | P84: 1853.82 | Q84: 0 | S84: 1851.486667 | T84: 1843.116667 | U84: 1841.57 | V84: 1846.82 | W84: 1843.180547 | X84: -0.06388020833 | Y84: FALSE | Z84: FALSE | AA84: TRUE | AB84: FALSE | AC84: FALSE | AD84: FALSE | AE84: FALSE | AF84: TRUE | AG84: FALSE | AI84: 2000
A85: 53 | B85: =OFFSET(InputPriceData!B$15,CalculationsAndCharts!$A85+$A$11,0,1,1) -> 2014-05-27 | C85: =OFFSET(InputPriceData!G$15,CalculationsAndCharts!$A85+$A$11,IF($C$7,8,0),1,1) -> 2911020000 | D85: =OFFSET(InputPriceData!C$15,CalculationsAndCharts!$A85+$A$11,IF($C$7,8,0),1,1) -> 1902.01 | E85: =OFFSET(InputPriceData!D$15,CalculationsAndCharts!$A85+$A$11,IF($C$7,8,0),1,1) -> 1912.28 | F85: =OFFSET(InputPriceData!E$15,CalculationsAndCharts!$A85+$A$11,IF($C$7,8,0),1,1) -> 1902.01 | G85: =OFFSET(InputPriceData!F$15,CalculationsAndCharts!$A85+$A$11,IF($C$7,8,0),1,1) -> 1911.91 | J85: 53 | K85: 2014-04-16 | L85: 3736440000 | M85: 1839.82 | N85: 1846.82 | O85: 1839.82 | P85: 1846.82 | Q85: 1 | S85: 1844.486667 | T85: 1842.825 | U85: 1828.0675 | V85: 1836.56875 | W85: 1844.055547 | X85: -1.230546875 | Y85: FALSE | Z85: TRUE | AA85: FALSE | AB85: FALSE | AC85: FALSE | AD85: FALSE | AE85: FALSE | AF85: TRUE | AG85: FALSE | AI85: 2000
A86: 54 | B86: =OFFSET(InputPriceData!B$15,CalculationsAndCharts!$A86+$A$11,0,1,1) -> 2014-05-23 | C86: =OFFSET(InputPriceData!G$15,CalculationsAndCharts!$A86+$A$11,IF($C$7,8,0),1,1) -> 2396280000 | D86: =OFFSET(InputPriceData!C$15,CalculationsAndCharts!$A86+$A$11,IF($C$7,8,0),1,1) -> 1893.32 | E86: =OFFSET(InputPriceData!D$15,CalculationsAndCharts!$A86+$A$11,IF($C$7,8,0),1,1) -> 1901.26 | F86: =OFFSET(InputPriceData!E$15,CalculationsAndCharts!$A86+$A$11,IF($C$7,8,0),1,1) -> 1893.32 | G86: =OFFSET(InputPriceData!F$15,CalculationsAndCharts!$A86+$A$11,IF($C$7,8,0),1,1) -> 1900.53 | J86: 54 | K86: 2014-04-15 | L86: 3111540000 | M86: 1825.82 | N86: 1839.82 | O86: 1815.8 | P86: 1839.82 | Q86: 2 | S86: 1831.813333 | T86: 1844.283333 | U86: 1831.07 | V86: 1829.25125 | W86: 1847.086953 | X86: -2.803619792 | Y86: FALSE | Z86: TRUE | AA86: FALSE | AB86: FALSE | AC86: FALSE | AD86: FALSE | AE86: FALSE | AF86: TRUE | AG86: FALSE | AI86: 2000
A87: 55 | B87: =OFFSET(InputPriceData!B$15,CalculationsAndCharts!$A87+$A$11,0,1,1) -> 2014-05-22 | C87: =OFFSET(InputPriceData!G$15,CalculationsAndCharts!$A87+$A$11,IF($C$7,8,0),1,1) -> 2759800000 | D87: =OFFSET(InputPriceData!C$15,CalculationsAndCharts!$A87+$A$11,IF($C$7,8,0),1,1) -> 1888.19 | E87: =OFFSET(InputPriceData!D$15,CalculationsAndCharts!$A87+$A$11,IF($C$7,8,0),1,1) -> 1896.33 | F87: =OFFSET(InputPriceData!E$15,CalculationsAndCharts!$A87+$A$11,IF($C$7,8,0),1,1) -> 1885.39 | G87: =OFFSET(InputPriceData!F$15,CalculationsAndCharts!$A87+$A$11,IF($C$7,8,0),1,1) -> 1892.49 | J87: 55 | K87: 2014-04-11 | L87: 0 | M87: 1832.82 | N87: 1832.82 | O87: 1825.82 | P87: 1825.82 | Q87: 0 | S87: 1828.153333 | T87: 1848.200833 | U87: 1838.07 | V87: 1832.82 | W87: 1852.329766 | X87: -4.128932292 | Y87: FALSE | Z87: TRUE | AA87: FALSE | AB87: FALSE | AC87: FALSE | AD87: FALSE | AE87: FALSE | AF87: TRUE | AG87: FALSE | AI87: 2000
A88: 56 | B88: =OFFSET(InputPriceData!B$15,CalculationsAndCharts!$A88+$A$11,0,1,1) -> 2014-05-21 | C88: =OFFSET(InputPriceData!G$15,CalculationsAndCharts!$A88+$A$11,IF($C$7,8,0),1,1) -> 2777140000 | D88: =OFFSET(InputPriceData!C$15,CalculationsAndCharts!$A88+$A$11,IF($C$7,8,0),1,1) -> 1873.34 | E88: =OFFSET(InputPriceData!D$15,CalculationsAndCharts!$A88+$A$11,IF($C$7,8,0),1,1) -> 1888.8 | F88: =OFFSET(InputPriceData!E$15,CalculationsAndCharts!$A88+$A$11,IF($C$7,8,0),1,1) -> 1873.34 | G88: =OFFSET(InputPriceData!F$15,CalculationsAndCharts!$A88+$A$11,IF($C$7,8,0),1,1) -> 1888.03 | J88: 56 | K88: 2014-04-11 | L88: 0 | M88: 1839.82 | N88: 1839.82 | O88: 1832.82 | P88: 1832.82 | Q88: 0 | S88: 1835.153333 | T88: 1854.241667 | U88: 1845.07 | V88: 1839.82 | W88: 1858.102422 | X88: -3.860755208 | Y88: FALSE | Z88: TRUE | AA88: FALSE | AB88: FALSE | AC88: FALSE | AD88: FALSE | AE88: FALSE | AF88: TRUE | AG88: FALSE | AI88: 2000
A89: 57 | B89: =OFFSET(InputPriceData!B$15,CalculationsAndCharts!$A89+$A$11,0,1,1) -> 2014-05-20 | C89: =OFFSET(InputPriceData!G$15,CalculationsAndCharts!$A89+$A$11,IF($C$7,8,0),1,1) -> 3007700000 | D89: =OFFSET(InputPriceData!C$15,CalculationsAndCharts!$A89+$A$11,IF($C$7,8,0),1,1) -> 1884.88 | E89: =OFFSET(InputPriceData!D$15,CalculationsAndCharts!$A89+$A$11,IF($C$7,8,0),1,1) -> 1884.88 | F89: =OFFSET(InputPriceData!E$15,CalculationsAndCharts!$A89+$A$11,IF($C$7,8,0),1,1) -> 1868.14 | G89: =OFFSET(InputPriceData!F$15,CalculationsAndCharts!$A89+$A$11,IF($C$7,8,0),1,1) -> 1872.83 | J89: 57 | K89: 2014-04-11 | L89: 0 | M89: 1846.82 | N89: 1846.82 | O89: 1839.82 | P89: 1839.82 | Q89: 1 | S89: 1842.153333 | T89: 1859.783333 | U89: 1858.195 | V89: 1849.8825 | W89: 1862.477422 | X89: -2.694088542 | Y89: FALSE | Z89: TRUE | AA89: FALSE | AB89: FALSE | AC89: FALSE | AD89: FALSE | AE89: TRUE | AF89: TRUE | AG89: FALSE | AI89: 2000
A90: 58 | B90: =OFFSET(InputPriceData!B$15,CalculationsAndCharts!$A90+$A$11,0,1,1) -> 2014-05-19 | C90: =OFFSET(InputPriceData!G$15,CalculationsAndCharts!$A90+$A$11,IF($C$7,8,0),1,1) -> 2664250000 | D90: =OFFSET(InputPriceData!C$15,CalculationsAndCharts!$A90+$A$11,IF($C$7,8,0),1,1) -> 1876.66 | E90: =OFFSET(InputPriceData!D$15,CalculationsAndCharts!$A90+$A$11,IF($C$7,8,0),1,1) -> 1886 | F90: =OFFSET(InputPriceData!E$15,CalculationsAndCharts!$A90+$A$11,IF($C$7,8,0),1,1) -> 1872.42 | G90: =OFFSET(InputPriceData!F$15,CalculationsAndCharts!$A90+$A$11,IF($C$7,8,0),1,1) -> 1885.08 | J90: 58 | K90: 2014-04-10 | L90: 0 | M90: 1860.82 | N90: 1867.82 | O90: 1846.82 | P90: 1846.82 | Q90: 1 | S90: 1853.82 | T90: 1863.575 | U90: 1850.9625 | V90: 1855.293125 | W90: 1864.719609 | X90: -1.144609375 | Y90: FALSE | Z90: TRUE | AA90: FALSE | AB90: FALSE | AC90: FALSE | AD90: FALSE | AE90: FALSE | AF90: FALSE | AG90: FALSE
A91: 59 | B91: =OFFSET(InputPriceData!B$15,CalculationsAndCharts!$A91+$A$11,0,1,1) -> 2014-05-16 | C91: =OFFSET(InputPriceData!G$15,CalculationsAndCharts!$A91+$A$11,IF($C$7,8,0),1,1) -> 3173650000 | D91: =OFFSET(InputPriceData!C$15,CalculationsAndCharts!$A91+$A$11,IF($C$7,8,0),1,1) -> 1871.19 | E91: =OFFSET(InputPriceData!D$15,CalculationsAndCharts!$A91+$A$11,IF($C$7,8,0),1,1) -> 1878.28 | F91: =OFFSET(InputPriceData!E$15,CalculationsAndCharts!$A91+$A$11,IF($C$7,8,0),1,1) -> 1864.82 | G91: =OFFSET(InputPriceData!F$15,CalculationsAndCharts!$A91+$A$11,IF($C$7,8,0),1,1) -> 1877.86 | J91: 59 | K91: 2014-04-09 | L91: 3721450000 | M91: 1846.82 | N91: 1860.82 | O91: 1851.96 | P91: 1860.82 | Q91: 1 | S91: 1857.866667 | T91: 1865.033333 | U91: 1852.07 | V91: 1854.98875 | W91: 1865.107734 | X91: -0.07440104167 | Y91: FALSE | Z91: FALSE | AA91: TRUE | AB91: FALSE | AC91: FALSE | AD91: FALSE | AE91: FALSE | AF91: FALSE | AG91: FALSE
A92: 60 | B92: =OFFSET(InputPriceData!B$15,CalculationsAndCharts!$A92+$A$11,0,1,1) -> 2014-05-15 | C92: =OFFSET(InputPriceData!G$15,CalculationsAndCharts!$A92+$A$11,IF($C$7,8,0),1,1) -> 3552640000 | D92: =OFFSET(InputPriceData!C$15,CalculationsAndCharts!$A92+$A$11,IF($C$7,8,0),1,1) -> 1888.16 | E92: =OFFSET(InputPriceData!D$15,CalculationsAndCharts!$A92+$A$11,IF($C$7,8,0),1,1) -> 1888.16 | F92: =OFFSET(InputPriceData!E$15,CalculationsAndCharts!$A92+$A$11,IF($C$7,8,0),1,1) -> 1862.36 | G92: =OFFSET(InputPriceData!F$15,CalculationsAndCharts!$A92+$A$11,IF($C$7,8,0),1,1) -> 1870.85 | J92: 60 | K92: 2014-04-08 | L92: 0 | M92: 1853.82 | N92: 1853.82 | O92: 1846.82 | P92: 1846.82 | Q92: 1 | S92: 1849.153333 | T92: 1864.954583 | U92: 1859.07 | V92: 1853.82 | W92: 1865.104414 | X92: -0.1498307292 | Y92: FALSE | Z92: FALSE | AA92: TRUE | AB92: FALSE | AC92: FALSE | AD92: FALSE | AE92: FALSE | AF92: FALSE | AG92: FALSE
A93: 61 | B93: =OFFSET(InputPriceData!B$15,CalculationsAndCharts!$A93+$A$11,0,1,1) -> 2014-05-14 | C93: =OFFSET(InputPriceData!G$15,CalculationsAndCharts!$A93+$A$11,IF($C$7,8,0),1,1) -> 2822060000 | D93: =OFFSET(InputPriceData!C$15,CalculationsAndCharts!$A93+$A$11,IF($C$7,8,0),1,1) -> 1897.13 | E93: =OFFSET(InputPriceData!D$15,CalculationsAndCharts!$A93+$A$11,IF($C$7,8,0),1,1) -> 1897.13 | F93: =OFFSET(InputPriceData!E$15,CalculationsAndCharts!$A93+$A$11,IF($C$7,8,0),1,1) -> 1885.77 | G93: =OFFSET(InputPriceData!F$15,CalculationsAndCharts!$A93+$A$11,IF($C$7,8,0),1,1) -> 1888.53 | J93: 61 | K93: 2014-04-07 | L93: 0 | M93: 1860.82 | N93: 1860.82 | O93: 1853.82 | P93: 1853.82 | Q93: 0 | S93: 1856.153333 | T93: 1865.706667 | U93: 1866.07 | V93: 1860.82 | W93: 1865.872578 | X93: -0.1659114583 | Y93: FALSE | Z93: FALSE | AA93: TRUE | AB93: FALSE | AC93: FALSE | AD93: TRUE | AE93: FALSE | AF93: FALSE | AG93: FALSE
A94: 62 | B94: =OFFSET(InputPriceData!B$15,CalculationsAndCharts!$A94+$A$11,0,1,1) -> 2014-05-13 | C94: =OFFSET(InputPriceData!G$15,CalculationsAndCharts!$A94+$A$11,IF($C$7,8,0),1,1) -> 2915680000 | D94: =OFFSET(InputPriceData!C$15,CalculationsAndCharts!$A94+$A$11,IF($C$7,8,0),1,1) -> 1896.75 | E94: =OFFSET(InputPriceData!D$15,CalculationsAndCharts!$A94+$A$11,IF($C$7,8,0),1,1) -> 1902.17 | F94: =OFFSET(InputPriceData!E$15,CalculationsAndCharts!$A94+$A$11,IF($C$7,8,0),1,1) -> 1896.06 | G94: =OFFSET(InputPriceData!F$15,CalculationsAndCharts!$A94+$A$11,IF($C$7,8,0),1,1) -> 1897.45 | J94: 62 | K94: 2014-04-07 | L94: 3583750000 | M94: 1867.82 | N94: 1867.82 | O94: 1860.82 | P94: 1860.82 | Q94: 1 | S94: 1863.153333 | T94: 1866.67125 | U94: 1879.8175 | V94: 1871.19375 | W94: 1866.517227 | X94: 0.1540234375 | Y94: FALSE | Z94: FALSE | AA94: TRUE | AB94: FALSE | AC94: TRUE | AD94: FALSE | AE94: FALSE | AF94: FALSE | AG94: FALSE | AH94: 2000
A95: 63 | B95: =OFFSET(InputPriceData!B$15,CalculationsAndCharts!$A95+$A$11,0,1,1) -> 2014-05-12 | C95: =OFFSET(InputPriceData!G$15,CalculationsAndCharts!$A95+$A$11,IF($C$7,8,0),1,1) -> 3005740000 | D95: =OFFSET(InputPriceData!C$15,CalculationsAndCharts!$A95+$A$11,IF($C$7,8,0),1,1) -> 1880.03 | E95: =OFFSET(InputPriceData!D$15,CalculationsAndCharts!$A95+$A$11,IF($C$7,8,0),1,1) -> 1897.13 | F95: =OFFSET(InputPriceData!E$15,CalculationsAndCharts!$A95+$A$11,IF($C$7,8,0),1,1) -> 1880.03 | G95: =OFFSET(InputPriceData!F$15,CalculationsAndCharts!$A95+$A$11,IF($C$7,8,0),1,1) -> 1896.65 | J95: 63 | K95: 2014-04-04 | L95: 3055600000 | M95: 1881.82 | N95: 1893.8 | O95: 1867.82 | P95: 1867.82 | Q95: 2 | S95: 1876.48 | T95: 1866.526667 | U95: 1876.57 | V95: 1879.00125 | W95: 1864.779258 | X95: 1.747408854 | Y95: TRUE | Z95: FALSE | AA95: FALSE | AB95: FALSE | AC95: TRUE | AD95: FALSE | AE95: FALSE | AF95: FALSE | AG95: FALSE | AH95: 2000
A96: 64 | B96: =OFFSET(InputPriceData!B$15,CalculationsAndCharts!$A96+$A$11,0,1,1) -> 2014-05-09 | C96: =OFFSET(InputPriceData!G$15,CalculationsAndCharts!$A96+$A$11,IF($C$7,8,0),1,1) -> 3025020000 | D96: =OFFSET(InputPriceData!C$15,CalculationsAndCharts!$A96+$A$11,IF($C$7,8,0),1,1) -> 1875.27 | E96: =OFFSET(InputPriceData!D$15,CalculationsAndCharts!$A96+$A$11,IF($C$7,8,0),1,1) -> 1878.57 | F96: =OFFSET(InputPriceData!E$15,CalculationsAndCharts!$A96+$A$11,IF($C$7,8,0),1,1) -> 1867.02 | G96: =OFFSET(InputPriceData!F$15,CalculationsAndCharts!$A96+$A$11,IF($C$7,8,0),1,1) -> 1878.48 | J96: 64 | K96: 2014-04-02 | L96: 0 | M96: 1874.82 | N96: 1881.82 | O96: 1874.82 | P96: 1881.82 | Q96: 1 | S96: 1879.486667 | T96: 1863.81875 | U96: 1869.57 | V96: 1874.82 | W96: 1861.420273 | X96: 2.398476563 | Y96: TRUE | Z96: FALSE | AA96: FALSE | AB96: TRUE | AC96: TRUE | AD96: FALSE | AE96: FALSE | AF96: FALSE | AG96: FALSE | AH96: 2000
A97: 65 | B97: =OFFSET(InputPriceData!B$15,CalculationsAndCharts!$A97+$A$11,0,1,1) -> 2014-05-08 | C97: =OFFSET(InputPriceData!G$15,CalculationsAndCharts!$A97+$A$11,IF($C$7,8,0),1,1) -> 3393420000 | D97: =OFFSET(InputPriceData!C$15,CalculationsAndCharts!$A97+$A$11,IF($C$7,8,0),1,1) -> 1877.39 | E97: =OFFSET(InputPriceData!D$15,CalculationsAndCharts!$A97+$A$11,IF($C$7,8,0),1,1) -> 1889.07 | F97: =OFFSET(InputPriceData!E$15,CalculationsAndCharts!$A97+$A$11,IF($C$7,8,0),1,1) -> 1870.05 | G97: =OFFSET(InputPriceData!F$15,CalculationsAndCharts!$A97+$A$11,IF($C$7,8,0),1,1) -> 1875.63 | J97: 65 | K97: 2014-04-01 | L97: 0 | M97: 1867.82 | N97: 1874.82 | O97: 1867.82 | P97: 1874.82 | Q97: 0 | S97: 1872.486667 | T97: =AVERAGE(OFFSET(S97,0,0,$A$24,1)) -> 1860.027083 | U97: 1862.57 | V97: 1867.82 | W97: =AVERAGE(OFFSET(V97,0,0,$D$24,1)) -> 1858.854336 | X97: 1.172747396 | Y97: TRUE | Z97: FALSE | AA97: FALSE | AB97: =AND(Y98<>Y99,Y98,NOT(AC98)) -> FALSE | AC97: FALSE | AD97: =AND(AC98,OR(AND(Z98<>Z99,Z98),AA98)) -> FALSE | AE97: FALSE | AF97: =IF(AF98,IF(AG97,FALSE,AF98),IF(AE97,TRUE,AF98)) -> FALSE | AG97: TRUE | AH97: =IF(AC97,$AH$28,NA()) ->  | AI97: =IF(AF97,$AH$28,NA()) -> 
A98: 66 | B98: =OFFSET(InputPriceData!B$15,CalculationsAndCharts!$A98+$A$11,0,1,1) -> 2014-05-07 | C98: =OFFSET(InputPriceData!G$15,CalculationsAndCharts!$A98+$A$11,IF($C$7,8,0),1,1) -> 3632950000 | D98: =OFFSET(InputPriceData!C$15,CalculationsAndCharts!$A98+$A$11,IF($C$7,8,0),1,1) -> 1868.53 | E98: =OFFSET(InputPriceData!D$15,CalculationsAndCharts!$A98+$A$11,IF($C$7,8,0),1,1) -> 1878.83 | F98: =OFFSET(InputPriceData!E$15,CalculationsAndCharts!$A98+$A$11,IF($C$7,8,0),1,1) -> 1859.79 | G98: =OFFSET(InputPriceData!F$15,CalculationsAndCharts!$A98+$A$11,IF($C$7,8,0),1,1) -> 1878.21 | J98: 66 | K98: 2014-04-01 | L98: 0 | M98: 1860.82 | N98: 1867.82 | O98: 1860.82 | P98: 1867.82 | Q98: 1 | S98: =SUM(N98:P98)/3 -> 1865.486667 | T98: 1858.300417 | U98: =(((M99+N99+O99+P99)/4)+M99)/2 -> 1850.72625 | V98: =(((M98+N98+O98+P98)/4)+U98+MAX(N98,U98)+MIN(O98,U98))/4 -> 1858.398125 | W98: 1858.390352 | X98: =T98-W98 -> -0.08993489583 | Y98: =X98>$Y$22 -> FALSE | Z98: =X98<-$Y$22 -> FALSE | AA98: TRUE | AB98: FALSE | AC98: FALSE | AD98: FALSE | AE98: FALSE | AF98: TRUE | AG98: =AND(AF99,OR(AND(Y99<>Y100,Y99),AA99)) -> FALSE | AI98: 2000
A99: 67 | B99: =OFFSET(InputPriceData!B$15,CalculationsAndCharts!$A99+$A$11,0,1,1) -> 2014-05-06 | C99: =OFFSET(InputPriceData!G$15,CalculationsAndCharts!$A99+$A$11,IF($C$7,8,0),1,1) -> 3327260000 | D99: =OFFSET(InputPriceData!C$15,CalculationsAndCharts!$A99+$A$11,IF($C$7,8,0),1,1) -> 1883.69 | E99: =OFFSET(InputPriceData!D$15,CalculationsAndCharts!$A99+$A$11,IF($C$7,8,0),1,1) -> 1883.69 | F99: =OFFSET(InputPriceData!E$15,CalculationsAndCharts!$A99+$A$11,IF($C$7,8,0),1,1) -> 1867.72 | G99: =OFFSET(InputPriceData!F$15,CalculationsAndCharts!$A99+$A$11,IF($C$7,8,0),1,1) -> 1867.72 | J99: 67 | K99: 2014-03-31 | L99: 10169800000 | M99: 1846.82 | N99: 1860.82 | O99: 1850.07 | P99: 1860.82 | Q99: 3 | S99: 1857.236667 | T99: 1858.4275 | U99: 1854.32625 | V99: 1854.962188 | W99: 1859.741914 | X99: -1.314414062 | Y99: FALSE | Z99: TRUE | AA99: FALSE | AB99: FALSE | AC99: FALSE | AD99: FALSE | AE99: TRUE | AF99: TRUE | AG99: FALSE | AI99: 2000
A100: 68 | B100: =OFFSET(InputPriceData!B$15,CalculationsAndCharts!$A100+$A$11,0,1,1) -> 2014-05-05 | C100: =OFFSET(InputPriceData!G$15,CalculationsAndCharts!$A100+$A$11,IF($C$7,8,0),1,1) -> 2733730000 | D100: =OFFSET(InputPriceData!C$15,CalculationsAndCharts!$A100+$A$11,IF($C$7,8,0),1,1) -> 1879.45 | E100: =OFFSET(InputPriceData!D$15,CalculationsAndCharts!$A100+$A$11,IF($C$7,8,0),1,1) -> 1885.51 | F100: =OFFSET(InputPriceData!E$15,CalculationsAndCharts!$A100+$A$11,IF($C$7,8,0),1,1) -> 1866.77 | G100: =OFFSET(InputPriceData!F$15,CalculationsAndCharts!$A100+$A$11,IF($C$7,8,0),1,1) -> 1884.66 | J100: 68 | K100: 2014-03-26 | L100: 6609560000 | M100: 1853.82 | N100: 1871.87 | O100: 1846.82 | P100: 1846.82 | Q100: 2 | S100: 1855.17 | T100: 1860.33375 | U100: 1866.33875 | V100: 1859.965312 | W100: 1861.349141 | X100: -1.015390625 | Y100: FALSE | Z100: TRUE | AA100: FALSE | AB100: FALSE | AC100: FALSE | AD100: TRUE | AE100: FALSE | AF100: FALSE | AG100: FALSE
A101: 69 | B101: =OFFSET(InputPriceData!B$15,CalculationsAndCharts!$A101+$A$11,0,1,1) -> 2014-05-02 | C101: =OFFSET(InputPriceData!G$15,CalculationsAndCharts!$A101+$A$11,IF($C$7,8,0),1,1) -> 3159560000 | D101: =OFFSET(InputPriceData!C$15,CalculationsAndCharts!$A101+$A$11,IF($C$7,8,0),1,1) -> 1885.3 | E101: =OFFSET(InputPriceData!D$15,CalculationsAndCharts!$A101+$A$11,IF($C$7,8,0),1,1) -> 1891.33 | F101: =OFFSET(InputPriceData!E$15,CalculationsAndCharts!$A101+$A$11,IF($C$7,8,0),1,1) -> 1878.5 | G101: =OFFSET(InputPriceData!F$15,CalculationsAndCharts!$A101+$A$11,IF($C$7,8,0),1,1) -> 1881.14 | J101: 69 | K101: 2014-03-24 | L101: 8598250000 | M101: 1867.82 | N101: 1883.97 | O101: 1853.82 | P101: 1853.82 | Q101: 2 | S101: 1863.87 | T101: 1861.623333 | U101: 1861.26125 | V101: 1865.977188 | W101: 1861.455977 | X101: 0.1673567708 | Y101: FALSE | Z101: FALSE | AA101: TRUE | AB101: FALSE | AC101: TRUE | AD101: FALSE | AE101: FALSE | AF101: FALSE | AG101: FALSE | AH101: 2000
A102: 70 | B102: =OFFSET(InputPriceData!B$15,CalculationsAndCharts!$A102+$A$11,0,1,1) -> 2014-05-01 | C102: =OFFSET(InputPriceData!G$15,CalculationsAndCharts!$A102+$A$11,IF($C$7,8,0),1,1) -> 3416740000 | D102: =OFFSET(InputPriceData!C$15,CalculationsAndCharts!$A102+$A$11,IF($C$7,8,0),1,1) -> 1884.39 | E102: =OFFSET(InputPriceData!D$15,CalculationsAndCharts!$A102+$A$11,IF($C$7,8,0),1,1) -> 1888.59 | F102: =OFFSET(InputPriceData!E$15,CalculationsAndCharts!$A102+$A$11,IF($C$7,8,0),1,1) -> 1878.04 | G102: =OFFSET(InputPriceData!F$15,CalculationsAndCharts!$A102+$A$11,IF($C$7,8,0),1,1) -> 1883.68 | J102: 70 | K102: 2014-03-20 | L102: 3289210000 | M102: 1860.82 | N102: 1867.82 | O102: 1850.35 | P102: 1867.82 | Q102: 2 | S102: 1861.996667 | T102: 1860.950417 | U102: 1849.81875 | V102: 1857.29 | W102: 1859.654375 | X102: 1.296041667 | Y102: TRUE | Z102: FALSE | AA102: FALSE | AB102: TRUE | AC102: TRUE | AD102: FALSE | AE102: FALSE | AF102: FALSE | AG102: FALSE | AH102: 2000
A103: 71 | B103: =OFFSET(InputPriceData!B$15,CalculationsAndCharts!$A103+$A$11,0,1,1) -> 2014-04-30 | C103: =OFFSET(InputPriceData!G$15,CalculationsAndCharts!$A103+$A$11,IF($C$7,8,0),1,1) -> 3779230000 | D103: =OFFSET(InputPriceData!C$15,CalculationsAndCharts!$A103+$A$11,IF($C$7,8,0),1,1) -> 1877.1 | E103: =OFFSET(InputPriceData!D$15,CalculationsAndCharts!$A103+$A$11,IF($C$7,8,0),1,1) -> 1885.2 | F103: =OFFSET(InputPriceData!E$15,CalculationsAndCharts!$A103+$A$11,IF($C$7,8,0),1,1) -> 1872.69 | G103: =OFFSET(InputPriceData!F$15,CalculationsAndCharts!$A103+$A$11,IF($C$7,8,0),1,1) -> 1883.95 | J103: 71 | K103: 2014-03-18 | L103: 6145950000 | M103: 1846.82 | N103: 1860.82 | O103: 1842.81 | P103: 1860.82 | Q103: 2 | S103: 1854.816667 | T103: 1859.59125 | U103: 1852.07 | V103: 1852.129375 | W103: 1858.707852 | X103: 0.8833984375 | Y103: TRUE | Z103: FALSE | AA103: FALSE | AB103: FALSE | AC103: FALSE | AD103: TRUE | AE103: FALSE | AF103: FALSE | AG103: FALSE
A104: 72 | B104: =OFFSET(InputPriceData!B$15,CalculationsAndCharts!$A104+$A$11,0,1,1) -> 2014-04-29 | C104: =OFFSET(InputPriceData!G$15,CalculationsAndCharts!$A104+$A$11,IF($C$7,8,0),1,1) -> 3647820000 | D104: =OFFSET(InputPriceData!C$15,CalculationsAndCharts!$A104+$A$11,IF($C$7,8,0),1,1) -> 1870.78 | E104: =OFFSET(InputPriceData!D$15,CalculationsAndCharts!$A104+$A$11,IF($C$7,8,0),1,1) -> 1880.6 | F104: =OFFSET(InputPriceData!E$15,CalculationsAndCharts!$A104+$A$11,IF($C$7,8,0),1,1) -> 1870.78 | G104: =OFFSET(InputPriceData!F$15,CalculationsAndCharts!$A104+$A$11,IF($C$7,8,0),1,1) -> 1878.33 | J104: 72 | K104: 2014-03-14 | L104: 0 | M104: 1853.82 | N104: 1853.82 | O104: 1846.82 | P104: 1846.82 | Q104: 1 | S104: 1849.153333 | T104: 1858.534583 | U104: 1860.015 | V104: 1854.2925 | W104: 1858.318789 | X104: 0.2157942708 | Y104: FALSE | Z104: FALSE | AA104: TRUE | AB104: FALSE | AC104: =IF(AC105,IF(AD104,FALSE,AC105),IF(AB104,TRUE,AC105)) -> TRUE | AD104: FALSE | AE104: FALSE | AF104: FALSE | AG104: FALSE | AH104: 2000
A105: 73 | B105: =OFFSET(InputPriceData!B$15,CalculationsAndCharts!$A105+$A$11,0,1,1) -> 2014-04-28 | C105: =OFFSET(InputPriceData!G$15,CalculationsAndCharts!$A105+$A$11,IF($C$7,8,0),1,1) -> 4034680000 | D105: =OFFSET(InputPriceData!C$15,CalculationsAndCharts!$A105+$A$11,IF($C$7,8,0),1,1) -> 1865 | E105: =OFFSET(InputPriceData!D$15,CalculationsAndCharts!$A105+$A$11,IF($C$7,8,0),1,1) -> 1877.01 | F105: =OFFSET(InputPriceData!E$15,CalculationsAndCharts!$A105+$A$11,IF($C$7,8,0),1,1) -> 1850.61 | G105: =OFFSET(InputPriceData!F$15,CalculationsAndCharts!$A105+$A$11,IF($C$7,8,0),1,1) -> 1869.43 | J105: 73 | K105: 2014-03-13 | L105: 6663260000 | M105: 1860.82 | N105: 1868.38 | O105: 1853.82 | P105: 1853.82 | Q105: 2 | S105: 1858.673333 | T105: 1858.82625 | U105: 1871.70125 | V105: 1864.108125 | W105: 1857.391289 | X105: 1.434960938 | Y105: TRUE | Z105: FALSE | AA105: FALSE | AB105: FALSE | AC105: TRUE | AD105: FALSE | AE105: FALSE | AF105: FALSE | AG105: FALSE | AH105: 2000
A106: 74 | B106: =OFFSET(InputPriceData!B$15,CalculationsAndCharts!$A106+$A$11,0,1,1) -> 2014-04-25 | C106: =OFFSET(InputPriceData!G$15,CalculationsAndCharts!$A106+$A$11,IF($C$7,8,0),1,1) -> 3213020000 | D106: =OFFSET(InputPriceData!C$15,CalculationsAndCharts!$A106+$A$11,IF($C$7,8,0),1,1) -> 1877.72 | E106: =OFFSET(InputPriceData!D$15,CalculationsAndCharts!$A106+$A$11,IF($C$7,8,0),1,1) -> 1877.72 | F106: =OFFSET(InputPriceData!E$15,CalculationsAndCharts!$A106+$A$11,IF($C$7,8,0),1,1) -> 1859.7 | G106: =OFFSET(InputPriceData!F$15,CalculationsAndCharts!$A106+$A$11,IF($C$7,8,0),1,1) -> 1863.4 | J106: 74 | K106: 2014-03-11 | L106: 9946540000 | M106: 1874.82 | N106: 1877.87 | O106: 1860.82 | P106: 1860.82 | Q106: 3 | S106: 1866.503333 | T106: 1857.087917 | U106: 1869.57 | V106: 1869.210625 | W106: 1854.110117 | X106: 2.977799479 | Y106: TRUE | Z106: FALSE | AA106: FALSE | AB106: FALSE | AC106: TRUE | AD106: FALSE | AE106: FALSE | AF106: FALSE | AG106: FALSE | AH106: 2000
A107: 75 | B107: =OFFSET(InputPriceData!B$15,CalculationsAndCharts!$A107+$A$11,0,1,1) -> 2014-04-24 | C107: =OFFSET(InputPriceData!G$15,CalculationsAndCharts!$A107+$A$11,IF($C$7,8,0),1,1) -> 3191830000 | D107: =OFFSET(InputPriceData!C$15,CalculationsAndCharts!$A107+$A$11,IF($C$7,8,0),1,1) -> 1881.97 | E107: =OFFSET(InputPriceData!D$15,CalculationsAndCharts!$A107+$A$11,IF($C$7,8,0),1,1) -> 1884.06 | F107: =OFFSET(InputPriceData!E$15,CalculationsAndCharts!$A107+$A$11,IF($C$7,8,0),1,1) -> 1870.24 | G107: =OFFSET(InputPriceData!F$15,CalculationsAndCharts!$A107+$A$11,IF($C$7,8,0),1,1) -> 1878.61 | J107: 75 | K107: 2014-03-06 | L107: 3392990000 | M107: 1867.82 | N107: 1874.82 | O107: 1867.82 | P107: 1874.82 | Q107: 1 | S107: 1872.486667 | T107: 1853.576667 | U107: 1862.57 | V107: 1867.82 | W107: 1850.056367 | X107: 3.520299479 | Y107: TRUE | Z107: FALSE | AA107: FALSE | AB107: FALSE | AC107: TRUE | AD107: FALSE | AE107: FALSE | AF107: FALSE | AG107: FALSE | AH107: 2000
A108: 76 | B108: =OFFSET(InputPriceData!B$15,CalculationsAndCharts!$A108+$A$11,0,1,1) -> 2014-04-23 | C108: =OFFSET(InputPriceData!G$15,CalculationsAndCharts!$A108+$A$11,IF($C$7,8,0),1,1) -> 3085720000 | D108: =OFFSET(InputPriceData!C$15,CalculationsAndCharts!$A108+$A$11,IF($C$7,8,0),1,1) -> 1879.32 | E108: =OFFSET(InputPriceData!D$15,CalculationsAndCharts!$A108+$A$11,IF($C$7,8,0),1,1) -> 1879.75 | F108: =OFFSET(InputPriceData!E$15,CalculationsAndCharts!$A108+$A$11,IF($C$7,8,0),1,1) -> 1873.91 | G108: =OFFSET(InputPriceData!F$15,CalculationsAndCharts!$A108+$A$11,IF($C$7,8,0),1,1) -> 1875.39 | J108: 76 | K108: 2014-03-05 | L108: 0 | M108: 1860.82 | N108: 1867.82 | O108: 1860.82 | P108: 1867.82 | Q108: 1 | S108: 1865.486667 | T108: 1848.365833 | U108: 1855.57 | V108: 1860.82 | W108: 1845.772773 | X108: 2.593059896 | Y108: TRUE | Z108: FALSE | AA108: =NOT(OR(Y108,Z108)) -> FALSE | AB108: FALSE | AC108: TRUE | AD108: FALSE | AE108: =AND(Z109<>Z110,Z109,NOT(AF109)) -> FALSE | AF108: FALSE | AG108: FALSE | AH108: 2000
A109: 77 | B109: =OFFSET(InputPriceData!B$15,CalculationsAndCharts!$A109+$A$11,0,1,1) -> 2014-04-22 | C109: =OFFSET(InputPriceData!G$15,CalculationsAndCharts!$A109+$A$11,IF($C$7,8,0),1,1) -> 3215440000 | D109: =OFFSET(InputPriceData!C$15,CalculationsAndCharts!$A109+$A$11,IF($C$7,8,0),1,1) -> 1872.57 | E109: =OFFSET(InputPriceData!D$15,CalculationsAndCharts!$A109+$A$11,IF($C$7,8,0),1,1) -> 1884.89 | F109: =OFFSET(InputPriceData!E$15,CalculationsAndCharts!$A109+$A$11,IF($C$7,8,0),1,1) -> 1872.57 | G109: =OFFSET(InputPriceData!F$15,CalculationsAndCharts!$A109+$A$11,IF($C$7,8,0),1,1) -> 1879.55 | J109: 77 | K109: 2014-03-04 | L109: 0 | M109: 1853.82 | N109: 1860.82 | O109: 1853.82 | P109: 1860.82 | Q109: 0 | S109: 1858.486667 | T109: 1844.865833 | U109: 1844.05875 | V109: 1851.564375 | W109: 1842.272773 | X109: 2.593059896 | Y109: TRUE | Z109: FALSE | AA109: FALSE | AB109: FALSE | AC109: TRUE | AD109: FALSE | AE109: FALSE | AF109: FALSE | AG109: FALSE | AH109: 2000
A110: 78 | B110: =OFFSET(InputPriceData!B$15,CalculationsAndCharts!$A110+$A$11,0,1,1) -> 2014-04-21 | C110: =OFFSET(InputPriceData!G$15,CalculationsAndCharts!$A110+$A$11,IF($C$7,8,0),1,1) -> 2642500000 | D110: =OFFSET(InputPriceData!C$15,CalculationsAndCharts!$A110+$A$11,IF($C$7,8,0),1,1) -> 1865.79 | E110: =OFFSET(InputPriceData!D$15,CalculationsAndCharts!$A110+$A$11,IF($C$7,8,0),1,1) -> 1871.89 | F110: =OFFSET(InputPriceData!E$15,CalculationsAndCharts!$A110+$A$11,IF($C$7,8,0),1,1) -> 1863.18 | G110: =OFFSET(InputPriceData!F$15,CalculationsAndCharts!$A110+$A$11,IF($C$7,8,0),1,1) -> 1871.89 | J110: 78 | K110: 2014-03-04 | L110: 3428220000 | M110: 1839.82 | N110: 1853.82 | O110: 1845.73 | P110: 1853.82 | Q110: 1 | S110: 1851.123333 | T110: 1841.365833 | U110: 1851.02375 | V110: 1849.717813 | W110: 1839.054727 | X110: 2.311106771 | Y110: TRUE | Z110: FALSE | AA110: FALSE | AB110: FALSE | AC110: TRUE | AD110: FALSE | AE110: FALSE | AF110: FALSE | AG110: FALSE | AH110: 2000
A111: 79 | B111: =OFFSET(InputPriceData!B$15,CalculationsAndCharts!$A111+$A$11,0,1,1) -> 2014-04-17 | C111: =OFFSET(InputPriceData!G$15,CalculationsAndCharts!$A111+$A$11,IF($C$7,8,0),1,1) -> 3341430000 | D111: =OFFSET(InputPriceData!C$15,CalculationsAndCharts!$A111+$A$11,IF($C$7,8,0),1,1) -> 1861.73 | E111: =OFFSET(InputPriceData!D$15,CalculationsAndCharts!$A111+$A$11,IF($C$7,8,0),1,1) -> 1869.63 | F111: =OFFSET(InputPriceData!E$15,CalculationsAndCharts!$A111+$A$11,IF($C$7,8,0),1,1) -> 1856.72 | G111: =OFFSET(InputPriceData!F$15,CalculationsAndCharts!$A111+$A$11,IF($C$7,8,0),1,1) -> 1864.85 | J111: 79 | K111: 2014-03-03 | L111: 3917450000 | M111: 1853.82 | N111: 1859.45 | O111: 1839.82 | P111: 1839.82 | Q111: 1 | S111: 1846.363333 | T111: 1837.91125 | U111: 1848.57 | V111: 1849.016875 | W111: 1835.1925 | X111: 2.71875 | Y111: TRUE | Z111: FALSE | AA111: FALSE | AB111: FALSE | AC111: TRUE | AD111: FALSE | AE111: FALSE | AF111: FALSE | AG111: FALSE | AH111: 2000
A112: 80 | B112: =OFFSET(InputPriceData!B$15,CalculationsAndCharts!$A112+$A$11,0,1,1) -> 2014-04-16 | C112: =OFFSET(InputPriceData!G$15,CalculationsAndCharts!$A112+$A$11,IF($C$7,8,0),1,1) -> 3155080000 | D112: =OFFSET(InputPriceData!C$15,CalculationsAndCharts!$A112+$A$11,IF($C$7,8,0),1,1) -> 1846.01 | E112: =OFFSET(InputPriceData!D$15,CalculationsAndCharts!$A112+$A$11,IF($C$7,8,0),1,1) -> 1862.31 | F112: =OFFSET(InputPriceData!E$15,CalculationsAndCharts!$A112+$A$11,IF($C$7,8,0),1,1) -> 1846.01 | G112: =OFFSET(InputPriceData!F$15,CalculationsAndCharts!$A112+$A$11,IF($C$7,8,0),1,1) -> 1862.31 | J112: 80 | K112: 2014-02-28 | L112: 0 | M112: 1846.82 | N112: 1853.82 | O112: 1846.82 | P112: 1853.82 | Q112: 1 | S112: 1851.486667 | T112: 1834.176667 | U112: 1841.675 | V112: 1846.8725 | W112: 1830.542891 | X112: 3.633776042 | Y112: TRUE | Z112: FALSE | AA112: FALSE | AB112: FALSE | AC112: TRUE | AD112: FALSE | AE112: FALSE | AF112: FALSE | AG112: FALSE | AH112: 2000
A113: 81 | B113: =OFFSET(InputPriceData!B$15,CalculationsAndCharts!$A113+$A$11,0,1,1) -> 2014-04-15 | C113: =OFFSET(InputPriceData!G$15,CalculationsAndCharts!$A113+$A$11,IF($C$7,8,0),1,1) -> 3736440000 | D113: =OFFSET(InputPriceData!C$15,CalculationsAndCharts!$A113+$A$11,IF($C$7,8,0),1,1) -> 1831.45 | E113: =OFFSET(InputPriceData!D$15,CalculationsAndCharts!$A113+$A$11,IF($C$7,8,0),1,1) -> 1844.02 | F113: =OFFSET(InputPriceData!E$15,CalculationsAndCharts!$A113+$A$11,IF($C$7,8,0),1,1) -> 1816.29 | G113: =OFFSET(InputPriceData!F$15,CalculationsAndCharts!$A113+$A$11,IF($C$7,8,0),1,1) -> 1842.98 | J113: 81 | K113: 2014-02-27 | L113: 7232290000 | M113: 1839.82 | N113: 1846.82 | O113: 1840.66 | P113: 1846.82 | Q113: 3 | S113: 1844.766667 | T113: 1828.926667 | U113: 1830.5425 | V113: 1837.85875 | W113: 1825.286328 | X113: 3.640338542 | Y113: TRUE | Z113: FALSE | AA113: FALSE | AB113: FALSE | AC113: TRUE | AD113: FALSE | AE113: FALSE | AF113: FALSE | AG113: FALSE | AH113: 2000
A114: 82 | B114: =OFFSET(InputPriceData!B$15,CalculationsAndCharts!$A114+$A$11,0,1,1) -> 2014-04-14 | C114: =OFFSET(InputPriceData!G$15,CalculationsAndCharts!$A114+$A$11,IF($C$7,8,0),1,1) -> 3111540000 | D114: =OFFSET(InputPriceData!C$15,CalculationsAndCharts!$A114+$A$11,IF($C$7,8,0),1,1) -> 1818.18 | E114: =OFFSET(InputPriceData!D$15,CalculationsAndCharts!$A114+$A$11,IF($C$7,8,0),1,1) -> 1834.19 | F114: =OFFSET(InputPriceData!E$15,CalculationsAndCharts!$A114+$A$11,IF($C$7,8,0),1,1) -> 1815.8 | G114: =OFFSET(InputPriceData!F$15,CalculationsAndCharts!$A114+$A$11,IF($C$7,8,0),1,1) -> 1830.61 | J114: 82 | K114: 2014-02-24 | L114: 10470430000 | M114: 1825.82 | N114: 1839.82 | O114: 1835.6 | P114: 1839.82 | Q114: 3 | S114: 1838.413333 | T114: 1823.641667 | U114: 1836.4375 | V114: 1836.780625 | W114: 1820.281484 | X114: 3.360182292 | Y114: TRUE | Z114: FALSE | AA114: FALSE | AB114: FALSE | AC114: TRUE | AD114: FALSE | AE114: FALSE | AF114: FALSE | AG114: FALSE | AH114: 2000
A115: 83 | B115: =OFFSET(InputPriceData!B$15,CalculationsAndCharts!$A115+$A$11,0,1,1) -> 2014-04-11 | C115: =OFFSET(InputPriceData!G$15,CalculationsAndCharts!$A115+$A$11,IF($C$7,8,0),1,1) -> 3743460000 | D115: =OFFSET(InputPriceData!C$15,CalculationsAndCharts!$A115+$A$11,IF($C$7,8,0),1,1) -> 1830.65 | E115: =OFFSET(InputPriceData!D$15,CalculationsAndCharts!$A115+$A$11,IF($C$7,8,0),1,1) -> 1835.07 | F115: =OFFSET(InputPriceData!E$15,CalculationsAndCharts!$A115+$A$11,IF($C$7,8,0),1,1) -> 1814.36 | G115: =OFFSET(InputPriceData!F$15,CalculationsAndCharts!$A115+$A$11,IF($C$7,8,0),1,1) -> 1815.69 | J115: 83 | K115: 2014-02-19 | L115: 3421110000 | M115: 1839.82 | N115: 1840.76 | O115: 1825.82 | P115: 1825.82 | Q115: 1 | S115: 1830.8 | T115: 1818.275833 | U115: 1834.57 | V115: 1833.55125 | W115: 1814.536406 | X115: 3.739427083 | Y115: TRUE | Z115: FALSE | AA115: FALSE | AB115: FALSE | AC115: TRUE | AD115: FALSE | AE115: FALSE | AF115: FALSE | AG115: FALSE | AH115: 2000
A116: 84 | B116: =OFFSET(InputPriceData!B$15,CalculationsAndCharts!$A116+$A$11,0,1,1) -> 2014-04-10 | C116: =OFFSET(InputPriceData!G$15,CalculationsAndCharts!$A116+$A$11,IF($C$7,8,0),1,1) -> 3758780000 | D116: =OFFSET(InputPriceData!C$15,CalculationsAndCharts!$A116+$A$11,IF($C$7,8,0),1,1) -> 1872.28 | E116: =OFFSET(InputPriceData!D$15,CalculationsAndCharts!$A116+$A$11,IF($C$7,8,0),1,1) -> 1872.53 | F116: =OFFSET(InputPriceData!E$15,CalculationsAndCharts!$A116+$A$11,IF($C$7,8,0),1,1) -> 1830.87 | G116: =OFFSET(InputPriceData!F$15,CalculationsAndCharts!$A116+$A$11,IF($C$7,8,0),1,1) -> 1833.08 | J116: 84 | K116: 2014-02-18 | L116: 3114750000 | M116: 1832.82 | N116: 1839.82 | O116: 1832.82 | P116: 1839.82 | Q116: 1 | S116: 1837.486667 | T116: 1812.986667 | U116: 1827.57 | V116: 1832.82 | W116: 1808.32 | X116: 4.666666667 | Y116: TRUE | Z116: FALSE | AA116: FALSE | AB116: FALSE | AC116: TRUE | AD116: FALSE | AE116: FALSE | AF116: FALSE | AG116: FALSE | AH116: 2000
A117: 85 | B117: =OFFSET(InputPriceData!B$15,CalculationsAndCharts!$A117+$A$11,0,1,1) -> 2014-04-09 | C117: =OFFSET(InputPriceData!G$15,CalculationsAndCharts!$A117+$A$11,IF($C$7,8,0),1,1) -> 3308650000 | D117: =OFFSET(InputPriceData!C$15,CalculationsAndCharts!$A117+$A$11,IF($C$7,8,0),1,1) -> 1852.64 | E117: =OFFSET(InputPriceData!D$15,CalculationsAndCharts!$A117+$A$11,IF($C$7,8,0),1,1) -> 1872.43 | F117: =OFFSET(InputPriceData!E$15,CalculationsAndCharts!$A117+$A$11,IF($C$7,8,0),1,1) -> 1852.38 | G117: =OFFSET(InputPriceData!F$15,CalculationsAndCharts!$A117+$A$11,IF($C$7,8,0),1,1) -> 1872.18 | J117: 85 | K117: 2014-02-14 | L117: 3289510000 | M117: 1825.82 | N117: 1832.82 | O117: 1825.82 | P117: 1832.82 | Q117: 1 | S117: 1830.486667 | T117: 1805.986667 | U117: 1820.57 | V117: 1825.82 | W117: 1801.32 | X117: 4.666666667 | Y117: TRUE | Z117: FALSE | AA117: FALSE | AB117: FALSE | AC117: TRUE | AD117: FALSE | AE117: FALSE | AF117: FALSE | AG117: FALSE | AH117: 2000
A118: 86 | B118: =OFFSET(InputPriceData!B$15,CalculationsAndCharts!$A118+$A$11,0,1,1) -> 2014-04-08 | C118: =OFFSET(InputPriceData!G$15,CalculationsAndCharts!$A118+$A$11,IF($C$7,8,0),1,1) -> 3721450000 | D118: =OFFSET(InputPriceData!C$15,CalculationsAndCharts!$A118+$A$11,IF($C$7,8,0),1,1) -> 1845.48 | E118: =OFFSET(InputPriceData!D$15,CalculationsAndCharts!$A118+$A$11,IF($C$7,8,0),1,1) -> 1854.95 | F118: =OFFSET(InputPriceData!E$15,CalculationsAndCharts!$A118+$A$11,IF($C$7,8,0),1,1) -> 1837.49 | G118: =OFFSET(InputPriceData!F$15,CalculationsAndCharts!$A118+$A$11,IF($C$7,8,0),1,1) -> 1851.96 | J118: 86 | K118: 2014-02-13 | L118: 3326380000 | M118: 1818.82 | N118: 1825.82 | O118: 1818.82 | P118: 1825.82 | Q118: 1 | S118: 1823.486667 | T118: 1798.986667 | U118: 1813.57 | V118: 1818.82 | W118: 1794.32 | X118: 4.666666667 | Y118: TRUE | Z118: FALSE | AA118: FALSE | AB118: FALSE | AC118: TRUE | AD118: FALSE | AE118: FALSE | AF118: FALSE | AG118: FALSE | AH118: 2000
A119: 87 | B119: =OFFSET(InputPriceData!B$15,CalculationsAndCharts!$A119+$A$11,0,1,1) -> 2014-04-07 | C119: =OFFSET(InputPriceData!G$15,CalculationsAndCharts!$A119+$A$11,IF($C$7,8,0),1,1) -> 3801540000 | D119: =OFFSET(InputPriceData!C$15,CalculationsAndCharts!$A119+$A$11,IF($C$7,8,0),1,1) -> 1863.92 | E119: =OFFSET(InputPriceData!D$15,CalculationsAndCharts!$A119+$A$11,IF($C$7,8,0),1,1) -> 1864.04 | F119: =OFFSET(InputPriceData!E$15,CalculationsAndCharts!$A119+$A$11,IF($C$7,8,0),1,1) -> 1841.48 | G119: =OFFSET(InputPriceData!F$15,CalculationsAndCharts!$A119+$A$11,IF($C$7,8,0),1,1) -> 1845.04 | J119: 87 | K119: 2014-02-12 | L119: 0 | M119: 1811.82 | N119: 1818.82 | O119: 1811.82 | P119: 1818.82 | Q119: 1 | S119: 1816.486667 | T119: 1791.986667 | U119: 1806.57 | V119: 1811.82 | W119: 1786.906719 | X119: 5.079947917 | Y119: TRUE | Z119: FALSE | AA119: FALSE | AB119: FALSE | AC119: TRUE | AD119: FALSE | AE119: FALSE | AF119: FALSE | AG119: FALSE | AH119: 2000
A120: 88 | B120: =OFFSET(InputPriceData!B$15,CalculationsAndCharts!$A120+$A$11,0,1,1) -> 2014-04-04 | C120: =OFFSET(InputPriceData!G$15,CalculationsAndCharts!$A120+$A$11,IF($C$7,8,0),1,1) -> 3583750000 | D120: =OFFSET(InputPriceData!C$15,CalculationsAndCharts!$A120+$A$11,IF($C$7,8,0),1,1) -> 1890.25 | E120: =OFFSET(InputPriceData!D$15,CalculationsAndCharts!$A120+$A$11,IF($C$7,8,0),1,1) -> 1897.28 | F120: =OFFSET(InputPriceData!E$15,CalculationsAndCharts!$A120+$A$11,IF($C$7,8,0),1,1) -> 1863.26 | G120: =OFFSET(InputPriceData!F$15,CalculationsAndCharts!$A120+$A$11,IF($C$7,8,0),1,1) -> 1865.09 | J120: 88 | K120: 2014-02-11 | L120: 0 | M120: 1804.82 | N120: 1811.82 | O120: 1804.82 | P120: 1811.82 | Q120: 0 | S120: 1809.486667 | T120: 1784.240833 | U120: 1799.57 | V120: 1804.82 | W120: 1779.42625 | X120: 4.814583333 | Y120: TRUE | Z120: FALSE | AA120: FALSE | AB120: FALSE | AC120: TRUE | AD120: FALSE | AE120: FALSE | AF120: FALSE | AG120: FALSE | AH120: 2000
A121: 89 | B121: =OFFSET(InputPriceData!B$15,CalculationsAndCharts!$A121+$A$11,0,1,1) -> 2014-04-03 | C121: =OFFSET(InputPriceData!G$15,CalculationsAndCharts!$A121+$A$11,IF($C$7,8,0),1,1) -> 3055600000 | D121: =OFFSET(InputPriceData!C$15,CalculationsAndCharts!$A121+$A$11,IF($C$7,8,0),1,1) -> 1891.43 | E121: =OFFSET(InputPriceData!D$15,CalculationsAndCharts!$A121+$A$11,IF($C$7,8,0),1,1) -> 1893.8 | F121: =OFFSET(InputPriceData!E$15,CalculationsAndCharts!$A121+$A$11,IF($C$7,8,0),1,1) -> 1882.65 | G121: =OFFSET(InputPriceData!F$15,CalculationsAndCharts!$A121+$A$11,IF($C$7,8,0),1,1) -> 1888.77 | J121: 89 | K121: 2014-02-11 | L121: 0 | M121: 1797.82 | N121: 1804.82 | O121: 1797.82 | P121: 1804.82 | Q121: 0 | S121: 1802.486667 | T121: 1776.949167 | U121: 1792.57 | V121: 1797.82 | W121: 1773.30125 | X121: 3.647916667 | Y121: TRUE | Z121: FALSE | AA121: FALSE | AB121: FALSE | AC121: TRUE | AD121: FALSE | AE121: FALSE | AF121: FALSE | AG121: FALSE | AH121: 2000
A122: 90 | B122: =OFFSET(InputPriceData!B$15,CalculationsAndCharts!$A122+$A$11,0,1,1) -> 2014-04-02 | C122: =OFFSET(InputPriceData!G$15,CalculationsAndCharts!$A122+$A$11,IF($C$7,8,0),1,1) -> 3131660000 | D122: =OFFSET(InputPriceData!C$15,CalculationsAndCharts!$A122+$A$11,IF($C$7,8,0),1,1) -> 1886.61 | E122: =OFFSET(InputPriceData!D$15,CalculationsAndCharts!$A122+$A$11,IF($C$7,8,0),1,1) -> 1893.17 | F122: =OFFSET(InputPriceData!E$15,CalculationsAndCharts!$A122+$A$11,IF($C$7,8,0),1,1) -> 1883.79 | G122: =OFFSET(InputPriceData!F$15,CalculationsAndCharts!$A122+$A$11,IF($C$7,8,0),1,1) -> 1890.9 | J122: 90 | K122: 2014-02-11 | L122: 0 | M122: 1790.82 | N122: 1797.82 | O122: 1790.82 | P122: 1797.82 | Q122: 1 | S122: 1795.486667 | T122: 1771.4075 | U122: 1785.57 | V122: 1790.82 | W122: 1768.92625 | X122: 2.48125 | Y122: TRUE | Z122: FALSE | AA122: FALSE | AB122: TRUE | AC122: TRUE | AD122: FALSE | AE122: FALSE | AF122: FALSE | AG122: FALSE | AH122: 2000
A123: 91 | B123: =OFFSET(InputPriceData!B$15,CalculationsAndCharts!$A123+$A$11,0,1,1) -> 2014-04-01 | C123: =OFFSET(InputPriceData!G$15,CalculationsAndCharts!$A123+$A$11,IF($C$7,8,0),1,1) -> 3336190000 | D123: =OFFSET(InputPriceData!C$15,CalculationsAndCharts!$A123+$A$11,IF($C$7,8,0),1,1) -> 1873.96 | E123: =OFFSET(InputPriceData!D$15,CalculationsAndCharts!$A123+$A$11,IF($C$7,8,0),1,1) -> 1885.84 | F123: =OFFSET(InputPriceData!E$15,CalculationsAndCharts!$A123+$A$11,IF($C$7,8,0),1,1) -> 1873.96 | G123: =OFFSET(InputPriceData!F$15,CalculationsAndCharts!$A123+$A$11,IF($C$7,8,0),1,1) -> 1885.52 | J123: 91 | K123: 2014-02-10 | L123: 0 | M123: 1783.82 | N123: 1790.82 | O123: 1783.82 | P123: 1790.82 | Q123: 1 | S123: 1788.486667 | T123: 1767.615833 | U123: 1778.57 | V123: 1783.82 | W123: 1766.30125 | X123: 1.314583333 | Y123: TRUE | Z123: FALSE | AA123: FALSE | AB123: FALSE | AC123: FALSE | AD123: FALSE | AE123: FALSE | AF123: FALSE | AG123: TRUE
A124: 92 | B124: =OFFSET(InputPriceData!B$15,CalculationsAndCharts!$A124+$A$11,0,1,1) -> 2014-03-31 | C124: =OFFSET(InputPriceData!G$15,CalculationsAndCharts!$A124+$A$11,IF($C$7,8,0),1,1) -> 3274300000 | D124: =OFFSET(InputPriceData!C$15,CalculationsAndCharts!$A124+$A$11,IF($C$7,8,0),1,1) -> 1859.16 | E124: =OFFSET(InputPriceData!D$15,CalculationsAndCharts!$A124+$A$11,IF($C$7,8,0),1,1) -> 1875.18 | F124: =OFFSET(InputPriceData!E$15,CalculationsAndCharts!$A124+$A$11,IF($C$7,8,0),1,1) -> 1859.16 | G124: =OFFSET(InputPriceData!F$15,CalculationsAndCharts!$A124+$A$11,IF($C$7,8,0),1,1) -> 1872.34 | J124: 92 | K124: 2014-02-07 | L124: 0 | M124: 1776.82 | N124: 1783.82 | O124: 1776.82 | P124: 1783.82 | Q124: 0 | S124: 1781.486667 | T124: 1765.574167 | U124: 1771.57 | V124: 1776.82 | W124: 1765.543047 | X124: 0.03111979167 | Y124: FALSE | Z124: FALSE | AA124: TRUE | AB124: FALSE | AC124: FALSE | AD124: FALSE | AE124: FALSE | AF124: TRUE | AG124: FALSE | AI124: 2000
A125: 93 | B125: =OFFSET(InputPriceData!B$15,CalculationsAndCharts!$A125+$A$11,0,1,1) -> 2014-03-28 | C125: =OFFSET(InputPriceData!G$15,CalculationsAndCharts!$A125+$A$11,IF($C$7,8,0),1,1) -> 2955520000 | D125: =OFFSET(InputPriceData!C$15,CalculationsAndCharts!$A125+$A$11,IF($C$7,8,0),1,1) -> 1850.07 | E125: =OFFSET(InputPriceData!D$15,CalculationsAndCharts!$A125+$A$11,IF($C$7,8,0),1,1) -> 1866.63 | F125: =OFFSET(InputPriceData!E$15,CalculationsAndCharts!$A125+$A$11,IF($C$7,8,0),1,1) -> 1850.07 | G125: =OFFSET(InputPriceData!F$15,CalculationsAndCharts!$A125+$A$11,IF($C$7,8,0),1,1) -> 1857.62 | J125: 93 | K125: 2014-02-07 | L125: 0 | M125: 1769.82 | N125: 1776.82 | O125: 1769.82 | P125: 1776.82 | Q125: 0 | S125: 1774.486667 | T125: 1765.905417 | U125: 1764.57 | V125: 1769.82 | W125: 1766.849883 | X125: -0.9444661458 | Y125: FALSE | Z125: TRUE | AA125: FALSE | AB125: FALSE | AC125: FALSE | AD125: FALSE | AE125: FALSE | AF125: TRUE | AG125: FALSE | AI125: 2000
A126: 94 | B126: =OFFSET(InputPriceData!B$15,CalculationsAndCharts!$A126+$A$11,0,1,1) -> 2014-03-27 | C126: =OFFSET(InputPriceData!G$15,CalculationsAndCharts!$A126+$A$11,IF($C$7,8,0),1,1) -> 3733430000 | D126: =OFFSET(InputPriceData!C$15,CalculationsAndCharts!$A126+$A$11,IF($C$7,8,0),1,1) -> 1852.11 | E126: =OFFSET(InputPriceData!D$15,CalculationsAndCharts!$A126+$A$11,IF($C$7,8,0),1,1) -> 1855.55 | F126: =OFFSET(InputPriceData!E$15,CalculationsAndCharts!$A126+$A$11,IF($C$7,8,0),1,1) -> 1842.11 | G126: =OFFSET(InputPriceData!F$15,CalculationsAndCharts!$A126+$A$11,IF($C$7,8,0),1,1) -> 1849.04 | J126: 94 | K126: 2014-02-07 | L126: 0 | M126: 1762.82 | N126: 1769.82 | O126: 1762.82 | P126: 1769.82 | Q126: 1 | S126: 1767.486667 | T126: 1767.490833 | U126: 1750.9575 | V126: 1759.51375 | W126: 1769.498711 | X126: -2.007877604 | Y126: FALSE | Z126: TRUE | AA126: FALSE | AB126: FALSE | AC126: FALSE | AD126: FALSE | AE126: FALSE | AF126: TRUE | AG126: FALSE | AI126: 2000
A127: 95 | B127: =OFFSET(InputPriceData!B$15,CalculationsAndCharts!$A127+$A$11,0,1,1) -> 2014-03-26 | C127: =OFFSET(InputPriceData!G$15,CalculationsAndCharts!$A127+$A$11,IF($C$7,8,0),1,1) -> 3480850000 | D127: =OFFSET(InputPriceData!C$15,CalculationsAndCharts!$A127+$A$11,IF($C$7,8,0),1,1) -> 1867.09 | E127: =OFFSET(InputPriceData!D$15,CalculationsAndCharts!$A127+$A$11,IF($C$7,8,0),1,1) -> 1875.92 | F127: =OFFSET(InputPriceData!E$15,CalculationsAndCharts!$A127+$A$11,IF($C$7,8,0),1,1) -> 1852.56 | G127: =OFFSET(InputPriceData!F$15,CalculationsAndCharts!$A127+$A$11,IF($C$7,8,0),1,1) -> 1852.56 | J127: 95 | K127: 2014-02-06 | L127: 8052700000 | M127: 1748.82 | N127: 1762.82 | O127: 1737.92 | P127: 1762.82 | Q127: 2 | S127: 1754.52 | T127: 1770.699167 | U127: 1754.07 | V127: 1751.97625 | W127: 1774.286992 | X127: -3.587825521 | Y127: FALSE | Z127: TRUE | AA127: FALSE | AB127: FALSE | AC127: FALSE | AD127: FALSE | AE127: FALSE | AF127: TRUE | AG127: FALSE | AI127: 2000
A128: 96 | B128: =OFFSET(InputPriceData!B$15,CalculationsAndCharts!$A128+$A$11,0,1,1) -> 2014-03-25 | C128: =OFFSET(InputPriceData!G$15,CalculationsAndCharts!$A128+$A$11,IF($C$7,8,0),1,1) -> 3200560000 | D128: =OFFSET(InputPriceData!C$15,CalculationsAndCharts!$A128+$A$11,IF($C$7,8,0),1,1) -> 1859.48 | E128: =OFFSET(InputPriceData!D$15,CalculationsAndCharts!$A128+$A$11,IF($C$7,8,0),1,1) -> 1871.87 | F128: =OFFSET(InputPriceData!E$15,CalculationsAndCharts!$A128+$A$11,IF($C$7,8,0),1,1) -> 1855.96 | G128: =OFFSET(InputPriceData!F$15,CalculationsAndCharts!$A128+$A$11,IF($C$7,8,0),1,1) -> 1865.62 | J128: 96 | K128: 2014-02-04 | L128: 0 | M128: 1755.82 | N128: 1755.82 | O128: 1748.82 | P128: 1748.82 | Q128: 1 | S128: 1751.153333 | T128: 1776.403333 | U128: 1761.07 | V128: 1755.82 | W128: 1780.892461 | X128: -4.489127604 | Y128: FALSE | Z128: TRUE | AA128: FALSE | AB128: FALSE | AC128: FALSE | AD128: FALSE | AE128: FALSE | AF128: TRUE | AG128: FALSE | AI128: 2000
A129: 97 | B129: =OFFSET(InputPriceData!B$15,CalculationsAndCharts!$A129+$A$11,0,1,1) -> 2014-03-24 | C129: =OFFSET(InputPriceData!G$15,CalculationsAndCharts!$A129+$A$11,IF($C$7,8,0),1,1) -> 3409000000 | D129: =OFFSET(InputPriceData!C$15,CalculationsAndCharts!$A129+$A$11,IF($C$7,8,0),1,1) -> 1867.67 | E129: =OFFSET(InputPriceData!D$15,CalculationsAndCharts!$A129+$A$11,IF($C$7,8,0),1,1) -> 1873.34 | F129: =OFFSET(InputPriceData!E$15,CalculationsAndCharts!$A129+$A$11,IF($C$7,8,0),1,1) -> 1849.69 | G129: =OFFSET(InputPriceData!F$15,CalculationsAndCharts!$A129+$A$11,IF($C$7,8,0),1,1) -> 1857.44 | J129: 97 | K129: 2014-02-03 | L129: 0 | M129: 1762.82 | N129: 1762.82 | O129: 1755.82 | P129: 1755.82 | Q129: 0 | S129: 1758.153333 | T129: 1783.403333 | U129: 1768.07 | V129: 1762.82 | W129: 1787.892461 | X129: -4.489127604 | Y129: FALSE | Z129: TRUE | AA129: FALSE | AB129: FALSE | AC129: FALSE | AD129: FALSE | AE129: FALSE | AF129: TRUE | AG129: FALSE | AI129: 2000
A130: 98 | B130: =OFFSET(InputPriceData!B$15,CalculationsAndCharts!$A130+$A$11,0,1,1) -> 2014-03-21 | C130: =OFFSET(InputPriceData!G$15,CalculationsAndCharts!$A130+$A$11,IF($C$7,8,0),1,1) -> 5270710000 | D130: =OFFSET(InputPriceData!C$15,CalculationsAndCharts!$A130+$A$11,IF($C$7,8,0),1,1) -> 1874.53 | E130: =OFFSET(InputPriceData!D$15,CalculationsAndCharts!$A130+$A$11,IF($C$7,8,0),1,1) -> 1883.97 | F130: =OFFSET(InputPriceData!E$15,CalculationsAndCharts!$A130+$A$11,IF($C$7,8,0),1,1) -> 1863.46 | G130: =OFFSET(InputPriceData!F$15,CalculationsAndCharts!$A130+$A$11,IF($C$7,8,0),1,1) -> 1866.52 | J130: 98 | K130: 2014-02-03 | L130: 0 | M130: 1769.82 | N130: 1769.82 | O130: 1762.82 | P130: 1762.82 | Q130: 0 | S130: 1765.153333 | T130: 1790.403333 | U130: 1775.07 | V130: 1769.82 | W130: 1794.892461 | X130: -4.489127604 | Y130: FALSE | Z130: TRUE | AA130: FALSE | AB130: FALSE | AC130: FALSE | AD130: FALSE | AE130: FALSE | AF130: TRUE | AG130: FALSE | AI130: 2000
A131: 99 | B131: =OFFSET(InputPriceData!B$15,CalculationsAndCharts!$A131+$A$11,0,1,1) -> 2014-03-20 | C131: =OFFSET(InputPriceData!G$15,CalculationsAndCharts!$A131+$A$11,IF($C$7,8,0),1,1) -> 3327540000 | D131: =OFFSET(InputPriceData!C$15,CalculationsAndCharts!$A131+$A$11,IF($C$7,8,0),1,1) -> 1860.09 | E131: =OFFSET(InputPriceData!D$15,CalculationsAndCharts!$A131+$A$11,IF($C$7,8,0),1,1) -> 1873.49 | F131: =OFFSET(InputPriceData!E$15,CalculationsAndCharts!$A131+$A$11,IF($C$7,8,0),1,1) -> 1854.63 | G131: =OFFSET(InputPriceData!F$15,CalculationsAndCharts!$A131+$A$11,IF($C$7,8,0),1,1) -> 1872.01 | J131: 99 | K131: 2014-02-03 | L131: 4059690000 | M131: 1776.82 | N131: 1776.82 | O131: 1769.82 | P131: 1769.82 | Q131: 1 | S131: 1772.153333 | T131: 1797.403333 | U131: 1783.93875 | V131: 1777.754375 | W131: 1802.275664 | X131: -4.872330729 | Y131: FALSE | Z131: TRUE | AA131: FALSE | AB131: FALSE | AC131: FALSE | AD131: FALSE | AE131: FALSE | AF131: TRUE | AG131: FALSE | AI131: 2000
A132: 100 | B132: =OFFSET(InputPriceData!B$15,CalculationsAndCharts!$A132+$A$11,0,1,1) -> 2014-03-19 | C132: =OFFSET(InputPriceData!G$15,CalculationsAndCharts!$A132+$A$11,IF($C$7,8,0),1,1) -> 3289210000 | D132: =OFFSET(InputPriceData!C$15,CalculationsAndCharts!$A132+$A$11,IF($C$7,8,0),1,1) -> 1872.25 | E132: =OFFSET(InputPriceData!D$15,CalculationsAndCharts!$A132+$A$11,IF($C$7,8,0),1,1) -> 1874.14 | F132: =OFFSET(InputPriceData!E$15,CalculationsAndCharts!$A132+$A$11,IF($C$7,8,0),1,1) -> 1850.35 | G132: =OFFSET(InputPriceData!F$15,CalculationsAndCharts!$A132+$A$11,IF($C$7,8,0),1,1) -> 1860.77 | J132: 100 | K132: 2014-01-31 | L132: 3547510000 | M132: 1783.82 | N132: 1798.77 | O132: 1776.82 | P132: 1776.82 | Q132: 2 | S132: 1784.136667 | T132: 1804.98875 | U132: 1789.45125 | V132: 1787.274687 | W132: 1809.307461 | X132: -4.318710937 | Y132: FALSE | Z132: TRUE | AA132: FALSE | AB132: FALSE | AC132: FALSE | AD132: FALSE | AE132: FALSE | AF132: TRUE | AG132: FALSE | AI132: 2000
A133: 101 | B133: =OFFSET(InputPriceData!B$15,CalculationsAndCharts!$A133+$A$11,0,1,1) -> 2014-03-18 | C133: =OFFSET(InputPriceData!G$15,CalculationsAndCharts!$A133+$A$11,IF($C$7,8,0),1,1) -> 2930190000 | D133: =OFFSET(InputPriceData!C$15,CalculationsAndCharts!$A133+$A$11,IF($C$7,8,0),1,1) -> 1858.92 | E133: =OFFSET(InputPriceData!D$15,CalculationsAndCharts!$A133+$A$11,IF($C$7,8,0),1,1) -> 1873.76 | F133: =OFFSET(InputPriceData!E$15,CalculationsAndCharts!$A133+$A$11,IF($C$7,8,0),1,1) -> 1858.92 | G133: =OFFSET(InputPriceData!F$15,CalculationsAndCharts!$A133+$A$11,IF($C$7,8,0),1,1) -> 1872.25 | J133: 101 | K133: 2014-01-29 | L133: 3437830000 | M133: 1790.82 | N133: 1793.87 | O133: 1783.82 | P133: 1783.82 | Q133: 2 | S133: 1787.17 | T133: 1811.18 | U133: 1796.07 | V133: 1791.010625 | W133: 1814.945742 | X133: -3.765742188 | Y133: FALSE | Z133: TRUE | AA133: FALSE | AB133: FALSE | AC133: FALSE | AD133: FALSE | AE133: FALSE | AF133: TRUE | AG133: FALSE | AI133: 2000
A134: 102 | B134: =OFFSET(InputPriceData!B$15,CalculationsAndCharts!$A134+$A$11,0,1,1) -> 2014-03-17 | C134: =OFFSET(InputPriceData!G$15,CalculationsAndCharts!$A134+$A$11,IF($C$7,8,0),1,1) -> 2860490000 | D134: =OFFSET(InputPriceData!C$15,CalculationsAndCharts!$A134+$A$11,IF($C$7,8,0),1,1) -> 1842.81 | E134: =OFFSET(InputPriceData!D$15,CalculationsAndCharts!$A134+$A$11,IF($C$7,8,0),1,1) -> 1862.3 | F134: =OFFSET(InputPriceData!E$15,CalculationsAndCharts!$A134+$A$11,IF($C$7,8,0),1,1) -> 1842.81 | G134: =OFFSET(InputPriceData!F$15,CalculationsAndCharts!$A134+$A$11,IF($C$7,8,0),1,1) -> 1858.83 | J134: 102 | K134: 2014-01-27 | L134: 0 | M134: 1797.82 | N134: 1797.82 | O134: 1790.82 | P134: 1790.82 | Q134: 1 | S134: 1793.153333 | T134: 1816.700833 | U134: 1803.07 | V134: 1797.82 | W134: 1820.179961 | X134: -3.479127604 | Y134: FALSE | Z134: TRUE | AA134: FALSE | AB134: FALSE | AC134: FALSE | AD134: FALSE | AE134: FALSE | AF134: TRUE | AG134: FALSE | AI134: 2000
A135: 103 | B135: =OFFSET(InputPriceData!B$15,CalculationsAndCharts!$A135+$A$11,0,1,1) -> 2014-03-14 | C135: =OFFSET(InputPriceData!G$15,CalculationsAndCharts!$A135+$A$11,IF($C$7,8,0),1,1) -> 3285460000 | D135: =OFFSET(InputPriceData!C$15,CalculationsAndCharts!$A135+$A$11,IF($C$7,8,0),1,1) -> 1845.07 | E135: =OFFSET(InputPriceData!D$15,CalculationsAndCharts!$A135+$A$11,IF($C$7,8,0),1,1) -> 1852.44 | F135: =OFFSET(InputPriceData!E$15,CalculationsAndCharts!$A135+$A$11,IF($C$7,8,0),1,1) -> 1839.57 | G135: =OFFSET(InputPriceData!F$15,CalculationsAndCharts!$A135+$A$11,IF($C$7,8,0),1,1) -> 1841.13 | J135: 103 | K135: 2014-01-24 | L135: 0 | M135: 1804.82 | N135: 1804.82 | O135: 1797.82 | P135: 1797.82 | Q135: 0 | S135: 1800.153333 | T135: 1822.140833 | U135: 1810.07 | V135: 1804.82 | W135: 1824.678398 | X135: -2.537565104 | Y135: FALSE | Z135: TRUE | AA135: FALSE | AB135: FALSE | AC135: FALSE | AD135: FALSE | AE135: FALSE | AF135: TRUE | AG135: FALSE | AI135: 2000
A136: 104 | B136: =OFFSET(InputPriceData!B$15,CalculationsAndCharts!$A136+$A$11,0,1,1) -> 2014-03-13 | C136: =OFFSET(InputPriceData!G$15,CalculationsAndCharts!$A136+$A$11,IF($C$7,8,0),1,1) -> 3670990000 | D136: =OFFSET(InputPriceData!C$15,CalculationsAndCharts!$A136+$A$11,IF($C$7,8,0),1,1) -> 1869.06 | E136: =OFFSET(InputPriceData!D$15,CalculationsAndCharts!$A136+$A$11,IF($C$7,8,0),1,1) -> 1874.4 | F136: =OFFSET(InputPriceData!E$15,CalculationsAndCharts!$A136+$A$11,IF($C$7,8,0),1,1) -> 1841.86 | G136: =OFFSET(InputPriceData!F$15,CalculationsAndCharts!$A136+$A$11,IF($C$7,8,0),1,1) -> 1846.34 | J136: 104 | K136: 2014-01-24 | L136: 0 | M136: 1811.82 | N136: 1811.82 | O136: 1804.82 | P136: 1804.82 | Q136: 0 | S136: 1807.153333 | T136: 1825.640833 | U136: 1817.07 | V136: 1811.82 | W136: 1828.518555 | X136: -2.877721354 | Y136: FALSE | Z136: TRUE | AA136: FALSE | AB136: FALSE | AC136: FALSE | AD136: FALSE | AE136: FALSE | AF136: TRUE | AG136: FALSE | AI136: 2000
A137: 105 | B137: =OFFSET(InputPriceData!B$15,CalculationsAndCharts!$A137+$A$11,0,1,1) -> 2014-03-12 | C137: =OFFSET(InputPriceData!G$15,CalculationsAndCharts!$A137+$A$11,IF($C$7,8,0),1,1) -> 3270860000 | D137: =OFFSET(InputPriceData!C$15,CalculationsAndCharts!$A137+$A$11,IF($C$7,8,0),1,1) -> 1866.15 | E137: =OFFSET(InputPriceData!D$15,CalculationsAndCharts!$A137+$A$11,IF($C$7,8,0),1,1) -> 1868.38 | F137: =OFFSET(InputPriceData!E$15,CalculationsAndCharts!$A137+$A$11,IF($C$7,8,0),1,1) -> 1854.38 | G137: =OFFSET(InputPriceData!F$15,CalculationsAndCharts!$A137+$A$11,IF($C$7,8,0),1,1) -> 1868.2 | J137: 105 | K137: 2014-01-24 | L137: 0 | M137: 1818.82 | N137: 1818.82 | O137: 1811.82 | P137: 1811.82 | Q137: 0 | S137: 1814.153333 | T137: 1829.496667 | U137: 1824.07 | V137: 1818.82 | W137: 1832.129297 | X137: -2.632630208 | Y137: FALSE | Z137: TRUE | AA137: FALSE | AB137: FALSE | AC137: FALSE | AD137: FALSE | AE137: TRUE | AF137: TRUE | AG137: FALSE | AI137: 2000
A138: 106 | B138: =OFFSET(InputPriceData!B$15,CalculationsAndCharts!$A138+$A$11,0,1,1) -> 2014-03-11 | C138: =OFFSET(InputPriceData!G$15,CalculationsAndCharts!$A138+$A$11,IF($C$7,8,0),1,1) -> 3392400000 | D138: =OFFSET(InputPriceData!C$15,CalculationsAndCharts!$A138+$A$11,IF($C$7,8,0),1,1) -> 1878.26 | E138: =OFFSET(InputPriceData!D$15,CalculationsAndCharts!$A138+$A$11,IF($C$7,8,0),1,1) -> 1882.35 | F138: =OFFSET(InputPriceData!E$15,CalculationsAndCharts!$A138+$A$11,IF($C$7,8,0),1,1) -> 1863.88 | G138: =OFFSET(InputPriceData!F$15,CalculationsAndCharts!$A138+$A$11,IF($C$7,8,0),1,1) -> 1867.63 | J138: 106 | K138: 2014-01-24 | L138: 3972250000 | M138: 1825.82 | N138: 1825.82 | O138: 1818.82 | P138: 1818.82 | Q138: 1 | S138: 1821.153333 | T138: 1833.244583 | U138: 1837.20125 | V138: 1828.885625 | W138: 1834.746094 | X138: -1.501510417 | Y138: FALSE | Z138: TRUE | AA138: FALSE | AB138: FALSE | AC138: FALSE | AD138: TRUE | AE138: FALSE | AF138: FALSE | AG138: FALSE
A139: 107 | B139: =OFFSET(InputPriceData!B$15,CalculationsAndCharts!$A139+$A$11,0,1,1) -> 2014-03-10 | C139: =OFFSET(InputPriceData!G$15,CalculationsAndCharts!$A139+$A$11,IF($C$7,8,0),1,1) -> 3021350000 | D139: =OFFSET(InputPriceData!C$15,CalculationsAndCharts!$A139+$A$11,IF($C$7,8,0),1,1) -> 1877.86 | E139: =OFFSET(InputPriceData!D$15,CalculationsAndCharts!$A139+$A$11,IF($C$7,8,0),1,1) -> 1877.87 | F139: =OFFSET(InputPriceData!E$15,CalculationsAndCharts!$A139+$A$11,IF($C$7,8,0),1,1) -> 1867.04 | G139: =OFFSET(InputPriceData!F$15,CalculationsAndCharts!$A139+$A$11,IF($C$7,8,0),1,1) -> 1877.17 | J139: 107 | K139: 2014-01-23 | L139: 14274070000 | M139: 1839.82 | N139: 1846.87 | O139: 1825.82 | P139: 1825.82 | Q139: 5 | S139: 1832.836667 | T139: 1835.28625 | U139: 1828.7625 | V139: 1834.00875 | W139: 1835.237891 | X139: 0.048359375 | Y139: FALSE | Z139: FALSE | AA139: TRUE | AB139: FALSE | AC139: TRUE | AD139: FALSE | AE139: FALSE | AF139: FALSE | AG139: FALSE | AH139: 2000
A140: 108 | B140: =OFFSET(InputPriceData!B$15,CalculationsAndCharts!$A140+$A$11,0,1,1) -> 2014-03-07 | C140: =OFFSET(InputPriceData!G$15,CalculationsAndCharts!$A140+$A$11,IF($C$7,8,0),1,1) -> 3564740000 | D140: =OFFSET(InputPriceData!C$15,CalculationsAndCharts!$A140+$A$11,IF($C$7,8,0),1,1) -> 1878.52 | E140: =OFFSET(InputPriceData!D$15,CalculationsAndCharts!$A140+$A$11,IF($C$7,8,0),1,1) -> 1883.57 | F140: =OFFSET(InputPriceData!E$15,CalculationsAndCharts!$A140+$A$11,IF($C$7,8,0),1,1) -> 1870.56 | G140: =OFFSET(InputPriceData!F$15,CalculationsAndCharts!$A140+$A$11,IF($C$7,8,0),1,1) -> 1878.04 | J140: 108 | K140: 2014-01-15 | L140: 6944620000 | M140: 1825.82 | N140: 1839.82 | O140: 1821.36 | P140: 1839.82 | Q140: 2 | S140: 1833.666667 | T140: 1834.9925 | U140: 1836.63875 | V140: 1832.380937 | W140: 1834.214297 | X140: 0.778203125 | Y140: TRUE | Z140: FALSE | AA140: FALSE | AB140: FALSE | AC140: TRUE | AD140: FALSE | AE140: FALSE | AF140: FALSE | AG140: FALSE | AH140: 2000
A141: 109 | B141: =OFFSET(InputPriceData!B$15,CalculationsAndCharts!$A141+$A$11,0,1,1) -> 2014-03-06 | C141: =OFFSET(InputPriceData!G$15,CalculationsAndCharts!$A141+$A$11,IF($C$7,8,0),1,1) -> 3360450000 | D141: =OFFSET(InputPriceData!C$15,CalculationsAndCharts!$A141+$A$11,IF($C$7,8,0),1,1) -> 1874.18 | E141: =OFFSET(InputPriceData!D$15,CalculationsAndCharts!$A141+$A$11,IF($C$7,8,0),1,1) -> 1881.94 | F141: =OFFSET(InputPriceData!E$15,CalculationsAndCharts!$A141+$A$11,IF($C$7,8,0),1,1) -> 1874.18 | G141: =OFFSET(InputPriceData!F$15,CalculationsAndCharts!$A141+$A$11,IF($C$7,8,0),1,1) -> 1877.03 | J141: 109 | K141: 2014-01-13 | L141: 3335710000 | M141: 1839.82 | N141: 1842.37 | O141: 1825.82 | P141: 1825.82 | Q141: 1 | S141: 1831.336667 | T141: 1833.72 | U141: 1829.89 | V141: 1832.884375 | W141: 1832.51918 | X141: 1.200820313 | Y141: TRUE | Z141: FALSE | AA141: FALSE | AB141: FALSE | AC141: TRUE | AD141: FALSE | AE141: FALSE | AF141: FALSE | AG141: FALSE | AH141: 2000
A142: 110 | B142: =OFFSET(InputPriceData!B$15,CalculationsAndCharts!$A142+$A$11,0,1,1) -> 2014-03-05 | C142: =OFFSET(InputPriceData!G$15,CalculationsAndCharts!$A142+$A$11,IF($C$7,8,0),1,1) -> 3392990000 | D142: =OFFSET(InputPriceData!C$15,CalculationsAndCharts!$A142+$A$11,IF($C$7,8,0),1,1) -> 1874.05 | E142: =OFFSET(InputPriceData!D$15,CalculationsAndCharts!$A142+$A$11,IF($C$7,8,0),1,1) -> 1876.53 | F142: =OFFSET(InputPriceData!E$15,CalculationsAndCharts!$A142+$A$11,IF($C$7,8,0),1,1) -> 1871.11 | G142: =OFFSET(InputPriceData!F$15,CalculationsAndCharts!$A142+$A$11,IF($C$7,8,0),1,1) -> 1873.81 | J142: 110 | K142: 2014-01-10 | L142: 16814160000 | M142: 1825.82 | N142: 1839.82 | O142: 1830.38 | P142: 1839.82 | Q142: 5 | S142: 1836.673333 | T142: 1831.86375 | U142: 1831.07 | V142: 1833.8075 | W142: 1829.886133 | X142: 1.977617188 | Y142: TRUE | Z142: FALSE | AA142: FALSE | AB142: FALSE | AC142: TRUE | AD142: FALSE | AE142: FALSE | AF142: FALSE | AG142: FALSE | AH142: 2000
A143: 111 | B143: =OFFSET(InputPriceData!B$15,CalculationsAndCharts!$A143+$A$11,0,1,1) -> 2014-03-04 | C143: =OFFSET(InputPriceData!G$15,CalculationsAndCharts!$A143+$A$11,IF($C$7,8,0),1,1) -> 3765770000 | D143: =OFFSET(InputPriceData!C$15,CalculationsAndCharts!$A143+$A$11,IF($C$7,8,0),1,1) -> 1849.23 | E143: =OFFSET(InputPriceData!D$15,CalculationsAndCharts!$A143+$A$11,IF($C$7,8,0),1,1) -> 1876.23 | F143: =OFFSET(InputPriceData!E$15,CalculationsAndCharts!$A143+$A$11,IF($C$7,8,0),1,1) -> 1849.23 | G143: =OFFSET(InputPriceData!F$15,CalculationsAndCharts!$A143+$A$11,IF($C$7,8,0),1,1) -> 1873.91 | J143: 111 | K143: 2014-01-03 | L143: 3080600000 | M143: 1832.82 | N143: 1832.82 | O143: 1825.82 | P143: 1825.82 | Q143: 1 | S143: 1828.153333 | T143: 1828.465417 | U143: 1843.5125 | V143: 1835.54125 | W143: 1826.262695 | X143: 2.202721354 | Y143: TRUE | Z143: FALSE | AA143: FALSE | AB143: FALSE | AC143: TRUE | AD143: FALSE | AE143: FALSE | AF143: FALSE | AG143: FALSE | AH143: 2000
A144: 112 | B144: =OFFSET(InputPriceData!B$15,CalculationsAndCharts!$A144+$A$11,0,1,1) -> 2014-03-03 | C144: =OFFSET(InputPriceData!G$15,CalculationsAndCharts!$A144+$A$11,IF($C$7,8,0),1,1) -> 3428220000 | D144: =OFFSET(InputPriceData!C$15,CalculationsAndCharts!$A144+$A$11,IF($C$7,8,0),1,1) -> 1857.68 | E144: =OFFSET(InputPriceData!D$15,CalculationsAndCharts!$A144+$A$11,IF($C$7,8,0),1,1) -> 1857.68 | F144: =OFFSET(InputPriceData!E$15,CalculationsAndCharts!$A144+$A$11,IF($C$7,8,0),1,1) -> 1834.44 | G144: =OFFSET(InputPriceData!F$15,CalculationsAndCharts!$A144+$A$11,IF($C$7,8,0),1,1) -> 1845.73 | J144: 112 | K144: 2014-01-02 | L144: 2312840000 | M144: 1846.82 | N144: 1848.36 | O144: 1832.82 | P144: 1832.82 | Q144: 1 | S144: 1838 | T144: 1825.257083 | U144: 1841.43875 | V144: 1840.705937 | W144: 1821.547539 | X144: 3.709544271 | Y144: TRUE | Z144: FALSE | AA144: FALSE | AB144: FALSE | AC144: TRUE | AD144: FALSE | AE144: FALSE | AF144: FALSE | AG144: FALSE | AH144: 2000
A145: 113 | B145: =OFFSET(InputPriceData!B$15,CalculationsAndCharts!$A145+$A$11,0,1,1) -> 2014-02-28 | C145: =OFFSET(InputPriceData!G$15,CalculationsAndCharts!$A145+$A$11,IF($C$7,8,0),1,1) -> 3917450000 | D145: =OFFSET(InputPriceData!C$15,CalculationsAndCharts!$A145+$A$11,IF($C$7,8,0),1,1) -> 1855.12 | E145: =OFFSET(InputPriceData!D$15,CalculationsAndCharts!$A145+$A$11,IF($C$7,8,0),1,1) -> 1867.92 | F145: =OFFSET(InputPriceData!E$15,CalculationsAndCharts!$A145+$A$11,IF($C$7,8,0),1,1) -> 1847.67 | G145: =OFFSET(InputPriceData!F$15,CalculationsAndCharts!$A145+$A$11,IF($C$7,8,0),1,1) -> 1859.45 | J145: 113 | K145: 2013-12-31 | L145: 4346780000 | M145: 1839.82 | N145: 1846.82 | O145: 1838.77 | P145: 1846.82 | Q145: 2 | S145: 1844.136667 | T145: 1819.942917 | U145: 1834.57 | V145: 1839.754375 | W145: 1814.985469 | X145: 4.957447917 | Y145: TRUE | Z145: FALSE | AA145: FALSE | AB145: FALSE | AC145: TRUE | AD145: FALSE | AE145: FALSE | AF145: FALSE | AG145: FALSE | AH145: 2000
A146: 114 | B146: =OFFSET(InputPriceData!B$15,CalculationsAndCharts!$A146+$A$11,0,1,1) -> 2014-02-27 | C146: =OFFSET(InputPriceData!G$15,CalculationsAndCharts!$A146+$A$11,IF($C$7,8,0),1,1) -> 3547460000 | D146: =OFFSET(InputPriceData!C$15,CalculationsAndCharts!$A146+$A$11,IF($C$7,8,0),1,1) -> 1844.9 | E146: =OFFSET(InputPriceData!D$15,CalculationsAndCharts!$A146+$A$11,IF($C$7,8,0),1,1) -> 1854.53 | F146: =OFFSET(InputPriceData!E$15,CalculationsAndCharts!$A146+$A$11,IF($C$7,8,0),1,1) -> 1841.13 | G146: =OFFSET(InputPriceData!F$15,CalculationsAndCharts!$A146+$A$11,IF($C$7,8,0),1,1) -> 1854.29 | J146: 114 | K146: 2013-12-27 | L146: 0 | M146: 1832.82 | N146: 1839.82 | O146: 1832.82 | P146: 1839.82 | Q146: 1 | S146: 1837.486667 | T146: 1812.704583 | U146: 1827.57 | V146: 1832.82 | W146: 1807.947969 | X146: 4.756614583 | Y146: TRUE | Z146: FALSE | AA146: FALSE | AB146: FALSE | AC146: TRUE | AD146: FALSE | AE146: FALSE | AF146: FALSE | AG146: FALSE | AH146: 2000
A147: 115 | B147: =OFFSET(InputPriceData!B$15,CalculationsAndCharts!$A147+$A$11,0,1,1) -> 2014-02-26 | C147: =OFFSET(InputPriceData!G$15,CalculationsAndCharts!$A147+$A$11,IF($C$7,8,0),1,1) -> 3716730000 | D147: =OFFSET(InputPriceData!C$15,CalculationsAndCharts!$A147+$A$11,IF($C$7,8,0),1,1) -> 1845.79 | E147: =OFFSET(InputPriceData!D$15,CalculationsAndCharts!$A147+$A$11,IF($C$7,8,0),1,1) -> 1852.65 | F147: =OFFSET(InputPriceData!E$15,CalculationsAndCharts!$A147+$A$11,IF($C$7,8,0),1,1) -> 1840.66 | G147: =OFFSET(InputPriceData!F$15,CalculationsAndCharts!$A147+$A$11,IF($C$7,8,0),1,1) -> 1845.16 | J147: 115 | K147: 2013-12-26 | L147: 0 | M147: 1825.82 | N147: 1832.82 | O147: 1825.82 | P147: 1832.82 | Q147: 1 | S147: 1830.486667 | T147: 1805.412917 | U147: 1820.57 | V147: 1825.82 | W147: 1801.822969 | X147: 3.589947917 | Y147: TRUE | Z147: FALSE | AA147: FALSE | AB147: FALSE | AC147: TRUE | AD147: FALSE | AE147: FALSE | AF147: FALSE | AG147: FALSE | AH147: 2000
A148: 116 | B148: =OFFSET(InputPriceData!B$15,CalculationsAndCharts!$A148+$A$11,0,1,1) -> 2014-02-25 | C148: =OFFSET(InputPriceData!G$15,CalculationsAndCharts!$A148+$A$11,IF($C$7,8,0),1,1) -> 3515560000 | D148: =OFFSET(InputPriceData!C$15,CalculationsAndCharts!$A148+$A$11,IF($C$7,8,0),1,1) -> 1847.66 | E148: =OFFSET(InputPriceData!D$15,CalculationsAndCharts!$A148+$A$11,IF($C$7,8,0),1,1) -> 1852.91 | F148: =OFFSET(InputPriceData!E$15,CalculationsAndCharts!$A148+$A$11,IF($C$7,8,0),1,1) -> 1840.19 | G148: =OFFSET(InputPriceData!F$15,CalculationsAndCharts!$A148+$A$11,IF($C$7,8,0),1,1) -> 1845.12 | J148: 116 | K148: 2013-12-24 | L148: 0 | M148: 1818.82 | N148: 1825.82 | O148: 1818.82 | P148: 1825.82 | Q148: 1 | S148: 1823.486667 | T148: 1799.87125 | U148: 1813.57 | V148: 1818.82 | W148: 1797.805 | X148: 2.06625 | Y148: TRUE | Z148: FALSE | AA148: FALSE | AB148: FALSE | AC148: TRUE | AD148: FALSE | AE148: FALSE | AF148: FALSE | AG148: FALSE | AH148: 2000
A149: 117 | B149: =OFFSET(InputPriceData!B$15,CalculationsAndCharts!$A149+$A$11,0,1,1) -> 2014-02-24 | C149: =OFFSET(InputPriceData!G$15,CalculationsAndCharts!$A149+$A$11,IF($C$7,8,0),1,1) -> 4014530000 | D149: =OFFSET(InputPriceData!C$15,CalculationsAndCharts!$A149+$A$11,IF($C$7,8,0),1,1) -> 1836.78 | E149: =OFFSET(InputPriceData!D$15,CalculationsAndCharts!$A149+$A$11,IF($C$7,8,0),1,1) -> 1858.71 | F149: =OFFSET(InputPriceData!E$15,CalculationsAndCharts!$A149+$A$11,IF($C$7,8,0),1,1) -> 1836.78 | G149: =OFFSET(InputPriceData!F$15,CalculationsAndCharts!$A149+$A$11,IF($C$7,8,0),1,1) -> 1847.61 | J149: 117 | K149: 2013-12-23 | L149: 5097700000 | M149: 1811.82 | N149: 1818.82 | O149: 1811.82 | P149: 1818.82 | Q149: 1 | S149: 1816.486667 | T149: 1796.525417 | U149: 1806.57 | V149: 1811.82 | W149: 1795.379219 | X149: 1.146197917 | Y149: TRUE | Z149: FALSE | AA149: FALSE | AB149: FALSE | AC149: TRUE | AD149: FALSE | AE149: FALSE | AF149: FALSE | AG149: FALSE | AH149: 2000
A150: 118 | B150: =OFFSET(InputPriceData!B$15,CalculationsAndCharts!$A150+$A$11,0,1,1) -> 2014-02-21 | C150: =OFFSET(InputPriceData!G$15,CalculationsAndCharts!$A150+$A$11,IF($C$7,8,0),1,1) -> 3403880000 | D150: =OFFSET(InputPriceData!C$15,CalculationsAndCharts!$A150+$A$11,IF($C$7,8,0),1,1) -> 1841.07 | E150: =OFFSET(InputPriceData!D$15,CalculationsAndCharts!$A150+$A$11,IF($C$7,8,0),1,1) -> 1846.13 | F150: =OFFSET(InputPriceData!E$15,CalculationsAndCharts!$A150+$A$11,IF($C$7,8,0),1,1) -> 1835.6 | G150: =OFFSET(InputPriceData!F$15,CalculationsAndCharts!$A150+$A$11,IF($C$7,8,0),1,1) -> 1836.25 | J150: 118 | K150: 2013-12-20 | L150: 3497210000 | M150: 1804.82 | N150: 1811.82 | O150: 1804.82 | P150: 1811.82 | Q150: 1 | S150: 1809.486667 | T150: 1794.775417 | U150: 1799.57 | V150: 1804.82 | W150: 1793.310547 | X150: 1.464869792 | Y150: TRUE | Z150: FALSE | AA150: FALSE | AB150: TRUE | AC150: TRUE | AD150: FALSE | AE150: FALSE | AF150: FALSE | AG150: FALSE | AH150: 2000
A151: 119 | B151: =OFFSET(InputPriceData!B$15,CalculationsAndCharts!$A151+$A$11,0,1,1) -> 2014-02-20 | C151: =OFFSET(InputPriceData!G$15,CalculationsAndCharts!$A151+$A$11,IF($C$7,8,0),1,1) -> 3404980000 | D151: =OFFSET(InputPriceData!C$15,CalculationsAndCharts!$A151+$A$11,IF($C$7,8,0),1,1) -> 1829.24 | E151: =OFFSET(InputPriceData!D$15,CalculationsAndCharts!$A151+$A$11,IF($C$7,8,0),1,1) -> 1842.79 | F151: =OFFSET(InputPriceData!E$15,CalculationsAndCharts!$A151+$A$11,IF($C$7,8,0),1,1) -> 1824.58 | G151: =OFFSET(InputPriceData!F$15,CalculationsAndCharts!$A151+$A$11,IF($C$7,8,0),1,1) -> 1839.78 | J151: 119 | K151: 2013-12-19 | L151: 0 | M151: 1797.82 | N151: 1804.82 | O151: 1797.82 | P151: 1804.82 | Q151: 1 | S151: 1802.486667 | T151: 1792.784167 | U151: 1792.57 | V151: 1797.82 | W151: 1791.588203 | X151: 1.195963542 | Y151: TRUE | Z151: FALSE | AA151: FALSE | AB151: FALSE | AC151: FALSE | AD151: FALSE | AE151: FALSE | AF151: FALSE | AG151: TRUE
A152: 120 | B152: =OFFSET(InputPriceData!B$15,CalculationsAndCharts!$A152+$A$11,0,1,1) -> 2014-02-19 | C152: =OFFSET(InputPriceData!G$15,CalculationsAndCharts!$A152+$A$11,IF($C$7,8,0),1,1) -> 3661570000 | D152: =OFFSET(InputPriceData!C$15,CalculationsAndCharts!$A152+$A$11,IF($C$7,8,0),1,1) -> 1838.9 | E152: =OFFSET(InputPriceData!D$15,CalculationsAndCharts!$A152+$A$11,IF($C$7,8,0),1,1) -> 1847.5 | F152: =OFFSET(InputPriceData!E$15,CalculationsAndCharts!$A152+$A$11,IF($C$7,8,0),1,1) -> 1826.99 | G152: =OFFSET(InputPriceData!F$15,CalculationsAndCharts!$A152+$A$11,IF($C$7,8,0),1,1) -> 1828.75 | J152: 120 | K152: 2013-12-18 | L152: 0 | M152: 1790.82 | N152: 1797.82 | O152: 1790.82 | P152: 1797.82 | Q152: 0 | S152: 1795.486667 | T152: 1791.116667 | U152: 1780.34875 | V152: 1788.209375 | W152: 1791.152109 | X152: -0.03544270833 | Y152: FALSE | Z152: FALSE | AA152: TRUE | AB152: FALSE | AC152: FALSE | AD152: FALSE | AE152: FALSE | AF152: TRUE | AG152: FALSE | AI152: 2000
A153: 121 | B153: =OFFSET(InputPriceData!B$15,CalculationsAndCharts!$A153+$A$11,0,1,1) -> 2014-02-18 | C153: =OFFSET(InputPriceData!G$15,CalculationsAndCharts!$A153+$A$11,IF($C$7,8,0),1,1) -> 3421110000 | D153: =OFFSET(InputPriceData!C$15,CalculationsAndCharts!$A153+$A$11,IF($C$7,8,0),1,1) -> 1839.03 | E153: =OFFSET(InputPriceData!D$15,CalculationsAndCharts!$A153+$A$11,IF($C$7,8,0),1,1) -> 1842.87 | F153: =OFFSET(InputPriceData!E$15,CalculationsAndCharts!$A153+$A$11,IF($C$7,8,0),1,1) -> 1835.01 | G153: =OFFSET(InputPriceData!F$15,CalculationsAndCharts!$A153+$A$11,IF($C$7,8,0),1,1) -> 1840.76 | J153: 121 | K153: 2013-12-18 | L153: 9540990000 | M153: 1776.82 | N153: 1790.82 | O153: 1777.05 | P153: 1790.82 | Q153: 3 | S153: 1786.23 | T153: 1791.333333 | U153: 1782.07 | V153: 1783.454375 | W153: 1792.622773 | X153: -1.289440104 | Y153: FALSE | Z153: TRUE | AA153: FALSE | AB153: FALSE | AC153: FALSE | AD153: TRUE | AE153: TRUE | AF153: TRUE | AG153: FALSE | AI153: 2000
A154: 122 | B154: =OFFSET(InputPriceData!B$15,CalculationsAndCharts!$A154+$A$11,0,1,1) -> 2014-02-14 | C154: =OFFSET(InputPriceData!G$15,CalculationsAndCharts!$A154+$A$11,IF($C$7,8,0),1,1) -> 3114750000 | D154: =OFFSET(InputPriceData!C$15,CalculationsAndCharts!$A154+$A$11,IF($C$7,8,0),1,1) -> 1828.46 | E154: =OFFSET(InputPriceData!D$15,CalculationsAndCharts!$A154+$A$11,IF($C$7,8,0),1,1) -> 1841.65 | F154: =OFFSET(InputPriceData!E$15,CalculationsAndCharts!$A154+$A$11,IF($C$7,8,0),1,1) -> 1825.59 | G154: =OFFSET(InputPriceData!F$15,CalculationsAndCharts!$A154+$A$11,IF($C$7,8,0),1,1) -> 1838.63 | J154: 122 | K154: 2013-12-13 | L154: 0 | M154: 1783.82 | N154: 1783.82 | O154: 1776.82 | P154: 1776.82 | Q154: 1 | S154: 1779.153333 | T154: 1793.488333 | U154: 1789.07 | V154: 1783.82 | W154: 1794.441523 | X154: -0.9531901042 | Y154: FALSE | Z154: TRUE | AA154: FALSE | AB154: FALSE | AC154: TRUE | AD154: FALSE | AE154: FALSE | AF154: FALSE | AG154: FALSE | AH154: 2000
A155: 123 | B155: =OFFSET(InputPriceData!B$15,CalculationsAndCharts!$A155+$A$11,0,1,1) -> 2014-02-13 | C155: =OFFSET(InputPriceData!G$15,CalculationsAndCharts!$A155+$A$11,IF($C$7,8,0),1,1) -> 3289510000 | D155: =OFFSET(InputPriceData!C$15,CalculationsAndCharts!$A155+$A$11,IF($C$7,8,0),1,1) -> 1814.82 | E155: =OFFSET(InputPriceData!D$15,CalculationsAndCharts!$A155+$A$11,IF($C$7,8,0),1,1) -> 1830.25 | F155: =OFFSET(InputPriceData!E$15,CalculationsAndCharts!$A155+$A$11,IF($C$7,8,0),1,1) -> 1809.22 | G155: =OFFSET(InputPriceData!F$15,CalculationsAndCharts!$A155+$A$11,IF($C$7,8,0),1,1) -> 1829.83 | J155: 123 | K155: 2013-12-12 | L155: 0 | M155: 1790.82 | N155: 1790.82 | O155: 1783.82 | P155: 1783.82 | Q155: 1 | S155: 1786.153333 | T155: 1795.53 | U155: 1801.7825 | V155: 1793.67625 | W155: 1795.023945 | X155: 0.5060546875 | Y155: TRUE | Z155: FALSE | AA155: FALSE | AB155: FALSE | AC155: TRUE | AD155: FALSE | AE155: FALSE | AF155: FALSE | AG155: FALSE | AH155: 2000
A156: 124 | B156: =OFFSET(InputPriceData!B$15,CalculationsAndCharts!$A156+$A$11,0,1,1) -> 2014-02-12 | C156: =OFFSET(InputPriceData!G$15,CalculationsAndCharts!$A156+$A$11,IF($C$7,8,0),1,1) -> 3326380000 | D156: =OFFSET(InputPriceData!C$15,CalculationsAndCharts!$A156+$A$11,IF($C$7,8,0),1,1) -> 1820.12 | E156: =OFFSET(InputPriceData!D$15,CalculationsAndCharts!$A156+$A$11,IF($C$7,8,0),1,1) -> 1826.55 | F156: =OFFSET(InputPriceData!E$15,CalculationsAndCharts!$A156+$A$11,IF($C$7,8,0),1,1) -> 1815.97 | G156: =OFFSET(InputPriceData!F$15,CalculationsAndCharts!$A156+$A$11,IF($C$7,8,0),1,1) -> 1819.26 | J156: 124 | K156: 2013-12-11 | L156: 6246650000 | M156: 1804.82 | N156: 1808.52 | O156: 1790.82 | P156: 1790.82 | Q156: 2 | S156: 1796.72 | T156: 1795.719583 | U156: 1799.57 | V156: 1799.41375 | W156: 1794.097344 | X156: 1.622239583 | Y156: TRUE | Z156: FALSE | AA156: FALSE | AB156: FALSE | AC156: TRUE | AD156: FALSE | AE156: FALSE | AF156: FALSE | AG156: FALSE | AH156: 2000
A157: 125 | B157: =OFFSET(InputPriceData!B$15,CalculationsAndCharts!$A157+$A$11,0,1,1) -> 2014-02-11 | C157: =OFFSET(InputPriceData!G$15,CalculationsAndCharts!$A157+$A$11,IF($C$7,8,0),1,1) -> 3699380000 | D157: =OFFSET(InputPriceData!C$15,CalculationsAndCharts!$A157+$A$11,IF($C$7,8,0),1,1) -> 1800.45 | E157: =OFFSET(InputPriceData!D$15,CalculationsAndCharts!$A157+$A$11,IF($C$7,8,0),1,1) -> 1823.54 | F157: =OFFSET(InputPriceData!E$15,CalculationsAndCharts!$A157+$A$11,IF($C$7,8,0),1,1) -> 1800.41 | G157: =OFFSET(InputPriceData!F$15,CalculationsAndCharts!$A157+$A$11,IF($C$7,8,0),1,1) -> 1819.75 | J157: 125 | K157: 2013-12-09 | L157: 0 | M157: 1797.82 | N157: 1804.82 | O157: 1797.82 | P157: 1804.82 | Q157: 1 | S157: 1802.486667 | T157: 1794.010833 | U157: 1787.47125 | V157: 1795.270625 | W157: 1792.386016 | X157: 1.624817708 | Y157: TRUE | Z157: FALSE | AA157: FALSE | AB157: FALSE | AC157: TRUE | AD157: FALSE | AE157: FALSE | AF157: FALSE | AG157: FALSE | AH157: 2000
A158: 126 | B158: =OFFSET(InputPriceData!B$15,CalculationsAndCharts!$A158+$A$11,0,1,1) -> 2014-02-10 | C158: =OFFSET(InputPriceData!G$15,CalculationsAndCharts!$A158+$A$11,IF($C$7,8,0),1,1) -> 3312160000 | D158: =OFFSET(InputPriceData!C$15,CalculationsAndCharts!$A158+$A$11,IF($C$7,8,0),1,1) -> 1796.2 | E158: =OFFSET(InputPriceData!D$15,CalculationsAndCharts!$A158+$A$11,IF($C$7,8,0),1,1) -> 1799.94 | F158: =OFFSET(InputPriceData!E$15,CalculationsAndCharts!$A158+$A$11,IF($C$7,8,0),1,1) -> 1791.83 | G158: =OFFSET(InputPriceData!F$15,CalculationsAndCharts!$A158+$A$11,IF($C$7,8,0),1,1) -> 1799.84 | J158: 126 | K158: 2013-12-06 | L158: 3336880000 | M158: 1783.82 | N158: 1797.82 | O158: 1785.03 | P158: 1797.82 | Q158: 1 | S158: 1793.556667 | T158: 1792.260833 | U158: 1790.1925 | V158: 1791.04125 | W158: 1790.954688 | X158: 1.306145833 | Y158: TRUE | Z158: FALSE | AA158: FALSE | AB158: FALSE | AC158: TRUE | AD158: FALSE | AE158: FALSE | AF158: FALSE | AG158: FALSE | AH158: 2000
A159: 127 | B159: =OFFSET(InputPriceData!B$15,CalculationsAndCharts!$A159+$A$11,0,1,1) -> 2014-02-07 | C159: =OFFSET(InputPriceData!G$15,CalculationsAndCharts!$A159+$A$11,IF($C$7,8,0),1,1) -> 3775990000 | D159: =OFFSET(InputPriceData!C$15,CalculationsAndCharts!$A159+$A$11,IF($C$7,8,0),1,1) -> 1776.01 | E159: =OFFSET(InputPriceData!D$15,CalculationsAndCharts!$A159+$A$11,IF($C$7,8,0),1,1) -> 1798.03 | F159: =OFFSET(InputPriceData!E$15,CalculationsAndCharts!$A159+$A$11,IF($C$7,8,0),1,1) -> 1776.01 | G159: =OFFSET(InputPriceData!F$15,CalculationsAndCharts!$A159+$A$11,IF($C$7,8,0),1,1) -> 1797.02 | J159: 127 | K159: 2013-12-05 | L159: 7086220000 | M159: 1790.82 | N159: 1799.8 | O159: 1783.82 | P159: 1783.82 | Q159: 2 | S159: 1789.146667 | T159: 1790.752083 | U159: 1801.97 | V159: 1794.33125 | W159: 1789.118203 | X159: 1.633880208 | Y159: TRUE | Z159: FALSE | AA159: FALSE | AB159: FALSE | AC159: TRUE | AD159: FALSE | AE159: FALSE | AF159: FALSE | AG159: FALSE | AH159: 2000
A160: 128 | B160: =OFFSET(InputPriceData!B$15,CalculationsAndCharts!$A160+$A$11,0,1,1) -> 2014-02-06 | C160: =OFFSET(InputPriceData!G$15,CalculationsAndCharts!$A160+$A$11,IF($C$7,8,0),1,1) -> 3825410000 | D160: =OFFSET(InputPriceData!C$15,CalculationsAndCharts!$A160+$A$11,IF($C$7,8,0),1,1) -> 1752.99 | E160: =OFFSET(InputPriceData!D$15,CalculationsAndCharts!$A160+$A$11,IF($C$7,8,0),1,1) -> 1774.06 | F160: =OFFSET(InputPriceData!E$15,CalculationsAndCharts!$A160+$A$11,IF($C$7,8,0),1,1) -> 1752.99 | G160: =OFFSET(InputPriceData!F$15,CalculationsAndCharts!$A160+$A$11,IF($C$7,8,0),1,1) -> 1773.43 | J160: 128 | K160: 2013-12-03 | L160: 7307320000 | M160: 1804.82 | N160: 1810.02 | O160: 1790.82 | P160: 1790.82 | Q160: 3 | S160: 1797.22 | T160: 1788.605833 | U160: 1799.93875 | V160: 1799.974688 | W160: 1785.612656 | X160: 2.993177083 | Y160: TRUE | Z160: FALSE | AA160: FALSE | AB160: FALSE | AC160: TRUE | AD160: FALSE | AE160: FALSE | AF160: FALSE | AG160: FALSE | AH160: 2000
A161: 129 | B161: =OFFSET(InputPriceData!B$15,CalculationsAndCharts!$A161+$A$11,0,1,1) -> 2014-02-05 | C161: =OFFSET(InputPriceData!G$15,CalculationsAndCharts!$A161+$A$11,IF($C$7,8,0),1,1) -> 3984290000 | D161: =OFFSET(InputPriceData!C$15,CalculationsAndCharts!$A161+$A$11,IF($C$7,8,0),1,1) -> 1753.38 | E161: =OFFSET(InputPriceData!D$15,CalculationsAndCharts!$A161+$A$11,IF($C$7,8,0),1,1) -> 1755.79 | F161: =OFFSET(InputPriceData!E$15,CalculationsAndCharts!$A161+$A$11,IF($C$7,8,0),1,1) -> 1737.92 | G161: =OFFSET(InputPriceData!F$15,CalculationsAndCharts!$A161+$A$11,IF($C$7,8,0),1,1) -> 1751.64 | J161: 129 | K161: 2013-11-27 | L161: 9480800000 | M161: 1797.82 | N161: 1804.82 | O161: 1800.77 | P161: 1804.82 | Q161: 3 | S161: 1803.47 | T161: =AVERAGE(OFFSET(S161,0,0,$A$24,1)) -> 1784.305833 | U161: 1792.57 | V161: 1798.004375 | W161: =AVERAGE(OFFSET(V161,0,0,$D$24,1)) -> 1780.806875 | X161: 3.498958333 | Y161: TRUE | Z161: FALSE | AA161: FALSE | AB161: =AND(Y162<>Y163,Y162,NOT(AC162)) -> FALSE | AC161: TRUE | AD161: =AND(AC162,OR(AND(Z162<>Z163,Z162),AA162)) -> FALSE | AE161: FALSE | AF161: =IF(AF162,IF(AG161,FALSE,AF162),IF(AE161,TRUE,AF162)) -> FALSE | AG161: FALSE | AH161: =IF(AC161,$AH$28,NA()) -> 2000 | AI161: =IF(AF161,$AH$28,NA()) -> 
A162: 130 | B162: =OFFSET(InputPriceData!B$15,CalculationsAndCharts!$A162+$A$11,0,1,1) -> 2014-02-04 | C162: =OFFSET(InputPriceData!G$15,CalculationsAndCharts!$A162+$A$11,IF($C$7,8,0),1,1) -> 4068410000 | D162: =OFFSET(InputPriceData!C$15,CalculationsAndCharts!$A162+$A$11,IF($C$7,8,0),1,1) -> 1743.82 | E162: =OFFSET(InputPriceData!D$15,CalculationsAndCharts!$A162+$A$11,IF($C$7,8,0),1,1) -> 1758.73 | F162: =OFFSET(InputPriceData!E$15,CalculationsAndCharts!$A162+$A$11,IF($C$7,8,0),1,1) -> 1743.82 | G162: =OFFSET(InputPriceData!F$15,CalculationsAndCharts!$A162+$A$11,IF($C$7,8,0),1,1) -> 1755.2 | J162: 130 | K162: 2013-11-22 | L162: 3256630000 | M162: 1790.82 | N162: 1797.82 | O162: 1790.82 | P162: 1797.82 | Q162: 1 | S162: =SUM(N162:P162)/3 -> 1795.486667 | T162: 1778.960833 | U162: =(((M163+N163+O163+P163)/4)+M163)/2 -> 1780.88875 | V162: =(((M162+N162+O162+P162)/4)+U162+MAX(N162,U162)+MIN(O162,U162))/4 -> 1788.479375 | W162: 1776.462109 | X162: =T162-W162 -> 2.498723958 | Y162: =X162>$Y$22 -> TRUE | Z162: =X162<-$Y$22 -> FALSE | AA162: FALSE | AB162: FALSE | AC162: TRUE | AD162: FALSE | AE162: FALSE | AF162: FALSE | AG162: =AND(AF163,OR(AND(Y163<>Y164,Y163),AA163)) -> FALSE | AH162: 2000
A163: 131 | B163: =OFFSET(InputPriceData!B$15,CalculationsAndCharts!$A163+$A$11,0,1,1) -> 2014-02-03 | C163: =OFFSET(InputPriceData!G$15,CalculationsAndCharts!$A163+$A$11,IF($C$7,8,0),1,1) -> 4726040000 | D163: =OFFSET(InputPriceData!C$15,CalculationsAndCharts!$A163+$A$11,IF($C$7,8,0),1,1) -> 1782.68 | E163: =OFFSET(InputPriceData!D$15,CalculationsAndCharts!$A163+$A$11,IF($C$7,8,0),1,1) -> 1784.83 | F163: =OFFSET(InputPriceData!E$15,CalculationsAndCharts!$A163+$A$11,IF($C$7,8,0),1,1) -> 1739.66 | G163: =OFFSET(InputPriceData!F$15,CalculationsAndCharts!$A163+$A$11,IF($C$7,8,0),1,1) -> 1741.89 | J163: 131 | K163: 2013-11-21 | L163: 3109140000 | M163: 1776.82 | N163: 1790.82 | O163: 1781.37 | P163: 1790.82 | Q163: 1 | S163: 1787.67 | T163: 1775.166667 | U163: 1787.90625 | V163: 1786.263438 | W163: 1773.150195 | X163: 2.016471354 | Y163: TRUE | Z163: FALSE | AA163: FALSE | AB163: FALSE | AC163: TRUE | AD163: FALSE | AE163: FALSE | AF163: FALSE | AG163: FALSE | AH163: 2000
A164: 132 | B164: =OFFSET(InputPriceData!B$15,CalculationsAndCharts!$A164+$A$11,0,1,1) -> 2014-01-31 | C164: =OFFSET(InputPriceData!G$15,CalculationsAndCharts!$A164+$A$11,IF($C$7,8,0),1,1) -> 4059690000 | D164: =OFFSET(InputPriceData!C$15,CalculationsAndCharts!$A164+$A$11,IF($C$7,8,0),1,1) -> 1790.88 | E164: =OFFSET(InputPriceData!D$15,CalculationsAndCharts!$A164+$A$11,IF($C$7,8,0),1,1) -> 1793.88 | F164: =OFFSET(InputPriceData!E$15,CalculationsAndCharts!$A164+$A$11,IF($C$7,8,0),1,1) -> 1772.26 | G164: =OFFSET(InputPriceData!F$15,CalculationsAndCharts!$A164+$A$11,IF($C$7,8,0),1,1) -> 1782.59 | J164: 132 | K164: 2013-11-20 | L164: 6392970000 | M164: 1790.82 | N164: 1795.51 | O164: 1776.82 | P164: 1776.82 | Q164: 3 | S164: 1783.05 | T164: 1771.845833 | U164: 1785.57 | V164: 1785.723125 | W164: 1769.333281 | X164: 2.512552083 | Y164: TRUE | Z164: FALSE | AA164: FALSE | AB164: FALSE | AC164: TRUE | AD164: FALSE | AE164: FALSE | AF164: FALSE | AG164: FALSE | AH164: 2000
A165: 133 | B165: =OFFSET(InputPriceData!B$15,CalculationsAndCharts!$A165+$A$11,0,1,1) -> 2014-01-30 | C165: =OFFSET(InputPriceData!G$15,CalculationsAndCharts!$A165+$A$11,IF($C$7,8,0),1,1) -> 3547510000 | D165: =OFFSET(InputPriceData!C$15,CalculationsAndCharts!$A165+$A$11,IF($C$7,8,0),1,1) -> 1777.17 | E165: =OFFSET(InputPriceData!D$15,CalculationsAndCharts!$A165+$A$11,IF($C$7,8,0),1,1) -> 1798.77 | F165: =OFFSET(InputPriceData!E$15,CalculationsAndCharts!$A165+$A$11,IF($C$7,8,0),1,1) -> 1777.17 | G165: =OFFSET(InputPriceData!F$15,CalculationsAndCharts!$A165+$A$11,IF($C$7,8,0),1,1) -> 1794.19 | J165: 133 | K165: 2013-11-15 | L165: 3139060000 | M165: 1783.82 | N165: 1790.82 | O165: 1783.82 | P165: 1790.82 | Q165: 1 | S165: 1788.486667 | T165: 1768.012083 | U165: 1778.57 | V165: 1783.82 | W165: 1764.694453 | X165: 3.317630208 | Y165: TRUE | Z165: FALSE | AA165: FALSE | AB165: FALSE | AC165: TRUE | AD165: FALSE | AE165: FALSE | AF165: FALSE | AG165: FALSE | AH165: 2000
A166: 134 | B166: =OFFSET(InputPriceData!B$15,CalculationsAndCharts!$A166+$A$11,0,1,1) -> 2014-01-29 | C166: =OFFSET(InputPriceData!G$15,CalculationsAndCharts!$A166+$A$11,IF($C$7,8,0),1,1) -> 3964020000 | D166: =OFFSET(InputPriceData!C$15,CalculationsAndCharts!$A166+$A$11,IF($C$7,8,0),1,1) -> 1790.15 | E166: =OFFSET(InputPriceData!D$15,CalculationsAndCharts!$A166+$A$11,IF($C$7,8,0),1,1) -> 1790.15 | F166: =OFFSET(InputPriceData!E$15,CalculationsAndCharts!$A166+$A$11,IF($C$7,8,0),1,1) -> 1770.45 | G166: =OFFSET(InputPriceData!F$15,CalculationsAndCharts!$A166+$A$11,IF($C$7,8,0),1,1) -> 1774.2 | J166: 134 | K166: 2013-11-14 | L166: 3327480000 | M166: 1776.82 | N166: 1783.82 | O166: 1776.82 | P166: 1783.82 | Q166: 1 | S166: 1781.486667 | T166: 1762.762083 | U166: 1770.62875 | V166: 1776.349375 | W166: 1759.444453 | X166: 3.317630208 | Y166: TRUE | Z166: FALSE | AA166: FALSE | AB166: FALSE | AC166: TRUE | AD166: FALSE | AE166: FALSE | AF166: FALSE | AG166: FALSE | AH166: 2000
A167: 135 | B167: =OFFSET(InputPriceData!B$15,CalculationsAndCharts!$A167+$A$11,0,1,1) -> 2014-01-28 | C167: =OFFSET(InputPriceData!G$15,CalculationsAndCharts!$A167+$A$11,IF($C$7,8,0),1,1) -> 3437830000 | D167: =OFFSET(InputPriceData!C$15,CalculationsAndCharts!$A167+$A$11,IF($C$7,8,0),1,1) -> 1783 | E167: =OFFSET(InputPriceData!D$15,CalculationsAndCharts!$A167+$A$11,IF($C$7,8,0),1,1) -> 1793.87 | F167: =OFFSET(InputPriceData!E$15,CalculationsAndCharts!$A167+$A$11,IF($C$7,8,0),1,1) -> 1779.49 | G167: =OFFSET(InputPriceData!F$15,CalculationsAndCharts!$A167+$A$11,IF($C$7,8,0),1,1) -> 1792.5 | J167: 135 | K167: 2013-11-13 | L167: 9592260000 | M167: 1769.82 | N167: 1776.82 | O167: 1762.29 | P167: 1776.82 | Q167: 3 | S167: 1771.976667 | T167: 1757.512083 | U167: 1758.445 | V167: 1766.286875 | W167: 1754.253281 | X167: 3.258802083 | Y167: TRUE | Z167: FALSE | AA167: FALSE | AB167: FALSE | AC167: TRUE | AD167: FALSE | AE167: FALSE | AF167: FALSE | AG167: FALSE | AH167: 2000
A168: 136 | B168: =OFFSET(InputPriceData!B$15,CalculationsAndCharts!$A168+$A$11,0,1,1) -> 2014-01-27 | C168: =OFFSET(InputPriceData!G$15,CalculationsAndCharts!$A168+$A$11,IF($C$7,8,0),1,1) -> 4045200000 | D168: =OFFSET(InputPriceData!C$15,CalculationsAndCharts!$A168+$A$11,IF($C$7,8,0),1,1) -> 1791.03 | E168: =OFFSET(InputPriceData!D$15,CalculationsAndCharts!$A168+$A$11,IF($C$7,8,0),1,1) -> 1795.98 | F168: =OFFSET(InputPriceData!E$15,CalculationsAndCharts!$A168+$A$11,IF($C$7,8,0),1,1) -> 1772.88 | G168: =OFFSET(InputPriceData!F$15,CalculationsAndCharts!$A168+$A$11,IF($C$7,8,0),1,1) -> 1781.56 | J168: 136 | K168: 2013-11-08 | L168: 0 | M168: 1755.82 | N168: 1769.82 | O168: 1748.82 | P168: 1769.82 | Q168: 1 | S168: 1762.82 | T168: 1752.575833 | U168: 1766.40375 | V168: 1761.528438 | W168: 1749.444922 | X168: 3.130911458 | Y168: TRUE | Z168: FALSE | AA168: FALSE | AB168: FALSE | AC168: =IF(AC169,IF(AD168,FALSE,AC169),IF(AB168,TRUE,AC169)) -> TRUE | AD168: FALSE | AE168: FALSE | AF168: FALSE | AG168: FALSE | AH168: 2000
A169: 137 | B169: =OFFSET(InputPriceData!B$15,CalculationsAndCharts!$A169+$A$11,0,1,1) -> 2014-01-24 | C169: =OFFSET(InputPriceData!G$15,CalculationsAndCharts!$A169+$A$11,IF($C$7,8,0),1,1) -> 4618450000 | D169: =OFFSET(InputPriceData!C$15,CalculationsAndCharts!$A169+$A$11,IF($C$7,8,0),1,1) -> 1826.96 | E169: =OFFSET(InputPriceData!D$15,CalculationsAndCharts!$A169+$A$11,IF($C$7,8,0),1,1) -> 1826.96 | F169: =OFFSET(InputPriceData!E$15,CalculationsAndCharts!$A169+$A$11,IF($C$7,8,0),1,1) -> 1790.29 | G169: =OFFSET(InputPriceData!F$15,CalculationsAndCharts!$A169+$A$11,IF($C$7,8,0),1,1) -> 1790.29 | J169: 137 | K169: 2013-11-07 | L169: 3322100000 | M169: 1769.82 | N169: 1770.49 | O169: 1755.82 | P169: 1755.82 | Q169: 1 | S169: 1760.71 | T169: 1747.909167 | U169: 1763.6875 | V169: 1763.24625 | W169: 1744.356367 | X169: 3.552799479 | Y169: TRUE | Z169: FALSE | AA169: FALSE | AB169: FALSE | AC169: TRUE | AD169: FALSE | AE169: FALSE | AF169: FALSE | AG169: FALSE | AH169: 2000
A170: 138 | B170: =OFFSET(InputPriceData!B$15,CalculationsAndCharts!$A170+$A$11,0,1,1) -> 2014-01-23 | C170: =OFFSET(InputPriceData!G$15,CalculationsAndCharts!$A170+$A$11,IF($C$7,8,0),1,1) -> 3972250000 | D170: =OFFSET(InputPriceData!C$15,CalculationsAndCharts!$A170+$A$11,IF($C$7,8,0),1,1) -> 1842.29 | E170: =OFFSET(InputPriceData!D$15,CalculationsAndCharts!$A170+$A$11,IF($C$7,8,0),1,1) -> 1842.29 | F170: =OFFSET(InputPriceData!E$15,CalculationsAndCharts!$A170+$A$11,IF($C$7,8,0),1,1) -> 1820.06 | G170: =OFFSET(InputPriceData!F$15,CalculationsAndCharts!$A170+$A$11,IF($C$7,8,0),1,1) -> 1828.46 | J170: 138 | K170: 2013-11-06 | L170: 17747410000 | M170: 1762.82 | N170: 1769.82 | O170: 1755.76 | P170: 1769.82 | Q170: 6 | S170: 1765.133333 | T170: 1742.63125 | U170: 1757.80125 | V170: 1761.984063 | W170: 1738.178086 | X170: 4.453164063 | Y170: TRUE | Z170: FALSE | AA170: FALSE | AB170: FALSE | AC170: TRUE | AD170: FALSE | AE170: FALSE | AF170: FALSE | AG170: FALSE | AH170: 2000
A171: 139 | B171: =OFFSET(InputPriceData!B$15,CalculationsAndCharts!$A171+$A$11,0,1,1) -> 2014-01-22 | C171: =OFFSET(InputPriceData!G$15,CalculationsAndCharts!$A171+$A$11,IF($C$7,8,0),1,1) -> 3374170000 | D171: =OFFSET(InputPriceData!C$15,CalculationsAndCharts!$A171+$A$11,IF($C$7,8,0),1,1) -> 1844.71 | E171: =OFFSET(InputPriceData!D$15,CalculationsAndCharts!$A171+$A$11,IF($C$7,8,0),1,1) -> 1846.87 | F171: =OFFSET(InputPriceData!E$15,CalculationsAndCharts!$A171+$A$11,IF($C$7,8,0),1,1) -> 1840.88 | G171: =OFFSET(InputPriceData!F$15,CalculationsAndCharts!$A171+$A$11,IF($C$7,8,0),1,1) -> 1844.86 | J171: 139 | K171: 2013-10-29 | L171: 6458020000 | M171: 1755.82 | N171: 1762.82 | O171: 1757.67 | P171: 1762.82 | Q171: 2 | S171: 1761.103333 | T171: 1735.925417 | U171: 1750.155 | V171: 1755.728125 | W171: 1731.252187 | X171: 4.673229167 | Y171: TRUE | Z171: FALSE | AA171: FALSE | AB171: FALSE | AC171: TRUE | AD171: FALSE | AE171: FALSE | AF171: FALSE | AG171: FALSE | AH171: 2000
A172: 140 | B172: =OFFSET(InputPriceData!B$15,CalculationsAndCharts!$A172+$A$11,0,1,1) -> 2014-01-21 | C172: =OFFSET(InputPriceData!G$15,CalculationsAndCharts!$A172+$A$11,IF($C$7,8,0),1,1) -> 3782470000 | D172: =OFFSET(InputPriceData!C$15,CalculationsAndCharts!$A172+$A$11,IF($C$7,8,0),1,1) -> 1841.05 | E172: =OFFSET(InputPriceData!D$15,CalculationsAndCharts!$A172+$A$11,IF($C$7,8,0),1,1) -> 1849.31 | F172: =OFFSET(InputPriceData!E$15,CalculationsAndCharts!$A172+$A$11,IF($C$7,8,0),1,1) -> 1832.38 | G172: =OFFSET(InputPriceData!F$15,CalculationsAndCharts!$A172+$A$11,IF($C$7,8,0),1,1) -> 1843.8 | J172: 140 | K172: 2013-10-25 | L172: 11235920000 | M172: 1748.82 | N172: 1755.82 | O172: 1745.5 | P172: 1755.82 | Q172: 3 | S172: 1752.38 | T172: 1728.68625 | U172: 1743.57 | V172: 1748.6125 | W172: 1724.233281 | X172: 4.45296875 | Y172: TRUE | Z172: FALSE | AA172: =NOT(OR(Y172,Z172)) -> FALSE | AB172: FALSE | AC172: TRUE | AD172: FALSE | AE172: =AND(Z173<>Z174,Z173,NOT(AF173)) -> FALSE | AF172: FALSE | AG172: FALSE | AH172: 2000
A173: 141 | B173: =OFFSET(InputPriceData!B$15,CalculationsAndCharts!$A173+$A$11,0,1,1) -> 2014-01-17 | C173: =OFFSET(InputPriceData!G$15,CalculationsAndCharts!$A173+$A$11,IF($C$7,8,0),1,1) -> 3626120000 | D173: =OFFSET(InputPriceData!C$15,CalculationsAndCharts!$A173+$A$11,IF($C$7,8,0),1,1) -> 1844.23 | E173: =OFFSET(InputPriceData!D$15,CalculationsAndCharts!$A173+$A$11,IF($C$7,8,0),1,1) -> 1846.04 | F173: =OFFSET(InputPriceData!E$15,CalculationsAndCharts!$A173+$A$11,IF($C$7,8,0),1,1) -> 1835.23 | G173: =OFFSET(InputPriceData!F$15,CalculationsAndCharts!$A173+$A$11,IF($C$7,8,0),1,1) -> 1838.7 | J173: 141 | K173: 2013-10-22 | L173: 3052710000 | M173: 1741.82 | N173: 1748.82 | O173: 1741.82 | P173: 1748.82 | Q173: 1 | S173: 1746.486667 | T173: 1721.824583 | U173: 1736.57 | V173: 1741.82 | W173: 1717.259219 | X173: 4.565364583 | Y173: TRUE | Z173: FALSE | AA173: FALSE | AB173: FALSE | AC173: TRUE | AD173: FALSE | AE173: FALSE | AF173: FALSE | AG173: FALSE | AH173: 2000
A174: 142 | B174: =OFFSET(InputPriceData!B$15,CalculationsAndCharts!$A174+$A$11,0,1,1) -> 2014-01-16 | C174: =OFFSET(InputPriceData!G$15,CalculationsAndCharts!$A174+$A$11,IF($C$7,8,0),1,1) -> 3491310000 | D174: =OFFSET(InputPriceData!C$15,CalculationsAndCharts!$A174+$A$11,IF($C$7,8,0),1,1) -> 1847.99 | E174: =OFFSET(InputPriceData!D$15,CalculationsAndCharts!$A174+$A$11,IF($C$7,8,0),1,1) -> 1847.99 | F174: =OFFSET(InputPriceData!E$15,CalculationsAndCharts!$A174+$A$11,IF($C$7,8,0),1,1) -> 1840.3 | G174: =OFFSET(InputPriceData!F$15,CalculationsAndCharts!$A174+$A$11,IF($C$7,8,0),1,1) -> 1845.89 | J174: 142 | K174: 2013-10-21 | L174: 0 | M174: 1734.82 | N174: 1741.82 | O174: 1734.82 | P174: 1741.82 | Q174: 1 | S174: 1739.486667 | T174: 1714.824583 | U174: 1729.57 | V174: 1734.82 | W174: 1710.259219 | X174: 4.565364583 | Y174: TRUE | Z174: FALSE | AA174: FALSE | AB174: FALSE | AC174: TRUE | AD174: FALSE | AE174: FALSE | AF174: FALSE | AG174: FALSE | AH174: 2000
A175: 143 | B175: =OFFSET(InputPriceData!B$15,CalculationsAndCharts!$A175+$A$11,0,1,1) -> 2014-01-15 | C175: =OFFSET(InputPriceData!G$15,CalculationsAndCharts!$A175+$A$11,IF($C$7,8,0),1,1) -> 3777800000 | D175: =OFFSET(InputPriceData!C$15,CalculationsAndCharts!$A175+$A$11,IF($C$7,8,0),1,1) -> 1840.52 | E175: =OFFSET(InputPriceData!D$15,CalculationsAndCharts!$A175+$A$11,IF($C$7,8,0),1,1) -> 1850.84 | F175: =OFFSET(InputPriceData!E$15,CalculationsAndCharts!$A175+$A$11,IF($C$7,8,0),1,1) -> 1840.52 | G175: =OFFSET(InputPriceData!F$15,CalculationsAndCharts!$A175+$A$11,IF($C$7,8,0),1,1) -> 1848.38 | J175: 143 | K175: 2013-10-18 | L175: 0 | M175: 1727.82 | N175: 1734.82 | O175: 1727.82 | P175: 1734.82 | Q175: 0 | S175: 1732.486667 | T175: 1707.824583 | U175: 1722.57 | V175: 1727.82 | W175: 1703.259219 | X175: 4.565364583 | Y175: TRUE | Z175: FALSE | AA175: FALSE | AB175: FALSE | AC175: TRUE | AD175: FALSE | AE175: FALSE | AF175: FALSE | AG175: FALSE | AH175: 2000
A176: 144 | B176: =OFFSET(InputPriceData!B$15,CalculationsAndCharts!$A176+$A$11,0,1,1) -> 2014-01-14 | C176: =OFFSET(InputPriceData!G$15,CalculationsAndCharts!$A176+$A$11,IF($C$7,8,0),1,1) -> 3353270000 | D176: =OFFSET(InputPriceData!C$15,CalculationsAndCharts!$A176+$A$11,IF($C$7,8,0),1,1) -> 1821.36 | E176: =OFFSET(InputPriceData!D$15,CalculationsAndCharts!$A176+$A$11,IF($C$7,8,0),1,1) -> 1839.26 | F176: =OFFSET(InputPriceData!E$15,CalculationsAndCharts!$A176+$A$11,IF($C$7,8,0),1,1) -> 1821.36 | G176: =OFFSET(InputPriceData!F$15,CalculationsAndCharts!$A176+$A$11,IF($C$7,8,0),1,1) -> 1838.88 | J176: 144 | K176: 2013-10-18 | L176: 0 | M176: 1720.82 | N176: 1727.82 | O176: 1720.82 | P176: 1727.82 | Q176: 1 | S176: 1725.486667 | T176: 1700.824583 | U176: 1715.57 | V176: 1720.82 | W176: 1695.92 | X176: 4.904583333 | Y176: TRUE | Z176: FALSE | AA176: FALSE | AB176: FALSE | AC176: TRUE | AD176: FALSE | AE176: FALSE | AF176: FALSE | AG176: FALSE | AH176: 2000
A177: 145 | B177: =OFFSET(InputPriceData!B$15,CalculationsAndCharts!$A177+$A$11,0,1,1) -> 2014-01-13 | C177: =OFFSET(InputPriceData!G$15,CalculationsAndCharts!$A177+$A$11,IF($C$7,8,0),1,1) -> 3591350000 | D177: =OFFSET(InputPriceData!C$15,CalculationsAndCharts!$A177+$A$11,IF($C$7,8,0),1,1) -> 1841.26 | E177: =OFFSET(InputPriceData!D$15,CalculationsAndCharts!$A177+$A$11,IF($C$7,8,0),1,1) -> 1843.45 | F177: =OFFSET(InputPriceData!E$15,CalculationsAndCharts!$A177+$A$11,IF($C$7,8,0),1,1) -> 1815.52 | G177: =OFFSET(InputPriceData!F$15,CalculationsAndCharts!$A177+$A$11,IF($C$7,8,0),1,1) -> 1819.2 | J177: 145 | K177: 2013-10-17 | L177: 0 | M177: 1713.82 | N177: 1720.82 | O177: 1713.82 | P177: 1720.82 | Q177: 1 | S177: 1718.486667 | T177: 1693.47375 | U177: 1708.57 | V177: 1713.82 | W177: 1688.809844 | X177: 4.66390625 | Y177: TRUE | Z177: FALSE | AA177: FALSE | AB177: FALSE | AC177: TRUE | AD177: FALSE | AE177: FALSE | AF177: FALSE | AG177: FALSE | AH177: 2000
A178: 146 | B178: =OFFSET(InputPriceData!B$15,CalculationsAndCharts!$A178+$A$11,0,1,1) -> 2014-01-10 | C178: =OFFSET(InputPriceData!G$15,CalculationsAndCharts!$A178+$A$11,IF($C$7,8,0),1,1) -> 3335710000 | D178: =OFFSET(InputPriceData!C$15,CalculationsAndCharts!$A178+$A$11,IF($C$7,8,0),1,1) -> 1840.06 | E178: =OFFSET(InputPriceData!D$15,CalculationsAndCharts!$A178+$A$11,IF($C$7,8,0),1,1) -> 1843.15 | F178: =OFFSET(InputPriceData!E$15,CalculationsAndCharts!$A178+$A$11,IF($C$7,8,0),1,1) -> 1832.43 | G178: =OFFSET(InputPriceData!F$15,CalculationsAndCharts!$A178+$A$11,IF($C$7,8,0),1,1) -> 1842.37 | J178: 146 | K178: 2013-10-16 | L178: 0 | M178: 1706.82 | N178: 1713.82 | O178: 1706.82 | P178: 1713.82 | Q178: 0 | S178: 1711.486667 | T178: 1686.182083 | U178: 1701.08375 | V178: 1706.576875 | W178: 1682.684844 | X178: 3.497239583 | Y178: TRUE | Z178: FALSE | AA178: FALSE | AB178: FALSE | AC178: TRUE | AD178: FALSE | AE178: FALSE | AF178: FALSE | AG178: FALSE | AH178: 2000
A179: 147 | B179: =OFFSET(InputPriceData!B$15,CalculationsAndCharts!$A179+$A$11,0,1,1) -> 2014-01-09 | C179: =OFFSET(InputPriceData!G$15,CalculationsAndCharts!$A179+$A$11,IF($C$7,8,0),1,1) -> 3581150000 | D179: =OFFSET(InputPriceData!C$15,CalculationsAndCharts!$A179+$A$11,IF($C$7,8,0),1,1) -> 1839 | E179: =OFFSET(InputPriceData!D$15,CalculationsAndCharts!$A179+$A$11,IF($C$7,8,0),1,1) -> 1843.23 | F179: =OFFSET(InputPriceData!E$15,CalculationsAndCharts!$A179+$A$11,IF($C$7,8,0),1,1) -> 1830.38 | G179: =OFFSET(InputPriceData!F$15,CalculationsAndCharts!$A179+$A$11,IF($C$7,8,0),1,1) -> 1838.13 | J179: 147 | K179: 2013-10-16 | L179: 3327740000 | M179: 1699.82 | N179: 1706.82 | O179: 1695.93 | P179: 1706.82 | Q179: 2 | S179: 1703.19 | T179: 1680.640417 | U179: 1694.57 | V179: 1699.576875 | W179: 1678.442734 | X179: 2.197682292 | Y179: TRUE | Z179: FALSE | AA179: FALSE | AB179: TRUE | AC179: TRUE | AD179: FALSE | AE179: FALSE | AF179: FALSE | AG179: FALSE | AH179: 2000
A180: 148 | B180: =OFFSET(InputPriceData!B$15,CalculationsAndCharts!$A180+$A$11,0,1,1) -> 2014-01-08 | C180: =OFFSET(InputPriceData!G$15,CalculationsAndCharts!$A180+$A$11,IF($C$7,8,0),1,1) -> 3652140000 | D180: =OFFSET(InputPriceData!C$15,CalculationsAndCharts!$A180+$A$11,IF($C$7,8,0),1,1) -> 1837.9 | E180: =OFFSET(InputPriceData!D$15,CalculationsAndCharts!$A180+$A$11,IF($C$7,8,0),1,1) -> 1840.02 | F180: =OFFSET(InputPriceData!E$15,CalculationsAndCharts!$A180+$A$11,IF($C$7,8,0),1,1) -> 1831.4 | G180: =OFFSET(InputPriceData!F$15,CalculationsAndCharts!$A180+$A$11,IF($C$7,8,0),1,1) -> 1837.49 | J180: 148 | K180: 2013-10-14 | L180: 0 | M180: 1692.82 | N180: 1699.82 | O180: 1692.82 | P180: 1699.82 | Q180: 1 | S180: 1697.486667 | T180: 1677.5575 | U180: 1687.57 | V180: 1692.82 | W180: 1676.364727 | X180: 1.192773438 | Y180: TRUE | Z180: FALSE | AA180: FALSE | AB180: FALSE | AC180: FALSE | AD180: FALSE | AE180: FALSE | AF180: FALSE | AG180: FALSE
A181: 149 | B181: =OFFSET(InputPriceData!B$15,CalculationsAndCharts!$A181+$A$11,0,1,1) -> 2014-01-07 | C181: =OFFSET(InputPriceData!G$15,CalculationsAndCharts!$A181+$A$11,IF($C$7,8,0),1,1) -> 3511750000 | D181: =OFFSET(InputPriceData!C$15,CalculationsAndCharts!$A181+$A$11,IF($C$7,8,0),1,1) -> 1828.71 | E181: =OFFSET(InputPriceData!D$15,CalculationsAndCharts!$A181+$A$11,IF($C$7,8,0),1,1) -> 1840.1 | F181: =OFFSET(InputPriceData!E$15,CalculationsAndCharts!$A181+$A$11,IF($C$7,8,0),1,1) -> 1828.71 | G181: =OFFSET(InputPriceData!F$15,CalculationsAndCharts!$A181+$A$11,IF($C$7,8,0),1,1) -> 1837.88 | J181: 149 | K181: 2013-10-11 | L181: 0 | M181: 1685.82 | N181: 1692.82 | O181: 1685.82 | P181: 1692.82 | Q181: 0 | S181: 1690.486667 | T181: 1675.85125 | U181: 1680.57 | V181: 1685.82 | W181: 1675.432031 | X181: 0.41921875 | Y181: FALSE | Z181: FALSE | AA181: TRUE | AB181: FALSE | AC181: FALSE | AD181: FALSE | AE181: FALSE | AF181: FALSE | AG181: TRUE
A182: 150 | B182: =OFFSET(InputPriceData!B$15,CalculationsAndCharts!$A182+$A$11,0,1,1) -> 2014-01-06 | C182: =OFFSET(InputPriceData!G$15,CalculationsAndCharts!$A182+$A$11,IF($C$7,8,0),1,1) -> 3294850000 | D182: =OFFSET(InputPriceData!C$15,CalculationsAndCharts!$A182+$A$11,IF($C$7,8,0),1,1) -> 1832.31 | E182: =OFFSET(InputPriceData!D$15,CalculationsAndCharts!$A182+$A$11,IF($C$7,8,0),1,1) -> 1837.16 | F182: =OFFSET(InputPriceData!E$15,CalculationsAndCharts!$A182+$A$11,IF($C$7,8,0),1,1) -> 1823.73 | G182: =OFFSET(InputPriceData!F$15,CalculationsAndCharts!$A182+$A$11,IF($C$7,8,0),1,1) -> 1826.77 | J182: 150 | K182: 2013-10-11 | L182: 0 | M182: 1678.82 | N182: 1685.82 | O182: 1678.82 | P182: 1685.82 | Q182: 1 | S182: 1683.486667 | T182: 1675.673333 | U182: 1673.57 | V182: 1678.82 | W182: 1675.521875 | X182: 0.1514583333 | Y182: FALSE | Z182: FALSE | AA182: TRUE | AB182: FALSE | AC182: FALSE | AD182: FALSE | AE182: FALSE | AF182: TRUE | AG182: FALSE | AI182: 2000
A183: 151 | B183: =OFFSET(InputPriceData!B$15,CalculationsAndCharts!$A183+$A$11,0,1,1) -> 2014-01-03 | C183: =OFFSET(InputPriceData!G$15,CalculationsAndCharts!$A183+$A$11,IF($C$7,8,0),1,1) -> 2774270000 | D183: =OFFSET(InputPriceData!C$15,CalculationsAndCharts!$A183+$A$11,IF($C$7,8,0),1,1) -> 1833.21 | E183: =OFFSET(InputPriceData!D$15,CalculationsAndCharts!$A183+$A$11,IF($C$7,8,0),1,1) -> 1838.24 | F183: =OFFSET(InputPriceData!E$15,CalculationsAndCharts!$A183+$A$11,IF($C$7,8,0),1,1) -> 1829.13 | G183: =OFFSET(InputPriceData!F$15,CalculationsAndCharts!$A183+$A$11,IF($C$7,8,0),1,1) -> 1831.37 | J183: 151 | K183: 2013-10-10 | L183: 0 | M183: 1671.82 | N183: 1678.82 | O183: 1671.82 | P183: 1678.82 | Q183: 0 | S183: 1676.486667 | T183: 1675.785833 | U183: 1661.1425 | V183: 1669.10625 | W183: 1676.611719 | X183: -0.8258854167 | Y183: FALSE | Z183: TRUE | AA183: FALSE | AB183: FALSE | AC183: FALSE | AD183: FALSE | AE183: FALSE | AF183: TRUE | AG183: FALSE | AI183: 2000
A184: 152 | B184: =OFFSET(InputPriceData!B$15,CalculationsAndCharts!$A184+$A$11,0,1,1) -> 2014-01-02 | C184: =OFFSET(InputPriceData!G$15,CalculationsAndCharts!$A184+$A$11,IF($C$7,8,0),1,1) -> 3080600000 | D184: =OFFSET(InputPriceData!C$15,CalculationsAndCharts!$A184+$A$11,IF($C$7,8,0),1,1) -> 1845.86 | E184: =OFFSET(InputPriceData!D$15,CalculationsAndCharts!$A184+$A$11,IF($C$7,8,0),1,1) -> 1845.86 | F184: =OFFSET(InputPriceData!E$15,CalculationsAndCharts!$A184+$A$11,IF($C$7,8,0),1,1) -> 1827.74 | G184: =OFFSET(InputPriceData!F$15,CalculationsAndCharts!$A184+$A$11,IF($C$7,8,0),1,1) -> 1831.98 | J184: 152 | K184: 2013-10-10 | L184: 3577840000 | M184: 1657.82 | N184: 1671.82 | O184: 1656.4 | P184: 1671.82 | Q184: 1 | S184: 1666.68 | T184: 1677.244167 | U184: 1663.07 | V184: 1663.93875 | W184: 1679.575937 | X184: -2.331770833 | Y184: FALSE | Z184: TRUE | AA184: FALSE | AB184: FALSE | AC184: FALSE | AD184: FALSE | AE184: FALSE | AF184: TRUE | AG184: FALSE | AI184: 2000
A185: 153 | B185: =OFFSET(InputPriceData!B$15,CalculationsAndCharts!$A185+$A$11,0,1,1) -> 2013-12-31 | C185: =OFFSET(InputPriceData!G$15,CalculationsAndCharts!$A185+$A$11,IF($C$7,8,0),1,1) -> 2312840000 | D185: =OFFSET(InputPriceData!C$15,CalculationsAndCharts!$A185+$A$11,IF($C$7,8,0),1,1) -> 1842.61 | E185: =OFFSET(InputPriceData!D$15,CalculationsAndCharts!$A185+$A$11,IF($C$7,8,0),1,1) -> 1849.44 | F185: =OFFSET(InputPriceData!E$15,CalculationsAndCharts!$A185+$A$11,IF($C$7,8,0),1,1) -> 1842.41 | G185: =OFFSET(InputPriceData!F$15,CalculationsAndCharts!$A185+$A$11,IF($C$7,8,0),1,1) -> 1848.36 | J185: 153 | K185: 2013-10-09 | L185: 0 | M185: 1664.82 | N185: 1664.82 | O185: 1657.82 | P185: 1657.82 | Q185: 1 | S185: 1660.153333 | T185: 1680.803333 | U185: 1670.07 | V185: 1664.82 | W185: 1684.061094 | X185: -3.257760417 | Y185: FALSE | Z185: TRUE | AA185: FALSE | AB185: FALSE | AC185: FALSE | AD185: FALSE | AE185: FALSE | AF185: TRUE | AG185: FALSE | AI185: 2000
A186: 154 | B186: =OFFSET(InputPriceData!B$15,CalculationsAndCharts!$A186+$A$11,0,1,1) -> 2013-12-30 | C186: =OFFSET(InputPriceData!G$15,CalculationsAndCharts!$A186+$A$11,IF($C$7,8,0),1,1) -> 2293860000 | D186: =OFFSET(InputPriceData!C$15,CalculationsAndCharts!$A186+$A$11,IF($C$7,8,0),1,1) -> 1841.47 | E186: =OFFSET(InputPriceData!D$15,CalculationsAndCharts!$A186+$A$11,IF($C$7,8,0),1,1) -> 1842.47 | F186: =OFFSET(InputPriceData!E$15,CalculationsAndCharts!$A186+$A$11,IF($C$7,8,0),1,1) -> 1838.77 | G186: =OFFSET(InputPriceData!F$15,CalculationsAndCharts!$A186+$A$11,IF($C$7,8,0),1,1) -> 1841.07 | J186: 154 | K186: 2013-10-08 | L186: 2678490000 | M186: 1671.82 | N186: 1671.82 | O186: 1664.82 | P186: 1664.82 | Q186: 1 | S186: 1667.153333 | T186: 1686.053333 | U186: 1678.71 | V186: 1672.64 | W186: 1689.651094 | X186: -3.597760417 | Y186: FALSE | Z186: TRUE | AA186: FALSE | AB186: FALSE | AC186: FALSE | AD186: FALSE | AE186: FALSE | AF186: TRUE | AG186: FALSE | AI186: 2000
A187: 155 | B187: =OFFSET(InputPriceData!B$15,CalculationsAndCharts!$A187+$A$11,0,1,1) -> 2013-12-27 | C187: =OFFSET(InputPriceData!G$15,CalculationsAndCharts!$A187+$A$11,IF($C$7,8,0),1,1) -> 2052920000 | D187: =OFFSET(InputPriceData!C$15,CalculationsAndCharts!$A187+$A$11,IF($C$7,8,0),1,1) -> 1842.97 | E187: =OFFSET(InputPriceData!D$15,CalculationsAndCharts!$A187+$A$11,IF($C$7,8,0),1,1) -> 1844.89 | F187: =OFFSET(InputPriceData!E$15,CalculationsAndCharts!$A187+$A$11,IF($C$7,8,0),1,1) -> 1839.81 | G187: =OFFSET(InputPriceData!F$15,CalculationsAndCharts!$A187+$A$11,IF($C$7,8,0),1,1) -> 1841.4 | J187: 155 | K187: 2013-10-07 | L187: 6159920000 | M187: 1678.82 | N187: 1691.94 | O187: 1671.82 | P187: 1671.82 | Q187: 2 | S187: 1678.526667 | T187: 1691.658333 | U187: 1689.45125 | V187: 1682.952813 | W187: 1694.912656 | X187: -3.254322917 | Y187: FALSE | Z187: TRUE | AA187: FALSE | AB187: FALSE | AC187: FALSE | AD187: FALSE | AE187: FALSE | AF187: TRUE | AG187: FALSE | AI187: 2000
A188: 156 | B188: =OFFSET(InputPriceData!B$15,CalculationsAndCharts!$A188+$A$11,0,1,1) -> 2013-12-26 | C188: =OFFSET(InputPriceData!G$15,CalculationsAndCharts!$A188+$A$11,IF($C$7,8,0),1,1) -> 1982270000 | D188: =OFFSET(InputPriceData!C$15,CalculationsAndCharts!$A188+$A$11,IF($C$7,8,0),1,1) -> 1834.96 | E188: =OFFSET(InputPriceData!D$15,CalculationsAndCharts!$A188+$A$11,IF($C$7,8,0),1,1) -> 1842.84 | F188: =OFFSET(InputPriceData!E$15,CalculationsAndCharts!$A188+$A$11,IF($C$7,8,0),1,1) -> 1834.96 | G188: =OFFSET(InputPriceData!F$15,CalculationsAndCharts!$A188+$A$11,IF($C$7,8,0),1,1) -> 1842.02 | J188: 156 | K188: 2013-10-03 | L188: 6387290000 | M188: 1692.82 | N188: 1693.87 | O188: 1678.82 | P188: 1678.82 | Q188: 2 | S188: 1683.836667 | T188: 1696.653333 | U188: 1682.66125 | V188: 1685.358438 | W188: 1698.771055 | X188: -2.117721354 | Y188: FALSE | Z188: TRUE | AA188: FALSE | AB188: FALSE | AC188: FALSE | AD188: FALSE | AE188: FALSE | AF188: TRUE | AG188: FALSE | AI188: 2000
A189: 157 | B189: =OFFSET(InputPriceData!B$15,CalculationsAndCharts!$A189+$A$11,0,1,1) -> 2013-12-24 | C189: =OFFSET(InputPriceData!G$15,CalculationsAndCharts!$A189+$A$11,IF($C$7,8,0),1,1) -> 1307630000 | D189: =OFFSET(InputPriceData!C$15,CalculationsAndCharts!$A189+$A$11,IF($C$7,8,0),1,1) -> 1828.02 | E189: =OFFSET(InputPriceData!D$15,CalculationsAndCharts!$A189+$A$11,IF($C$7,8,0),1,1) -> 1833.32 | F189: =OFFSET(InputPriceData!E$15,CalculationsAndCharts!$A189+$A$11,IF($C$7,8,0),1,1) -> 1828.02 | G189: =OFFSET(InputPriceData!F$15,CalculationsAndCharts!$A189+$A$11,IF($C$7,8,0),1,1) -> 1833.32 | J189: 157 | K189: 2013-10-01 | L189: 3308630000 | M189: 1678.82 | N189: 1692.82 | O189: 1681.55 | P189: 1692.82 | Q189: 1 | S189: 1689.063333 | T189: 1700.109583 | U189: 1685.2825 | V189: 1686.53875 | W189: 1701.45375 | X189: -1.344166667 | Y189: FALSE | Z189: TRUE | AA189: FALSE | AB189: FALSE | AC189: FALSE | AD189: FALSE | AE189: TRUE | AF189: TRUE | AG189: FALSE | AI189: 2000
A190: 158 | B190: =OFFSET(InputPriceData!B$15,CalculationsAndCharts!$A190+$A$11,0,1,1) -> 2013-12-23 | C190: =OFFSET(InputPriceData!G$15,CalculationsAndCharts!$A190+$A$11,IF($C$7,8,0),1,1) -> 2851540000 | D190: =OFFSET(InputPriceData!C$15,CalculationsAndCharts!$A190+$A$11,IF($C$7,8,0),1,1) -> 1822.92 | E190: =OFFSET(InputPriceData!D$15,CalculationsAndCharts!$A190+$A$11,IF($C$7,8,0),1,1) -> 1829.75 | F190: =OFFSET(InputPriceData!E$15,CalculationsAndCharts!$A190+$A$11,IF($C$7,8,0),1,1) -> 1822.92 | G190: =OFFSET(InputPriceData!F$15,CalculationsAndCharts!$A190+$A$11,IF($C$7,8,0),1,1) -> 1827.99 | J190: 158 | K190: 2013-09-30 | L190: 8914360000 | M190: 1685.82 | N190: 1695.52 | O190: 1678.82 | P190: 1678.82 | Q190: 3 | S190: 1684.386667 | T190: 1702.0375 | U190: 1691.07 | V190: 1687.53875 | W190: 1703.113906 | X190: -1.07640625 | Y190: FALSE | Z190: TRUE | AA190: FALSE | AB190: FALSE | AC190: FALSE | AD190: TRUE | AE190: FALSE | AF190: FALSE | AG190: FALSE
A191: 159 | B191: =OFFSET(InputPriceData!B$15,CalculationsAndCharts!$A191+$A$11,0,1,1) -> 2013-12-20 | C191: =OFFSET(InputPriceData!G$15,CalculationsAndCharts!$A191+$A$11,IF($C$7,8,0),1,1) -> 5097700000 | D191: =OFFSET(InputPriceData!C$15,CalculationsAndCharts!$A191+$A$11,IF($C$7,8,0),1,1) -> 1810.39 | E191: =OFFSET(InputPriceData!D$15,CalculationsAndCharts!$A191+$A$11,IF($C$7,8,0),1,1) -> 1823.75 | F191: =OFFSET(InputPriceData!E$15,CalculationsAndCharts!$A191+$A$11,IF($C$7,8,0),1,1) -> 1810.25 | G191: =OFFSET(InputPriceData!F$15,CalculationsAndCharts!$A191+$A$11,IF($C$7,8,0),1,1) -> 1818.32 | J191: 159 | K191: 2013-09-25 | L191: 3268930000 | M191: 1692.82 | N191: 1692.82 | O191: 1685.82 | P191: 1685.82 | Q191: 1 | S191: 1688.153333 | T191: 1703.675 | U191: 1698.07 | V191: 1692.82 | W191: 1703.774062 | X191: -0.0990625 | Y191: FALSE | Z191: FALSE | AA191: TRUE | AB191: FALSE | AC191: TRUE | AD191: FALSE | AE191: FALSE | AF191: FALSE | AG191: FALSE | AH191: 2000
A192: 160 | B192: =OFFSET(InputPriceData!B$15,CalculationsAndCharts!$A192+$A$11,0,1,1) -> 2013-12-19 | C192: =OFFSET(InputPriceData!G$15,CalculationsAndCharts!$A192+$A$11,IF($C$7,8,0),1,1) -> 3497210000 | D192: =OFFSET(InputPriceData!C$15,CalculationsAndCharts!$A192+$A$11,IF($C$7,8,0),1,1) -> 1809 | E192: =OFFSET(InputPriceData!D$15,CalculationsAndCharts!$A192+$A$11,IF($C$7,8,0),1,1) -> 1810.88 | F192: =OFFSET(InputPriceData!E$15,CalculationsAndCharts!$A192+$A$11,IF($C$7,8,0),1,1) -> 1801.35 | G192: =OFFSET(InputPriceData!F$15,CalculationsAndCharts!$A192+$A$11,IF($C$7,8,0),1,1) -> 1809.6 | J192: 160 | K192: 2013-09-24 | L192: 3126950000 | M192: 1699.82 | N192: 1699.82 | O192: 1692.82 | P192: 1692.82 | Q192: 1 | S192: 1695.153333 | T192: 1703.966667 | U192: 1705.07 | V192: 1699.82 | W192: 1702.923594 | X192: 1.043072917 | Y192: TRUE | Z192: FALSE | AA192: FALSE | AB192: FALSE | AC192: TRUE | AD192: FALSE | AE192: FALSE | AF192: FALSE | AG192: FALSE | AH192: 2000
A193: 161 | B193: =OFFSET(InputPriceData!B$15,CalculationsAndCharts!$A193+$A$11,0,1,1) -> 2013-12-18 | C193: =OFFSET(InputPriceData!G$15,CalculationsAndCharts!$A193+$A$11,IF($C$7,8,0),1,1) -> 4327770000 | D193: =OFFSET(InputPriceData!C$15,CalculationsAndCharts!$A193+$A$11,IF($C$7,8,0),1,1) -> 1781.46 | E193: =OFFSET(InputPriceData!D$15,CalculationsAndCharts!$A193+$A$11,IF($C$7,8,0),1,1) -> 1811.08 | F193: =OFFSET(InputPriceData!E$15,CalculationsAndCharts!$A193+$A$11,IF($C$7,8,0),1,1) -> 1767.99 | G193: =OFFSET(InputPriceData!F$15,CalculationsAndCharts!$A193+$A$11,IF($C$7,8,0),1,1) -> 1810.65 | J193: 161 | K193: 2013-09-23 | L193: 5074030000 | M193: 1706.82 | N193: 1706.82 | O193: 1699.82 | P193: 1699.82 | Q193: 1 | S193: 1702.153333 | T193: 1702.639167 | U193: 1717.51 | V193: 1709.54 | W193: 1700.323125 | X193: 2.316041667 | Y193: TRUE | Z193: FALSE | AA193: FALSE | AB193: FALSE | AC193: TRUE | AD193: FALSE | AE193: FALSE | AF193: FALSE | AG193: FALSE | AH193: 2000
A194: 162 | B194: =OFFSET(InputPriceData!B$15,CalculationsAndCharts!$A194+$A$11,0,1,1) -> 2013-12-17 | C194: =OFFSET(InputPriceData!G$15,CalculationsAndCharts!$A194+$A$11,IF($C$7,8,0),1,1) -> 3270030000 | D194: =OFFSET(InputPriceData!C$15,CalculationsAndCharts!$A194+$A$11,IF($C$7,8,0),1,1) -> 1786.47 | E194: =OFFSET(InputPriceData!D$15,CalculationsAndCharts!$A194+$A$11,IF($C$7,8,0),1,1) -> 1786.77 | F194: =OFFSET(InputPriceData!E$15,CalculationsAndCharts!$A194+$A$11,IF($C$7,8,0),1,1) -> 1777.05 | G194: =OFFSET(InputPriceData!F$15,CalculationsAndCharts!$A194+$A$11,IF($C$7,8,0),1,1) -> 1781 | J194: 162 | K194: 2013-09-20 | L194: 3740130000 | M194: 1720.82 | N194: 1722.34 | O194: 1706.82 | P194: 1706.82 | Q194: 1 | S194: 1711.993333 | T194: 1699.430833 | U194: 1715.57 | V194: 1714.7325 | W194: 1695.608125 | X194: 3.822708333 | Y194: TRUE | Z194: FALSE | AA194: FALSE | AB194: FALSE | AC194: TRUE | AD194: FALSE | AE194: FALSE | AF194: FALSE | AG194: FALSE | AH194: 2000
A195: 163 | B195: =OFFSET(InputPriceData!B$15,CalculationsAndCharts!$A195+$A$11,0,1,1) -> 2013-12-16 | C195: =OFFSET(InputPriceData!G$15,CalculationsAndCharts!$A195+$A$11,IF($C$7,8,0),1,1) -> 3209890000 | D195: =OFFSET(InputPriceData!C$15,CalculationsAndCharts!$A195+$A$11,IF($C$7,8,0),1,1) -> 1777.48 | E195: =OFFSET(InputPriceData!D$15,CalculationsAndCharts!$A195+$A$11,IF($C$7,8,0),1,1) -> 1792.22 | F195: =OFFSET(InputPriceData!E$15,CalculationsAndCharts!$A195+$A$11,IF($C$7,8,0),1,1) -> 1777.48 | G195: =OFFSET(InputPriceData!F$15,CalculationsAndCharts!$A195+$A$11,IF($C$7,8,0),1,1) -> 1786.54 | J195: 163 | K195: 2013-09-19 | L195: 0 | M195: 1713.82 | N195: 1720.82 | O195: 1713.82 | P195: 1720.82 | Q195: 1 | S195: 1718.486667 | T195: 1694.1175 | U195: 1708.57 | V195: 1713.82 | W195: 1689.369063 | X195: 4.7484375 | Y195: TRUE | Z195: FALSE | AA195: FALSE | AB195: FALSE | AC195: TRUE | AD195: FALSE | AE195: FALSE | AF195: FALSE | AG195: FALSE | AH195: 2000
A196: 164 | B196: =OFFSET(InputPriceData!B$15,CalculationsAndCharts!$A196+$A$11,0,1,1) -> 2013-12-13 | C196: =OFFSET(InputPriceData!G$15,CalculationsAndCharts!$A196+$A$11,IF($C$7,8,0),1,1) -> 3061070000 | D196: =OFFSET(InputPriceData!C$15,CalculationsAndCharts!$A196+$A$11,IF($C$7,8,0),1,1) -> 1777.98 | E196: =OFFSET(InputPriceData!D$15,CalculationsAndCharts!$A196+$A$11,IF($C$7,8,0),1,1) -> 1780.92 | F196: =OFFSET(InputPriceData!E$15,CalculationsAndCharts!$A196+$A$11,IF($C$7,8,0),1,1) -> 1772.45 | G196: =OFFSET(InputPriceData!F$15,CalculationsAndCharts!$A196+$A$11,IF($C$7,8,0),1,1) -> 1775.32 | J196: 164 | K196: 2013-09-18 | L196: 0 | M196: 1706.82 | N196: 1713.82 | O196: 1706.82 | P196: 1713.82 | Q196: 0 | S196: 1711.486667 | T196: 1687.1175 | U196: 1701.57 | V196: 1706.82 | W196: 1682.289375 | X196: 4.828125 | Y196: TRUE | Z196: FALSE | AA196: FALSE | AB196: FALSE | AC196: TRUE | AD196: FALSE | AE196: FALSE | AF196: FALSE | AG196: FALSE | AH196: 2000
A197: 165 | B197: =OFFSET(InputPriceData!B$15,CalculationsAndCharts!$A197+$A$11,0,1,1) -> 2013-12-12 | C197: =OFFSET(InputPriceData!G$15,CalculationsAndCharts!$A197+$A$11,IF($C$7,8,0),1,1) -> 3306640000 | D197: =OFFSET(InputPriceData!C$15,CalculationsAndCharts!$A197+$A$11,IF($C$7,8,0),1,1) -> 1781.71 | E197: =OFFSET(InputPriceData!D$15,CalculationsAndCharts!$A197+$A$11,IF($C$7,8,0),1,1) -> 1782.99 | F197: =OFFSET(InputPriceData!E$15,CalculationsAndCharts!$A197+$A$11,IF($C$7,8,0),1,1) -> 1772.28 | G197: =OFFSET(InputPriceData!F$15,CalculationsAndCharts!$A197+$A$11,IF($C$7,8,0),1,1) -> 1775.5 | J197: 165 | K197: 2013-09-18 | L197: 2774240000 | M197: 1699.82 | N197: 1706.82 | O197: 1699.82 | P197: 1706.82 | Q197: 1 | S197: 1704.486667 | T197: 1679.6925 | U197: 1694.57 | V197: 1699.82 | W197: 1675.055 | X197: 4.6375 | Y197: TRUE | Z197: FALSE | AA197: FALSE | AB197: FALSE | AC197: TRUE | AD197: FALSE | AE197: FALSE | AF197: FALSE | AG197: FALSE | AH197: 2000
A198: 166 | B198: =OFFSET(InputPriceData!B$15,CalculationsAndCharts!$A198+$A$11,0,1,1) -> 2013-12-11 | C198: =OFFSET(InputPriceData!G$15,CalculationsAndCharts!$A198+$A$11,IF($C$7,8,0),1,1) -> 3472240000 | D198: =OFFSET(InputPriceData!C$15,CalculationsAndCharts!$A198+$A$11,IF($C$7,8,0),1,1) -> 1802.76 | E198: =OFFSET(InputPriceData!D$15,CalculationsAndCharts!$A198+$A$11,IF($C$7,8,0),1,1) -> 1802.97 | F198: =OFFSET(InputPriceData!E$15,CalculationsAndCharts!$A198+$A$11,IF($C$7,8,0),1,1) -> 1780.09 | G198: =OFFSET(InputPriceData!F$15,CalculationsAndCharts!$A198+$A$11,IF($C$7,8,0),1,1) -> 1782.22 | J198: 166 | K198: 2013-09-17 | L198: 3079800000 | M198: 1692.82 | N198: 1699.82 | O198: 1692.82 | P198: 1699.82 | Q198: 1 | S198: 1697.486667 | T198: 1672.6925 | U198: 1687.57 | V198: 1692.82 | W198: 1667.754922 | X198: 4.937578125 | Y198: TRUE | Z198: FALSE | AA198: FALSE | AB198: FALSE | AC198: TRUE | AD198: FALSE | AE198: FALSE | AF198: FALSE | AG198: FALSE | AH198: 2000
A199: 167 | B199: =OFFSET(InputPriceData!B$15,CalculationsAndCharts!$A199+$A$11,0,1,1) -> 2013-12-10 | C199: =OFFSET(InputPriceData!G$15,CalculationsAndCharts!$A199+$A$11,IF($C$7,8,0),1,1) -> 3117150000 | D199: =OFFSET(InputPriceData!C$15,CalculationsAndCharts!$A199+$A$11,IF($C$7,8,0),1,1) -> 1807.6 | E199: =OFFSET(InputPriceData!D$15,CalculationsAndCharts!$A199+$A$11,IF($C$7,8,0),1,1) -> 1808.52 | F199: =OFFSET(InputPriceData!E$15,CalculationsAndCharts!$A199+$A$11,IF($C$7,8,0),1,1) -> 1801.75 | G199: =OFFSET(InputPriceData!F$15,CalculationsAndCharts!$A199+$A$11,IF($C$7,8,0),1,1) -> 1802.62 | J199: 167 | K199: 2013-09-16 | L199: 2736500000 | M199: 1685.82 | N199: 1692.82 | O199: 1685.82 | P199: 1692.82 | Q199: 1 | S199: 1690.486667 | T199: 1665.550417 | U199: 1680.9625 | V199: 1686.01625 | W199: 1660.87793 | X199: 4.672486979 | Y199: TRUE | Z199: FALSE | AA199: FALSE | AB199: FALSE | AC199: TRUE | AD199: FALSE | AE199: FALSE | AF199: FALSE | AG199: FALSE | AH199: 2000
A200: 168 | B200: =OFFSET(InputPriceData!B$15,CalculationsAndCharts!$A200+$A$11,0,1,1) -> 2013-12-09 | C200: =OFFSET(InputPriceData!G$15,CalculationsAndCharts!$A200+$A$11,IF($C$7,8,0),1,1) -> 3129500000 | D200: =OFFSET(InputPriceData!C$15,CalculationsAndCharts!$A200+$A$11,IF($C$7,8,0),1,1) -> 1806.21 | E200: =OFFSET(InputPriceData!D$15,CalculationsAndCharts!$A200+$A$11,IF($C$7,8,0),1,1) -> 1811.52 | F200: =OFFSET(InputPriceData!E$15,CalculationsAndCharts!$A200+$A$11,IF($C$7,8,0),1,1) -> 1806.21 | G200: =OFFSET(InputPriceData!F$15,CalculationsAndCharts!$A200+$A$11,IF($C$7,8,0),1,1) -> 1808.37 | J200: 168 | K200: 2013-09-13 | L200: 3106290000 | M200: 1678.82 | N200: 1685.82 | O200: 1681.96 | P200: 1685.82 | Q200: 2 | S200: 1684.533333 | T200: 1658.658333 | U200: 1673.57 | V200: 1679.01625 | W200: 1654.938945 | X200: 3.719388021 | Y200: TRUE | Z200: FALSE | AA200: FALSE | AB200: FALSE | AC200: TRUE | AD200: FALSE | AE200: FALSE | AF200: FALSE | AG200: FALSE | AH200: 2000
A201: 169 | B201: =OFFSET(InputPriceData!B$15,CalculationsAndCharts!$A201+$A$11,0,1,1) -> 2013-12-06 | C201: =OFFSET(InputPriceData!G$15,CalculationsAndCharts!$A201+$A$11,IF($C$7,8,0),1,1) -> 3150030000 | D201: =OFFSET(InputPriceData!C$15,CalculationsAndCharts!$A201+$A$11,IF($C$7,8,0),1,1) -> 1788.36 | E201: =OFFSET(InputPriceData!D$15,CalculationsAndCharts!$A201+$A$11,IF($C$7,8,0),1,1) -> 1806.04 | F201: =OFFSET(InputPriceData!E$15,CalculationsAndCharts!$A201+$A$11,IF($C$7,8,0),1,1) -> 1788.36 | G201: =OFFSET(InputPriceData!F$15,CalculationsAndCharts!$A201+$A$11,IF($C$7,8,0),1,1) -> 1805.09 | J201: 169 | K201: 2013-09-11 | L201: 0 | M201: 1671.82 | N201: 1678.82 | O201: 1671.82 | P201: 1678.82 | Q201: 1 | S201: 1676.486667 | T201: 1652.985833 | U201: 1666.57 | V201: 1671.82 | W201: 1650.958867 | X201: 2.026966146 | Y201: TRUE | Z201: FALSE | AA201: FALSE | AB201: FALSE | AC201: TRUE | AD201: FALSE | AE201: FALSE | AF201: FALSE | AG201: FALSE | AH201: 2000
A202: 170 | B202: =OFFSET(InputPriceData!B$15,CalculationsAndCharts!$A202+$A$11,0,1,1) -> 2013-12-05 | C202: =OFFSET(InputPriceData!G$15,CalculationsAndCharts!$A202+$A$11,IF($C$7,8,0),1,1) -> 3336880000 | D202: =OFFSET(InputPriceData!C$15,CalculationsAndCharts!$A202+$A$11,IF($C$7,8,0),1,1) -> 1792.82 | E202: =OFFSET(InputPriceData!D$15,CalculationsAndCharts!$A202+$A$11,IF($C$7,8,0),1,1) -> 1792.82 | F202: =OFFSET(InputPriceData!E$15,CalculationsAndCharts!$A202+$A$11,IF($C$7,8,0),1,1) -> 1783.38 | G202: =OFFSET(InputPriceData!F$15,CalculationsAndCharts!$A202+$A$11,IF($C$7,8,0),1,1) -> 1785.03 | J202: 170 | K202: 2013-09-10 | L202: 0 | M202: 1664.82 | N202: 1671.82 | O202: 1664.82 | P202: 1671.82 | Q202: 0 | S202: 1669.486667 | T202: 1649.972917 | U202: 1659.57 | V202: 1664.82 | W202: 1648.685859 | X202: 1.287057292 | Y202: TRUE | Z202: FALSE | AA202: FALSE | AB202: TRUE | AC202: TRUE | AD202: FALSE | AE202: FALSE | AF202: FALSE | AG202: FALSE | AH202: 2000
... 2630 more rows

Sheet SVERenkoBarsChart
I10: =OFFSET(CalculationsAndCharts!K32,130,0,1,1) -> 2013-11-22
I11: =CalculationsAndCharts!K33 -> 2014-08-08
D13: ="Most Recent 130 " & CalculationsAndCharts!K31&" for: " &CalculationsAndCharts!B2 & " (From " & TEXT(I10,"mm/dd/yy") & " to " & TEXT(I11,"MM/DD/YY") & ")" -> Most Recent 130 Modified Renko Bars (700, 0.01) for: S&P 500 (^GSPC) -SNP (Daily) (From 11/22/13 to 08/08/14)

Sheet Transaction Summary
B1: Transaction Summary (using trade size of 1 share)
C2: =CalculationsAndCharts!J31-MAX(CalculationsAndCharts!A24,CalculationsAndCharts!D24) -> 2181 | D2: Logically Available Renko Bars on the "CalculationsAndCharts" tab constitute a
D3: ="Back Test Transaction reporting period extending from " & TEXT(OFFSET(CalculationsAndCharts!$K$32,C2,0,1,1),"mm/dd/yyyy") & " to "& TEXT(CalculationsAndCharts!$K$33,"mm/dd/yyyy") -> Back Test Transaction reporting period extending from 07/17/2003 to 08/08/2014
B4: Summary for LONG trades | K4: Summary for SHORT trades
B5: =COUNT(OFFSET(B15,0,0,C2,1)) -> 94 | C5: LONG trades opened in this time period | K5: =COUNT(OFFSET(K15,0,0,$C$2,1)) -> 78 | L5: Short trades opened in this time period
B6: =COUNTIF(OFFSET(H15,0,0,B5,1),">0") -> 48 | C6: Winners | D6: Biggest Win | E6: =MAX(OFFSET(H15,0,0,B5,1)) -> 154 | H6: Sum of Gains | I6: =SUMIF(OFFSET(H15,0,0,B5,1),">0") -> 2177 | K6: =COUNTIF(OFFSET(Q15,0,0,K5,1),">0") -> 33 | L6: Winners | M6: Biggest Win | N6: =MAX(OFFSET(Q15,0,0,K5,1)) -> 175 | Q6: Sum of Gains | R6: =SUMIF(OFFSET(Q15,0,0,K5,1),">0") -> 1518.47
B7: =COUNTIF(OFFSET(H15,0,0,B5,1),"<0") -> 39 | C7: Losers | D7: Biggest Loss | E7: =MIN(OFFSET(H15,0,0,B5,1)) -> -42 | H7: Sum of Losses | I7: =SUMIF(OFFSET(H15,0,0,B5,1),"<0") -> -735 | K7: =COUNTIF(OFFSET(Q15,0,0,K5,1),"<0") -> 39 | L7: Losers | M7: Biggest Loss | N7: =MIN(OFFSET(Q15,0,0,K5,1)) -> -35 | Q7: Sum of Losses | R7: =SUMIF(OFFSET(Q15,0,0,K5,1),"<0") -> -700
H8: NET change for Period | I8: =SUM(OFFSET(H15,0,0,B5,1)) -> 1442 | Q8: NET change for Period | R8: =SUM(OFFSET(Q15,0,0,K5,1)) -> 818.47
H10: Smallest Long Account Balance | I10: =MIN(OFFSET(I15,0,0,B5,1)) -> -21 | Q10: Smallest Short Account Balance | R10: =MIN(OFFSET(R15,0,0,K5,1)) -> -105
E12: =MATCH(TRUE,OFFSET(CalculationsAndCharts!$AD$32,1,0,C2,1),0) -> 11 | F12: =IF($E$12>$B$15,"Open Trade; Marked to Current Bar Open $","") ->  | N12: =MATCH(TRUE,OFFSET(CalculationsAndCharts!$AG$33,0,0, $C$2,1),0) -> 51 | O12: =IF($N$12>$K$15,"Open Trade; Marked to current bar Open $","") -> Open Trade; Marked to current bar Open $
C13: Enter Long | F13: Exit Long | H13: Trade Result | I13: Running Balance | L13: Enter Short | O13: Exit Short | Q13: Trade Result | R13: Running Balance
B14: Rel Row | C14: Date | D14: $ | E14: Rel Row | F14: Date | G14: $ | K14: Rel Row | L14: Date | M14: $ | N14: Rel Row | O14: Date | P14: $
B15: =MATCH(TRUE,OFFSET(CalculationsAndCharts!$AB$33,0,0, $C$2,1),0) -> 36 | C15: =OFFSET(CalculationsAndCharts!$K$32, B15,0,1,1) -> 2014-05-23 | D15: =OFFSET(CalculationsAndCharts!$M$32, B15,0,1,1) -> 1888.82 | E15: =IF($E$12>$B$15,"OPEN",$E$12) -> 11 | F15: =IF($E$12>$B$15,CalculationsAndCharts!K33,OFFSET(CalculationsAndCharts!$B$32, E15,0,1,1)) -> 2014-07-25 | G15: =IF($E$12>$B$15,CalculationsAndCharts!M33,OFFSET(CalculationsAndCharts!$M$32, E15,0,1,1)) -> 1972.82 | H15: =G15-D15 -> 84 | I15: =H15+IF(ISNA(I16),0,I16) -> 1442 | K15: =MATCH(TRUE,OFFSET(CalculationsAndCharts!$AE$33,0,0, $C$2,1),0) -> 8 | L15: =OFFSET(CalculationsAndCharts!$B$32, K15,0,1,1) -> 2014-07-30 | M15: =OFFSET(CalculationsAndCharts!$M$32, K15,0,1,1) -> 1951.82 | N15: =IF($N$12>$K$15,"OPEN",$N$12) -> OPEN | O15: =IF($N$12>$K$15,CalculationsAndCharts!B33,OFFSET(CalculationsAndCharts!$K$32, N15,0,1,1)) -> 2014-08-08 | P15: =IF($N$12>$K$15,CalculationsAndCharts!D33,OFFSET(CalculationsAndCharts!$M$32, N15,0,1,1)) -> 1910.35 | Q15: =M15-P15 -> 41.47 | R15: =Q15+IF(ISNA(R16),0,R16) -> 818.47
B16: =IFERROR(MATCH(TRUE,OFFSET(CalculationsAndCharts!$AB$33,B15,0, $C$2-B15,1),0)+B15,"") -> 49 | C16: =IFERROR(OFFSET(CalculationsAndCharts!$K$32, B16,0,1,1),"") -> 2014-04-22 | D16: =IFERROR(OFFSET(CalculationsAndCharts!$M$32, B16,0,1,1),"") -> 1867.82 | E16: =IFERROR(IF($E$12>$B$15,$E$12,(MATCH(TRUE,OFFSET(CalculationsAndCharts!$AD$33,E15,0, $C$2-E15,1),0)+E15)),"") -> 37 | F16: =IFERROR(OFFSET(CalculationsAndCharts!$K$32, E16,0,1,1),"") -> 2014-05-22 | G16: =IFERROR(OFFSET(CalculationsAndCharts!$M$32, E16,0,1,1),"") -> 1881.82 | H16: =IFERROR(G16-D16,"") -> 14 | I16: =IFERROR(H16+IF(""=I17,0,I17),"") -> 1358 | K16: =IFERROR(MATCH(TRUE,OFFSET(CalculationsAndCharts!$AE$33,K15,0, $C$2-K15,1),0)+K15,"") -> 57 | L16: =IFERROR(OFFSET(CalculationsAndCharts!$K$32, K16,0,1,1),"") -> 2014-04-11 | M16: =IFERROR(OFFSET(CalculationsAndCharts!$M$32, K16,0,1,1),"") -> 1846.82 | N16: =IFERROR(IF($N$12>$K$15,$N$12,MATCH(TRUE,OFFSET(CalculationsAndCharts!$AG$33,N15,0, $C$2-N15,1),0)+N15),"") -> 51 | O16: =IFERROR(OFFSET(CalculationsAndCharts!$K$32, N16,0,1,1),"") -> 2014-04-17 | P16: =IFERROR(OFFSET(CalculationsAndCharts!$M$32, N16,0,1,1),"") -> 1853.82 | Q16: =IFERROR(M16-P16,"") -> -7 | R16: =IFERROR(Q16+IF(""=R17,0,R17),"") -> 777
B17: =IFERROR(MATCH(TRUE,OFFSET(CalculationsAndCharts!$AB$33,B16,0, $C$2-B16,1),0)+B16,"") -> 64 | C17: =IFERROR(OFFSET(CalculationsAndCharts!$K$32, B17,0,1,1),"") -> 2014-04-02 | D17: =IFERROR(OFFSET(CalculationsAndCharts!$M$32, B17,0,1,1),"") -> 1874.82 | E17: =IF(B17="","",IFERROR((MATCH(TRUE,OFFSET(CalculationsAndCharts!$AD$33,E16,0, $C$2-E16,1),0)+E16),"")) -> 61 | F17: =IFERROR(OFFSET(CalculationsAndCharts!$K$32, E17,0,1,1),"") -> 2014-04-07 | G17: =IFERROR(OFFSET(CalculationsAndCharts!$M$32, E17,0,1,1),"") -> 1860.82 | H17: =IFERROR(G17-D17,"") -> -14 | I17: =IFERROR(H17+IF(""=I18,0,I18),"") -> 1344 | K17: =IFERROR(MATCH(TRUE,OFFSET(CalculationsAndCharts!$AE$33,K16,0, $C$2-K16,1),0)+K16,"") -> 67 | L17: =IFERROR(OFFSET(CalculationsAndCharts!$K$32, K17,0,1,1),"") -> 2014-03-31 | M17: =IFERROR(OFFSET(CalculationsAndCharts!$M$32, K17,0,1,1),"") -> 1846.82 | N17: =IF(K17="","",IFERROR(MATCH(TRUE,OFFSET(CalculationsAndCharts!$AG$33,N16,0, $C$2-N16,1),0)+N16,"")) -> 65 | O17: =IFERROR(OFFSET(CalculationsAndCharts!$K$32, N17,0,1,1),"") -> 2014-04-01 | P17: =IFERROR(OFFSET(CalculationsAndCharts!$M$32, N17,0,1,1),"") -> 1867.82 | Q17: -21 | R17: 784
B18: =IFERROR(MATCH(TRUE,OFFSET(CalculationsAndCharts!$AB$33,B17,0, $C$2-B17,1),0)+B17,"") -> 70 | C18: =IFERROR(OFFSET(CalculationsAndCharts!$K$32, B18,0,1,1),"") -> 2014-03-20 | D18: =IFERROR(OFFSET(CalculationsAndCharts!$M$32, B18,0,1,1),"") -> 1860.82 | E18: =IF(B18="","",IFERROR((MATCH(TRUE,OFFSET(CalculationsAndCharts!$AD$33,E17,0, $C$2-E17,1),0)+E17),"")) -> 68 | F18: =IFERROR(OFFSET(CalculationsAndCharts!$K$32, E18,0,1,1),"") -> 2014-03-26 | G18: =IFERROR(OFFSET(CalculationsAndCharts!$M$32, E18,0,1,1),"") -> 1853.82 | H18: =IFERROR(G18-D18,"") -> -7 | I18: =IFERROR(H18+IF(""=I19,0,I19),"") -> 1358 | K18: =IFERROR(MATCH(TRUE,OFFSET(CalculationsAndCharts!$AE$33,K17,0, $C$2-K17,1),0)+K17,"") -> 105 | L18: =IFERROR(OFFSET(CalculationsAndCharts!$K$32, K18,0,1,1),"") -> 2014-01-24 | M18: =IFERROR(OFFSET(CalculationsAndCharts!$M$32, K18,0,1,1),"") -> 1818.82 | N18: =IF(K18="","",IFERROR(MATCH(TRUE,OFFSET(CalculationsAndCharts!$AG$33,N17,0, $C$2-N17,1),0)+N17,"")) -> 91 | O18: =IFERROR(OFFSET(CalculationsAndCharts!$K$32, N18,0,1,1),"") -> 2014-02-10 | P18: =IFERROR(OFFSET(CalculationsAndCharts!$M$32, N18,0,1,1),"") -> 1783.82 | Q18: =IFERROR(M18-P18,"") -> 35 | R18: =IFERROR(Q18+IF(""=R19,0,R19),"") -> 805
B19: =IFERROR(MATCH(TRUE,OFFSET(CalculationsAndCharts!$AB$33,B18,0, $C$2-B18,1),0)+B18,"") -> 90 | C19: =IFERROR(OFFSET(CalculationsAndCharts!$K$32, B19,0,1,1),"") -> 2014-02-11 | D19: =IFERROR(OFFSET(CalculationsAndCharts!$M$32, B19,0,1,1),"") -> 1790.82 | E19: =IF(B19="","",IFERROR((MATCH(TRUE,OFFSET(CalculationsAndCharts!$AD$33,E18,0, $C$2-E18,1),0)+E18),"")) -> 71 | F19: =IFERROR(OFFSET(CalculationsAndCharts!$K$32, E19,0,1,1),"") -> 2014-03-18 | G19: =IFERROR(OFFSET(CalculationsAndCharts!$M$32, E19,0,1,1),"") -> 1846.82 | H19: 56 | I19: 1365 | K19: =IFERROR(MATCH(TRUE,OFFSET(CalculationsAndCharts!$AE$33,K18,0, $C$2-K18,1),0)+K18,"") -> 121 | L19: =IFERROR(OFFSET(CalculationsAndCharts!$K$32, K19,0,1,1),"") -> 2013-12-18 | M19: =IFERROR(OFFSET(CalculationsAndCharts!$M$32, K19,0,1,1),"") -> 1776.82 | N19: =IF(K19="","",IFERROR(MATCH(TRUE,OFFSET(CalculationsAndCharts!$AG$33,N18,0, $C$2-N18,1),0)+N18,"")) -> 119 | O19: =IFERROR(OFFSET(CalculationsAndCharts!$K$32, N19,0,1,1),"") -> 2013-12-19 | P19: =IFERROR(OFFSET(CalculationsAndCharts!$M$32, N19,0,1,1),"") -> 1797.82 | Q19: -21 | R19: 770
B20: =IFERROR(MATCH(TRUE,OFFSET(CalculationsAndCharts!$AB$33,B19,0, $C$2-B19,1),0)+B19,"") -> 118 | C20: =IFERROR(OFFSET(CalculationsAndCharts!$K$32, B20,0,1,1),"") -> 2013-12-20 | D20: =IFERROR(OFFSET(CalculationsAndCharts!$M$32, B20,0,1,1),"") -> 1804.82 | E20: =IF(B20="","",IFERROR((MATCH(TRUE,OFFSET(CalculationsAndCharts!$AD$33,E19,0, $C$2-E19,1),0)+E19),"")) -> 106 | F20: =IFERROR(OFFSET(CalculationsAndCharts!$K$32, E20,0,1,1),"") -> 2014-01-24 | G20: =IFERROR(OFFSET(CalculationsAndCharts!$M$32, E20,0,1,1),"") -> 1825.82 | H20: 21 | I20: 1309 | K20: =IFERROR(MATCH(TRUE,OFFSET(CalculationsAndCharts!$AE$33,K19,0, $C$2-K19,1),0)+K19,"") -> 157 | L20: =IFERROR(OFFSET(CalculationsAndCharts!$K$32, K20,0,1,1),"") -> 2013-10-01 | M20: =IFERROR(OFFSET(CalculationsAndCharts!$M$32, K20,0,1,1),"") -> 1678.82 | N20: =IF(K20="","",IFERROR(MATCH(TRUE,OFFSET(CalculationsAndCharts!$AG$33,N19,0, $C$2-N19,1),0)+N19,"")) -> 149 | O20: =IFERROR(OFFSET(CalculationsAndCharts!$K$32, N20,0,1,1),"") -> 2013-10-11 | P20: =IFERROR(OFFSET(CalculationsAndCharts!$M$32, N20,0,1,1),"") -> 1685.82 | Q20: -7 | R20: 791
B21: =IFERROR(MATCH(TRUE,OFFSET(CalculationsAndCharts!$AB$33,B20,0, $C$2-B20,1),0)+B20,"") -> 147 | C21: =IFERROR(OFFSET(CalculationsAndCharts!$K$32, B21,0,1,1),"") -> 2013-10-16 | D21: =IFERROR(OFFSET(CalculationsAndCharts!$M$32, B21,0,1,1),"") -> 1699.82 | E21: =IF(B21="","",IFERROR((MATCH(TRUE,OFFSET(CalculationsAndCharts!$AD$33,E20,0, $C$2-E20,1),0)+E20),"")) -> 121 | F21: =IFERROR(OFFSET(CalculationsAndCharts!$K$32, E21,0,1,1),"") -> 2013-12-18 | G21: =IFERROR(OFFSET(CalculationsAndCharts!$M$32, E21,0,1,1),"") -> 1776.82 | H21: 77 | I21: 1288 | K21: =IFERROR(MATCH(TRUE,OFFSET(CalculationsAndCharts!$AE$33,K20,0, $C$2-K20,1),0)+K20,"") -> 182 | L21: =IFERROR(OFFSET(CalculationsAndCharts!$K$32, K21,0,1,1),"") -> 2013-08-16 | M21: =IFERROR(OFFSET(CalculationsAndCharts!$M$32, K21,0,1,1),"") -> 1671.82 | N21: =IF(K21="","",IFERROR(MATCH(TRUE,OFFSET(CalculationsAndCharts!$AG$33,N20,0, $C$2-N20,1),0)+N20,"")) -> 171 | O21: =IFERROR(OFFSET(CalculationsAndCharts!$K$32, N21,0,1,1),"") -> 2013-09-10 | P21: =IFERROR(OFFSET(CalculationsAndCharts!$M$32, N21,0,1,1),"") -> 1657.82 | Q21: 14 | R21: 798
B22: =IFERROR(MATCH(TRUE,OFFSET(CalculationsAndCharts!$AB$33,B21,0, $C$2-B21,1),0)+B21,"") -> 170 | C22: =IFERROR(OFFSET(CalculationsAndCharts!$K$32, B22,0,1,1),"") -> 2013-09-10 | D22: =IFERROR(OFFSET(CalculationsAndCharts!$M$32, B22,0,1,1),"") -> 1664.82 | E22: =IF(B22="","",IFERROR((MATCH(TRUE,OFFSET(CalculationsAndCharts!$AD$33,E21,0, $C$2-E21,1),0)+E21),"")) -> 158 | F22: =IFERROR(OFFSET(CalculationsAndCharts!$K$32, E22,0,1,1),"") -> 2013-09-30 | G22: =IFERROR(OFFSET(CalculationsAndCharts!$M$32, E22,0,1,1),"") -> 1685.82 | H22: 21 | I22: 1211 | K22: =IFERROR(MATCH(TRUE,OFFSET(CalculationsAndCharts!$AE$33,K21,0, $C$2-K21,1),0)+K21,"") -> 210 | L22: =IFERROR(OFFSET(CalculationsAndCharts!$K$32, K22,0,1,1),"") -> 2013-06-20 | M22: =IFERROR(OFFSET(CalculationsAndCharts!$M$32, K22,0,1,1),"") -> 1615.82 | N22: =IF(K22="","",IFERROR(MATCH(TRUE,OFFSET(CalculationsAndCharts!$AG$33,N21,0, $C$2-N21,1),0)+N21,"")) -> 201 | O22: =IFERROR(OFFSET(CalculationsAndCharts!$K$32, N22,0,1,1),"") -> 2013-07-05 | P22: =IFERROR(OFFSET(CalculationsAndCharts!$M$32, N22,0,1,1),"") -> 1615.82 | Q22: 0 | R22: 784
B23: =IFERROR(MATCH(TRUE,OFFSET(CalculationsAndCharts!$AB$33,B22,0, $C$2-B22,1),0)+B22,"") -> 200 | C23: =IFERROR(OFFSET(CalculationsAndCharts!$K$32, B23,0,1,1),"") -> 2013-07-08 | D23: =IFERROR(OFFSET(CalculationsAndCharts!$M$32, B23,0,1,1),"") -> 1622.82 | E23: =IF(B23="","",IFERROR((MATCH(TRUE,OFFSET(CalculationsAndCharts!$AD$33,E22,0, $C$2-E22,1),0)+E22),"")) -> 183 | F23: =IFERROR(OFFSET(CalculationsAndCharts!$K$32, E23,0,1,1),"") -> 2013-08-15 | G23: =IFERROR(OFFSET(CalculationsAndCharts!$M$32, E23,0,1,1),"") -> 1678.82 | H23: 56 | I23: 1190 | K23: =IFERROR(MATCH(TRUE,OFFSET(CalculationsAndCharts!$AE$33,K22,0, $C$2-K22,1),0)+K22,"") -> 222 | L23: =IFERROR(OFFSET(CalculationsAndCharts!$K$32, K23,0,1,1),"") -> 2013-06-05 | M23: =IFERROR(OFFSET(CalculationsAndCharts!$M$32, K23,0,1,1),"") -> 1629.82 | N23: =IF(K23="","",IFERROR(MATCH(TRUE,OFFSET(CalculationsAndCharts!$AG$33,N22,0, $C$2-N22,1),0)+N22,"")) -> 214 | O23: =IFERROR(OFFSET(CalculationsAndCharts!$K$32, N23,0,1,1),"") -> 2013-06-18 | P23: =IFERROR(OFFSET(CalculationsAndCharts!$M$32, N23,0,1,1),"") -> 1636.82 | Q23: -7 | R23: 784
B24: =IFERROR(MATCH(TRUE,OFFSET(CalculationsAndCharts!$AB$33,B23,0, $C$2-B23,1),0)+B23,"") -> 213 | C24: =IFERROR(OFFSET(CalculationsAndCharts!$K$32, B24,0,1,1),"") -> 2013-06-19 | D24: =IFERROR(OFFSET(CalculationsAndCharts!$M$32, B24,0,1,1),"") -> 1643.82 | E24: =IF(B24="","",IFERROR((MATCH(TRUE,OFFSET(CalculationsAndCharts!$AD$33,E23,0, $C$2-E23,1),0)+E23),"")) -> 211 | F24: =IFERROR(OFFSET(CalculationsAndCharts!$K$32, E24,0,1,1),"") -> 2013-06-20 | G24: =IFERROR(OFFSET(CalculationsAndCharts!$M$32, E24,0,1,1),"") -> 1622.82 | H24: -21 | I24: 1134 | K24: =IFERROR(MATCH(TRUE,OFFSET(CalculationsAndCharts!$AE$33,K23,0, $C$2-K23,1),0)+K23,"") -> 245 | L24: =IFERROR(OFFSET(CalculationsAndCharts!$K$32, K24,0,1,1),"") -> 2013-04-23 | M24: =IFERROR(OFFSET(CalculationsAndCharts!$M$32, K24,0,1,1),"") -> 1552.82 | N24: =IF(K24="","",IFERROR(MATCH(TRUE,OFFSET(CalculationsAndCharts!$AG$33,N23,0, $C$2-N23,1),0)+N23,"")) -> 242 | O24: =IFERROR(OFFSET(CalculationsAndCharts!$K$32, N24,0,1,1),"") -> 2013-04-29 | P24: =IFERROR(OFFSET(CalculationsAndCharts!$M$32, N24,0,1,1),"") -> 1580.82 | Q24: -28 | R24: 791
B25: =IFERROR(MATCH(TRUE,OFFSET(CalculationsAndCharts!$AB$33,B24,0, $C$2-B24,1),0)+B24,"") -> 241 | C25: =IFERROR(OFFSET(CalculationsAndCharts!$K$32, B25,0,1,1),"") -> 2013-04-30 | D25: =IFERROR(OFFSET(CalculationsAndCharts!$M$32, B25,0,1,1),"") -> 1587.82 | E25: =IF(B25="","",IFERROR((MATCH(TRUE,OFFSET(CalculationsAndCharts!$AD$33,E24,0, $C$2-E24,1),0)+E24),"")) -> 223 | F25: =IFERROR(OFFSET(CalculationsAndCharts!$K$32, E25,0,1,1),"") -> 2013-06-04 | G25: =IFERROR(OFFSET(CalculationsAndCharts!$M$32, E25,0,1,1),"") -> 1636.82 | H25: 49 | I25: 1155 | K25: =IFERROR(MATCH(TRUE,OFFSET(CalculationsAndCharts!$AE$33,K24,0, $C$2-K24,1),0)+K24,"") -> 290 | L25: =IFERROR(OFFSET(CalculationsAndCharts!$K$32, K25,0,1,1),"") -> 2012-12-31 | M25: =IFERROR(OFFSET(CalculationsAndCharts!$M$32, K25,0,1,1),"") -> 1405.82 | N25: =IF(K25="","",IFERROR(MATCH(TRUE,OFFSET(CalculationsAndCharts!$AG$33,N24,0, $C$2-N24,1),0)+N24,"")) -> 289 | O25: =IFERROR(OFFSET(CalculationsAndCharts!$K$32, N25,0,1,1),"") -> 2013-01-02 | P25: =IFERROR(OFFSET(CalculationsAndCharts!$M$32, N25,0,1,1),"") -> 1419.82 | Q25: -14 | R25: 819
B26: =IFERROR(MATCH(TRUE,OFFSET(CalculationsAndCharts!$AB$33,B25,0, $C$2-B25,1),0)+B25,"") -> 247 | C26: =IFERROR(OFFSET(CalculationsAndCharts!$K$32, B26,0,1,1),"") -> 2013-04-17 | D26: =IFERROR(OFFSET(CalculationsAndCharts!$M$32, B26,0,1,1),"") -> 1573.82 | E26: =IF(B26="","",IFERROR((MATCH(TRUE,OFFSET(CalculationsAndCharts!$AD$33,E25,0, $C$2-E25,1),0)+E25),"")) -> 245 | F26: =IFERROR(OFFSET(CalculationsAndCharts!$K$32, E26,0,1,1),"") -> 2013-04-23 | G26: =IFERROR(OFFSET(CalculationsAndCharts!$M$32, E26,0,1,1),"") -> 1552.82 | H26: -21 | I26: 1106 | K26: =IFERROR(MATCH(TRUE,OFFSET(CalculationsAndCharts!$AE$33,K25,0, $C$2-K25,1),0)+K25,"") -> 322 | L26: =IFERROR(OFFSET(CalculationsAndCharts!$K$32, K26,0,1,1),"") -> 2012-10-23 | M26: =IFERROR(OFFSET(CalculationsAndCharts!$M$32, K26,0,1,1),"") -> 1433.82 | N26: =IF(K26="","",IFERROR(MATCH(TRUE,OFFSET(CalculationsAndCharts!$AG$33,N25,0, $C$2-N25,1),0)+N25,"")) -> 303 | O26: =IFERROR(OFFSET(CalculationsAndCharts!$K$32, N26,0,1,1),"") -> 2012-11-23 | P26: =IFERROR(OFFSET(CalculationsAndCharts!$M$32, N26,0,1,1),"") -> 1391.82 | Q26: 42 | R26: 833
B27: =IFERROR(MATCH(TRUE,OFFSET(CalculationsAndCharts!$AB$33,B26,0, $C$2-B26,1),0)+B26,"") -> 267 | C27: =IFERROR(OFFSET(CalculationsAndCharts!$K$32, B27,0,1,1),"") -> 2013-03-04 | D27: =IFERROR(OFFSET(CalculationsAndCharts!$M$32, B27,0,1,1),"") -> 1517.82 | E27: =IF(B27="","",IFERROR((MATCH(TRUE,OFFSET(CalculationsAndCharts!$AD$33,E26,0, $C$2-E26,1),0)+E26),"")) -> 248 | F27: =IFERROR(OFFSET(CalculationsAndCharts!$K$32, E27,0,1,1),"") -> 2013-04-16 | G27: =IFERROR(OFFSET(CalculationsAndCharts!$M$32, E27,0,1,1),"") -> 1559.82 | H27: 42 | I27: 1127 | K27: =IFERROR(MATCH(TRUE,OFFSET(CalculationsAndCharts!$AE$33,K26,0, $C$2-K26,1),0)+K26,"") -> 327 | L27: =IFERROR(OFFSET(CalculationsAndCharts!$K$32, K27,0,1,1),"") -> 2012-10-16 | M27: =IFERROR(OFFSET(CalculationsAndCharts!$M$32, K27,0,1,1),"") -> 1426.82 | N27: =IF(K27="","",IFERROR(MATCH(TRUE,OFFSET(CalculationsAndCharts!$AG$33,N26,0, $C$2-N26,1),0)+N26,"")) -> 325 | O27: =IFERROR(OFFSET(CalculationsAndCharts!$K$32, N27,0,1,1),"") -> 2012-10-17 | P27: =IFERROR(OFFSET(CalculationsAndCharts!$M$32, N27,0,1,1),"") -> 1447.82 | Q27: -21 | R27: 791
B28: =IFERROR(MATCH(TRUE,OFFSET(CalculationsAndCharts!$AB$33,B27,0, $C$2-B27,1),0)+B27,"") -> 285 | C28: =IFERROR(OFFSET(CalculationsAndCharts!$K$32, B28,0,1,1),"") -> 2013-01-02 | D28: =IFERROR(OFFSET(CalculationsAndCharts!$M$32, B28,0,1,1),"") -> 1447.82 | E28: =IF(B28="","",IFERROR((MATCH(TRUE,OFFSET(CalculationsAndCharts!$AD$33,E27,0, $C$2-E27,1),0)+E27),"")) -> 269 | F28: =IFERROR(OFFSET(CalculationsAndCharts!$K$32, E28,0,1,1),"") -> 2013-02-27 | G28: =IFERROR(OFFSET(CalculationsAndCharts!$M$32, E28,0,1,1),"") -> 1496.82 | H28: 49 | I28: 1085 | K28: =IFERROR(MATCH(TRUE,OFFSET(CalculationsAndCharts!$AE$33,K27,0, $C$2-K27,1),0)+K27,"") -> 373 | L28: =IFERROR(OFFSET(CalculationsAndCharts!$K$32, K28,0,1,1),"") -> 2012-06-29 | M28: =IFERROR(OFFSET(CalculationsAndCharts!$M$32, K28,0,1,1),"") -> 1335.82 | N28: =IF(K28="","",IFERROR(MATCH(TRUE,OFFSET(CalculationsAndCharts!$AG$33,N27,0, $C$2-N27,1),0)+N27,"")) -> 372 | O28: =IFERROR(OFFSET(CalculationsAndCharts!$K$32, N28,0,1,1),"") -> 2012-06-29 | P28: =IFERROR(OFFSET(CalculationsAndCharts!$M$32, N28,0,1,1),"") -> 1342.82 | Q28: -7 | R28: 812
B29: =IFERROR(MATCH(TRUE,OFFSET(CalculationsAndCharts!$AB$33,B28,0, $C$2-B28,1),0)+B28,"") -> 288 | C29: =IFERROR(OFFSET(CalculationsAndCharts!$K$32, B29,0,1,1),"") -> 2013-01-02 | D29: =IFERROR(OFFSET(CalculationsAndCharts!$M$32, B29,0,1,1),"") -> 1426.82 | E29: =IF(B29="","",IFERROR((MATCH(TRUE,OFFSET(CalculationsAndCharts!$AD$33,E28,0, $C$2-E28,1),0)+E28),"")) -> 287 | F29: =IFERROR(OFFSET(CalculationsAndCharts!$K$32, E29,0,1,1),"") -> 2013-01-02 | G29: =IFERROR(OFFSET(CalculationsAndCharts!$M$32, E29,0,1,1),"") -> 1433.82 | H29: 7 | I29: 1036 | K29: =IFERROR(MATCH(TRUE,OFFSET(CalculationsAndCharts!$AE$33,K28,0, $C$2-K28,1),0)+K28,"") -> 403 | L29: =IFERROR(OFFSET(CalculationsAndCharts!$K$32, K29,0,1,1),"") -> 2012-05-11 | M29: =IFERROR(OFFSET(CalculationsAndCharts!$M$32, K29,0,1,1),"") -> 1356.82 | N29: =IF(K29="","",IFERROR(MATCH(TRUE,OFFSET(CalculationsAndCharts!$AG$33,N28,0, $C$2-N28,1),0)+N28,"")) -> 386 | O29: =IFERROR(OFFSET(CalculationsAndCharts!$K$32, N29,0,1,1),"") -> 2012-06-08 | P29: =IFERROR(OFFSET(CalculationsAndCharts!$M$32, N29,0,1,1),"") -> 1314.82 | Q29: 42 | R29: 819
B30: =IFERROR(MATCH(TRUE,OFFSET(CalculationsAndCharts!$AB$33,B29,0, $C$2-B29,1),0)+B29,"") -> 302 | C30: =IFERROR(OFFSET(CalculationsAndCharts!$K$32, B30,0,1,1),"") -> 2012-11-26 | D30: =IFERROR(OFFSET(CalculationsAndCharts!$M$32, B30,0,1,1),"") -> 1398.82 | E30: =IF(B30="","",IFERROR((MATCH(TRUE,OFFSET(CalculationsAndCharts!$AD$33,E29,0, $C$2-E29,1),0)+E29),"")) -> 291 | F30: =IFERROR(OFFSET(CalculationsAndCharts!$K$32, E30,0,1,1),"") -> 2012-12-28 | G30: =IFERROR(OFFSET(CalculationsAndCharts!$M$32, E30,0,1,1),"") -> 1412.82 | H30: 14 | I30: 1029 | K30: =IFERROR(MATCH(TRUE,OFFSET(CalculationsAndCharts!$AE$33,K29,0, $C$2-K29,1),0)+K29,"") -> 420 | L30: =IFERROR(OFFSET(CalculationsAndCharts!$K$32, K30,0,1,1),"") -> 2012-04-10 | M30: =IFERROR(OFFSET(CalculationsAndCharts!$M$32, K30,0,1,1),"") -> 1377.82 | N30: =IF(K30="","",IFERROR(MATCH(TRUE,OFFSET(CalculationsAndCharts!$AG$33,N29,0, $C$2-N29,1),0)+N29,"")) -> 411 | O30: =IFERROR(OFFSET(CalculationsAndCharts!$K$32, N30,0,1,1),"") -> 2012-04-26 | P30: =IFERROR(OFFSET(CalculationsAndCharts!$M$32, N30,0,1,1),"") -> 1377.82 | Q30: 0 | R30: 777
B31: =IFERROR(MATCH(TRUE,OFFSET(CalculationsAndCharts!$AB$33,B30,0, $C$2-B30,1),0)+B30,"") -> 324 | C31: =IFERROR(OFFSET(CalculationsAndCharts!$K$32, B31,0,1,1),"") -> 2012-10-19 | D31: =IFERROR(OFFSET(CalculationsAndCharts!$M$32, B31,0,1,1),"") -> 1454.82 | E31: =IF(B31="","",IFERROR((MATCH(TRUE,OFFSET(CalculationsAndCharts!$AD$33,E30,0, $C$2-E30,1),0)+E30),"")) -> 322 | F31: =IFERROR(OFFSET(CalculationsAndCharts!$K$32, E31,0,1,1),"") -> 2012-10-23 | G31: =IFERROR(OFFSET(CalculationsAndCharts!$M$32, E31,0,1,1),"") -> 1433.82 | H31: -21 | I31: 1015 | K31: =IFERROR(MATCH(TRUE,OFFSET(CalculationsAndCharts!$AE$33,K30,0, $C$2-K30,1),0)+K30,"") -> 465 | L31: =IFERROR(OFFSET(CalculationsAndCharts!$K$32, K31,0,1,1),"") -> 2011-12-19 | M31: =IFERROR(OFFSET(CalculationsAndCharts!$M$32, K31,0,1,1),"") -> 1216.82 | N31: =IF(K31="","",IFERROR(MATCH(TRUE,OFFSET(CalculationsAndCharts!$AG$33,N30,0, $C$2-N30,1),0)+N30,"")) -> 460 | O31: =IFERROR(OFFSET(CalculationsAndCharts!$K$32, N31,0,1,1),"") -> 2011-12-23 | P31: =IFERROR(OFFSET(CalculationsAndCharts!$M$32, N31,0,1,1),"") -> 1244.82 | Q31: -28 | R31: 777
B32: =IFERROR(MATCH(TRUE,OFFSET(CalculationsAndCharts!$AB$33,B31,0, $C$2-B31,1),0)+B31,"") -> 351 | C32: =IFERROR(OFFSET(CalculationsAndCharts!$K$32, B32,0,1,1),"") -> 2012-07-30 | D32: =IFERROR(OFFSET(CalculationsAndCharts!$M$32, B32,0,1,1),"") -> 1377.82 | E32: =IF(B32="","",IFERROR((MATCH(TRUE,OFFSET(CalculationsAndCharts!$AD$33,E31,0, $C$2-E31,1),0)+E31),"")) -> 328 | F32: =IFERROR(OFFSET(CalculationsAndCharts!$K$32, E32,0,1,1),"") -> 2012-10-11 | G32: =IFERROR(OFFSET(CalculationsAndCharts!$M$32, E32,0,1,1),"") -> 1433.82 | H32: 56 | I32: 1036 | K32: =IFERROR(MATCH(TRUE,OFFSET(CalculationsAndCharts!$AE$33,K31,0, $C$2-K31,1),0)+K31,"") -> 491 | L32: =IFERROR(OFFSET(CalculationsAndCharts!$K$32, K32,0,1,1),"") -> 2011-11-17 | M32: =IFERROR(OFFSET(CalculationsAndCharts!$M$32, K32,0,1,1),"") -> 1230.82 | N32: =IF(K32="","",IFERROR(MATCH(TRUE,OFFSET(CalculationsAndCharts!$AG$33,N31,0, $C$2-N31,1),0)+N31,"")) -> 478 | O32: =IFERROR(OFFSET(CalculationsAndCharts!$K$32, N32,0,1,1),"") -> 2011-11-30 | P32: =IFERROR(OFFSET(CalculationsAndCharts!$M$32, N32,0,1,1),"") -> 1202.82 | Q32: 28 | R32: 805
B33: =IFERROR(MATCH(TRUE,OFFSET(CalculationsAndCharts!$AB$33,B32,0, $C$2-B32,1),0)+B32,"") -> 360 | C33: =IFERROR(OFFSET(CalculationsAndCharts!$K$32, B33,0,1,1),"") -> 2012-07-20 | D33: =IFERROR(OFFSET(CalculationsAndCharts!$M$32, B33,0,1,1),"") -> 1370.82 | E33: =IF(B33="","",IFERROR((MATCH(TRUE,OFFSET(CalculationsAndCharts!$AD$33,E32,0, $C$2-E32,1),0)+E32),"")) -> 356 | F33: =IFERROR(OFFSET(CalculationsAndCharts!$K$32, E33,0,1,1),"") -> 2012-07-26 | G33: =IFERROR(OFFSET(CalculationsAndCharts!$M$32, E33,0,1,1),"") -> 1335.82 | H33: -35 | I33: 980 | K33: =IFERROR(MATCH(TRUE,OFFSET(CalculationsAndCharts!$AE$33,K32,0, $C$2-K32,1),0)+K32,"") -> 502 | L33: =IFERROR(OFFSET(CalculationsAndCharts!$K$32, K33,0,1,1),"") -> 2011-11-01 | M33: =IFERROR(OFFSET(CalculationsAndCharts!$M$32, K33,0,1,1),"") -> 1237.82 | N33: =IF(K33="","",IFERROR(MATCH(TRUE,OFFSET(CalculationsAndCharts!$AG$33,N32,0, $C$2-N32,1),0)+N32,"")) -> 497 | O33: =IFERROR(OFFSET(CalculationsAndCharts!$K$32, N33,0,1,1),"") -> 2011-11-09 | P33: =IFERROR(OFFSET(CalculationsAndCharts!$M$32, N33,0,1,1),"") -> 1265.82 | Q33: -28 | R33: 777
B34: =IFERROR(MATCH(TRUE,OFFSET(CalculationsAndCharts!$AB$33,B33,0, $C$2-B33,1),0)+B33,"") -> 370 | C34: =IFERROR(OFFSET(CalculationsAndCharts!$K$32, B34,0,1,1),"") -> 2012-07-03 | D34: =IFERROR(OFFSET(CalculationsAndCharts!$M$32, B34,0,1,1),"") -> 1356.82 | E34: =IF(B34="","",IFERROR((MATCH(TRUE,OFFSET(CalculationsAndCharts!$AD$33,E33,0, $C$2-E33,1),0)+E33),"")) -> 365 | F34: =IFERROR(OFFSET(CalculationsAndCharts!$K$32, E34,0,1,1),"") -> 2012-07-13 | G34: =IFERROR(OFFSET(CalculationsAndCharts!$M$32, E34,0,1,1),"") -> 1328.82 | H34: -28 | I34: 1015 | K34: =IFERROR(MATCH(TRUE,OFFSET(CalculationsAndCharts!$AE$33,K33,0, $C$2-K33,1),0)+K33,"") -> 536 | L34: =IFERROR(OFFSET(CalculationsAndCharts!$K$32, K34,0,1,1),"") -> 2011-10-03 | M34: =IFERROR(OFFSET(CalculationsAndCharts!$M$32, K34,0,1,1),"") -> 1125.82 | N34: =IF(K34="","",IFERROR(MATCH(TRUE,OFFSET(CalculationsAndCharts!$AG$33,N33,0, $C$2-N33,1),0)+N33,"")) -> 530 | O34: =IFERROR(OFFSET(CalculationsAndCharts!$K$32, N34,0,1,1),"") -> 2011-10-06 | P34: =IFERROR(OFFSET(CalculationsAndCharts!$M$32, N34,0,1,1),"") -> 1146.82 | Q34: -21 | R34: 805
B35: =IFERROR(MATCH(TRUE,OFFSET(CalculationsAndCharts!$AB$33,B34,0, $C$2-B34,1),0)+B34,"") -> 385 | C35: =IFERROR(OFFSET(CalculationsAndCharts!$K$32, B35,0,1,1),"") -> 2012-06-11 | D35: =IFERROR(OFFSET(CalculationsAndCharts!$M$32, B35,0,1,1),"") -> 1321.82 | E35: =IF(B35="","",IFERROR((MATCH(TRUE,OFFSET(CalculationsAndCharts!$AD$33,E34,0, $C$2-E34,1),0)+E34),"")) -> 375 | F35: =IFERROR(OFFSET(CalculationsAndCharts!$K$32, E35,0,1,1),"") -> 2012-06-27 | G35: =IFERROR(OFFSET(CalculationsAndCharts!$M$32, E35,0,1,1),"") -> 1314.82 | H35: -7 | I35: 1043 | K35: =IFERROR(MATCH(TRUE,OFFSET(CalculationsAndCharts!$AE$33,K34,0, $C$2-K34,1),0)+K34,"") -> 549 | L35: =IFERROR(OFFSET(CalculationsAndCharts!$K$32, K35,0,1,1),"") -> 2011-09-22 | M35: =IFERROR(OFFSET(CalculationsAndCharts!$M$32, K35,0,1,1),"") -> 1160.82 | N35: =IF(K35="","",IFERROR(MATCH(TRUE,OFFSET(CalculationsAndCharts!$AG$33,N34,0, $C$2-N34,1),0)+N34,"")) -> 541 | O35: =IFERROR(OFFSET(CalculationsAndCharts!$K$32, N35,0,1,1),"") -> 2011-09-28 | P35: =IFERROR(OFFSET(CalculationsAndCharts!$M$32, N35,0,1,1),"") -> 1167.82 | Q35: -7 | R35: 826
B36: =IFERROR(MATCH(TRUE,OFFSET(CalculationsAndCharts!$AB$33,B35,0, $C$2-B35,1),0)+B35,"") -> 410 | C36: =IFERROR(OFFSET(CalculationsAndCharts!$K$32, B36,0,1,1),"") -> 2012-04-26 | D36: =IFERROR(OFFSET(CalculationsAndCharts!$M$32, B36,0,1,1),"") -> 1384.82 | E36: =IF(B36="","",IFERROR((MATCH(TRUE,OFFSET(CalculationsAndCharts!$AD$33,E35,0, $C$2-E35,1),0)+E35),"")) -> 406 | F36: =IFERROR(OFFSET(CalculationsAndCharts!$K$32, E36,0,1,1),"") -> 2012-05-07 | G36: =IFERROR(OFFSET(CalculationsAndCharts!$M$32, E36,0,1,1),"") -> 1377.82 | H36: -7 | I36: 1050 | K36: =IFERROR(MATCH(TRUE,OFFSET(CalculationsAndCharts!$AE$33,K35,0, $C$2-K35,1),0)+K35,"") -> 563 | L36: =IFERROR(OFFSET(CalculationsAndCharts!$K$32, K36,0,1,1),"") -> 2011-09-07 | M36: =IFERROR(OFFSET(CalculationsAndCharts!$M$32, K36,0,1,1),"") -> 1174.82 | N36: =IF(K36="","",IFERROR(MATCH(TRUE,OFFSET(CalculationsAndCharts!$AG$33,N35,0, $C$2-N35,1),0)+N35,"")) -> 556 | O36: =IFERROR(OFFSET(CalculationsAndCharts!$K$32, N36,0,1,1),"") -> 2011-09-15 | P36: =IFERROR(OFFSET(CalculationsAndCharts!$M$32, N36,0,1,1),"") -> 1188.82 | Q36: -14 | R36: 833
B37: =IFERROR(MATCH(TRUE,OFFSET(CalculationsAndCharts!$AB$33,B36,0, $C$2-B36,1),0)+B36,"") -> 459 | C37: =IFERROR(OFFSET(CalculationsAndCharts!$K$32, B37,0,1,1),"") -> 2011-12-27 | D37: =IFERROR(OFFSET(CalculationsAndCharts!$M$32, B37,0,1,1),"") -> 1251.82 | E37: =IF(B37="","",IFERROR((MATCH(TRUE,OFFSET(CalculationsAndCharts!$AD$33,E36,0, $C$2-E36,1),0)+E36),"")) -> 421 | F37: =IFERROR(OFFSET(CalculationsAndCharts!$K$32, E37,0,1,1),"") -> 2012-04-10 | G37: =IFERROR(OFFSET(CalculationsAndCharts!$M$32, E37,0,1,1),"") -> 1384.82 | H37: 133 | I37: 1057 | K37: =IFERROR(MATCH(TRUE,OFFSET(CalculationsAndCharts!$AE$33,K36,0, $C$2-K36,1),0)+K36,"") -> 586 | L37: =IFERROR(OFFSET(CalculationsAndCharts!$K$32, K37,0,1,1),"") -> 2011-08-19 | M37: =IFERROR(OFFSET(CalculationsAndCharts!$M$32, K37,0,1,1),"") -> 1153.82 | N37: =IF(K37="","",IFERROR(MATCH(TRUE,OFFSET(CalculationsAndCharts!$AG$33,N36,0, $C$2-N36,1),0)+N36,"")) -> 578 | O37: =IFERROR(OFFSET(CalculationsAndCharts!$K$32, N37,0,1,1),"") -> 2011-08-24 | P37: =IFERROR(OFFSET(CalculationsAndCharts!$M$32, N37,0,1,1),"") -> 1160.82 | Q37: -7 | R37: 847
B38: =IFERROR(MATCH(TRUE,OFFSET(CalculationsAndCharts!$AB$33,B37,0, $C$2-B37,1),0)+B37,"") -> 477 | C38: =IFERROR(OFFSET(CalculationsAndCharts!$K$32, B38,0,1,1),"") -> 2011-11-30 | D38: =IFERROR(OFFSET(CalculationsAndCharts!$M$32, B38,0,1,1),"") -> 1209.82 | E38: =IF(B38="","",IFERROR((MATCH(TRUE,OFFSET(CalculationsAndCharts!$AD$33,E37,0, $C$2-E37,1),0)+E37),"")) -> 466 | F38: =IFERROR(OFFSET(CalculationsAndCharts!$K$32, E38,0,1,1),"") -> 2011-12-15 | G38: =IFERROR(OFFSET(CalculationsAndCharts!$M$32, E38,0,1,1),"") -> 1223.82 | H38: 14 | I38: 924 | K38: =IFERROR(MATCH(TRUE,OFFSET(CalculationsAndCharts!$AE$33,K37,0, $C$2-K37,1),0)+K37,"") -> 629 | L38: =IFERROR(OFFSET(CalculationsAndCharts!$K$32, K38,0,1,1),"") -> 2011-08-01 | M38: =IFERROR(OFFSET(CalculationsAndCharts!$M$32, K38,0,1,1),"") -> 1300.82 | N38: =IF(K38="","",IFERROR(MATCH(TRUE,OFFSET(CalculationsAndCharts!$AG$33,N37,0, $C$2-N37,1),0)+N37,"")) -> 598 | O38: =IFERROR(OFFSET(CalculationsAndCharts!$K$32, N38,0,1,1),"") -> 2011-08-11 | P38: =IFERROR(OFFSET(CalculationsAndCharts!$M$32, N38,0,1,1),"") -> 1146.82 | Q38: 154 | R38: 854
B39: =IFERROR(MATCH(TRUE,OFFSET(CalculationsAndCharts!$AB$33,B38,0, $C$2-B38,1),0)+B38,"") -> 493 | C39: =IFERROR(OFFSET(CalculationsAndCharts!$K$32, B39,0,1,1),"") -> 2011-11-16 | D39: =IFERROR(OFFSET(CalculationsAndCharts!$M$32, B39,0,1,1),"") -> 1251.82 | E39: =IF(B39="","",IFERROR((MATCH(TRUE,OFFSET(CalculationsAndCharts!$AD$33,E38,0, $C$2-E38,1),0)+E38),"")) -> 492 | F39: =IFERROR(OFFSET(CalculationsAndCharts!$K$32, E39,0,1,1),"") -> 2011-11-17 | G39: =IFERROR(OFFSET(CalculationsAndCharts!$M$32, E39,0,1,1),"") -> 1237.82 | H39: -14 | I39: 910 | K39: =IFERROR(MATCH(TRUE,OFFSET(CalculationsAndCharts!$AE$33,K38,0, $C$2-K38,1),0)+K38,"") -> 639 | L39: =IFERROR(OFFSET(CalculationsAndCharts!$K$32, K39,0,1,1),"") -> 2011-07-19 | M39: =IFERROR(OFFSET(CalculationsAndCharts!$M$32, K39,0,1,1),"") -> 1300.82 | N39: =IF(K39="","",IFERROR(MATCH(TRUE,OFFSET(CalculationsAndCharts!$AG$33,N38,0, $C$2-N38,1),0)+N38,"")) -> 635 | O39: =IFERROR(OFFSET(CalculationsAndCharts!$K$32, N39,0,1,1),"") -> 2011-07-22 | P39: =IFERROR(OFFSET(CalculationsAndCharts!$M$32, N39,0,1,1),"") -> 1335.82 | Q39: -35 | R39: 700
B40: =IFERROR(MATCH(TRUE,OFFSET(CalculationsAndCharts!$AB$33,B39,0, $C$2-B39,1),0)+B39,"") -> 529 | C40: =IFERROR(OFFSET(CalculationsAndCharts!$K$32, B40,0,1,1),"") -> 2011-10-10 | D40: =IFERROR(OFFSET(CalculationsAndCharts!$M$32, B40,0,1,1),"") -> 1153.82 | E40: =IF(B40="","",IFERROR((MATCH(TRUE,OFFSET(CalculationsAndCharts!$AD$33,E39,0, $C$2-E39,1),0)+E39),"")) -> 503 | F40: =IFERROR(OFFSET(CalculationsAndCharts!$K$32, E40,0,1,1),"") -> 2011-11-01 | G40: =IFERROR(OFFSET(CalculationsAndCharts!$M$32, E40,0,1,1),"") -> 1244.82 | H40: 91 | I40: 924 | K40: =IFERROR(MATCH(TRUE,OFFSET(CalculationsAndCharts!$AE$33,K39,0, $C$2-K39,1),0)+K39,"") -> 671 | L40: =IFERROR(OFFSET(CalculationsAndCharts!$K$32, K40,0,1,1),"") -> 2011-05-23 | M40: =IFERROR(OFFSET(CalculationsAndCharts!$M$32, K40,0,1,1),"") -> 1328.82 | N40: =IF(K40="","",IFERROR(MATCH(TRUE,OFFSET(CalculationsAndCharts!$AG$33,N39,0, $C$2-N39,1),0)+N39,"")) -> 652 | O40: =IFERROR(OFFSET(CalculationsAndCharts!$K$32, N40,0,1,1),"") -> 2011-06-29 | P40: =IFERROR(OFFSET(CalculationsAndCharts!$M$32, N40,0,1,1),"") -> 1286.82 | Q40: 42 | R40: 735
B41: =IFERROR(MATCH(TRUE,OFFSET(CalculationsAndCharts!$AB$33,B40,0, $C$2-B40,1),0)+B40,"") -> 555 | C41: =IFERROR(OFFSET(CalculationsAndCharts!$K$32, B41,0,1,1),"") -> 2011-09-16 | D41: =IFERROR(OFFSET(CalculationsAndCharts!$M$32, B41,0,1,1),"") -> 1195.82 | E41: =IF(B41="","",IFERROR((MATCH(TRUE,OFFSET(CalculationsAndCharts!$AD$33,E40,0, $C$2-E40,1),0)+E40),"")) -> 550 | F41: =IFERROR(OFFSET(CalculationsAndCharts!$K$32, E41,0,1,1),"") -> 2011-09-22 | G41: =IFERROR(OFFSET(CalculationsAndCharts!$M$32, E41,0,1,1),"") -> 1167.82 | H41: -28 | I41: 833 | K41: =IFERROR(MATCH(TRUE,OFFSET(CalculationsAndCharts!$AE$33,K40,0, $C$2-K40,1),0)+K40,"") -> 706 | L41: =IFERROR(OFFSET(CalculationsAndCharts!$K$32, K41,0,1,1),"") -> 2011-02-28 | M41: =IFERROR(OFFSET(CalculationsAndCharts!$M$32, K41,0,1,1),"") -> 1307.82 | N41: =IF(K41="","",IFERROR(MATCH(TRUE,OFFSET(CalculationsAndCharts!$AG$33,N40,0, $C$2-N40,1),0)+N40,"")) -> 692 | O41: =IFERROR(OFFSET(CalculationsAndCharts!$K$32, N41,0,1,1),"") -> 2011-03-25 | P41: =IFERROR(OFFSET(CalculationsAndCharts!$M$32, N41,0,1,1),"") -> 1300.82 | Q41: 7 | R41: 693
B42: =IFERROR(MATCH(TRUE,OFFSET(CalculationsAndCharts!$AB$33,B41,0, $C$2-B41,1),0)+B41,"") -> 577 | C42: =IFERROR(OFFSET(CalculationsAndCharts!$K$32, B42,0,1,1),"") -> 2011-08-25 | D42: =IFERROR(OFFSET(CalculationsAndCharts!$M$32, B42,0,1,1),"") -> 1167.82 | E42: =IF(B42="","",IFERROR((MATCH(TRUE,OFFSET(CalculationsAndCharts!$AD$33,E41,0, $C$2-E41,1),0)+E41),"")) -> 564 | F42: =IFERROR(OFFSET(CalculationsAndCharts!$K$32, E42,0,1,1),"") -> 2011-09-06 | G42: =IFERROR(OFFSET(CalculationsAndCharts!$M$32, E42,0,1,1),"") -> 1181.82 | H42: 14 | I42: 861 | K42: =IFERROR(MATCH(TRUE,OFFSET(CalculationsAndCharts!$AE$33,K41,0, $C$2-K41,1),0)+K41,"") -> 740 | L42: =IFERROR(OFFSET(CalculationsAndCharts!$K$32, K42,0,1,1),"") -> 2010-11-24 | M42: =IFERROR(OFFSET(CalculationsAndCharts!$M$32, K42,0,1,1),"") -> 1181.82 | N42: =IF(K42="","",IFERROR(MATCH(TRUE,OFFSET(CalculationsAndCharts!$AG$33,N41,0, $C$2-N41,1),0)+N41,"")) -> 735 | O42: =IFERROR(OFFSET(CalculationsAndCharts!$K$32, N42,0,1,1),"") -> 2010-12-02 | P42: =IFERROR(OFFSET(CalculationsAndCharts!$M$32, N42,0,1,1),"") -> 1195.82 | Q42: -14 | R42: 686
B43: =IFERROR(MATCH(TRUE,OFFSET(CalculationsAndCharts!$AB$33,B42,0, $C$2-B42,1),0)+B42,"") -> 597 | C43: =IFERROR(OFFSET(CalculationsAndCharts!$K$32, B43,0,1,1),"") -> 2011-08-11 | D43: =IFERROR(OFFSET(CalculationsAndCharts!$M$32, B43,0,1,1),"") -> 1153.82 | E43: =IF(B43="","",IFERROR((MATCH(TRUE,OFFSET(CalculationsAndCharts!$AD$33,E42,0, $C$2-E42,1),0)+E42),"")) -> 587 | F43: =IFERROR(OFFSET(CalculationsAndCharts!$K$32, E43,0,1,1),"") -> 2011-08-18 | G43: =IFERROR(OFFSET(CalculationsAndCharts!$M$32, E43,0,1,1),"") -> 1160.82 | H43: 7 | I43: 847 | K43: =IFERROR(MATCH(TRUE,OFFSET(CalculationsAndCharts!$AE$33,K42,0, $C$2-K42,1),0)+K42,"") -> 785 | L43: =IFERROR(OFFSET(CalculationsAndCharts!$K$32, K43,0,1,1),"") -> 2010-08-13 | M43: =IFERROR(OFFSET(CalculationsAndCharts!$M$32, K43,0,1,1),"") -> 1090.82 | N43: =IF(K43="","",IFERROR(MATCH(TRUE,OFFSET(CalculationsAndCharts!$AG$33,N42,0, $C$2-N42,1),0)+N42,"")) -> 772 | O43: =IFERROR(OFFSET(CalculationsAndCharts!$K$32, N43,0,1,1),"") -> 2010-09-03 | P43: =IFERROR(OFFSET(CalculationsAndCharts!$M$32, N43,0,1,1),"") -> 1076.82 | Q43: 14 | R43: 700
B44: =IFERROR(MATCH(TRUE,OFFSET(CalculationsAndCharts!$AB$33,B43,0, $C$2-B43,1),0)+B43,"") -> 634 | C44: =IFERROR(OFFSET(CalculationsAndCharts!$K$32, B44,0,1,1),"") -> 2011-07-26 | D44: =IFERROR(OFFSET(CalculationsAndCharts!$M$32, B44,0,1,1),"") -> 1342.82 | E44: =IF(B44="","",IFERROR((MATCH(TRUE,OFFSET(CalculationsAndCharts!$AD$33,E43,0, $C$2-E43,1),0)+E43),"")) -> 630 | F44: =IFERROR(OFFSET(CalculationsAndCharts!$K$32, E44,0,1,1),"") -> 2011-07-29 | G44: =IFERROR(OFFSET(CalculationsAndCharts!$M$32, E44,0,1,1),"") -> 1307.82 | H44: -35 | I44: 840 | K44: =IFERROR(MATCH(TRUE,OFFSET(CalculationsAndCharts!$AE$33,K43,0, $C$2-K43,1),0)+K43,"") -> 816 | L44: =IFERROR(OFFSET(CalculationsAndCharts!$K$32, K44,0,1,1),"") -> 2010-06-29 | M44: =IFERROR(OFFSET(CalculationsAndCharts!$M$32, K44,0,1,1),"") -> 1069.82 | N44: =IF(K44="","",IFERROR(MATCH(TRUE,OFFSET(CalculationsAndCharts!$AG$33,N43,0, $C$2-N43,1),0)+N43,"")) -> 806 | O44: =IFERROR(OFFSET(CalculationsAndCharts!$K$32, N44,0,1,1),"") -> 2010-07-09 | P44: =IFERROR(OFFSET(CalculationsAndCharts!$M$32, N44,0,1,1),"") -> 1062.82 | Q44: 7 | R44: 686
B45: =IFERROR(MATCH(TRUE,OFFSET(CalculationsAndCharts!$AB$33,B44,0, $C$2-B44,1),0)+B44,"") -> 651 | C45: =IFERROR(OFFSET(CalculationsAndCharts!$K$32, B45,0,1,1),"") -> 2011-06-30 | D45: =IFERROR(OFFSET(CalculationsAndCharts!$M$32, B45,0,1,1),"") -> 1293.82 | E45: =IF(B45="","",IFERROR((MATCH(TRUE,OFFSET(CalculationsAndCharts!$AD$33,E44,0, $C$2-E44,1),0)+E44),"")) -> 640 | F45: =IFERROR(OFFSET(CalculationsAndCharts!$K$32, E45,0,1,1),"") -> 2011-07-18 | G45: =IFERROR(OFFSET(CalculationsAndCharts!$M$32, E45,0,1,1),"") -> 1307.82 | H45: 14 | I45: 875 | K45: =IFERROR(MATCH(TRUE,OFFSET(CalculationsAndCharts!$AE$33,K44,0, $C$2-K44,1),0)+K44,"") -> 831 | L45: =IFERROR(OFFSET(CalculationsAndCharts!$K$32, K45,0,1,1),"") -> 2010-06-08 | M45: =IFERROR(OFFSET(CalculationsAndCharts!$M$32, K45,0,1,1),"") -> 1062.82 | N45: =IF(K45="","",IFERROR(MATCH(TRUE,OFFSET(CalculationsAndCharts!$AG$33,N44,0, $C$2-N44,1),0)+N44,"")) -> 825 | O45: =IFERROR(OFFSET(CalculationsAndCharts!$K$32, N45,0,1,1),"") -> 2010-06-15 | P45: =IFERROR(OFFSET(CalculationsAndCharts!$M$32, N45,0,1,1),"") -> 1083.82 | Q45: -21 | R45: 679
B46: =IFERROR(MATCH(TRUE,OFFSET(CalculationsAndCharts!$AB$33,B45,0, $C$2-B45,1),0)+B45,"") -> 691 | C46: =IFERROR(OFFSET(CalculationsAndCharts!$K$32, B46,0,1,1),"") -> 2011-03-29 | D46: =IFERROR(OFFSET(CalculationsAndCharts!$M$32, B46,0,1,1),"") -> 1307.82 | E46: =IF(B46="","",IFERROR((MATCH(TRUE,OFFSET(CalculationsAndCharts!$AD$33,E45,0, $C$2-E45,1),0)+E45),"")) -> 673 | F46: =IFERROR(OFFSET(CalculationsAndCharts!$K$32, E46,0,1,1),"") -> 2011-05-19 | G46: =IFERROR(OFFSET(CalculationsAndCharts!$M$32, E46,0,1,1),"") -> 1328.82 | H46: 21 | I46: 861 | K46: =IFERROR(MATCH(TRUE,OFFSET(CalculationsAndCharts!$AE$33,K45,0, $C$2-K45,1),0)+K45,"") -> 849 | L46: =IFERROR(OFFSET(CalculationsAndCharts!$K$32, K46,0,1,1),"") -> 2010-05-20 | M46: =IFERROR(OFFSET(CalculationsAndCharts!$M$32, K46,0,1,1),"") -> 1118.82 | N46: =IF(K46="","",IFERROR(MATCH(TRUE,OFFSET(CalculationsAndCharts!$AG$33,N45,0, $C$2-N45,1),0)+N45,"")) -> 836 | O46: =IFERROR(OFFSET(CalculationsAndCharts!$K$32, N46,0,1,1),"") -> 2010-06-03 | P46: =IFERROR(OFFSET(CalculationsAndCharts!$M$32, N46,0,1,1),"") -> 1090.82 | Q46: 28 | R46: 700
B47: =IFERROR(MATCH(TRUE,OFFSET(CalculationsAndCharts!$AB$33,B46,0, $C$2-B46,1),0)+B46,"") -> 734 | C47: =IFERROR(OFFSET(CalculationsAndCharts!$K$32, B47,0,1,1),"") -> 2010-12-02 | D47: =IFERROR(OFFSET(CalculationsAndCharts!$M$32, B47,0,1,1),"") -> 1202.82 | E47: =IF(B47="","",IFERROR((MATCH(TRUE,OFFSET(CalculationsAndCharts!$AD$33,E46,0, $C$2-E46,1),0)+E46),"")) -> 706 | F47: =IFERROR(OFFSET(CalculationsAndCharts!$K$32, E47,0,1,1),"") -> 2011-02-28 | G47: =IFERROR(OFFSET(CalculationsAndCharts!$M$32, E47,0,1,1),"") -> 1307.82 | H47: 105 | I47: 840 | K47: =IFERROR(MATCH(TRUE,OFFSET(CalculationsAndCharts!$AE$33,K46,0, $C$2-K46,1),0)+K46,"") -> 868 | L47: =IFERROR(OFFSET(CalculationsAndCharts!$K$32, K47,0,1,1),"") -> 2010-05-05 | M47: =IFERROR(OFFSET(CalculationsAndCharts!$M$32, K47,0,1,1),"") -> 1181.82 | N47: =IF(K47="","",IFERROR(MATCH(TRUE,OFFSET(CalculationsAndCharts!$AG$33,N46,0, $C$2-N46,1),0)+N46,"")) -> 855 | O47: =IFERROR(OFFSET(CalculationsAndCharts!$K$32, N47,0,1,1),"") -> 2010-05-12 | P47: =IFERROR(OFFSET(CalculationsAndCharts!$M$32, N47,0,1,1),"") -> 1153.82 | Q47: 28 | R47: 672
B48: =IFERROR(MATCH(TRUE,OFFSET(CalculationsAndCharts!$AB$33,B47,0, $C$2-B47,1),0)+B47,"") -> 771 | C48: =IFERROR(OFFSET(CalculationsAndCharts!$K$32, B48,0,1,1),"") -> 2010-09-03 | D48: =IFERROR(OFFSET(CalculationsAndCharts!$M$32, B48,0,1,1),"") -> 1083.82 | E48: =IF(B48="","",IFERROR((MATCH(TRUE,OFFSET(CalculationsAndCharts!$AD$33,E47,0, $C$2-E47,1),0)+E47),"")) -> 742 | F48: =IFERROR(OFFSET(CalculationsAndCharts!$K$32, E48,0,1,1),"") -> 2010-11-18 | G48: =IFERROR(OFFSET(CalculationsAndCharts!$M$32, E48,0,1,1),"") -> 1181.82 | H48: 98 | I48: 735 | K48: =IFERROR(MATCH(TRUE,OFFSET(CalculationsAndCharts!$AE$33,K47,0, $C$2-K47,1),0)+K47,"") -> 907 | L48: =IFERROR(OFFSET(CalculationsAndCharts!$K$32, K48,0,1,1),"") -> 2010-01-22 | M48: =IFERROR(OFFSET(CalculationsAndCharts!$M$32, K48,0,1,1),"") -> 1118.82 | N48: =IF(K48="","",IFERROR(MATCH(TRUE,OFFSET(CalculationsAndCharts!$AG$33,N47,0, $C$2-N47,1),0)+N47,"")) -> 893 | O48: =IFERROR(OFFSET(CalculationsAndCharts!$K$32, N48,0,1,1),"") -> 2010-02-19 | P48: =IFERROR(OFFSET(CalculationsAndCharts!$M$32, N48,0,1,1),"") -> 1097.82 | Q48: 21 | R48: 644
B49: =IFERROR(MATCH(TRUE,OFFSET(CalculationsAndCharts!$AB$33,B48,0, $C$2-B48,1),0)+B48,"") -> 805 | C49: =IFERROR(OFFSET(CalculationsAndCharts!$K$32, B49,0,1,1),"") -> 2010-07-12 | D49: =IFERROR(OFFSET(CalculationsAndCharts!$M$32, B49,0,1,1),"") -> 1069.82 | E49: =IF(B49="","",IFERROR((MATCH(TRUE,OFFSET(CalculationsAndCharts!$AD$33,E48,0, $C$2-E48,1),0)+E48),"")) -> 786 | F49: =IFERROR(OFFSET(CalculationsAndCharts!$K$32, E49,0,1,1),"") -> 2010-08-12 | G49: =IFERROR(OFFSET(CalculationsAndCharts!$M$32, E49,0,1,1),"") -> 1097.82 | H49: 28 | I49: 637 | K49: =IFERROR(MATCH(TRUE,OFFSET(CalculationsAndCharts!$AE$33,K48,0, $C$2-K48,1),0)+K48,"") -> 942 | L49: =IFERROR(OFFSET(CalculationsAndCharts!$K$32, K49,0,1,1),"") -> 2009-10-30 | M49: =IFERROR(OFFSET(CalculationsAndCharts!$M$32, K49,0,1,1),"") -> 1055.82 | N49: =IF(K49="","",IFERROR(MATCH(TRUE,OFFSET(CalculationsAndCharts!$AG$33,N48,0, $C$2-N48,1),0)+N48,"")) -> 936 | O49: =IFERROR(OFFSET(CalculationsAndCharts!$K$32, N49,0,1,1),"") -> 2009-11-09 | P49: =IFERROR(OFFSET(CalculationsAndCharts!$M$32, N49,0,1,1),"") -> 1076.82 | Q49: -21 | R49: 623
B50: =IFERROR(MATCH(TRUE,OFFSET(CalculationsAndCharts!$AB$33,B49,0, $C$2-B49,1),0)+B49,"") -> 824 | C50: =IFERROR(OFFSET(CalculationsAndCharts!$K$32, B50,0,1,1),"") -> 2010-06-15 | D50: =IFERROR(OFFSET(CalculationsAndCharts!$M$32, B50,0,1,1),"") -> 1090.82 | E50: =IF(B50="","",IFERROR((MATCH(TRUE,OFFSET(CalculationsAndCharts!$AD$33,E49,0, $C$2-E49,1),0)+E49),"")) -> 817 | F50: =IFERROR(OFFSET(CalculationsAndCharts!$K$32, E50,0,1,1),"") -> 2010-06-28 | G50: =IFERROR(OFFSET(CalculationsAndCharts!$M$32, E50,0,1,1),"") -> 1076.82 | H50: -14 | I50: 609 | K50: =IFERROR(MATCH(TRUE,OFFSET(CalculationsAndCharts!$AE$33,K49,0, $C$2-K49,1),0)+K49,"") -> 955 | L50: =IFERROR(OFFSET(CalculationsAndCharts!$K$32, K50,0,1,1),"") -> 2009-10-06 | M50: =IFERROR(OFFSET(CalculationsAndCharts!$M$32, K50,0,1,1),"") -> 1034.82 | N50: =IF(K50="","",IFERROR(MATCH(TRUE,OFFSET(CalculationsAndCharts!$AG$33,N49,0, $C$2-N49,1),0)+N49,"")) -> 952 | O50: =IFERROR(OFFSET(CalculationsAndCharts!$K$32, N50,0,1,1),"") -> 2009-10-09 | P50: =IFERROR(OFFSET(CalculationsAndCharts!$M$32, N50,0,1,1),"") -> 1062.82 | Q50: -28 | R50: 644
B51: =IFERROR(MATCH(TRUE,OFFSET(CalculationsAndCharts!$AB$33,B50,0, $C$2-B50,1),0)+B50,"") -> 835 | C51: =IFERROR(OFFSET(CalculationsAndCharts!$K$32, B51,0,1,1),"") -> 2010-06-04 | D51: =IFERROR(OFFSET(CalculationsAndCharts!$M$32, B51,0,1,1),"") -> 1097.82 | E51: =IF(B51="","",IFERROR((MATCH(TRUE,OFFSET(CalculationsAndCharts!$AD$33,E50,0, $C$2-E50,1),0)+E50),"")) -> 832 | F51: =IFERROR(OFFSET(CalculationsAndCharts!$K$32, E51,0,1,1),"") -> 2010-06-07 | G51: =IFERROR(OFFSET(CalculationsAndCharts!$M$32, E51,0,1,1),"") -> 1069.82 | H51: -28 | I51: 623 | K51: =IFERROR(MATCH(TRUE,OFFSET(CalculationsAndCharts!$AE$33,K50,0, $C$2-K50,1),0)+K50,"") -> 1010 | L51: =IFERROR(OFFSET(CalculationsAndCharts!$K$32, K51,0,1,1),"") -> 2009-06-23 | M51: =IFERROR(OFFSET(CalculationsAndCharts!$M$32, K51,0,1,1),"") -> 901.82 | N51: =IF(K51="","",IFERROR(MATCH(TRUE,OFFSET(CalculationsAndCharts!$AG$33,N50,0, $C$2-N50,1),0)+N50,"")) -> 996 | O51: =IFERROR(OFFSET(CalculationsAndCharts!$K$32, N51,0,1,1),"") -> 2009-07-15 | P51: =IFERROR(OFFSET(CalculationsAndCharts!$M$32, N51,0,1,1),"") -> 908.82 | Q51: -7 | R51: 672
B52: =IFERROR(MATCH(TRUE,OFFSET(CalculationsAndCharts!$AB$33,B51,0, $C$2-B51,1),0)+B51,"") -> 854 | C52: =IFERROR(OFFSET(CalculationsAndCharts!$K$32, B52,0,1,1),"") -> 2010-05-14 | D52: =IFERROR(OFFSET(CalculationsAndCharts!$M$32, B52,0,1,1),"") -> 1160.82 | E52: =IF(B52="","",IFERROR((MATCH(TRUE,OFFSET(CalculationsAndCharts!$AD$33,E51,0, $C$2-E51,1),0)+E51),"")) -> 850 | F52: =IFERROR(OFFSET(CalculationsAndCharts!$K$32, E52,0,1,1),"") -> 2010-05-20 | G52: =IFERROR(OFFSET(CalculationsAndCharts!$M$32, E52,0,1,1),"") -> 1125.82 | H52: -35 | I52: 651 | K52: =IFERROR(MATCH(TRUE,OFFSET(CalculationsAndCharts!$AE$33,K51,0, $C$2-K51,1),0)+K51,"") -> 1026 | L52: =IFERROR(OFFSET(CalculationsAndCharts!$K$32, K52,0,1,1),"") -> 2009-05-22 | M52: =IFERROR(OFFSET(CalculationsAndCharts!$M$32, K52,0,1,1),"") -> 887.82 | N52: =IF(K52="","",IFERROR(MATCH(TRUE,OFFSET(CalculationsAndCharts!$AG$33,N51,0, $C$2-N51,1),0)+N51,"")) -> 1023 | O52: =IFERROR(OFFSET(CalculationsAndCharts!$K$32, N52,0,1,1),"") -> 2009-05-27 | P52: =IFERROR(OFFSET(CalculationsAndCharts!$M$32, N52,0,1,1),"") -> 901.82 | Q52: -14 | R52: 679
B53: =IFERROR(MATCH(TRUE,OFFSET(CalculationsAndCharts!$AB$33,B52,0, $C$2-B52,1),0)+B52,"") -> 893 | C53: =IFERROR(OFFSET(CalculationsAndCharts!$K$32, B53,0,1,1),"") -> 2010-02-19 | D53: =IFERROR(OFFSET(CalculationsAndCharts!$M$32, B53,0,1,1),"") -> 1097.82 | E53: =IF(B53="","",IFERROR((MATCH(TRUE,OFFSET(CalculationsAndCharts!$AD$33,E52,0, $C$2-E52,1),0)+E52),"")) -> 869 | F53: =IFERROR(OFFSET(CalculationsAndCharts!$K$32, E53,0,1,1),"") -> 2010-05-04 | G53: =IFERROR(OFFSET(CalculationsAndCharts!$M$32, E53,0,1,1),"") -> 1188.82 | H53: 91 | I53: 686 | K53: =IFERROR(MATCH(TRUE,OFFSET(CalculationsAndCharts!$AE$33,K52,0, $C$2-K52,1),0)+K52,"") -> 1028 | L53: =IFERROR(OFFSET(CalculationsAndCharts!$K$32, K53,0,1,1),"") -> 2009-05-18 | M53: =IFERROR(OFFSET(CalculationsAndCharts!$M$32, K53,0,1,1),"") -> 894.82 | N53: =IF(K53="","",IFERROR(MATCH(TRUE,OFFSET(CalculationsAndCharts!$AG$33,N52,0, $C$2-N52,1),0)+N52,"")) -> 1027 | O53: =IFERROR(OFFSET(CalculationsAndCharts!$K$32, N53,0,1,1),"") -> 2009-05-21 | P53: =IFERROR(OFFSET(CalculationsAndCharts!$M$32, N53,0,1,1),"") -> 901.82 | Q53: -7 | R53: 693
B54: =IFERROR(MATCH(TRUE,OFFSET(CalculationsAndCharts!$AB$33,B53,0, $C$2-B53,1),0)+B53,"") -> 921 | C54: =IFERROR(OFFSET(CalculationsAndCharts!$K$32, B54,0,1,1),"") -> 2009-12-23 | D54: =IFERROR(OFFSET(CalculationsAndCharts!$M$32, B54,0,1,1),"") -> 1111.82 | E54: =IF(B54="","",IFERROR((MATCH(TRUE,OFFSET(CalculationsAndCharts!$AD$33,E53,0, $C$2-E53,1),0)+E53),"")) -> 908 | F54: =IFERROR(OFFSET(CalculationsAndCharts!$K$32, E54,0,1,1),"") -> 2010-01-22 | G54: =IFERROR(OFFSET(CalculationsAndCharts!$M$32, E54,0,1,1),"") -> 1125.82 | H54: 14 | I54: 595 | K54: =IFERROR(MATCH(TRUE,OFFSET(CalculationsAndCharts!$AE$33,K53,0, $C$2-K53,1),0)+K53,"") -> 1105 | L54: =IFERROR(OFFSET(CalculationsAndCharts!$K$32, K54,0,1,1),"") -> 2009-02-17 | M54: =IFERROR(OFFSET(CalculationsAndCharts!$M$32, K54,0,1,1),"") -> 824.82 | N54: =IF(K54="","",IFERROR(MATCH(TRUE,OFFSET(CalculationsAndCharts!$AG$33,N53,0, $C$2-N53,1),0)+N53,"")) -> 1078 | O54: =IFERROR(OFFSET(CalculationsAndCharts!$K$32, N54,0,1,1),"") -> 2009-03-12 | P54: =IFERROR(OFFSET(CalculationsAndCharts!$M$32, N54,0,1,1),"") -> 712.82 | Q54: 112 | R54: 700
B55: =IFERROR(MATCH(TRUE,OFFSET(CalculationsAndCharts!$AB$33,B54,0, $C$2-B54,1),0)+B54,"") -> 924 | C55: =IFERROR(OFFSET(CalculationsAndCharts!$K$32, B55,0,1,1),"") -> 2009-12-14 | D55: =IFERROR(OFFSET(CalculationsAndCharts!$M$32, B55,0,1,1),"") -> 1104.82 | E55: =IF(B55="","",IFERROR((MATCH(TRUE,OFFSET(CalculationsAndCharts!$AD$33,E54,0, $C$2-E54,1),0)+E54),"")) -> 922 | F55: =IFERROR(OFFSET(CalculationsAndCharts!$K$32, E55,0,1,1),"") -> 2009-12-21 | G55: =IFERROR(OFFSET(CalculationsAndCharts!$M$32, E55,0,1,1),"") -> 1097.82 | H55: -7 | I55: 581 | K55: =IFERROR(MATCH(TRUE,OFFSET(CalculationsAndCharts!$AE$33,K54,0, $C$2-K54,1),0)+K54,"") -> 1134 | L55: =IFERROR(OFFSET(CalculationsAndCharts!$K$32, K55,0,1,1),"") -> 2009-01-12 | M55: =IFERROR(OFFSET(CalculationsAndCharts!$M$32, K55,0,1,1),"") -> 887.82 | N55: =IF(K55="","",IFERROR(MATCH(TRUE,OFFSET(CalculationsAndCharts!$AG$33,N54,0, $C$2-N54,1),0)+N54,"")) -> 1120 | O55: =IFERROR(OFFSET(CalculationsAndCharts!$K$32, N55,0,1,1),"") -> 2009-01-28 | P55: =IFERROR(OFFSET(CalculationsAndCharts!$M$32, N55,0,1,1),"") -> 852.82 | Q55: 35 | R55: 588
B56: =IFERROR(MATCH(TRUE,OFFSET(CalculationsAndCharts!$AB$33,B55,0, $C$2-B55,1),0)+B55,"") -> 935 | C56: =IFERROR(OFFSET(CalculationsAndCharts!$K$32, B56,0,1,1),"") -> 2009-11-10 | D56: =IFERROR(OFFSET(CalculationsAndCharts!$M$32, B56,0,1,1),"") -> 1083.82 | E56: =IF(B56="","",IFERROR((MATCH(TRUE,OFFSET(CalculationsAndCharts!$AD$33,E55,0, $C$2-E55,1),0)+E55),"")) -> 925 | F56: =IFERROR(OFFSET(CalculationsAndCharts!$K$32, E56,0,1,1),"") -> 2009-12-11 | G56: =IFERROR(OFFSET(CalculationsAndCharts!$M$32, E56,0,1,1),"") -> 1090.82 | H56: 7 | I56: 588 | K56: =IFERROR(MATCH(TRUE,OFFSET(CalculationsAndCharts!$AE$33,K55,0, $C$2-K55,1),0)+K55,"") -> 1174 | L56: =IFERROR(OFFSET(CalculationsAndCharts!$K$32, K56,0,1,1),"") -> 2008-12-01 | M56: =IFERROR(OFFSET(CalculationsAndCharts!$M$32, K56,0,1,1),"") -> 845.82 | N56: =IF(K56="","",IFERROR(MATCH(TRUE,OFFSET(CalculationsAndCharts!$AG$33,N55,0, $C$2-N55,1),0)+N55,"")) -> 1167 | O56: =IFERROR(OFFSET(CalculationsAndCharts!$K$32, N56,0,1,1),"") -> 2008-12-04 | P56: =IFERROR(OFFSET(CalculationsAndCharts!$M$32, N56,0,1,1),"") -> 859.82 | Q56: -14 | R56: 553
B57: =IFERROR(MATCH(TRUE,OFFSET(CalculationsAndCharts!$AB$33,B56,0, $C$2-B56,1),0)+B56,"") -> 951 | C57: =IFERROR(OFFSET(CalculationsAndCharts!$K$32, B57,0,1,1),"") -> 2009-10-14 | D57: =IFERROR(OFFSET(CalculationsAndCharts!$M$32, B57,0,1,1),"") -> 1069.82 | E57: =IF(B57="","",IFERROR((MATCH(TRUE,OFFSET(CalculationsAndCharts!$AD$33,E56,0, $C$2-E56,1),0)+E56),"")) -> 943 | F57: =IFERROR(OFFSET(CalculationsAndCharts!$K$32, E57,0,1,1),"") -> 2009-10-28 | G57: =IFERROR(OFFSET(CalculationsAndCharts!$M$32, E57,0,1,1),"") -> 1062.82 | H57: -7 | I57: 581 | K57: =IFERROR(MATCH(TRUE,OFFSET(CalculationsAndCharts!$AE$33,K56,0, $C$2-K56,1),0)+K56,"") -> 1210 | L57: =IFERROR(OFFSET(CalculationsAndCharts!$K$32, K57,0,1,1),"") -> 2008-11-18 | M57: =IFERROR(OFFSET(CalculationsAndCharts!$M$32, K57,0,1,1),"") -> 859.82 | N57: =IF(K57="","",IFERROR(MATCH(TRUE,OFFSET(CalculationsAndCharts!$AG$33,N56,0, $C$2-N56,1),0)+N56,"")) -> 1192 | O57: =IFERROR(OFFSET(CalculationsAndCharts!$K$32, N57,0,1,1),"") -> 2008-11-24 | P57: =IFERROR(OFFSET(CalculationsAndCharts!$M$32, N57,0,1,1),"") -> 796.82 | Q57: 63 | R57: 567
B58: =IFERROR(MATCH(TRUE,OFFSET(CalculationsAndCharts!$AB$33,B57,0, $C$2-B57,1),0)+B57,"") -> 995 | C58: =IFERROR(OFFSET(CalculationsAndCharts!$K$32, B58,0,1,1),"") -> 2009-07-15 | D58: =IFERROR(OFFSET(CalculationsAndCharts!$M$32, B58,0,1,1),"") -> 915.82 | E58: =IF(B58="","",IFERROR((MATCH(TRUE,OFFSET(CalculationsAndCharts!$AD$33,E57,0, $C$2-E57,1),0)+E57),"")) -> 956 | F58: =IFERROR(OFFSET(CalculationsAndCharts!$K$32, E58,0,1,1),"") -> 2009-10-02 | G58: =IFERROR(OFFSET(CalculationsAndCharts!$M$32, E58,0,1,1),"") -> 1041.82 | H58: 126 | I58: 588 | K58: =IFERROR(MATCH(TRUE,OFFSET(CalculationsAndCharts!$AE$33,K57,0, $C$2-K57,1),0)+K57,"") -> 1235 | L58: =IFERROR(OFFSET(CalculationsAndCharts!$K$32, K58,0,1,1),"") -> 2008-11-06 | M58: =IFERROR(OFFSET(CalculationsAndCharts!$M$32, K58,0,1,1),"") -> 950.82 | N58: =IF(K58="","",IFERROR(MATCH(TRUE,OFFSET(CalculationsAndCharts!$AG$33,N57,0, $C$2-N57,1),0)+N57,"")) -> 1216 | O58: =IFERROR(OFFSET(CalculationsAndCharts!$K$32, N58,0,1,1),"") -> 2008-11-13 | P58: =IFERROR(OFFSET(CalculationsAndCharts!$M$32, N58,0,1,1),"") -> 894.82 | Q58: 56 | R58: 504
B59: =IFERROR(MATCH(TRUE,OFFSET(CalculationsAndCharts!$AB$33,B58,0, $C$2-B58,1),0)+B58,"") -> 1021 | C59: =IFERROR(OFFSET(CalculationsAndCharts!$K$32, B59,0,1,1),"") -> 2009-05-29 | D59: =IFERROR(OFFSET(CalculationsAndCharts!$M$32, B59,0,1,1),"") -> 901.82 | E59: =IF(B59="","",IFERROR((MATCH(TRUE,OFFSET(CalculationsAndCharts!$AD$33,E58,0, $C$2-E58,1),0)+E58),"")) -> 1011 | F59: =IFERROR(OFFSET(CalculationsAndCharts!$K$32, E59,0,1,1),"") -> 2009-06-22 | G59: =IFERROR(OFFSET(CalculationsAndCharts!$M$32, E59,0,1,1),"") -> 908.82 | H59: 7 | I59: 462 | K59: =IFERROR(MATCH(TRUE,OFFSET(CalculationsAndCharts!$AE$33,K58,0, $C$2-K58,1),0)+K58,"") -> 1268 | L59: =IFERROR(OFFSET(CalculationsAndCharts!$K$32, K59,0,1,1),"") -> 2008-10-22 | M59: =IFERROR(OFFSET(CalculationsAndCharts!$M$32, K59,0,1,1),"") -> 929.82 | N59: =IF(K59="","",IFERROR(MATCH(TRUE,OFFSET(CalculationsAndCharts!$AG$33,N58,0, $C$2-N58,1),0)+N58,"")) -> 1254 | O59: =IFERROR(OFFSET(CalculationsAndCharts!$K$32, N59,0,1,1),"") -> 2008-10-28 | P59: =IFERROR(OFFSET(CalculationsAndCharts!$M$32, N59,0,1,1),"") -> 894.82 | Q59: 35 | R59: 448
B60: =IFERROR(MATCH(TRUE,OFFSET(CalculationsAndCharts!$AB$33,B59,0, $C$2-B59,1),0)+B59,"") -> 1051 | C60: =IFERROR(OFFSET(CalculationsAndCharts!$K$32, B60,0,1,1),"") -> 2009-04-09 | D60: =IFERROR(OFFSET(CalculationsAndCharts!$M$32, B60,0,1,1),"") -> 831.82 | E60: =IF(B60="","",IFERROR((MATCH(TRUE,OFFSET(CalculationsAndCharts!$AD$33,E59,0, $C$2-E59,1),0)+E59),"")) -> 1029 | F60: =IFERROR(OFFSET(CalculationsAndCharts!$K$32, E60,0,1,1),"") -> 2009-05-18 | G60: =IFERROR(OFFSET(CalculationsAndCharts!$M$32, E60,0,1,1),"") -> 880.82 | H60: 49 | I60: 455 | K60: =IFERROR(MATCH(TRUE,OFFSET(CalculationsAndCharts!$AE$33,K59,0, $C$2-K59,1),0)+K59,"") -> 1285 | L60: =IFERROR(OFFSET(CalculationsAndCharts!$K$32, K60,0,1,1),"") -> 2008-10-15 | M60: =IFERROR(OFFSET(CalculationsAndCharts!$M$32, K60,0,1,1),"") -> 950.82 | N60: =IF(K60="","",IFERROR(MATCH(TRUE,OFFSET(CalculationsAndCharts!$AG$33,N59,0, $C$2-N59,1),0)+N59,"")) -> 1276 | O60: =IFERROR(OFFSET(CalculationsAndCharts!$K$32, N60,0,1,1),"") -> 2008-10-20 | P60: =IFERROR(OFFSET(CalculationsAndCharts!$M$32, N60,0,1,1),"") -> 950.82 | Q60: 0 | R60: 413
B61: =IFERROR(MATCH(TRUE,OFFSET(CalculationsAndCharts!$AB$33,B60,0, $C$2-B60,1),0)+B60,"") -> 1077 | C61: =IFERROR(OFFSET(CalculationsAndCharts!$K$32, B61,0,1,1),"") -> 2009-03-12 | D61: =IFERROR(OFFSET(CalculationsAndCharts!$M$32, B61,0,1,1),"") -> 719.82 | E61: =IF(B61="","",IFERROR((MATCH(TRUE,OFFSET(CalculationsAndCharts!$AD$33,E60,0, $C$2-E60,1),0)+E60),"")) -> 1052 | F61: =IFERROR(OFFSET(CalculationsAndCharts!$K$32, E61,0,1,1),"") -> 2009-04-09 | G61: =IFERROR(OFFSET(CalculationsAndCharts!$M$32, E61,0,1,1),"") -> 817.82 | H61: 98 | I61: 406 | K61: =IFERROR(MATCH(TRUE,OFFSET(CalculationsAndCharts!$AE$33,K60,0, $C$2-K60,1),0)+K60,"") -> 1331 | L61: =IFERROR(OFFSET(CalculationsAndCharts!$K$32, K61,0,1,1),"") -> 2008-10-03 | M61: =IFERROR(OFFSET(CalculationsAndCharts!$M$32, K61,0,1,1),"") -> 1118.82 | N61: =IF(K61="","",IFERROR(MATCH(TRUE,OFFSET(CalculationsAndCharts!$AG$33,N60,0, $C$2-N60,1),0)+N60,"")) -> 1297 | O61: =IFERROR(OFFSET(CalculationsAndCharts!$K$32, N61,0,1,1),"") -> 2008-10-13 | P61: =IFERROR(OFFSET(CalculationsAndCharts!$M$32, N61,0,1,1),"") -> 943.82 | Q61: 175 | R61: 413
B62: =IFERROR(MATCH(TRUE,OFFSET(CalculationsAndCharts!$AB$33,B61,0, $C$2-B61,1),0)+B61,"") -> 1119 | C62: =IFERROR(OFFSET(CalculationsAndCharts!$K$32, B62,0,1,1),"") -> 2009-01-28 | D62: =IFERROR(OFFSET(CalculationsAndCharts!$M$32, B62,0,1,1),"") -> 859.82 | E62: =IF(B62="","",IFERROR((MATCH(TRUE,OFFSET(CalculationsAndCharts!$AD$33,E61,0, $C$2-E61,1),0)+E61),"")) -> 1114 | F62: =IFERROR(OFFSET(CalculationsAndCharts!$K$32, E62,0,1,1),"") -> 2009-02-05 | G62: =IFERROR(OFFSET(CalculationsAndCharts!$M$32, E62,0,1,1),"") -> 831.82 | H62: -28 | I62: 308 | K62: =IFERROR(MATCH(TRUE,OFFSET(CalculationsAndCharts!$AE$33,K61,0, $C$2-K61,1),0)+K61,"") -> 1357 | L62: =IFERROR(OFFSET(CalculationsAndCharts!$K$32, K62,0,1,1),"") -> 2008-09-23 | M62: =IFERROR(OFFSET(CalculationsAndCharts!$M$32, K62,0,1,1),"") -> 1202.82 | N62: =IF(K62="","",IFERROR(MATCH(TRUE,OFFSET(CalculationsAndCharts!$AG$33,N61,0, $C$2-N61,1),0)+N61,"")) -> 1337 | O62: =IFERROR(OFFSET(CalculationsAndCharts!$K$32, N62,0,1,1),"") -> 2008-10-01 | P62: =IFERROR(OFFSET(CalculationsAndCharts!$M$32, N62,0,1,1),"") -> 1153.82 | Q62: 49 | R62: 238
B63: =IFERROR(MATCH(TRUE,OFFSET(CalculationsAndCharts!$AB$33,B62,0, $C$2-B62,1),0)+B62,"") -> 1142 | C63: =IFERROR(OFFSET(CalculationsAndCharts!$K$32, B63,0,1,1),"") -> 2009-01-02 | D63: =IFERROR(OFFSET(CalculationsAndCharts!$M$32, B63,0,1,1),"") -> 908.82 | E63: =IF(B63="","",IFERROR((MATCH(TRUE,OFFSET(CalculationsAndCharts!$AD$33,E62,0, $C$2-E62,1),0)+E62),"")) -> 1135 | F63: =IFERROR(OFFSET(CalculationsAndCharts!$K$32, E63,0,1,1),"") -> 2009-01-12 | G63: =IFERROR(OFFSET(CalculationsAndCharts!$M$32, E63,0,1,1),"") -> 894.82 | H63: -14 | I63: 336 | K63: =IFERROR(MATCH(TRUE,OFFSET(CalculationsAndCharts!$AE$33,K62,0, $C$2-K62,1),0)+K62,"") -> 1396 | L63: =IFERROR(OFFSET(CalculationsAndCharts!$K$32, K63,0,1,1),"") -> 2008-08-27 | M63: =IFERROR(OFFSET(CalculationsAndCharts!$M$32, K63,0,1,1),"") -> 1265.82 | N63: =IF(K63="","",IFERROR(MATCH(TRUE,OFFSET(CalculationsAndCharts!$AG$33,N62,0, $C$2-N62,1),0)+N62,"")) -> 1368 | O63: =IFERROR(OFFSET(CalculationsAndCharts!$K$32, N63,0,1,1),"") -> 2008-09-19 | P63: =IFERROR(OFFSET(CalculationsAndCharts!$M$32, N63,0,1,1),"") -> 1202.82 | Q63: 63 | R63: 189
B64: =IFERROR(MATCH(TRUE,OFFSET(CalculationsAndCharts!$AB$33,B63,0, $C$2-B63,1),0)+B63,"") -> 1165 | C64: =IFERROR(OFFSET(CalculationsAndCharts!$K$32, B64,0,1,1),"") -> 2008-12-05 | D64: =IFERROR(OFFSET(CalculationsAndCharts!$M$32, B64,0,1,1),"") -> 859.82 | E64: =IF(B64="","",IFERROR((MATCH(TRUE,OFFSET(CalculationsAndCharts!$AD$33,E63,0, $C$2-E63,1),0)+E63),"")) -> 1155 | F64: =IFERROR(OFFSET(CalculationsAndCharts!$K$32, E64,0,1,1),"") -> 2008-12-16 | G64: =IFERROR(OFFSET(CalculationsAndCharts!$M$32, E64,0,1,1),"") -> 866.82 | H64: 7 | I64: 350 | K64: =IFERROR(MATCH(TRUE,OFFSET(CalculationsAndCharts!$AE$33,K63,0, $C$2-K63,1),0)+K63,"") -> 1410 | L64: =IFERROR(OFFSET(CalculationsAndCharts!$K$32, K64,0,1,1),"") -> 2008-08-05 | M64: =IFERROR(OFFSET(CalculationsAndCharts!$M$32, K64,0,1,1),"") -> 1251.82 | N64: =IF(K64="","",IFERROR(MATCH(TRUE,OFFSET(CalculationsAndCharts!$AG$33,N63,0, $C$2-N63,1),0)+N63,"")) -> 1408 | O64: =IFERROR(OFFSET(CalculationsAndCharts!$K$32, N64,0,1,1),"") -> 2008-08-06 | P64: =IFERROR(OFFSET(CalculationsAndCharts!$M$32, N64,0,1,1),"") -> 1272.82 | Q64: -21 | R64: 126
B65: =IFERROR(MATCH(TRUE,OFFSET(CalculationsAndCharts!$AB$33,B64,0, $C$2-B64,1),0)+B64,"") -> 1191 | C65: =IFERROR(OFFSET(CalculationsAndCharts!$K$32, B65,0,1,1),"") -> 2008-11-24 | D65: =IFERROR(OFFSET(CalculationsAndCharts!$M$32, B65,0,1,1),"") -> 803.82 | E65: =IF(B65="","",IFERROR((MATCH(TRUE,OFFSET(CalculationsAndCharts!$AD$33,E64,0, $C$2-E64,1),0)+E64),"")) -> 1175 | F65: =IFERROR(OFFSET(CalculationsAndCharts!$K$32, E65,0,1,1),"") -> 2008-12-01 | G65: =IFERROR(OFFSET(CalculationsAndCharts!$M$32, E65,0,1,1),"") -> 852.82 | H65: 49 | I65: 343 | K65: =IFERROR(MATCH(TRUE,OFFSET(CalculationsAndCharts!$AE$33,K64,0, $C$2-K64,1),0)+K64,"") -> 1457 | L65: =IFERROR(OFFSET(CalculationsAndCharts!$K$32, K65,0,1,1),"") -> 2008-06-03 | M65: =IFERROR(OFFSET(CalculationsAndCharts!$M$32, K65,0,1,1),"") -> 1384.82 | N65: =IF(K65="","",IFERROR(MATCH(TRUE,OFFSET(CalculationsAndCharts!$AG$33,N64,0, $C$2-N64,1),0)+N64,"")) -> 1420 | O65: =IFERROR(OFFSET(CalculationsAndCharts!$K$32, N65,0,1,1),"") -> 2008-07-22 | P65: =IFERROR(OFFSET(CalculationsAndCharts!$M$32, N65,0,1,1),"") -> 1258.82 | Q65: 126 | R65: 147
B66: =IFERROR(MATCH(TRUE,OFFSET(CalculationsAndCharts!$AB$33,B65,0, $C$2-B65,1),0)+B65,"") -> 1215 | C66: =IFERROR(OFFSET(CalculationsAndCharts!$K$32, B66,0,1,1),"") -> 2008-11-14 | D66: =IFERROR(OFFSET(CalculationsAndCharts!$M$32, B66,0,1,1),"") -> 901.82 | E66: =IF(B66="","",IFERROR((MATCH(TRUE,OFFSET(CalculationsAndCharts!$AD$33,E65,0, $C$2-E65,1),0)+E65),"")) -> 1211 | F66: =IFERROR(OFFSET(CalculationsAndCharts!$K$32, E66,0,1,1),"") -> 2008-11-17 | G66: =IFERROR(OFFSET(CalculationsAndCharts!$M$32, E66,0,1,1),"") -> 866.82 | H66: -35 | I66: 294 | K66: =IFERROR(MATCH(TRUE,OFFSET(CalculationsAndCharts!$AE$33,K65,0, $C$2-K65,1),0)+K65,"") -> 1461 | L66: =IFERROR(OFFSET(CalculationsAndCharts!$K$32, K66,0,1,1),"") -> 2008-05-22 | M66: =IFERROR(OFFSET(CalculationsAndCharts!$M$32, K66,0,1,1),"") -> 1398.82 | N66: =IF(K66="","",IFERROR(MATCH(TRUE,OFFSET(CalculationsAndCharts!$AG$33,N65,0, $C$2-N65,1),0)+N65,"")) -> 1460 | O66: =IFERROR(OFFSET(CalculationsAndCharts!$K$32, N66,0,1,1),"") -> 2008-05-23 | P66: =IFERROR(OFFSET(CalculationsAndCharts!$M$32, N66,0,1,1),"") -> 1391.82 | Q66: 7 | R66: 21
B67: =IFERROR(MATCH(TRUE,OFFSET(CalculationsAndCharts!$AB$33,B66,0, $C$2-B66,1),0)+B66,"") -> 1253 | C67: =IFERROR(OFFSET(CalculationsAndCharts!$K$32, B67,0,1,1),"") -> 2008-10-28 | D67: =IFERROR(OFFSET(CalculationsAndCharts!$M$32, B67,0,1,1),"") -> 901.82 | E67: =IF(B67="","",IFERROR((MATCH(TRUE,OFFSET(CalculationsAndCharts!$AD$33,E66,0, $C$2-E66,1),0)+E66),"")) -> 1236 | F67: =IFERROR(OFFSET(CalculationsAndCharts!$K$32, E67,0,1,1),"") -> 2008-11-06 | G67: =IFERROR(OFFSET(CalculationsAndCharts!$M$32, E67,0,1,1),"") -> 957.82 | H67: 56 | I67: 329 | K67: =IFERROR(MATCH(TRUE,OFFSET(CalculationsAndCharts!$AE$33,K66,0, $C$2-K66,1),0)+K66,"") -> 1483 | L67: =IFERROR(OFFSET(CalculationsAndCharts!$K$32, K67,0,1,1),"") -> 2008-04-16 | M67: =IFERROR(OFFSET(CalculationsAndCharts!$M$32, K67,0,1,1),"") -> 1328.82 | N67: =IF(K67="","",IFERROR(MATCH(TRUE,OFFSET(CalculationsAndCharts!$AG$33,N66,0, $C$2-N66,1),0)+N66,"")) -> 1479 | O67: =IFERROR(OFFSET(CalculationsAndCharts!$K$32, N67,0,1,1),"") -> 2008-04-18 | P67: =IFERROR(OFFSET(CalculationsAndCharts!$M$32, N67,0,1,1),"") -> 1363.82 | Q67: -35 | R67: 14
B68: =IFERROR(MATCH(TRUE,OFFSET(CalculationsAndCharts!$AB$33,B67,0, $C$2-B67,1),0)+B67,"") -> 1275 | C68: =IFERROR(OFFSET(CalculationsAndCharts!$K$32, B68,0,1,1),"") -> 2008-10-20 | D68: =IFERROR(OFFSET(CalculationsAndCharts!$M$32, B68,0,1,1),"") -> 957.82 | E68: =IF(B68="","",IFERROR((MATCH(TRUE,OFFSET(CalculationsAndCharts!$AD$33,E67,0, $C$2-E67,1),0)+E67),"")) -> 1269 | F68: =IFERROR(OFFSET(CalculationsAndCharts!$K$32, E68,0,1,1),"") -> 2008-10-22 | G68: =IFERROR(OFFSET(CalculationsAndCharts!$M$32, E68,0,1,1),"") -> 936.82 | H68: -21 | I68: 273 | K68: =IFERROR(MATCH(TRUE,OFFSET(CalculationsAndCharts!$AE$33,K67,0, $C$2-K67,1),0)+K67,"") -> 1520 | L68: =IFERROR(OFFSET(CalculationsAndCharts!$K$32, K68,0,1,1),"") -> 2008-03-04 | M68: =IFERROR(OFFSET(CalculationsAndCharts!$M$32, K68,0,1,1),"") -> 1335.82 | N68: =IF(K68="","",IFERROR(MATCH(TRUE,OFFSET(CalculationsAndCharts!$AG$33,N67,0, $C$2-N67,1),0)+N67,"")) -> 1506 | O68: =IFERROR(OFFSET(CalculationsAndCharts!$K$32, N68,0,1,1),"") -> 2008-03-18 | P68: =IFERROR(OFFSET(CalculationsAndCharts!$M$32, N68,0,1,1),"") -> 1300.82 | Q68: 35 | R68: 49
B69: =IFERROR(MATCH(TRUE,OFFSET(CalculationsAndCharts!$AB$33,B68,0, $C$2-B68,1),0)+B68,"") -> 1296 | C69: =IFERROR(OFFSET(CalculationsAndCharts!$K$32, B69,0,1,1),"") -> 2008-10-13 | D69: =IFERROR(OFFSET(CalculationsAndCharts!$M$32, B69,0,1,1),"") -> 950.82 | E69: =IF(B69="","",IFERROR((MATCH(TRUE,OFFSET(CalculationsAndCharts!$AD$33,E68,0, $C$2-E68,1),0)+E68),"")) -> 1286 | F69: =IFERROR(OFFSET(CalculationsAndCharts!$K$32, E69,0,1,1),"") -> 2008-10-15 | G69: =IFERROR(OFFSET(CalculationsAndCharts!$M$32, E69,0,1,1),"") -> 957.82 | H69: 7 | I69: 294 | K69: =IFERROR(MATCH(TRUE,OFFSET(CalculationsAndCharts!$AE$33,K68,0, $C$2-K68,1),0)+K68,"") -> 1537 | L69: =IFERROR(OFFSET(CalculationsAndCharts!$K$32, K69,0,1,1),"") -> 2008-02-06 | M69: =IFERROR(OFFSET(CalculationsAndCharts!$M$32, K69,0,1,1),"") -> 1342.82 | N69: =IF(K69="","",IFERROR(MATCH(TRUE,OFFSET(CalculationsAndCharts!$AG$33,N68,0, $C$2-N68,1),0)+N68,"")) -> 1530 | O69: =IFERROR(OFFSET(CalculationsAndCharts!$K$32, N69,0,1,1),"") -> 2008-02-21 | P69: =IFERROR(OFFSET(CalculationsAndCharts!$M$32, N69,0,1,1),"") -> 1356.82 | Q69: -14 | R69: 14
B70: =IFERROR(MATCH(TRUE,OFFSET(CalculationsAndCharts!$AB$33,B69,0, $C$2-B69,1),0)+B69,"") -> 1336 | C70: =IFERROR(OFFSET(CalculationsAndCharts!$K$32, B70,0,1,1),"") -> 2008-10-02 | D70: =IFERROR(OFFSET(CalculationsAndCharts!$M$32, B70,0,1,1),"") -> 1160.82 | E70: =IF(B70="","",IFERROR((MATCH(TRUE,OFFSET(CalculationsAndCharts!$AD$33,E69,0, $C$2-E69,1),0)+E69),"")) -> 1332 | F70: =IFERROR(OFFSET(CalculationsAndCharts!$K$32, E70,0,1,1),"") -> 2008-10-03 | G70: =IFERROR(OFFSET(CalculationsAndCharts!$M$32, E70,0,1,1),"") -> 1125.82 | H70: -35 | I70: 287 | K70: =IFERROR(MATCH(TRUE,OFFSET(CalculationsAndCharts!$AE$33,K69,0, $C$2-K69,1),0)+K69,"") -> 1574 | L70: =IFERROR(OFFSET(CalculationsAndCharts!$K$32, K70,0,1,1),"") -> 2008-01-04 | M70: =IFERROR(OFFSET(CalculationsAndCharts!$M$32, K70,0,1,1),"") -> 1447.82 | N70: =IF(K70="","",IFERROR(MATCH(TRUE,OFFSET(CalculationsAndCharts!$AG$33,N69,0, $C$2-N69,1),0)+N69,"")) -> 1547 | O70: =IFERROR(OFFSET(CalculationsAndCharts!$K$32, N70,0,1,1),"") -> 2008-01-31 | P70: =IFERROR(OFFSET(CalculationsAndCharts!$M$32, N70,0,1,1),"") -> 1349.82 | Q70: 98 | R70: 28
B71: =IFERROR(MATCH(TRUE,OFFSET(CalculationsAndCharts!$AB$33,B70,0, $C$2-B70,1),0)+B70,"") -> 1367 | C71: =IFERROR(OFFSET(CalculationsAndCharts!$K$32, B71,0,1,1),"") -> 2008-09-19 | D71: =IFERROR(OFFSET(CalculationsAndCharts!$M$32, B71,0,1,1),"") -> 1209.82 | E71: =IF(B71="","",IFERROR((MATCH(TRUE,OFFSET(CalculationsAndCharts!$AD$33,E70,0, $C$2-E70,1),0)+E70),"")) -> 1358 | F71: =IFERROR(OFFSET(CalculationsAndCharts!$K$32, E71,0,1,1),"") -> 2008-09-23 | G71: =IFERROR(OFFSET(CalculationsAndCharts!$M$32, E71,0,1,1),"") -> 1209.82 | H71: 0 | I71: 322 | K71: =IFERROR(MATCH(TRUE,OFFSET(CalculationsAndCharts!$AE$33,K70,0, $C$2-K70,1),0)+K70,"") -> 1587 | L71: =IFERROR(OFFSET(CalculationsAndCharts!$K$32, K71,0,1,1),"") -> 2007-12-17 | M71: =IFERROR(OFFSET(CalculationsAndCharts!$M$32, K71,0,1,1),"") -> 1468.82 | N71: =IF(K71="","",IFERROR(MATCH(TRUE,OFFSET(CalculationsAndCharts!$AG$33,N70,0, $C$2-N70,1),0)+N70,"")) -> 1580 | O71: =IFERROR(OFFSET(CalculationsAndCharts!$K$32, N71,0,1,1),"") -> 2007-12-26 | P71: =IFERROR(OFFSET(CalculationsAndCharts!$M$32, N71,0,1,1),"") -> 1482.82 | Q71: -14 | R71: -70
B72: =IFERROR(MATCH(TRUE,OFFSET(CalculationsAndCharts!$AB$33,B71,0, $C$2-B71,1),0)+B71,"") -> 1398 | C72: =IFERROR(OFFSET(CalculationsAndCharts!$K$32, B72,0,1,1),"") -> 2008-08-25 | D72: =IFERROR(OFFSET(CalculationsAndCharts!$M$32, B72,0,1,1),"") -> 1286.82 | E72: =IF(B72="","",IFERROR((MATCH(TRUE,OFFSET(CalculationsAndCharts!$AD$33,E71,0, $C$2-E71,1),0)+E71),"")) -> 1397 | F72: =IFERROR(OFFSET(CalculationsAndCharts!$K$32, E72,0,1,1),"") -> 2008-08-26 | G72: =IFERROR(OFFSET(CalculationsAndCharts!$M$32, E72,0,1,1),"") -> 1272.82 | H72: -14 | I72: 322 | K72: =IFERROR(MATCH(TRUE,OFFSET(CalculationsAndCharts!$AE$33,K71,0, $C$2-K71,1),0)+K71,"") -> 1622 | L72: =IFERROR(OFFSET(CalculationsAndCharts!$K$32, K72,0,1,1),"") -> 2007-11-07 | M72: =IFERROR(OFFSET(CalculationsAndCharts!$M$32, K72,0,1,1),"") -> 1503.82 | N72: =IF(K72="","",IFERROR(MATCH(TRUE,OFFSET(CalculationsAndCharts!$AG$33,N71,0, $C$2-N71,1),0)+N71,"")) -> 1602 | O72: =IFERROR(OFFSET(CalculationsAndCharts!$K$32, N72,0,1,1),"") -> 2007-11-28 | P72: =IFERROR(OFFSET(CalculationsAndCharts!$M$32, N72,0,1,1),"") -> 1454.82 | Q72: 49 | R72: -56
B73: =IFERROR(MATCH(TRUE,OFFSET(CalculationsAndCharts!$AB$33,B72,0, $C$2-B72,1),0)+B72,"") -> 1408 | C73: =IFERROR(OFFSET(CalculationsAndCharts!$K$32, B73,0,1,1),"") -> 2008-08-06 | D73: =IFERROR(OFFSET(CalculationsAndCharts!$M$32, B73,0,1,1),"") -> 1272.82 | E73: =IF(B73="","",IFERROR((MATCH(TRUE,OFFSET(CalculationsAndCharts!$AD$33,E72,0, $C$2-E72,1),0)+E72),"")) -> 1399 | F73: =IFERROR(OFFSET(CalculationsAndCharts!$K$32, E73,0,1,1),"") -> 2008-08-22 | G73: =IFERROR(OFFSET(CalculationsAndCharts!$M$32, E73,0,1,1),"") -> 1272.82 | H73: 0 | I73: 336 | K73: =IFERROR(MATCH(TRUE,OFFSET(CalculationsAndCharts!$AE$33,K72,0, $C$2-K72,1),0)+K72,"") -> 1634 | L73: =IFERROR(OFFSET(CalculationsAndCharts!$K$32, K73,0,1,1),"") -> 2007-10-19 | M73: =IFERROR(OFFSET(CalculationsAndCharts!$M$32, K73,0,1,1),"") -> 1517.82 | N73: =IF(K73="","",IFERROR(MATCH(TRUE,OFFSET(CalculationsAndCharts!$AG$33,N72,0, $C$2-N72,1),0)+N72,"")) -> 1628 | O73: =IFERROR(OFFSET(CalculationsAndCharts!$K$32, N73,0,1,1),"") -> 2007-11-01 | P73: =IFERROR(OFFSET(CalculationsAndCharts!$M$32, N73,0,1,1),"") -> 1538.82 | Q73: -21 | R73: -105
B74: =IFERROR(MATCH(TRUE,OFFSET(CalculationsAndCharts!$AB$33,B73,0, $C$2-B73,1),0)+B73,"") -> 1419 | C74: =IFERROR(OFFSET(CalculationsAndCharts!$K$32, B74,0,1,1),"") -> 2008-07-23 | D74: =IFERROR(OFFSET(CalculationsAndCharts!$M$32, B74,0,1,1),"") -> 1265.82 | E74: =IF(B74="","",IFERROR((MATCH(TRUE,OFFSET(CalculationsAndCharts!$AD$33,E73,0, $C$2-E73,1),0)+E73),"")) -> 1411 | F74: =IFERROR(OFFSET(CalculationsAndCharts!$K$32, E74,0,1,1),"") -> 2008-08-04 | G74: =IFERROR(OFFSET(CalculationsAndCharts!$M$32, E74,0,1,1),"") -> 1258.82 | H74: -7 | I74: 336 | K74: =IFERROR(MATCH(TRUE,OFFSET(CalculationsAndCharts!$AE$33,K73,0, $C$2-K73,1),0)+K73,"") -> 1655 | L74: =IFERROR(OFFSET(CalculationsAndCharts!$K$32, K74,0,1,1),"") -> 2007-09-11 | M74: =IFERROR(OFFSET(CalculationsAndCharts!$M$32, K74,0,1,1),"") -> 1454.82 | N74: =IF(K74="","",IFERROR(MATCH(TRUE,OFFSET(CalculationsAndCharts!$AG$33,N73,0, $C$2-N73,1),0)+N73,"")) -> 1654 | O74: =IFERROR(OFFSET(CalculationsAndCharts!$K$32, N74,0,1,1),"") -> 2007-09-13 | P74: =IFERROR(OFFSET(CalculationsAndCharts!$M$32, N74,0,1,1),"") -> 1468.82 | Q74: -14 | R74: -84
B75: =IFERROR(MATCH(TRUE,OFFSET(CalculationsAndCharts!$AB$33,B74,0, $C$2-B74,1),0)+B74,"") -> 1478 | C75: =IFERROR(OFFSET(CalculationsAndCharts!$K$32, B75,0,1,1),"") -> 2008-04-18 | D75: =IFERROR(OFFSET(CalculationsAndCharts!$M$32, B75,0,1,1),"") -> 1370.82 | E75: =IF(B75="","",IFERROR((MATCH(TRUE,OFFSET(CalculationsAndCharts!$AD$33,E74,0, $C$2-E74,1),0)+E74),"")) -> 1462 | F75: =IFERROR(OFFSET(CalculationsAndCharts!$K$32, E75,0,1,1),"") -> 2008-05-21 | G75: =IFERROR(OFFSET(CalculationsAndCharts!$M$32, E75,0,1,1),"") -> 1405.82 | H75: 35 | I75: 343 | K75: =IFERROR(MATCH(TRUE,OFFSET(CalculationsAndCharts!$AE$33,K74,0, $C$2-K74,1),0)+K74,"") -> 1676 | L75: =IFERROR(OFFSET(CalculationsAndCharts!$K$32, K75,0,1,1),"") -> 2007-08-14 | M75: =IFERROR(OFFSET(CalculationsAndCharts!$M$32, K75,0,1,1),"") -> 1447.82 | N75: =IF(K75="","",IFERROR(MATCH(TRUE,OFFSET(CalculationsAndCharts!$AG$33,N74,0, $C$2-N74,1),0)+N74,"")) -> 1667 | O75: =IFERROR(OFFSET(CalculationsAndCharts!$K$32, N75,0,1,1),"") -> 2007-08-22 | P75: =IFERROR(OFFSET(CalculationsAndCharts!$M$32, N75,0,1,1),"") -> 1447.82 | Q75: 0 | R75: -70
